{"text_format":"1","workbook":"xlsx","n_sheets":5,"sheets":["A0_Detail","Förderabwicklung_Form","BFI_Gemeinden ","Tabelle2","Tabelle4"],"not_rendered":{"charts":0,"images":8,"macros":1,"external_links":3,"defined_names":33,"comments":1,"pivot_tables":0},"unopened":[],"bounds":{"document_bytes":16777216,"sheet_cells":100000,"rows_first":2000,"rows_last":500,"rows_between":2000,"halvings":0,"cell_chars":16384,"cell_head_chars":4096},"cells_cut":0,"cells_raw":0,"read":"whole","date_system":"1900"}

{"sheet":"A0_Detail","index":0,"n_rows":194,"n_cols":1778,"rows_kept":194,"cut":false,"hidden":true,"merged":[[163,1,163,17],[164,1,164,17],[165,1,165,17],[90,1,90,17],[63,1,63,17],[64,1,64,17],[65,1,65,17],[113,1,113,17],[114,1,114,17],[115,1,115,17],[138,1,138,17],[139,1,139,17],[104,7,105,19],[106,1,106,3],[106,5,106,6],[106,7,106,19],[95,15,95,17],[96,15,96,17],[97,15,97,17],[98,15,98,17],[99,1,99,5],[99,6,99,7],[99,9,99,10],[100,1,100,5],[4,3,4,19],[66,1,66,17],[66,18,66,19],[91,1,91,17],[91,18,91,19],[70,1,70,5],[68,6,68,7],[73,6,73,7],[72,1,72,5],[72,6,72,7],[72,9,72,10],[71,1,71,5],[71,6,71,7],[71,9,71,10],[88,1,88,17],[89,1,89,17],[71,15,71,17],[72,15,72,17],[57,19,58,19],[57,15,57,18],[57,6,57,14],[58,6,58,14],[58,15,58,18],[70,9,70,10],[152,24,153,24],[169,24,170,24],[4,24,12,24],[30,24,31,24],[38,24,39,24],[69,24,70,24],[77,24,78,24],[94,24,95,24],[102,24,103,24],[119,24,120,24],[127,24,128,24],[144,24,145,24],[181,1,181,19],[183,1,183,19],[182,1,182,19],[184,1,184,19],[185,1,185,19],[186,1,186,19],[187,1,187,19],[76,1,76,5],[73,1,73,5],[74,1,74,5],[74,6,74,7],[74,9,74,10],[176,1,176,5],[176,6,176,7],[176,9,176,10],[168,15,168,17],[170,15,170,17],[171,15,171,17],[172,15,172,17],[173,15,173,17],[174,15,174,17],[175,15,175,17],[176,15,176,17],[73,15,73,17],[188,1,188,19],[191,1,192,6],[189,1,189,19],[190,1,190,19],[193,1,193,5],[193,6,193,18],[191,7,192,19],[69,23,70,23],[177,1,177,13],[153,1,153,13],[128,1,128,13],[103,1,103,13],[78,1,78,13],[177,15,177,17],[153,15,153,17],[128,15,128,17],[103,15,103,17],[78,15,78,17],[127,23,128,23],[152,23,153,23],[77,23,78,23],[102,23,103,23],[169,23,170,23],[73,9,73,10],[144,23,145,23],[119,23,120,23],[94,23,95,23],[161,1,161,17],[162,1,162,17],[161,18,161,19],[101,6,101,7],[86,1,86,17],[87,1,87,17],[88,18,88,19],[89,18,89,19],[90,18,90,19],[93,15,93,17],[98,6,98,7],[98,9,98,10],[95,6,95,7],[96,1,96,5],[96,6,96,7],[96,9,96,10],[95,1,95,5],[95,9,95,10],[94,6,94,7],[104,1,105,3],[104,5,105,6],[68,1,68,5],[69,6,69,7],[69,15,69,16],[70,6,70,7],[62,1,62,17],[61,1,61,17],[61,18,61,19],[62,18,62,19],[63,18,63,19],[64,18,64,19],[65,18,65,19],[70,15,70,17],[68,15,68,17],[175,1,175,5],[175,6,175,7],[175,9,175,10],[74,15,74,17],[81,1,81,3],[81,5,81,6],[81,7,81,19],[87,18,87,19],[86,18,86,19],[75,6,75,7],[75,9,75,10],[101,9,101,10],[79,1,80,3],[79,5,80,6],[79,7,80,19],[75,1,75,5],[75,15,75,17],[76,15,76,17],[76,6,76,7],[76,9,76,10],[94,15,94,16],[93,1,93,5],[93,6,93,7],[174,1,174,5],[174,6,174,7],[174,9,174,10],[171,6,171,7],[171,9,171,10],[162,18,162,19],[163,18,163,19],[164,18,164,19],[165,18,165,19],[168,1,168,5],[168,6,168,7],[169,6,169,7],[171,1,171,5],[172,6,172,7],[172,9,172,10],[173,1,173,5],[173,6,173,7],[169,15,169,16],[170,1,170,5],[170,6,170,7],[170,9,170,10],[173,9,173,10],[172,1,172,5],[166,1,166,17],[166,18,166,19],[14,3,14,19],[16,4,16,7],[15,18,15,19],[29,9,29,13],[2,2,2,6],[2,7,2,14],[2,15,2,19],[6,8,6,16],[16,1,16,3],[16,16,16,17],[16,9,16,14],[7,8,7,16],[8,8,8,16],[6,18,6,19],[7,18,7,19],[8,18,8,19],[29,15,29,17],[10,3,10,19],[12,3,12,19],[17,18,17,19],[18,18,18,19],[28,1,28,19],[19,1,19,16],[17,1,17,17],[18,1,18,17],[41,1,41,19],[19,18,19,19],[20,1,20,16],[20,18,20,19],[21,1,21,16],[21,18,21,19],[23,1,23,19],[24,1,24,19],[25,1,25,19],[30,11,30,15],[32,9,32,10],[33,9,33,10],[39,7,39,13],[39,15,39,17],[36,9,36,10],[37,9,37,10],[34,9,34,10],[31,15,31,17],[32,15,32,17],[33,15,33,17],[34,15,34,17],[35,15,35,17],[22,1,22,17],[44,7,44,19],[44,1,44,3],[46,1,46,3],[46,5,46,6],[46,7,46,19],[42,7,43,19],[53,7,53,19],[55,7,55,19],[53,1,53,6],[55,1,55,6],[54,7,54,19],[54,1,54,6],[100,6,100,7],[100,9,100,10],[99,15,99,17],[100,15,100,17],[101,15,101,17],[97,1,97,5],[97,6,97,7],[97,9,97,10],[98,1,98,5],[101,1,101,5],[114,18,114,19],[115,18,115,19],[118,1,118,5],[118,6,118,7],[118,15,118,17],[120,15,120,17],[111,18,111,19],[112,18,112,19],[113,18,113,19],[111,1,111,17],[112,1,112,17],[116,1,116,17],[116,18,116,19],[124,9,124,10],[121,1,121,5],[121,6,121,7],[121,9,121,10],[122,1,122,5],[122,6,122,7],[122,9,122,10],[119,6,119,7],[119,15,119,16],[120,1,120,5],[120,6,120,7],[120,9,120,10],[121,15,121,17],[122,15,122,17],[123,15,123,17],[124,15,124,17],[123,1,123,5],[123,6,123,7],[123,9,123,10],[124,1,124,5],[124,6,124,7],[129,1,130,3],[129,5,130,6],[129,7,130,19],[131,1,131,3],[131,5,131,6],[131,7,131,19],[125,1,125,5],[125,6,125,7],[125,9,125,10],[126,1,126,5],[126,6,126,7],[126,9,126,10],[125,15,125,17],[126,15,126,17],[139,18,139,19],[140,18,140,19],[143,1,143,5],[143,6,143,7],[136,18,136,19],[137,18,137,19],[138,18,138,19],[143,15,143,17],[136,1,136,17],[137,1,137,17],[141,1,141,17],[141,18,141,19],[140,1,140,17],[146,1,146,5],[146,6,146,7],[146,9,146,10],[147,1,147,5],[147,6,147,7],[147,9,147,10],[144,6,144,7],[144,15,144,16],[145,1,145,5],[145,6,145,7],[145,9,145,10],[145,15,145,17],[146,15,146,17],[147,15,147,17],[156,5,156,6],[156,7,156,19],[150,1,150,5],[150,6,150,7],[150,9,150,10],[148,1,148,5],[148,6,148,7],[148,9,148,10],[149,1,149,5],[149,6,149,7],[149,9,149,10],[151,1,151,5],[151,6,151,7],[151,9,151,10],[148,15,148,17],[149,15,149,17],[150,15,150,17],[151,15,151,17],[178,1,179,3],[178,5,179,6],[178,7,179,19],[180,1,180,3],[180,5,180,6],[180,7,180,19],[6,3,6,5],[7,3,7,5],[8,3,8,5],[59,1,59,2],[84,1,84,2],[109,1,109,2],[134,1,134,2],[159,1,159,2],[167,2,167,19],[142,2,142,19],[92,2,92,19],[67,2,67,19],[117,2,117,19],[154,1,155,3],[154,5,155,6],[154,7,155,19],[156,1,156,3],[26,2,26,19],[22,18,22,19],[84,18,84,19],[36,15,36,17],[37,15,37,17],[39,3,39,5],[29,1,29,4],[31,1,31,4],[32,1,32,4],[33,1,33,4],[34,1,34,4],[35,1,35,4],[36,1,36,4],[37,1,37,4],[31,9,31,10],[35,9,35,10],[42,5,43,6],[56,1,56,5],[56,6,56,19],[50,13,50,18],[42,1,43,3],[48,1,48,3],[48,5,48,6],[48,7,48,19],[44,5,44,6]]}
[null,{"$f":"Y1","v":"'Querfällung, Verankerung"},null,null,null,null,null,null,null,null,null,null,null,null,null,null,null,null,null,null,null,{"$f":"AV60","v":0},null,null,"'Querfällung, Verankerung",null,null,null,null,null,1,"Aktivitäten",null,null,null,null,null,null,null,null,null,null,null,null,null,null,null,null,null,null,null,null,null,null,null,null,null,null,null,null,null,null,null,null,null,null,null,null,null,null,null,null,null,null,null,null,null,null,null,null,null,null,null,null,null,null,null,null,null,null,null,null,null,null,null,null,null,null,null,null,null,null,null,null,null,null,null,null,null,null,null,null,null,null,null,null,null,null,null,null,null,null,null,null,null,null,null,null,null,null,null,null,null,null,null,null,null,null,null,null,null,null,null,null,null,null,null,null,null,null,null,null,null,null,null,null,null,null,null,null,null,null,null,null,null,null,null,null,null,null,null,null,null,null,null,null,null,null,null,null,null,null,null,null,null,null,null,null,null,null,null,null,null,null,null,null,null,null,null,null,null,null,null,null,null,null,null,null,null,null,null,null,null,null,null,null,null,null,null,null,null,null,null,null,null,null,null,null,null,null,null,null,null,null,null,null,null,null,null,null,null,null,null,null,null,null,null,null,null,null,null,null,null,null,null,null,null,null,null,null,null,null,null,null,null,null,null,null,null,null,null,null,null,null,null,null,null,null,null,null,null,null,null,null,null,null,null,null,null,null,null,null,null,null,null,null,null,null,null,null,null,null,null,null,null,null,null,null,null,null,null,null,null,null,null,null,null,null,null,null,null,null,null,null,null,null,null,null,null,null,null,null,null,null,null,null,null,null,null,null,null,null,null,null,null,null,null,null,null,null,null,null,null,null,null,null,null,null,null,null,null,null,null,null,null,null,null,null,null,null,null,null,null,null,null,null,null,null,null,null,null,null,null,null,null,null,null,null,null,null,null,null,null,null,null,null,null,null,null,null,null,null,null,null,null,null,null,null,null,null,null,null,null,null,null,null,null,null,null,null,null,null,null,null,null,null,null,null,null,null,null,null,null,null,null,null,null,null,null,null,null,null,null,null,null,null,null,null,null,null,null,null,null,null,null,null,null,null,null,null,null,null,null,null,null,null,null,null,null,null,null,null,null,null,null,null,null,null,null,null,null,null,null,null,null,null,null,null,null,null,null,null,null,null,null,null,null,null,null,null,null,null,null,null,null,null,null,null,null,null,null,null,null,null,null,null,null,null,null,null,null,null,null,null,null,null,null,null,null,null,null,null,null,null,null,null,null,null,null,null,null,null,null,null,null,null,null,null,null,null,null,null,null,null,null,null,null,null,null,null,null,null,null,null,null,null,null,null,null,null,null,null,null,null,null,null,null,null,null,null,null,null,null,null,null,null,null,null,null,null,null,null,null,null,null,null,null,null,null,null,null,null,null,null,null,null,null,null,null,null,null,null,null,null,null,null,null,null,null,null,null,null,null,null,null,null,null,null,null,null,null,null,null,null,null,null,null,null,null,null,null,null,null,null,null,null,null,null,null,null,null,null,null,null,null,null,null,null,null,null,null,null,null,null,null,null,null,null,null,null,null,null,null,null,null,null,null,null,null,null,null,null,null,null,null,null,null,null,null,null,null,null,null,null,null,null,null,null,null,null,null,null,null,null,null,null,null,null,null,null,null,null,null,null,null,null,null,null,null,null,null,null,null,null,null,null,null,null,null,null,null,null,null,null,null,null,null,null,null,null,null,null,null,null,null,null,null,null,null,null,null,null,null,null,null,null,null,null,null,null,null,null,null,null,null,null,null,null,null,null,null,null,null,null,null,null,null,null,null,null,null,null,null,null,null,null,null,null,null,null,null,null,null,null,null,null,null,null,null,null,null,null,null,null,null,null,null,null,null,null,null,null,null,null,null,null,null,null,null,null,null,null,null,null,null,null,null,null,null,null,null,null,null,null,null,null,null,null,null,null,null,null,null,null,null,null,null,null,null,null,null,null,null,null,null,null,null,null,null,null,null,null,null,null,null,null,null,null,null,null,null,null,null,null,null,null,null,null,null,null,null,null,null,null,null,null,null,null,null,null,null,null,null,null,null,null,null,null,null,null,null,null,null,null,null,null,null,null,null,null,null,null,null,null,null,null,null,null,null,null,null,null,null,null,null,null,null,null,null,null,null,null,null,null,null,null,null,null,null,null,null,null,null,null,null,null,null,null,null,null,null,null,null,null,null,null,null,null,null,null,null,null,null,null,null,null,null,null,null,null,null,null,null,null,null,null,null,null,null,null,null,null,null,null,null,null,null,null,null,null,null,null,null,null,null,null,null,null,null,null,null,null,null,null,null,null,null,null,null,null,null,null,null,null,null,null,null,null,null,null,null,null,null,null,null,null,null,null,null,null,null,null,null,null,null,null,null,null,null,null,null,null,null,null,null,null,null,null,null,null,null,null,null,null,null,null,null,null,null,null,null,null,null,null,null,null,null,null,null,null,null,null,null,null,null,null,null,null,null,null,null,null,null,null,null,null,null,null,null,null,null,null,null,null,null,null,null,null,null,null,null,null,null,null,null,null,null,null,null,null,null,null,null,null,null,null,null,null,null,null,null,null,null,null,null,null,null,null,null,null,null,null,null,null,null,null,null,null,null,null,null,null,null,null,null,null,null,null,null,null,null,null,null,null,null,null,null,null,null,null,null,null,null,null,null,null,null,null,null,null,null,null,null,null,null,null,null,null,null,null,null,null,null,null,null,null,null,null,null,null,null,null,null,null,null,null,null,null,null,null,null,null,null,null,null,null,null,null,null,null,null,null,null,null,null,null,null,null,null,null,null,null,null,null,null,null,null,null,null,null,null,null,null,null,null,null,null,null,null,null,null,null,null,null,null,null,null,null,null,null,null,null,null,null,null,null,null,null,null,null,null,null,null,null,null,null,null,null,null,null,null,null,null,null,null,null,null,null,null,null,null,null,null,null,null,null,null,null,null,null,null,null,null,null,null,null,null,null,null,null,null,null,null,null,null,null,null,null,null,null,null,null,null,null,null,null,null,null,null,null,null,null,null,null,null,null,null,null,null,null,null,null,null,null,null,null,null,null,null,null,null,null,null,null,null,null,null,null,null,null,null,null,null,null,null,null,null,null,null,null,null,null,null,null,null,null,null,null,null,null,null,null,null,null,null,null,null,null,null,null,null,null,null,null,null,null,null,null,null,null,null,null,null,null,null,null,null,null,null,null,null,null,null,null,null,null,null,null,null,null,null,null,null,null,null,null,null,null,null,null,null,null,null,null,null,null,null,null,null,null,null,null,null,null,null,null,null,null,null,null,null,null,null,null,null,null,null,null,null,null,null,null,null,null,null,null,null,null,null,null,null,null,null,null,null,null,null,null,null,null,null,null,null,null,null,null,null,null,null,null,null,null,null,null,null,null,null,null,null,null,null,null,null,null,null,null,null,null,null,null,null,null,null,null,null,null,null,null,null,null,null,null,null,null,null,null,null,null,null,null,null,null,null,null,null,null,null,null,null,null,null,null,null,null,null,null,null,null,null,null,null,null,null,null,null,null,null,null,null,null,null,null,null,null,null,null,null,null,null,null,null,null,null,null,null,null,null,null,null,null,null,null,null,null,null,null,null,null,null,null,null,null,null,null,null,null,null,null,null,null,null,null,null,null,null,null,null,null,null,null,null,null,null,null,null,null,null,null,null,null,null,null,null,null,null,null,null,null,null,null,null,null,null,null,null,null,null,null,null,null,null,null,null,null,null,null,null,null,null,null,null,null,null,null,null,null,null,null,null,null,null,null,null,null,null,null,null,null,null,null,null,null,null,null,null,null,null,null,null,null,null,null,null,null,null,null,null,null,null,null,null,null,null,null,null,null,null,null,null,null,null,null,null,null,null,null,null,null,null,null,null,null,null,null,null,null,null,null,null,null,null,null,null,null,null,null,null,null,null,null,null,null,null,null,null,null,null,null,null,null,null,null,null,null,null,null,null,null,null,null,null,null,null,null,null,null,null,null,null,null,null,null,null,null,null,null,null,null,null,null,null,null,null,null,null,null,null,null,null,null,null,null,null,null,null,null,null,1]
[{"$f":"Y1","v":"'Querfällung, Verankerung"},null,null,null,null,null,null,null,null,null,null,null,null,null,null,null,null,null,null,null,null,null,null,null,null,null,null,null,null,null,2,"JUNGBESTANDSPFLEGE","AUSGANGSLAGE:  der zu pflegende Bestand befindet sich in einerr Seehöhe (m) / mit Hangneigung (%) / Hauptexposition von:","Angabe der Baumarten in 1/10","ja/nein","ja/nein","ja/nein","-","ZIELSETZUNG:  Pflegemaßnahmen zur Stabilisierung  des heranwachsenden Waldbestandes bzw. der vorhandenen Verjüngung um die ökologischen, gesellschaftlichen und/oder schutzwirksamen Wirkungen des Waldes mittel- bis langfristig zu verbessern.","BEDINGUNGEN: Oberhöhe max. (10 m ), Eingriff in das Kronendach, Begünstigung ökologisch wertvoller Mischbaumarten, Belassen der Grünbbiomasse (Wipfel) am Durchforstungsort","-"]
[null,"FORSTPROJEKT \n LE 14-20","Eingangsdat.\n Zl. SB.:",null,null,null,null,"BFI / \nGemeinde: ",null,null,null,null,null,null,null,{"$f":"IF(Förderabwicklung_Form!I7=0,\" \",Förderabwicklung_Form!I7)","v":" "},null,null,null,null,null,null,null,null,null,null,null,null,null,null,3,"DURCHFORSTUNG mit Seil","AUSGANGSLAGE:  der zu pflegende Bestand befindet sich einer Seehöhe (m) / mit Hangneigung (%) / Hauptexposition von:","Angabe der Baumarten in 1/10","ja/nein","Schäl/Stei/Rüc/Schn/sons","sd/in5j","-","ZIELSETZUNG:  Pflegemaßnahmen zur Stabilisierung  des heranwachsenden Waldbestandes bzw. der vorhandenen Verjüngung um die ökologischen, gesellschaftlichen und/oder schutzwirksamen Wirkungen des Waldes mittel- bis langfristig zu verbessern.","BEDINGUNGEN:  Oberhöhe >10 m bis max. 20 m), Eingriff in das Kronendach, Begünstigung ökologisch wertvoller Mischbaumarten, Belassen der Grünbbiomasse (Wipfel, Grobastung) am Durchforstungsort","-"]
[null,null,null,null,null,null,null,null,null,null,null,null,null,null,null,null,null,null,null,null,null,null,null,null,null,null,null,null,null,null,4,"DURCHFORSTUNG ohne Seil","AUSGANGSLAGE:  der zu pflegende Bestand befindet sich einer Seehöhe (m) / mit Hangneigung (%) / Hauptexposition von:","Angabe der Baumarten in 1/10","ja/nein","Schäl/Stei/Rüc/Schn/sons","sd/in5j","-","ZIELSETZUNG:  Pflegemaßnahmen zur Stabilisierung  des heranwachsenden Waldbestandes bzw. der vorhandenen Verjüngung um die ökologischen, gesellschaftlichen und/oder schutzwirksamen Wirkungen des Waldes mittel- bis langfristig zu verbessern.","BEDINGUNGEN:  Oberhöhe >10 m bis max. 20 m), Eingriff in das Kronendach, Begünstigung ökologisch wertvoller Mischbaumarten, Belassen der Grünbbiomasse (Wipfel, Grobastung) am Durchforstungsort","-"]
[null,{"$f":"Förderabwicklung_Form!B7","v":"FORST PROJEKT - Spezifikation  VHA 8.5.1 (Waldbau)"},null,{"$f":"IF(Förderabwicklung_Form!D9=0,\" \",Förderabwicklung_Form!D9)","v":" "},null,null,null,null,null,null,null,null,null,null,null,null,null,null,null,null,null,null,null,null,null,null,null,null,null,null,5,"VERJÜNGUNGSEINLEITUNG incl. BRINGUNG, RÜCKUNG","AUSGANGSLAGE:  der zu verjüngende Bestand befindet sich in einer Seehöhe (m) / mit Hangneigung (%) / Hauptexposition von:","Angabe der Baumarten in 1/10","AKL4/AKL5","gü/ungü","ja/nein","-","MASSNAHMENZIELSETZUNG:  Altholzabbau zur Förderung der zu erwartenden bzw. vorhandenen Verjüngung um die ökologischen, gesellschaftlichen und/oder schutzwirksamen Wirkungen des Waldes mittel- bis langfristig zu verbessern.","BEDINGUNG: Verjungungsverfahren:Kahlfläche, Femelung  max 0,3 ha / Einzezelstammentnahme und belassen von Grünbiomasse am Schlagort (Wipfelstücke, Grobentastung). Mit der selben Seilaufstellung darf keine Kahlfläche >0,3 ha verbunden sein. Das Aufkommen von Mischbaumarten ist zu erwarten","-"]
[null,null,null,null,null,null,null,null,null,null,null,null,null,null,null,null,null,null,null,null,null,null,null,null,null,null,null,null,null,null,6,"Vorbereitung (Bodenbearbeitung, Mulchen, Düngung)","AUSGANGSLAGE: Der Bestand für den die Bodenvorbereitungen erforderlich sind befindet sich in einer Seehöhe (m) / mit Hangneigung (%) / Hauptexposition von:","Baumarten des Bestandes (Angabe in 10)","AKL1/AKL2/AKL3/AKL4/AKL5/AKL6","stark/mäßig/gering","ja/nein","-","ZIELSETZUNG: Durch die Bodendurchmischung wird verjüngungshemmende Vegetation beseitigt, damit wird die Verjüngung gefördert, sodass sich der Bestand mit möglichst autochthonem und bewährtem Genmaterial fortpflanzen kann. Waldbauliche Risiokominimierung!","BEDINGUNG: forstfachliches Gutachten der Behörde über die Notwendigkeit und Sinnhaftigkeit der Maßnahme; Förderung der ankommenden Naturverjüngung durch Ausdünnen und Erhaltung der Baumartenmischung","-"]
[null,"Projekt _KG  : Teilfläche: ",null,null,null,null,"Grdst.","F1:",{"$f":"IF(Förderabwicklung_Form!G8=0,\" \",Förderabwicklung_Form!G8)","v":" "},null,null,null,null,null,null,null,null,"F2:",null,null,null,null,null,null,null,null,null,null,null,null,7,"Aufforstung/Bestandesumbau incl. Ergänzung von Naturverjüngung","AUSGANGSLAGE:  der aufzuforstende Bestand befindet sich in einer Seehöhe (m) / mit Hangneigung (%) / Hauptexposition von:","Angabe der Baumarten in 1/10","AKL3/AKL4/AKL5/AKL6","ja/nein","er/nerf","Die potentielle nat. Waldgesellschaft ist:","Der Standort ist hinsichtlich Wuchsleistung , Nährstoffverhältnisse und Wasserhaushalt für die gewählte Baumartenkombination gut geeignet. Die Aufforstung erfolgt in einem geeigneten Pflanzverband, Kleinstandorte, Stockachseln werden besonders berücksichtigt. ","ZIELSETZUNG: Durch die geplante Aufforstung mit Mischbaumarten ist eine Verbesserung des Standortes, eine Begünstigung der Biodiversität und /oder der Widerstandskraft gegen den klimatischen Einfluss möglich. Das Forstschutzrisiko wird gesenkt und die Stabilität und Vitalität des Waldes werden erhöht.","BEDINGUNG: Standortsanpassung durch gezielte Baumartenwahl unter Orientierung an die natürliche Waldgesellschaft, Kultursicherung"]
[null,"Projekt _KG  : Teilfläche: ",null,null,null,null,"Grdst.","F3:",{"$f":"IF(Förderabwicklung_Form!G9=0,\" \",Förderabwicklung_Form!G9)","v":" "},null,null,null,null,null,null,null,null,"F4:",null,null,null,null,null,null,null,null,null,null,null,null,8,"SW Aufforstung /SW Bestandesumbau incl. Ergänzung von Naturverjüngung","AUSGANGSLAGE:  der aufzuforstende Bestand befindet sich in einer Seehöhe (m) / mit Hangneigung (%) / Hauptexposition von:","Angabe der Baumarten in 1/10","AKL3/AKL4;AKL5/AKL6","ja/nein","er/nerf","Die potentielle nat. Waldgesellschaft ist:","Der Standort ist hinsichtlich Wuchsleistung , Nährstoffverhältnisse und Wasserhaushalt für die gewählte Baumartenkombination gut geeignet. Die Aufforstung erfolgt in einem geeigneten Pflanzverband, Kleinstandorte, Stockachseln werden besonders berücksichtigt.","ZIELSETZUNG: Durch die geplante Aufforstung mit Mischbaumarten ist eine Verbesserung des Standortes, eine Begünstigung der Biodiversität und /oder der Widerstandskraft gegen den klimatischen Einfluss möglich. Das Forstschutzrisiko wird gesenkt und die Stabilität und Vitalität des Waldes werden erhöht.","BEDINGUNG: Standortsanpassung durch gezielte Baumartenwahl unter Orientierung an die natürliche Waldgesellschaft, Kultursicherung"]
[null,"Projekt _KG  : Teilfläche: ",null,null,null,null,"Grdst.","F5:",{"$f":"IF(Förderabwicklung_Form!G10=0,\" \",Förderabwicklung_Form!G10)","v":" "},null,null,null,null,null,null,null,null,"F6:",null,null,null,null,null,null,null,null,null,null,null,null,9,"Unterbau","AUSGANGSLAGE:  der aufzuforstende Bestand befindet sich in einer Seehöhe (m) / mit Hangneigung (%) / Hauptexposition von:","Angabe der Baumarten in 1/10","AKL3/AKL4/AKL5/AKL6","ja/nein","er/nerf","Die potentielle nat. Waldgesellschaft ist:","Der Standort ist hinsichtlich Wuchsleistung , Nährstoffverhältnisse und Wasserhaushalt für die gewählte Baumartenkombination gut geeignet. Die Aufforstung erfolgt in einem geeigneten Pflanzverband, Kleinstandorte, Stockachseln werden besonders berücksichtigt.","ZIELSETZUNG: Durch die geplante Aufforstung mit Mischbaumarten ist eine Verbesserung des Standortes, eine Begünstigung der Biodiversität und /oder der Widerstandskraft gegen den klimatischen Einfluss möglich. Das Forstschutzrisiko wird gesenkt und die Stabilität und Vitalität des Waldes werden erhöht.","BEDINGUNG: Standortsanpassung durch gezielte Baumartenwahl unter Orientierung an die natürliche Waldgesellschaft, Kultursicherung, Der Bestand muss hinsichtlich Struktur, Dichte und Baumarten für die Aktivität geeignet sein ebenso die zu setzenden Baumarten."]
[null,null,null,null,null,null,null,null,null,null,null,null,null,null,null,null,null,null,null,null,null,null,null,null,null,null,null,null,null,null,10,"Kontrollzaun","AUSGANGSLAGE: Zur Nachweisung des Verjüngungspotentiales und zu Demonstrationszwecken und/oder zur Beschreibung der Wald- Wildsituation ist die Errichtung von  Kontrollzäunen notwendig. Mittlere Seehöhe: (m)","-","AKL1/AKL4/AKL5","gü/ungü","-","-","ZIELSETZUNGEN: Nachweis des Schalenwildeinflusses außerhalb des Zaunes und Aufzeigen des Verjüngungspotenzials ohne Wildeinfluss","BEDINGUNG: Zaun muss Schalenwild dicht und mindestens 2 m hoch sein. Die Zaunfläche beträgt mindestens 6 x 6 m.","-"]
[null,"Antragsteller, Name:",null,{"$f":"IF(D9=0,\" \",Förderabwicklung_Form!D14&\" ; \"&Förderabwicklung_Form!G14&\" ; \"&Förderabwicklung_Form!D15&\" ; \"&Förderabwicklung_Form!I15)","v":" "},null,null,null,null,null,null,null,null,null,null,null,null,null,null,null,null,null,null,null,null,null,null,null,null,null,null,11,"Schutz der Verjüngung gegen Schneeschub","AUSGANGSLAGE:  der zu sichernde Bestand befindet sich in einer Seehöhe (m) / mit Hangneigung (%) / Hauptexposition von:","Angabe der Baumarten in 1/10","STei/Eros/Schn/Sons","BERM/HOLB/KRAI","-","-","ZIELSETZUNG: Durch die Stützverbauung soll die Produktionskraft des Standortes erhalten und eine Stabilisierung des darauf stockenden Bestandes erreicht werden.","BEDINGUNGEN: es ist ein hohes Naturgefahrenpotential gegeben, die Verbesserung des Waldzustandes ist ohne die Aktivität nicht möglich. Verbauungen aus Holz sind mit gesundem Material zu erstellen und erforderlichenfalls  forstschutztechnisch zu behandeln","-"]
[null,null,null,null,null,null,null,null,null,null,null,null,null,null,null,null,null,null,null,null,null,null,null,null,null,null,null,null,null,null,12,"Bermen","AUSGANGSLAGE:  der zu sichernde Bestand befindet sich in einer Seehöhe (m) / mit Hangneigung (%) / Hauptexposition von:","Angabe der Baumarten in 1/10","STei/Eros/Schn/Sons","BERM/HOLB/KRAI","-","-","ZIELSETZUNG: Durch die Stützverbauung soll die Produktionskraft des Standortes erhalten und eine Stabilisierung des darauf stockenden Bestandes erreicht werden.","BEDINGUNGEN: es ist ein hohes Naturgefahrenpotential gegeben, die Verbesserung des Waldzustandes ist ohne die Aktivität nicht möglich. Verbauungen aus Holz sind mit gesundem Material zu erstellen und erforderlichenfalls  forstschutztechnisch zu behandeln","-"]
[null,"bei jur. Person , Begünstigter",null,{"$f":"Förderabwicklung_Form!D16&\" \"","v":" "},null,null,null,null,null,null,null,null,null,null,null,null,null,null,null,null,null,null,null,null,null,null,null,null,null,null,13,"Einfache technische Werke","AUSGANGSLAGE:  der zu sichernde Bestand befindet sich in einer Seehöhe (m) / mit Hangneigung (%) / Hauptexposition von:","Angabe der Baumarten in 1/10","STei/Eros/Schn/Sons","BERM/HOLB/KRAI","-","-","ZIELSETZUNG: Durch die Stützverbauung soll die Produktionskraft des Standortes erhalten und eine Stabilisierung des darauf stockenden Bestandes erreicht werden.","BEDINGUNGEN: es ist ein hohes Naturgefahrenpotential gegeben, die Verbesserung des Waldzustandes ist ohne die Aktivität nicht möglich. Verbauungen aus Holz sind mit gesundem Material zu erstellen und erforderlichenfalls  forstschutztechnisch zu behandeln","-"]
[null,null,null,null,null,null,null,null,null,null,null,null,null,null,null,null,null,null,null,null,null,null,null,null,null,null,null,null,null,null,14,"Querfällung, Verankerung","AUSGANGSLAGE:  der zu sichernde Bestand befindet sich in einer Seehöhe (m) / mit Hangneigung (%) / Hauptexposition von:",null,"AKL1/AKL4/AKL5","-","er/nerf",null,"ZIELSETZUNG: Durch die Stützverbauung soll die Produktionskraft des Standortes erhalten und eine Stabilierung des darauf stockenden Bestandes erreicht werden.","BEDINGUNGEN: es ist ein hohes Naturgefahrenpotential gegeben, die Verbesserung des Waldzustandes ist ohne die Aktivität nicht möglich. Verbauungen aus Holz sind mit gesundem Material zu erstellen und  forstschutztechnisch zu behandeln. Mind. 20 cm Zopf und durchschnittlich 40 cm BHD"]
[null,"Aktivität:",null,{"$f":"Y1","v":"'Querfällung, Verankerung"}]
[null,null,null,null,null,null,null,null,null,null,null,null,null,null,null,null,null,null,null,null,null,null,null,null,null,null,null,null,"Spalte1","Spalte2","Spalte3"]
[null,"Ausgangslage und Projektbeschreibung : ",null,null,"Maßnfl. Ges. (ha):",null,null,null,null,{"$f":"IF(T17=0,0,T17+D60+D85+D110+D135+D160)","v":0},null,null,null,null,null,"FL \n(Anz).",{"$f":"SUM(Z17:Z22)","v":0},null,"Fläche 1 (ha):",null,0.17,null,null,null,null,{"$f":"IF(T17>0,1,0)","v":0},null,null,"Spalte1","Spalte2","Spalte3",null,null,null,null,1,"ja"]
[null,{"$f":"IF(OR($V$1=1,$V$1=0),\" \",LOOKUP(V1,Förderabwicklung_Form!$AX$20:$AX$33,Förderabwicklung_Form!$AZ$20:AZ$33))","v":" "},null,null,null,null,null,null,null,null,null,null,null,null,null,null,null,null,null,null,null,null,null,null,null,{"$f":"IF(D60>0,1,0)","v":0},1,null,{"$f":"VLOOKUP($V$1,$AE$1:$AO$15,5,2)","v":{"$error":"#N/A"}},{"$f":"VLOOKUP($V$1,$AE$1:$AO$15,6,2)","v":{"$error":"#N/A"}},{"$f":"VLOOKUP($V$1,$AE$1:$AO$15,7,2)","v":{"$error":"#N/A"}},"Spalte 1","Spalte 2","Spalte 3",null,2,"nein"]
[null,{"$f":"IF(OR($V$1=1,$V$1=0),\" \",LOOKUP(V1,Förderabwicklung_Form!$AX$20:$AX$33,Förderabwicklung_Form!$BA$20:$BA$33))","v":" "},null,null,null,null,null,null,null,null,null,null,null,null,null,null,null,null,null,null,null,null,null,null,null,{"$f":"IF(D85>0,1,0)","v":0},2,null,{"$f":"IF($AC$18=\"ja/nein\",LEFT($AC$18,2),LEFT($AC$18,4))","v":{"$error":"#N/A"}},{"$f":"IF($AD$18=\"ja/nein\",LEFT($AD$18,2),IF($AD$18=\"gü/ungü\",LEFT($AD$18,2),IF($AD18=\"BERM/HOLB/KRAI\",LEFT(AD18,4),IF($AD$18=\"Schäl/Stei/Rüc/Schn/sons\",\"Schälung\",IF(AD18=\"stark/mäßig/gering\",\"stark\",AD18)))))","v":{"$error":"#N/A"}},{"$f":"IF($AE$18=\"ja/nein\",LEFT($AE$18,2),IF($AE$18=\"er/nerf\",LEFT($AE$18,2),IF($AE$18=\"sd/in5j\",\"sehr dringend\",IF($AE$18=\"BERM/HOLB/KRAI\",LEFT($AE$18,4),\" \"))))","v":{"$error":"#N/A"}},{"$f":"IF(AC19=\"AKL1\",\"Jugend\",IF(AC19=\"AKL2\",\"Dickung\",IF(AC19=\"AKL3\",\"Stangenholz\",IF(AC19=\"AKL4\",\"Baumholz\",IF(AC19=\"AKL5\",\"Altholz\",IF(AC19=\"AKL6\",\"Überhälter\",IF($AC$19=\"STei\",\"Steinschlag\",AC19)))))))","v":{"$error":"#N/A"}},{"$f":"IF($AD$19=\"gü\",\"günstig\",IF($AD$19=\"BERM\",\"Berme\",$AD$19))","v":{"$error":"#N/A"}},{"$f":"IF($AE$19=\"ja\",\"ja\",IF($AE$19=\"er\",\"erforderlich\",IF($AE$19=\"Berm\",\"Berme\",$AE$19)))","v":{"$error":"#N/A"}},null,3,"erforderlich"]
[null,{"$f":"IF(OR($V$1=1,$V$1=0),\" \",LOOKUP(V1,Förderabwicklung_Form!$AX$20:$AX$33,Förderabwicklung_Form!$BB$20:$BB$33))","v":" "},null,null,null,null,null,null,null,null,null,null,null,null,null,null,null,null,null,null,null,null,null,null,null,{"$f":"IF(D110>0,1,0)","v":0},3,null,{"$f":"IF($AC$18=\"ja/nein\",MID($AC$18,4,4),MID($AC$18,6,4))","v":{"$error":"#N/A"}},{"$f":"IF($AD$18=\"ja/nein\",MID($AD$18,4,4),IF($AD$18=\"gü/ungü\",MID($AD$18,4,4),IF($AD$18=\"BERM/HOLB/KRAI\",MID($AD$18,6,4),IF($AD$18=\"Schäl/Stei/Rüc/Schn/sons\",\"Steinschlag\",IF(AD18=\"stark/mäßig/gering\",\"mäßig\",AD18)))))","v":{"$error":"#N/A"}},{"$f":"IF($AE$18=\"ja/nein\",MID($AE$18,4,4),IF($AE$18=\"er/nerf\",MID($AE$18,4,4),IF($AE$18=\"sd/in5j\",\"innerhalb der nächsten 7 Jahre\",IF($AE$18=\"BERM/HOLB/KRAI\",MID($AE$18,6,4),\" \"))))","v":{"$error":"#N/A"}},{"$f":"IF(AC20=\"AKL1\",\"Jugend\",IF(AC20=\"AKL2\",\"Dickung\",IF(AC20=\"AKL3\",\"Stangenholz\",IF(AC20=\"AKL4\",\"Baumholz\",IF(AC20=\"AKL5\",\"Altholz\",IF(AC20=\"AKL6\",\"Überhälter\",IF($AC$20=\"Eros\",\"Erosion\",AC20)))))))","v":{"$error":"#N/A"}},{"$f":"IF($AD$20=\"ungü\",\"ungünstig\",IF($AD$20=\"HOLB\",\"Holzböcke\",$AD$20))","v":{"$error":"#N/A"}},{"$f":"IF($AE$20=\"nein\",\"nein\",IF($AE$20=\"nerf\",\"nicht erforderlich\",IF($AE$20=\"HOLB\",\"Holzböcke\",$AE$20)))","v":{"$error":"#N/A"}},null,4,"nicht erforderlich"]
[null,{"$f":"IF(OR($V$1=1,$V$1=0),\" \",LOOKUP(V1,Förderabwicklung_Form!$AX$20:$AX$33,Förderabwicklung_Form!$BC$20:$BC$33))","v":" "},null,null,null,null,null,null,null,null,null,null,null,null,null,null,null,null,null,null,null,null,null,null,null,{"$f":"IF(D135>0,1,0)","v":0},4,null,{"$f":"IF($AC$18=\"ja/nein\",\" \",MID($AC$18,11,4))","v":{"$error":"#N/A"}},{"$f":"IF($AD$18=\"ja/nein\",\" \",IF($AD$18=\"gü/ungü\",\" \",IF($AD$18=\"BERM/HOLB/KRAI\",MID($AD$18,11,4),IF($AD$18=\"Schäl/Stei/Rüc/Schn/sons\",\"Rückung\",IF(AD18=\"stark/mäßig/gering\",\"gering\",AD18)))))","v":{"$error":"#N/A"}},{"$f":"IF($AE$18=\"ja/nein\",\" \",IF($AE$18=\"er/nerf\",\" \",IF($AE$18=\"BERM/HOLB/KRAI\",MID($AE$18,11,4),\" \")))","v":{"$error":"#N/A"}},{"$f":"IF(AC21=\"AKL1\",\"Jugend\",IF(AC21=\"AKL2\",\"Dickung\",IF(AC21=\"AKL3\",\"Stangenholz\",IF(AC21=\"AKL4\",\"Baumholz\",IF(AC21=\"AKL5\",\"Altholz\",IF(AC21=\"AKL6\",\"Überhälter\",IF($AC$21=\"Schn\",\"Schneeschub\",AC21)))))))","v":{"$error":"#N/A"}},{"$f":"IF($AD$21=\"gü\",\"günstig\",IF($AD$21=\"Krai\",\"Krainerwand\",$AD$21))","v":{"$error":"#N/A"}},{"$f":"IF($AE$21=\"Krai\",\"Krainerwand\",$AE$21)","v":{"$error":"#N/A"}},null,5,"Bermen"]
[null,{"$f":"IF(OR($V$1=1,$V$1=0),\" \",LOOKUP(V1,Förderabwicklung_Form!$AX$20:$AX$33,Förderabwicklung_Form!$BD$20:$BD$33))","v":" "},null,null,null,null,null,null,null,null,null,null,null,null,null,null,null,null," ",null,null,null,null,null,null,{"$f":"IF(D160>0,1,0)","v":0},5,null,{"$f":"IF($AC$18=\"ja/nein\",\" \",MID($AC$18,16,4))","v":{"$error":"#N/A"}},{"$f":"IF($AD$18=\"ja/nein\",\" \",IF($AD$18=\"gü/ungü\",\" \",IF($AD$18=\"BERM/HOLB/KRAI\",\" \",IF($AD$18=\"Schäl/Stei/Rüc/Schn/sons\",\"Schneedruck\",IF(AD18=\"stark/mäßig/gering\",\" \",$AD$18)))))","v":{"$error":"#N/A"}},null,{"$f":"IF(AC22=\"AKL1\",\"Jugend\",IF(AC22=\"AKL2\",\"Dickung\",IF(AC22=\"AKL3\",\"Stangenholz\",IF(AC22=\"AKL4\",\"Baumholz\",IF(AC22=\"AKL5\",\"Altholz\",IF(AC22=\"AKL6\",\"Überhälter\",IF($AC$22=\"sons\",\"sonst. Naturgefahr\",AC22)))))))","v":{"$error":"#N/A"}},{"$f":"IF($AD$22=\"ungü\",\"ungünstig\",IF($AD$22=\"HOLB\",\"Holzböcke\",$AD$22))","v":{"$error":"#N/A"}},null,null,6,"Holzböcke"]
[null,{"$f":"IF(OR($V$1=1,$V$1=0),\" \",LOOKUP(V1,Förderabwicklung_Form!$AX$20:$AX$33,Förderabwicklung_Form!$BE$20:$BE$33))","v":" "},null,null,null,null,null,null,null,null,null,null,null,null,null,null,null,null,null,null,null,null,null,null,null,null,6,null,{"$f":"IF($AC$18=\"ja/nein\",\" \",MID($AC$18,21,4))","v":{"$error":"#N/A"}},{"$f":"IF($AD$18=\"ja/nein\",\" \",IF($AD$18=\"gü/ungü\",\" \",IF($AD$18=\"BERM/HOLB/KRAI\",\" \",IF($AD$18=\"Schäl/Stei/Rüc/Schn/sons\",\"sonstige\",IF(AD18=\"stark/mäßig/gering\",\" \",$AD$18)))))","v":{"$error":"#N/A"}},null,{"$f":"IF(AC23=\"AKL1\",\"Jugend\",IF(AC23=\"AKL2\",\"Dickung\",IF(AC23=\"AKL3\",\"Stangenholz\",IF(AC23=\"AKL4\",\"Baumholz\",IF(AC23=\"AKL5\",\"Altholz\",IF(AC23=\"AKL6\",\"Überhälter\",AC23))))))","v":{"$error":"#N/A"}},{"$f":"IF($AD$23=\"gü\",\"günstig\",IF($AD$23=\"BERM\",\"Berme\",$AD$23))","v":{"$error":"#N/A"}},null,null,7,"Krainerwerk"]
[null,{"$f":"IF(OR($V$1=1,$V$1=0),\" \",LOOKUP(V1,Förderabwicklung_Form!$AX$20:$AX$33,Förderabwicklung_Form!$BF$20:$BF$33))","v":" "},null,null,null,null,null,null,null,null,null,null,null,null,null,null,null,null,null,null,null,null,null,null,null,null,7,null,{"$f":"IF($AC$18=\"ja/nein\",\" \",MID($AC$18,26,4))","v":{"$error":"#N/A"}},null,null,{"$f":"IF(AC24=\"AKL1\",\"Jugend\",IF(AC24=\"AKL2\",\"Dickung\",IF(AC24=\"AKL3\",\"Stangenholz\",IF(AC24=\"AKL4\",\"Baumholz\",IF(AC24=\"AKL5\",\"Altholz\",IF(AC24=\"AKL6\",\"Überhälter\",AC24))))))","v":{"$error":"#N/A"}},null,null,null,null,"sonstige"]
[null,{"$f":"IF(OR($V$1=1,$V$1=0),\" \",LOOKUP(V1,Förderabwicklung_Form!$AX$20:$AX$33,Förderabwicklung_Form!$BG$20:$BG$33))","v":" "},null,null,null,null,null,null,null,null,null,null,null,null,null,null,null,null,null,null,null,null,null,null,null,null,8]
[null,{"$f":"IF(OR($V$1=1,$V$1=0),\" \",LOOKUP(V1,Förderabwicklung_Form!$AX$20:$AX$33,Förderabwicklung_Form!$BH$20:$BH$33))","v":" "},null,null,null,null,null,null,null,null,null,null,null,null,null,null,null,null,null,null,null,null,null,null,null,null,9,"nein"]
[null,"Spezifizierung des Projektes:"]
[null,null,null,null,null,null,null,null,null,null,null,null,null,null,null,null,null,null,null,null,18,"sonstige"]
[null,"Detailplanung-Aktivitäten: \nFördersätze: Schutzwald 80% // sonstiger Wald  60% "]
[null,"Standardkosten:",null,null,null,"€ / Einheit","  beantr. Förd.%    ","Nat. 2000 (x)",null,"Standardkosten Menge\nF1:                F1-F6:",null,null,null,null,null,"Summe Standard-kosten (Fl.1-6)",null,null," Standardkosten 0,  bitte Kosten eintragen: Fl.1                         ","Summe Kosten \nFl. 1-6",null,null,null,null,"Förderberechnung:"]
[null,null,null,null,null,null,null,null,null,null,null,null,null,null,null,null,null,null,null,null,null,null,null,null,{"$f":"IF(AND(P32=0,T32=0),\" \",IF(AND(P32>0,T32>0),\"Kosten und Standardkosten ist falsch!\",IF(P32=0,G32*T32,IF(T32=0,P32*G32,0))))","v":" "}]
[null,{"$f":"IF(OR($V$1=1,$V$1=0),\" \",IF(VLOOKUP($V$1,Förderabwicklung_Form!$AX$5:$BW$18,3,2)=\"-\",\" \",VLOOKUP($V$1,Förderabwicklung_Form!$AX$5:$BW$18,3,2)))","v":" "},null,null,null,{"$f":"IF(B32=\" \",\" \",IF($V$1=1,\" \",IF(VLOOKUP($V$1,Förderabwicklung_Form!$AX$5:$BW$18,4,2)=0,\" \",VLOOKUP($V$1,Förderabwicklung_Form!$AX$5:$BW$18,4,2)&\" / \"&VLOOKUP($V$1,Förderabwicklung_Form!$AX$5:$BW$18,5,2))))","v":" "},{"$f":"IF($B$32=\" \",\" \",IF($V$1=1,\" \",IF(VLOOKUP($V$1,Förderabwicklung_Form!$AX$35:$BW$48,4,2)=0,\" \",VLOOKUP($V$1,Förderabwicklung_Form!$AX$35:$BW$48,4,2))))","v":" "},null,null,null,null,null,null,{"$f":"J32+P71+P96+P121+P146+P171","v":0},null,{"$f":"IF(N32=0,0,IF(VLOOKUP($V$1,Förderabwicklung_Form!$AX$5:$BW$18,4,2)=\" \",\" \",VLOOKUP($V$1,Förderabwicklung_Form!$AX$5:$BW$18,4,2)*N32))","v":0},null,null,null,{"$f":"S32+T71+T96+T121+T146+T171","v":0},null,false]
[null,{"$f":"IF(OR($V$1=1,$V$1=0),\" \",IF(VLOOKUP($V$1,Förderabwicklung_Form!$AX$5:$BW$18,6,2)=\"-\",\" \",VLOOKUP($V$1,Förderabwicklung_Form!$AX$5:$BW$18,6,2)))","v":" "},null,null,null,{"$f":"IF(B33=\" \",\" \",IF($V$1=1,\" \",IF(VLOOKUP($V$1,Förderabwicklung_Form!$AX$5:$BW$18,7,2)=0,\" \",VLOOKUP($V$1,Förderabwicklung_Form!$AX$5:$BW$18,7,2)&\" / \"&VLOOKUP($V$1,Förderabwicklung_Form!$AX$5:$BW$18,8,2))))","v":" "},{"$f":"IF($B$33=\" \",\" \",IF($V$1=1,\" \",IF(VLOOKUP($V$1,Förderabwicklung_Form!$AX$35:$BW$48,7,2)=0,\" \",VLOOKUP($V$1,Förderabwicklung_Form!$AX$35:$BW$48,7,2))))","v":" "},null,null,null,null,null,null,0,null,{"$f":"IF(N33=0,0,IF(VLOOKUP($V$1,Förderabwicklung_Form!$AX$5:$BW$18,7,2)=\" \",\" \",VLOOKUP($V$1,Förderabwicklung_Form!$AX$5:$BW$18,7,2)*N33))","v":0},null,null,null,0,null,false,null,null,{"$f":"IF(AND(P33=0,T33=0),\" \",IF(AND(P33>0,T33>0),\"Kosten und Standardkosten ist falsch!\",IF(P33=0,G33*T33,IF(T33=0,P33*G33,0))))","v":" "}]
[null,{"$f":"IF(OR($V$1=1,$V$1=0),\" \",IF(VLOOKUP($V$1,Förderabwicklung_Form!$AX$5:$BW$18,9,2)=\"-\",\" \",VLOOKUP($V$1,Förderabwicklung_Form!$AX$5:$BW$18,9,2)))","v":" "},null,null,null,{"$f":"IF(B34=\" \",\" \",IF($V$1=1,\" \",IF(VLOOKUP($V$1,Förderabwicklung_Form!$AX$5:$BW$18,10,2)=0,\" \",VLOOKUP($V$1,Förderabwicklung_Form!$AX$5:$BW$18,10,2)&\" / \"&VLOOKUP($V$1,Förderabwicklung_Form!$AX$5:$BW$18,11,2))))","v":" "},{"$f":"IF($B$34=\" \",\" \",IF($V$1=1,\" \",IF(VLOOKUP($V$1,Förderabwicklung_Form!$AX$35:$BW$48,10,2)=0,\" \",VLOOKUP($V$1,Förderabwicklung_Form!$AX$35:$BW$48,10,2))))","v":" "},null,null,null,null,null,null,0,null,{"$f":"IF(N34=0,0,IF(VLOOKUP($V$1,Förderabwicklung_Form!$AX$5:$BW$18,4,2)=\" \",\" \",VLOOKUP($V$1,Förderabwicklung_Form!$AX$5:$BW$18,10,2)*N34))","v":0},null,null,null,0,null,false,null,null," "]
[null,{"$f":"IF(OR($V$1=1,$V$1=0),\" \",IF(VLOOKUP($V$1,Förderabwicklung_Form!$AX$5:$BW$18,12,2)=\"-\",\" \",VLOOKUP($V$1,Förderabwicklung_Form!$AX$5:$BW$18,12,2)))","v":" "},null,null,null,{"$f":"IF(B35=\" \",\" \",IF($V$1=1,\" \",IF(VLOOKUP($V$1,Förderabwicklung_Form!$AX$5:$BW$18,13,2)=0,\" \",VLOOKUP($V$1,Förderabwicklung_Form!$AX$5:$BW$18,13,2)&\" / \"&VLOOKUP($V$1,Förderabwicklung_Form!$AX$5:$BW$18,14,2))))","v":" "},{"$f":"IF($B$35=\" \",\" \",IF($V$1=1,\" \",IF(VLOOKUP($V$1,Förderabwicklung_Form!$AX$35:$BW$48,13,2)=0,\" \",VLOOKUP($V$1,Förderabwicklung_Form!$AX$35:$BW$48,13,2))))","v":" "},null,null,null,null,null,null,0,null,{"$f":"IF(N35=0,0,IF(VLOOKUP($V$1,Förderabwicklung_Form!$AX$5:$BW$18,13,2)=\" \",\" \",VLOOKUP($V$1,Förderabwicklung_Form!$AX$5:$BW$18,13,2)*N35))","v":0},null,null,null,0,null,false,null,null," "]
[null,{"$f":"IF(OR($V$1=1,$V$1=0),\" \",IF(VLOOKUP($V$1,Förderabwicklung_Form!$AX$5:$BW$18,15,2)=\"-\",\" \",VLOOKUP($V$1,Förderabwicklung_Form!$AX$5:$BW$18,15,2)))","v":" "},null,null,null,{"$f":"IF(B36=\" \",\" \",IF($V$1=1,\" \",IF(VLOOKUP($V$1,Förderabwicklung_Form!$AX$5:$BW$18,16,2)=0,\" \",VLOOKUP($V$1,Förderabwicklung_Form!$AX$5:$BW$18,16,2)&\" / \"&VLOOKUP($V$1,Förderabwicklung_Form!$AX$5:$BW$16,5,2))))","v":" "},{"$f":"IF($B$36=\" \",\" \",IF($V$1=1,\" \",IF(VLOOKUP($V$1,Förderabwicklung_Form!$AX$35:$BW$48,16,2)=0,\" \",VLOOKUP($V$1,Förderabwicklung_Form!$AX$35:$BW$48,16,2))))","v":" "},null,null,null,null,null,null,0,null,{"$f":"IF(N36=0,0,IF(VLOOKUP($V$1,Förderabwicklung_Form!$AX$5:$BW$18,16,2)=\" \",\" \",VLOOKUP($V$1,Förderabwicklung_Form!$AX$5:$BW$18,16,2)*N36))","v":0},null,null,null,0,null,false,null,null," "]
[null,{"$f":"IF(OR($V$1=1,$V$1=0),\" \",IF(VLOOKUP($V$1,Förderabwicklung_Form!$AX$5:$BW$18,18,2)=\"-\",\" \",VLOOKUP($V$1,Förderabwicklung_Form!$AX$5:$BW$18,18,2)))","v":" "},null,null,null,{"$f":"IF(B37=\" \",\" \",IF($V$1=1,\" \",IF(VLOOKUP($V$1,Förderabwicklung_Form!$AX$5:$BW$18,19,2)=0,\" \",VLOOKUP($V$1,Förderabwicklung_Form!$AX$5:$BW$18,19,2)&\" / \"&VLOOKUP($V$1,Förderabwicklung_Form!$AX$5:$BW$18,20,2))))","v":" "},{"$f":"IF($B$37=\" \",\" \",IF($V$1=1,\" \",IF(VLOOKUP($V$1,Förderabwicklung_Form!$AX$35:$BW$48,19,2)=0,\" \",VLOOKUP($V$1,Förderabwicklung_Form!$AX$35:$BW$48,19,2))))","v":" "},null,null,null,null,null,null,0,null,{"$f":"IF(N37=0,0,IF(VLOOKUP($V$1,Förderabwicklung_Form!$AX$5:$BW$18,19,2)=\" \",\" \",VLOOKUP($V$1,Förderabwicklung_Form!$AX$5:$BW$18,19,2)*N37))","v":0},null,null,null,0,null,false,null,null," "]
[null,{"$f":"IF(OR($V$1=1,$V$1=0),\" \",IF(VLOOKUP($V$1,Förderabwicklung_Form!$AX$5:$BW$18,21,2)=\"-\",\" \",VLOOKUP($V$1,Förderabwicklung_Form!$AX$5:$BW$18,21,2)))","v":" "},null,null,null,{"$f":"IF(B38=\" \",\" \",IF($V$1=1,\" \",IF(VLOOKUP($V$1,Förderabwicklung_Form!$AX$5:$BW$18,22,2)=0,\" \",VLOOKUP($V$1,Förderabwicklung_Form!$AX$5:$BW$18,22,2)&\" / \"&VLOOKUP($V$1,Förderabwicklung_Form!$AX$5:$BW$18,23,2))))","v":" "},{"$f":"IF($B$38=\" \",\" \",IF($V$1=1,\" \",IF(VLOOKUP($V$1,Förderabwicklung_Form!$AX$35:$BW$48,22,2)=0,\" \",VLOOKUP($V$1,Förderabwicklung_Form!$AX$35:$BW$48,22,2))))","v":" "},null,null,null,null,null,null,0,null,{"$f":"IF(N38=0,0,IF(VLOOKUP($V$1,Förderabwicklung_Form!$AX$5:$BW$18,22,2)=\" \",\" \",VLOOKUP($V$1,Förderabwicklung_Form!$AX$5:$BW$18,22,2)*N38))","v":0},null,null,null,0,null,false,null,null," "]
[null,null,null,null,null,null,null,null,null,null,null,null,null,null,null,null,null,null,null,null,null,null,null,null,{"$f":"SUM(Y31:Y38)","v":0}]
[null,null,null,null,null,null,null,"SUMME_ Kosten:",null,null,null,null,null,null,null,{"$f":"SUM(P32:R38)","v":0},null,null,{"$f":"SUM(S32:S38)","v":0},{"$f":"SUM(T32:T38)","v":0}]
[]
[null,"Kosten:  (Beschreibung der Aktivitäten, die mit tatsächlichen Kosten und Vergleichsangeboten zu beantragen sind)",null,null,null,null,null,null,null,null,null,null,null,null,null,null,null,null,null,null,null,"Schutzwald"]
[null,"Aktivität:",null,null,null,"Förderkulisse",null,"Beschreibung",null,null,null,null,null,null,null,null,null,null,null,null,null,"sonstiger Wald"]
[null,null,null,null,null,null,null,null,null,null,null,null,null,null,null,null,null,null,null,null,null,"Waldumwelt"]
[null,{"$f":"IF(T32>0,B32,\" \")","v":" "},null,null,null,null,null,null,null,null,null,null,null,null,null,null,null,null,null,null,null,"Natura 2000"]
[null,null,null,null,null,null,null,null,null,null,null,null,null,null,null,null,null,null,null,null,null,"Genetische Ressourcen"]
[null,{"$f":"IF(OR(T33>0,T34>0),B33&\" und \"&B34,\" \")","v":" "},null,null,null,null,null,null,null,null,null,null,null,null,null,null,null,null,null,null,null,null,null,null,null,null,null,{"$f":"P40+T40","v":0}]
[]
[null,{"$f":"IF(OR(T35>0,T36>0),B35&\" und \"&B36,\" \")","v":" "}]
[]
[null,null,null,null,null,null,null,null,null,null,null,null,null,"beantragte Förderung:",null,null,null,null,null,{"$f":"Y39","v":0}]
[]
[]
[]
[null,"Ort, Datum",null,null,null,null,null," Unterschrift:  Förderwerber, bei Jur. Person (Vertreter, Begünstigter)",null,null,null,null,null,null,null,null,null,null,null,null,null,1,"-",null,null,null,{"$f":"$P$40+$T$40","v":0},{"$f":"$Y$39","v":0}]
[]
[null,"Name des BFI Fostorgans /Beraters, Ort, Datum",null,null,null,"Unterschrift:  Bewilligende Stelle /, befugtes Forstorgan"," Unterschrift:  BFI / beratendes Organ",null,null,null,null,null,null,null,null,null,null,null,null,null,null,null,null,null,null,null,0,0]
[null,null,null,null,null,"FL.ANZ.",{"$f":"IF(D60>0,\"Fläche 2 vorhanden\",\" \")","v":" "},null,null,null,null,null,null,null,null,{"$f":"IF(D85>0,\"Fläche 3 vorhanden\",\" \")","v":" "},null,null,null,{"$f":"IF(D160>0,\"Fläche 6 vorhanden\",\" \")","v":" "},null,false,true,null,null,2,null,null,null,null,null,null,null,null,null,null,null,null,null,null,null,null,null,null,null,null,null,null,null,null," ","Werte für Anzeigeeigenschaften der"]
[null,null,null,null,null,{"$f":"Q17","v":0},{"$f":"IF(D110>0,\"Fläche 4 vorhanden\",\" \")","v":" "},null,null,null,null,null,null,null,null,{"$f":"IF(D135>0,\"Fläche 5 vorhanden\",\" \")","v":" "},null,null,null,null,null,true,true,null,null,null,null,null,null,null,null,null,null,null,null,null,null,null,null,null,null,null,null,null,null,null,null,null,null,null," "]
[null,{"$f":"\"Fläche\"&\" \"&Z58&\" (ha):\"","v":"Fläche 2 (ha):"},null,null,null,null,null,null,null,null,null,null,null,null,null,null,null,null,null,null,null,true,true,null,null,4,{"$f":"IF(AB63=$D$15,AA63,\" \")","v":" "},{"$f":"IF(AB64=$D$15,AA64,\" \")","v":" "},{"$f":"IF(AB65=$D$15,AA65,\" \")","v":" "},{"$f":"IF(AB66=$D$15,AA66,\" \")","v":" "},{"$f":"IF(AB68=$D$15,AA68,\" \")","v":" "},{"$f":"IF(AB69=$D$15,AA69,\" \")","v":" "},{"$f":"IF(AB70=$D$15,AA70,\" \")","v":" "},{"$f":"IF(AB71=$D$15,AA71,\" \")","v":" "},{"$f":"IF(AB72=$D$15,AA72,\" \")","v":" "},{"$f":"IF(AB73=$D$15,AA73,\" \")","v":" "},{"$f":"IF(AB74=$D$15,AA74,\" \")","v":" "},{"$f":"IF(AB75=$D$15,AA75,\" \")","v":" "},{"$f":"IF(AB76=$D$15,AA76,\" \")","v":" "},{"$f":"IF(AB78=$D$15,AA78,\" \")","v":" "},{"$f":"IF(AB79=$D$15,AA79,\" \")","v":" "},{"$f":"IF(AB80=$D$15,AA80,\" \")","v":" "},{"$f":"IF(AB81=$D$15,AA81,\" \")","v":" "},{"$f":"IF(AB82=$D$15,AA82,\" \")","v":" "},{"$f":"IF(AB83=$D$15,AA83,\" \")","v":" "},{"$f":"IF(AB84=$D$15,AA84,\" \")","v":" "},{"$f":"IF(AB85=$D$15,AA85,\" \")","v":" "},{"$f":"SUM(AA60:AU60)","v":0},null,null,1]
[null,null,null,null,null,null,null,null,null,null,null,null,null,null,null,null,null,null,null,null,null,true,true,null,null,5]
[null,{"$f":"B18","v":" "},null,null,null,null,null,null,null,null,null,null,null,null,null,null,null,null,null,null,null,true,true,null,null,6,1,"Aktivitäten"]
[null," ",null,null,null,null,null,null,null,null,null,null,null,null,null,null,null,null,null,null,null,null,null,null,null,null,2,"JUNGBESTANDSPFLEGE"]
[null," ",null,null,null,null,null,null,null,null,null,null,null,null,null,null,null,null,null,null,null,null,null,null,null,null,3,"DURCHFORSTUNG mit Seil"]
[null," ",null,null,null,null,null,null,null,null,null,null,null,null,null,null,null,null,null,null,null,null,null,null,null,null,4,"DURCHFORSTUNG ohne Seil"]
[null," ",null,null,null,null,null,null,null,null,null,null,null,null,null,null,null,null," ",null,null,null,null,null,null,null,5,"VERJÜNGUNGSEINLEITUNG incl. BRINGUNG, RÜCKUNG"]
[null," "]
[null,"Spezifizierung des Projektes:",null,null,null,null,null,null,null,null,null,null,null,null,null,null,null,null,null,null,null,null,null,null,null,null,{"$f":"AA66+1","v":6},"Vorbereitung (Bodenbearbeitung, Mulchen, Düngung)"]
[null,{"$f":"\"Kosten/Standardkosten:\"&\" \"&$D$15","v":"Kosten/Standardkosten: 'Querfällung, Verankerung"},null,null,null,null,"€ / Einheit",null,null,"  beantr. Förd.%    ",null,null,null,"Nat. 2000 (x)",null,"Standardkosten  Menge",null,null,"Summe Standard-kosten","Standardkosten 0,  bitte Kosten eintragen:",null,null,null,"Förderberechnung:","Förderberechnung:",null,{"$f":"AA68+1","v":7},"Aufforstung/Bestandesumbau incl. Ergänzung von Naturverjüngung"]
[null,null,null,null,null,null,null,null,null,null,null,null,null,null,null,null,null,null,null,null,null,null,null,{"$f":"IF(AND(P71=0,T71=0),\" \",IF(AND(P71>0,T71>0),\"Kosten und Standardkosten ist falsch!\",IF(P71=0,J71*T71,IF(T71=0,S71*J71,0))))","v":" "},{"$f":"IF(AND(P71=0,T71=0),\" \",IF(AND(P71>0,T71>0),\"Kosten und Standardkosten ist falsch!\",IF(P71=0,J71*T71,IF(T71=0,S71*J71,0))))","v":" "},null,8,"SW Aufforstung /SW Bestandesumbau incl. Ergänzung von Naturverjüngung"]
[null,{"$f":"B32","v":" "},null,null,null,null,{"$f":"F32","v":" "},null,null,{"$f":"G32","v":" "},null,null,null,null,null,null,null,null,{"$f":"IF(P71=0,0,IF(VLOOKUP($V$1,Förderabwicklung_Form!$AX$5:$BW$18,4,2)=\" \",\" \",VLOOKUP($V$1,Förderabwicklung_Form!$AX$5:$BW$18,4,2)*P71))","v":0},null,null,false,null,null,null,null,9,"Unterbau"]
[null," ",null,null,null,null," ",null,null," ",null,null,null,null,null,null,null,null,{"$f":"IF(P72=0,0,IF(VLOOKUP($V$1,Förderabwicklung_Form!$AX$5:$BW$18,7,2)=\" \",\" \",VLOOKUP($V$1,Förderabwicklung_Form!$AX$5:$BW$18,7,2)*P72))","v":0},null,null,false,null,{"$f":"IF(AND(P72=0,T72=0),\" \",IF(AND(P72>0,T72>0),\"Kosten und Standardkosten ist falsch!\",IF(P72=0,J72*T72,IF(T72=0,S72*J72,0))))","v":" "},{"$f":"IF(AND(P72=0,T72=0),\" \",IF(AND(P72>0,T72>0),\"Kosten und Standardkosten ist falsch!\",IF(P72=0,J72*T72,IF(T72=0,S72*J72,0))))","v":" "},null,10,"Kontrollzaun"]
[null," ",null,null,null,null," ",null,null," ",null,null,null,null,null,null,null,null,{"$f":"IF(P73=0,0,IF(VLOOKUP($V$1,Förderabwicklung_Form!$AX$5:$BW$18,10,2)=\" \",\" \",VLOOKUP($V$1,Förderabwicklung_Form!$AX$5:$BW$18,10,2)*P73))","v":0},null,null,false,null,{"$f":"IF(AND(P73=0,T73=0),\" \",IF(AND(P73>0,T73>0),\"Kosten und Standardkosten ist falsch!\",IF(P73=0,J73*T73,IF(T73=0,S73*J73,0))))","v":" "}," ",null,11,"Schutz der Verjüngung gegen Schneeschub"]
[null," ",null,null,null,null," ",null,null," ",null,null,null,null,null,null,null,null,{"$f":"IF(P74=0,0,IF(VLOOKUP($V$1,Förderabwicklung_Form!$AX$5:$BW$18,13,2)=\" \",\" \",VLOOKUP($V$1,Förderabwicklung_Form!$AX$5:$BW$18,13,2)*P74))","v":0},null,null,false,null,{"$f":"IF(AND(P74=0,T74=0),\" \",IF(AND(P74>0,T74>0),\"Kosten und Standardkosten ist falsch!\",IF(P74=0,J74*T74,IF(T74=0,S74*J74,0))))","v":" "}," ",null,12,"Bermen"]
[null," ",null,null,null,null," ",null,null," ",null,null,null,null,null,null,null,null,{"$f":"IF(P75=0,0,IF(VLOOKUP($V$1,Förderabwicklung_Form!$AX$5:$BW$18,16,2)=\" \",\" \",VLOOKUP($V$1,Förderabwicklung_Form!$AX$5:$BW$18,16,2)*P75))","v":0},null,null,false,null,{"$f":"IF(AND(P75=0,T75=0),\" \",IF(AND(P75>0,T75>0),\"Kosten und Standardkosten ist falsch!\",IF(P75=0,J75*T75,IF(T75=0,S75*J75,0))))","v":" "}," ",null,13,"Einfache technische Werke"]
[null," ",null,null,null,null," ",null,null," ",null,null,null,null,null,null,null,null,{"$f":"IF(P76=0,0,IF(VLOOKUP($V$1,Förderabwicklung_Form!$AX$5:$BW$18,19,2)=\" \",\" \",VLOOKUP($V$1,Förderabwicklung_Form!$AX$5:$BW$18,19,2)*P76))","v":0},null,null,false,null,{"$f":"IF(AND(P76=0,T76=0),\" \",IF(AND(P76>0,T76>0),\"Kosten und Standardkosten ist falsch!\",IF(P76=0,J76*T76,IF(T76=0,S76*J76,0))))","v":" "}," ",null,14,"Querfällung, Verankerung"]
[null," ",null,null,null,null," ",null,null," ",null,null,null,null,null,null,null,null,{"$f":"IF(P77=0,0,IF(VLOOKUP($V$1,Förderabwicklung_Form!$AX$5:$BW$18,22,2)=\" \",\" \",VLOOKUP($V$1,Förderabwicklung_Form!$AX$5:$BW$18,22,2)*P77))","v":0},null,null,null,null,null," "]
[null,null,null,null,null,null,null,null,null,null,null,null,null,null,null,null,null,null,{"$f":"IF(P78=0,\" \",IF(VLOOKUP($V$1,Förderabwicklung_Form!$U$3:$AT$18,22,2)=\" \",\" \",VLOOKUP($V$1,Förderabwicklung_Form!$U$3:$AT$18,22,2)*P78))","v":" "},null,null,false,null,{"$f":"IF(AND(P78=0,T78=0),\" \",IF(AND(P78>0,T78>0),\"Kosten und Standardkosten ist falsch!\",IF(P78=0,J78*T78,IF(T78=0,S78*J78,0))))","v":" "},{"$f":"IF(AND(Q78=0,U78=0),\" \",IF(AND(Q78>0,U78>0),\"Kosten und Standardkosten ist falsch!\",IF(Q78=0,K78*U78,IF(U78=0,T78*K78,0))))","v":" "}]
[null,"Kosten:  Beschreibung der Aktivitäten mit Kosten und Vergleichsangeboten ",null,null,null,null,null,null,null,null,null,null,null,null,null,"Summe:",null,null,{"$f":"SUM(S71:S78)","v":0},{"$f":"SUM(T71:T78)","v":0}]
[null,"Aktivität:",null,null,null,"Förderkulisse",null,"Beschreibung"]
[]
[null,{"$f":"IF(T71>0,B71,IF(T72>0,B72,IF(T73>0,B73,IF(T74>0,B74,IF(T75>0,B75,IF(T76>0,B76,IF(T77>0,B77,\" \")))))))","v":" "}]
[]
[]
[null,{"$f":"\"Fläche 3\"&\" \"&Z59&\" (ha):\"","v":"Fläche 3  (ha):"}]
[]
[null,{"$f":"B18","v":" "}]
[null,{"$f":"B19","v":" "}]
[null," "]
[null," "]
[null," ",null,null,null,null,null,null,null,null,null,null,null,null,null,null,null,null," "]
[null," "]
[null,"Spezifizierung des Projektes:"]
[null,{"$f":"\"Kosten/Standardkosten:\"&\" \"&$D$15","v":"Kosten/Standardkosten: 'Querfällung, Verankerung"},null,null,null,null,"€ / Einheit",null,null,"  beantr. Förd.%    ",null,null,null,"Nat. 2000 (x)",null,"Standardkosten  Menge",null,null,"Summe Standard-kosten","Standardkosten 0,  bitte Kosten eintragen:",null,null,null,"Förderberechnung:","Förderberechnung:"]
[null,null,null,null,null,null,null,null,null,null,null,null,null,null,null,null,null,null,null,null,null,null,null,{"$f":"IF(AND(P96=0,T96=0),\" \",IF(AND(P96>0,T96>0),\"Kosten und Standardkosten ist falsch!\",IF(P96=0,J96*T96,IF(T96=0,S96*J96,0))))","v":" "},{"$f":"IF(AND(P96=0,T96=0),\" \",IF(AND(P96>0,T96>0),\"Kosten und Standardkosten ist falsch!\",IF(P96=0,J96*T96,IF(T96=0,S96*J96,0))))","v":" "}]
[null,{"$f":"B32","v":" "},null,null,null,null,{"$f":"G71","v":" "},null,null,{"$f":"J71","v":" "},null,null,null,null,null,null,null,null,{"$f":"IF(P96=0,0,IF(VLOOKUP($V$1,Förderabwicklung_Form!$AX$5:$BW$18,4,2)=\" \",\" \",VLOOKUP($V$1,Förderabwicklung_Form!$AX$5:$BW$18,4,2)*P96))","v":0},null,null,false]
[null," ",null,null,null,null," ",null,null," ",null,null,null,null,null,null,null,null,{"$f":"IF(P97=0,0,IF(VLOOKUP($V$1,Förderabwicklung_Form!$AX$5:$BW$18,7,2)=\" \",\" \",VLOOKUP($V$1,Förderabwicklung_Form!$AX$5:$BW$18,7,2)*P97))","v":0},null,null,false,null,{"$f":"IF(AND(P97=0,T97=0),\" \",IF(AND(P97>0,T97>0),\"Kosten und Standardkosten ist falsch!\",IF(P97=0,J97*T97,IF(T97=0,S97*J97,0))))","v":" "},{"$f":"IF(AND(P97=0,T97=0),\" \",IF(AND(P97>0,T97>0),\"Kosten und Standardkosten ist falsch!\",IF(P97=0,J97*T97,IF(T97=0,S97*J97,0))))","v":" "}]
[null," ",null,null,null,null," ",null,null," ",null,null,null,null,null,null,null,null,{"$f":"IF(P98=0,0,IF(VLOOKUP($V$1,Förderabwicklung_Form!$AX$5:$BW$18,10,2)=\" \",\" \",VLOOKUP($V$1,Förderabwicklung_Form!$AX$5:$BW$18,10,2)*P98))","v":0},null,null,false,null," "," "]
[null," ",null,null,null,null," ",null,null," ",null,null,null,null,null,null,null,null,{"$f":"IF(P99=0,0,IF(VLOOKUP($V$1,Förderabwicklung_Form!$AX$5:$BW$18,13,2)=\" \",\" \",VLOOKUP($V$1,Förderabwicklung_Form!$AX$5:$BW$18,13,2)*P99))","v":0},null,null,false,null," "," "]
[null," ",null,null,null,null," ",null,null," ",null,null,null,null,null,null,null,null,{"$f":"IF(P100=0,0,IF(VLOOKUP($V$1,Förderabwicklung_Form!$AX$5:$BW$18,16,2)=\" \",\" \",VLOOKUP($V$1,Förderabwicklung_Form!$AX$5:$BW$18,16,2)*P100))","v":0},null,null,false,null," "," "]
[null," ",null,null,null,null," ",null,null," ",null,null,null,null,null,null,null,null,{"$f":"IF(P101=0,0,IF(VLOOKUP($V$1,Förderabwicklung_Form!$AX$5:$BW$18,19,2)=\" \",\" \",VLOOKUP($V$1,Förderabwicklung_Form!$AX$5:$BW$18,19,2)*P101))","v":0},null,null,false,null," "," "]
[null," ",null,null,null,null," ",null,null," ",null,null,null,null,null,null,null,null,{"$f":"IF(P102=0,0,IF(VLOOKUP($V$1,Förderabwicklung_Form!$AX$5:$BW$18,22,2)=\" \",\" \",VLOOKUP($V$1,Förderabwicklung_Form!$AX$5:$BW$18,22,2)*P102))","v":0},null,null,false,null," "," "]
[]
[null,"Kosten:  Beschreibung der Aktivitäten mit Kosten und Vergleichsangeboten ",null,null,null,null,null,null,null,null,null,null,null,null,null,"Summe:",null,null,{"$f":"SUM(S96:S103)","v":0},{"$f":"SUM(T96:T103)","v":0},null,null,null,{"$f":"SUM(X95:X102)","v":0},{"$f":"SUM(Y95:Y102)","v":0}]
[null,"Aktivität:",null,null,null,"Förderkulisse",null,"Beschreibung"]
[]
[null,{"$f":"IF(T96>0,B96,IF(T97>0,B97,IF(T98>0,B98,IF(T99>0,B99,IF(T100>0,B100,IF(T101>0,B101,IF(T102>0,B102,\" \")))))))","v":" "}]
[]
[]
[null,{"$f":"\"Fläche\"&\" \"&Z60&\" (ha):\"","v":"Fläche 4 (ha):"}]
[]
[null,{"$f":"B18","v":" "}]
[null,{"$f":"B19","v":" "}]
[null," "]
[null," "]
[null," ",null,null,null,null,null,null,null,null,null,null,null,null,null,null,null,null," "]
[null," "]
[null,"Spezifizierung des Projektes:"]
[null,{"$f":"\"Kosten/Standardkosten:\"&\" \"&$D$15","v":"Kosten/Standardkosten: 'Querfällung, Verankerung"},null,null,null,null,"€ / Einheit",null,null,"  beantr. Förd.%    ",null,null,null,"Nat. 2000 (x)",null,"Standardkosten  Menge",null,null,"Summe Standard-kosten","Standardkosten 0,  bitte Kosten eintragen:",null,null,null,"Förderberechnung:","Förderberechnung:"]
[null,null,null,null,null,null,null,null,null,null,null,null,null,null,null,null,null,null,null,null,null,null,null,{"$f":"IF(AND(P121=0,T121=0),\" \",IF(AND(P121>0,T121>0),\"Kosten und Standardkosten ist falsch!\",IF(P121=0,J121*T121,IF(T121=0,S121*J121,0))))","v":" "},{"$f":"IF(AND(P121=0,T121=0),\" \",IF(AND(P121>0,T121>0),\"Kosten und Standardkosten ist falsch!\",IF(P121=0,J121*T121,IF(T121=0,S121*J121,0))))","v":" "}]
[null,{"$f":"B32","v":" "},null,null,null,null,{"$f":"G96","v":" "},null,null,{"$f":"J96","v":" "},null,null,null,null,null,null,null,null,{"$f":"IF(P121=0,0,IF(VLOOKUP($V$1,Förderabwicklung_Form!$AX$5:$BW$18,4,2)=\" \",\" \",VLOOKUP($V$1,Förderabwicklung_Form!$AX$5:$BW$18,4,2)*P121))","v":0},null,null,false]
[null," ",null,null,null,null," ",null,null," ",null,null,null,null,null,null,null,null,{"$f":"IF(P122=0,0,IF(VLOOKUP($V$1,Förderabwicklung_Form!$AX$5:$BW$18,7,2)=\" \",\" \",VLOOKUP($V$1,Förderabwicklung_Form!$AX$5:$BW$18,7,2)*P122))","v":0},null,null,false,null,{"$f":"IF(AND(P122=0,T122=0),\" \",IF(AND(P122>0,T122>0),\"Kosten und Standardkosten ist falsch!\",IF(P122=0,J122*T122,IF(T122=0,S122*J122,0))))","v":" "},{"$f":"IF(AND(P122=0,T122=0),\" \",IF(AND(P122>0,T122>0),\"Kosten und Standardkosten ist falsch!\",IF(P122=0,J122*T122,IF(T122=0,S122*J122,0))))","v":" "}]
[null," ",null,null,null,null," ",null,null," ",null,null,null,null,null,null,null,null,{"$f":"IF(P123=0,0,IF(VLOOKUP($V$1,Förderabwicklung_Form!$AX$5:$BW$18,10,2)=\" \",\" \",VLOOKUP($V$1,Förderabwicklung_Form!$AX$5:$BW$18,10,2)*P123))","v":0},null,null,false,null," "," "]
[null," ",null,null,null,null," ",null,null," ",null,null,null,null,null,null,null,null,{"$f":"IF(P124=0,0,IF(VLOOKUP($V$1,Förderabwicklung_Form!$AX$5:$BW$18,13,2)=\" \",\" \",VLOOKUP($V$1,Förderabwicklung_Form!$AX$5:$BW$18,13,2)*P124))","v":0},null,null,false,null," "," "]
[null," ",null,null,null,null," ",null,null," ",null,null,null,null,null,null,null,null,{"$f":"IF(P125=0,0,IF(VLOOKUP($V$1,Förderabwicklung_Form!$AX$5:$BW$18,16,2)=\" \",\" \",VLOOKUP($V$1,Förderabwicklung_Form!$AX$5:$BW$18,16,2)*P125))","v":0},null,null,false,null," "," "]
[null," ",null,null,null,null," ",null,null," ",null,null,null,null,null,null,null,null,{"$f":"IF(P126=0,0,IF(VLOOKUP($V$1,Förderabwicklung_Form!$AX$5:$BW$18,19,2)=\" \",\" \",VLOOKUP($V$1,Förderabwicklung_Form!$AX$5:$BW$18,19,2)*P126))","v":0},null,null,false,null," "," "]
[null," ",null,null,null,null," ",null,null," ",null,null,null,null,null,null,null,null,{"$f":"IF(P127=0,0,IF(VLOOKUP($V$1,Förderabwicklung_Form!$AX$5:$BW$18,22,2)=\" \",\" \",VLOOKUP($V$1,Förderabwicklung_Form!$AX$5:$BW$18,22,2)*P127))","v":0},null,null,false,null," "," "]
[null,null,null,null,null,null,null,null,null,null,null,null,null,null,null,null,null,null,null,null,null,null,null,{"$f":"SUM(X120:X127)","v":0},{"$f":"SUM(Y120:Y127)","v":0}]
[null,"Kosten:  Beschreibung der Aktivitäten mit Kosten und Vergleichsangeboten ",null,null,null,null,null,null,null,null,null,null,null,null,null,"Summe:",null,null,{"$f":"SUM(S121:S128)","v":0},{"$f":"SUM(T121:T128)","v":0}]
[null,"Aktivität:",null,null,null,"Förderkulisse",null,"Beschreibung"]
[]
[null,{"$f":"IF(T121>0,B121,IF(T122>0,B122,IF(T123>0,B123,IF(T124>0,B124,IF(T125>0,B125,IF(T126>0,B126,IF(T127>0,B127,\" \")))))))","v":" "}]
[]
[]
[null,{"$f":"\"Fläche\"&\" \"&Z61&\" (ha):\"","v":"Fläche 5 (ha):"}]
[]
[null,{"$f":"B18","v":" "}]
[null,{"$f":"B19","v":" "}]
[null,{"$f":"B20","v":" "}]
[null," "]
[null," ",null,null,null,null,null,null,null,null,null,null,null,null,null,null,null,null," "]
[null," "]
[null,"Spezifizierung des Projektes:"]
[null,{"$f":"\"Kosten/Standardkosten:\"&\" \"&$D$15","v":"Kosten/Standardkosten: 'Querfällung, Verankerung"},null,null,null,null,"€ / Einheit",null,null,"  beantr. Förd.%    ",null,null,null,"Nat. 2000 (x)",null,"Standardkosten  Menge",null,null,"Summe Standard-kosten","Standardkosten 0,  bitte Kosten eintragen:",null,null,null,"Förderberechnung:","Förderberechnung:"]
[null,null,null,null,null,null,null,null,null,null,null,null,null,null,null,null,null,null,null,null,null,null,null,{"$f":"IF(AND(P146=0,T146=0),\" \",IF(AND(P146>0,T146>0),\"Kosten und Standardkosten ist falsch!\",IF(P146=0,J146*T146,IF(T146=0,S146*J146,0))))","v":" "},{"$f":"IF(AND(P146=0,T146=0),\" \",IF(AND(P146>0,T146>0),\"Kosten und Standardkosten ist falsch!\",IF(P146=0,J146*T146,IF(T146=0,S146*J146,0))))","v":" "}]
[null,{"$f":"B32","v":" "},null,null,null,null,{"$f":"G121","v":" "},null,null,{"$f":"J121","v":" "},null,null,null,null,null,null,null,null,{"$f":"IF(P146=0,0,IF(VLOOKUP($V$1,Förderabwicklung_Form!$AX$5:$BW$18,4,2)=\" \",\" \",VLOOKUP($V$1,Förderabwicklung_Form!$AX$5:$BW$18,4,2)*P146))","v":0}]
[null," ",null,null,null,null," ",null,null," ",null,null,null,null,null,null,null,null,{"$f":"IF(P147=0,0,IF(VLOOKUP($V$1,Förderabwicklung_Form!$AX$5:$BW$18,7,2)=\" \",\" \",VLOOKUP($V$1,Förderabwicklung_Form!$AX$5:$BW$18,7,2)*P147))","v":0},null,null,null,null,{"$f":"IF(AND(P147=0,T147=0),\" \",IF(AND(P147>0,T147>0),\"Kosten und Standardkosten ist falsch!\",IF(P147=0,J147*T147,IF(T147=0,S147*J147,0))))","v":" "},{"$f":"IF(AND(P147=0,T147=0),\" \",IF(AND(P147>0,T147>0),\"Kosten und Standardkosten ist falsch!\",IF(P147=0,J147*T147,IF(T147=0,S147*J147,0))))","v":" "}]
[null," ",null,null,null,null," ",null,null," ",null,null,null,null,null,null,null,null,{"$f":"IF(P148=0,0,IF(VLOOKUP($V$1,Förderabwicklung_Form!$AX$5:$BW$18,10,2)=\" \",\" \",VLOOKUP($V$1,Förderabwicklung_Form!$AX$5:$BW$18,10,2)*P148))","v":0},null,null,null,null," "," "]
[null," ",null,null,null,null," ",null,null," ",null,null,null,null,null,null,null,null,{"$f":"IF(P149=0,0,IF(VLOOKUP($V$1,Förderabwicklung_Form!$AX$5:$BW$18,13,2)=\" \",\" \",VLOOKUP($V$1,Förderabwicklung_Form!$AX$5:$BW$18,13,2)*P149))","v":0},null,null,null,null," "," "]
[null," ",null,null,null,null," ",null,null," ",null,null,null,null,null,null,null,null,{"$f":"IF(P150=0,0,IF(VLOOKUP($V$1,Förderabwicklung_Form!$AX$5:$BW$18,16,2)=\" \",\" \",VLOOKUP($V$1,Förderabwicklung_Form!$AX$5:$BW$18,16,2)*P150))","v":0},null,null,null,null," "," "]
[null," ",null,null,null,null," ",null,null," ",null,null,null,null,null,null,null,null,{"$f":"IF(P151=0,0,IF(VLOOKUP($V$1,Förderabwicklung_Form!$AX$5:$BW$18,19,2)=\" \",\" \",VLOOKUP($V$1,Förderabwicklung_Form!$AX$5:$BW$18,19,2)*P151))","v":0},null,null,null,null," "," "]
[null," ",null,null,null,null," ",null,null," ",null,null,null,null,null,null,null,null,{"$f":"IF(P152=0,0,IF(VLOOKUP($V$1,Förderabwicklung_Form!$AX$5:$BW$18,22,2)=\" \",\" \",VLOOKUP($V$1,Förderabwicklung_Form!$AX$5:$BW$18,22,2)*P152))","v":0},null,null,null,null," "," "]
[null,null,null,null,null,null,null,null,null,null,null,null,null,null,null,null,null,null,null,null,null,null,null,{"$f":"SUM(X145:X152)","v":0},{"$f":"SUM(Y145:Y152)","v":0}]
[null,"Kosten:  Beschreibung der Aktivitäten mit Kosten und Vergleichsangeboten ",null,null,null,null,null,null,null,null,null,null,null,null,null,"Summe:",null,null,{"$f":"SUM(S146:S153)","v":0},{"$f":"SUM(T146:T153)","v":0}]
[null,"Aktivität:",null,null,null,"Förderkulisse",null,"Beschreibung"]
[]
[null,{"$f":"IF(T146>0,B146,IF(T147>0,B147,IF(T148>0,B148,IF(T149>0,B149,IF(T150>0,B150,IF(T151>0,B151,IF(T152>0,B152,\" \")))))))","v":" "}]
[]
[]
[null,{"$f":"\"Fläche\"&\" \"&Z62&\" (ha):\"","v":"Fläche 6 (ha):"}]
[]
[null,{"$f":"B18","v":" "}]
[null,{"$f":"B19","v":" "}]
[null,{"$f":"B20","v":" "}]
[null," "]
[null," ",null,null,null,null,null,null,null,null,null,null,null,null,null,null,null,null," "]
[null," "]
[null,"Spezifizierung des Projektes:"]
[null,{"$f":"\"Kosten/Standardkosten:\"&\" \"&$D$15","v":"Kosten/Standardkosten: 'Querfällung, Verankerung"},null,null,null,null,"€ / Einheit",null,null,"  beantr. Förd.%    ",null,null,null,"Nat. 2000 (x)",null,"Standardkosten  Menge",null,null,"Summe Standard-kosten","Standardkosten 0,  bitte Kosten eintragen:",null,null,null,"Förderberechnung:","Förderberechnung:"]
[null,null,null,null,null,null,null,null,null,null,null,null,null,null,null,null,null,null,null,null,null,null,null,{"$f":"IF(AND(P171=0,T171=0),\" \",IF(AND(P171>0,T171>0),\"Kosten und Standardkosten ist falsch!\",IF(P171=0,J171*T171,IF(T171=0,S171*J171,0))))","v":" "},{"$f":"IF(AND(P171=0,T171=0),\" \",IF(AND(P171>0,T171>0),\"Kosten und Standardkosten ist falsch!\",IF(P171=0,J171*T171,IF(T171=0,S171*J171,0))))","v":" "}]
[null,{"$f":"B32","v":" "},null,null,null,null,{"$f":"G146","v":" "},null,null,{"$f":"J146","v":" "},null,null,null,null,null,null,null,null,{"$f":"IF(P171=0,0,IF(VLOOKUP($V$1,Förderabwicklung_Form!$AX$5:$BW$18,4,2)=\" \",\" \",VLOOKUP($V$1,Förderabwicklung_Form!$AX$5:$BW$18,4,2)*P171))","v":0},null,null,false]
[null," ",null,null,null,null," ",null,null," ",null,null,null,null,null,null,null,null,{"$f":"IF(P172=0,0,IF(VLOOKUP($V$1,Förderabwicklung_Form!$AX$5:$BW$18,7,2)=\" \",\" \",VLOOKUP($V$1,Förderabwicklung_Form!$AX$5:$BW$18,7,2)*P172))","v":0},null,null,false,null,{"$f":"IF(AND(P172=0,T172=0),\" \",IF(AND(P172>0,T172>0),\"Kosten und Standardkosten ist falsch!\",IF(P172=0,J172*T172,IF(T172=0,S172*J172,0))))","v":" "},{"$f":"IF(AND(P172=0,T172=0),\" \",IF(AND(P172>0,T172>0),\"Kosten und Standardkosten ist falsch!\",IF(P172=0,J172*T172,IF(T172=0,S172*J172,0))))","v":" "}]
[null," ",null,null,null,null," ",null,null," ",null,null,null,null,null,null,null,null,{"$f":"IF(P173=0,\" \",IF(VLOOKUP($V$1,Förderabwicklung_Form!$AX$5:$BW$18,10,2)=\" \",\" \",VLOOKUP($V$1,Förderabwicklung_Form!$AX$5:$BW$18,10,2)*P173))","v":" "},null,null,false,null," "," "]
[null," ",null,null,null,null," ",null,null," ",null,null,null,null,null,null,null,null,{"$f":"IF(P174=0,0,IF(VLOOKUP($V$1,Förderabwicklung_Form!$AX$5:$BW$18,13,2)=\" \",\" \",VLOOKUP($V$1,Förderabwicklung_Form!$AX$5:$BW$18,13,2)*P174))","v":0},null,null,false,null," "," "]
[null," ",null,null,null,null," ",null,null," ",null,null,null,null,null,null,null,null,{"$f":"IF(P175=0,0,IF(VLOOKUP($V$1,Förderabwicklung_Form!$AX$5:$BW$18,16,2)=\" \",\" \",VLOOKUP($V$1,Förderabwicklung_Form!$AX$5:$BW$18,16,2)*P175))","v":0},null,null,false,null," "," "]
[null," ",null,null,null,null," ",null,null," ",null,null,null,null,null,null,null,null,{"$f":"IF(P176=0,0,IF(VLOOKUP($V$1,Förderabwicklung_Form!$AX$5:$BW$18,19,2)=\" \",\" \",VLOOKUP($V$1,Förderabwicklung_Form!$AX$5:$BW$18,19,2)*P176))","v":0},null,null,false,null," "," "]
[null," ",null,null,null,null," ",null,null," ",null,null,null,null,null,null,null,null,{"$f":"IF(P177=0,0,IF(VLOOKUP($V$1,Förderabwicklung_Form!$AX$5:$BW$18,22,2)=\" \",\" \",VLOOKUP($V$1,Förderabwicklung_Form!$AX$5:$BW$18,22,2)*P177))","v":0},null,null,false,null," "," "]
[null,"Kosten:  Beschreibung der Aktivitäten mit Kosten und Vergleichsangeboten ",null,null,null,null,null,null,null,null,null,null,null,null,null,"Summe:",null,null,{"$f":"SUM(S171:S177)","v":0},{"$f":"SUM(T171:T177)","v":0},null,null,null,{"$f":"SUM(X170:X177)","v":0},{"$f":"SUM(Y170:Y177)","v":0}]
[null,"Aktivität:",null,null,null,"Förderkulisse",null,"Beschreibung"]
[]
[null,{"$f":"IF(T170>0,B170,IF(T171>0,B171,IF(T172>0,B172,IF(T173>0,B173,IF(T174>0,B174,IF(T175>0,B175,IF(T176>0,B176,\" \")))))))","v":" "}]
[]
[]
[null,"Überprüfung  bezüglich Bewilligungscheckliste "]
[null,"Der teilnehmende Begünstigte ist als Förderungswerber in der entsprechenden VHA zugelassen."]
[null,"Die Projekt-Spezifikation entspricht bewilligten gem.Rahmenantrag (Auswahlkriterien)"]
[null,"Der Begünstigte steht mit dem Förderwerber in einer vertraglichen Beziehung (Mitgliedschaft)."]
[null,"Der Begünstigte hat eine schriftliche Ermächtigung zur Antragstellung (Beitrittserklärung) unterschrieben."]
[null,"Anmerkungen zur Prüfung Bewilligungscheckliste"]
[]
[]
[]
[]
[null,"                                                         Ort, Datum                                                                                  ",null,null,null,null,"   Unterschrift  Sachbearbeiter BST"]

{"sheet":"Förderabwicklung_Form","index":1,"n_rows":72,"n_cols":1769,"rows_kept":72,"cut":false,"hidden":false,"merged":[[5,8,5,13],[6,1,6,5],[6,6,6,7],[6,8,6,13],[8,3,8,7],[8,8,8,10],[1,41,1,43],[3,1,3,3],[3,4,3,7],[3,8,3,13],[3,39,4,41],[4,1,4,3],[4,4,4,7],[4,8,4,13],[1,21,1,26],[8,39,10,39],[9,3,9,4],[9,6,9,13],[10,3,10,4],[10,5,10,13],[19,1,19,13],[20,1,20,7],[20,8,20,11],[20,12,20,13],[17,8,17,12],[11,7,11,13],[11,5,11,6],[17,4,17,6],[13,12,13,13],[16,12,16,13],[16,8,16,11],[11,3,11,4],[15,8,15,11],[15,12,15,13],[15,3,15,7],[16,1,16,7],[13,3,13,4],[13,6,13,10],[14,3,14,5],[14,6,14,7],[14,8,14,13],[12,3,12,13],[24,1,24,10],[24,12,24,13],[25,1,25,10],[25,12,25,13],[26,1,26,10],[26,12,26,13],[21,1,21,10],[21,12,21,13],[22,1,22,10],[22,12,22,13],[23,1,23,10],[23,12,23,13],[36,6,36,12],[30,1,30,4],[30,5,30,13],[31,1,31,4],[31,5,31,13],[32,1,32,13],[33,1,33,13],[27,1,27,10],[27,12,27,13],[28,1,28,10],[28,12,28,13],[29,1,29,10],[29,12,29,13],[52,1,52,13],[53,1,53,4],[53,5,53,13],[54,1,54,4],[54,5,54,13],[47,1,47,4],[47,6,47,13],[48,1,48,2],[48,6,48,10],[48,11,48,12],[50,3,51,13],[50,1,51,1],[17,39,18,39],[44,1,44,4],[44,6,44,13],[45,1,45,4],[45,6,45,13],[46,1,46,4],[46,6,46,13],[41,1,41,4],[41,6,41,13],[42,1,42,4],[42,6,42,13],[43,1,43,4],[43,6,43,13],[37,1,37,4],[37,6,37,12],[38,1,38,4],[38,6,38,12],[40,6,40,12],[40,38,40,40],[34,1,34,4],[34,6,34,12],[35,1,35,4],[35,6,35,12],[36,1,36,4]]}
[3,null,null,null,null,null,null,null,1,2,null,null,1,null,null,null,null,null,null,null,null,null,null,null,null,null,null,null,null,null,null,null,null,null,null,null,null,null,null,null,null,null,null,null,null,null,null,null,null,null,null,null,null,null,null,null,null,null,null,null,null,null,null,null,null,null,null,null,null,null,null,null,null,null,null,null,null,null,null,null,null,null,null,null,null,null,null,null,null,null,null,null,null,null,null,null,null,null,null,null,null,null,null,null,null,null,null,null,null,null,null,null,null,null,null,null,null,null,null,null,null,null,null,null,null,null,null,null,null,null,null,null,null,null,null,null,null,null,null,null,null,null,null,null,null,null,null,null,null,null,null,null,null,null,null,null,null,null,null,null,null,null,null,null,null,null,null,null,null,null,null,null,null,null,null,null,null,null,null,null,null,null,null,null,null,null,null,null,null,null,null,null,null,null,null,null,null,null,null,null,null,null,null,null,null,null,null,null,null,null,null,null,null,null,null,null,null,null,null,null,null,null,null,null,null,null,null,null,null,null,null,null,null,null,null,null,null,null,null,null,null,null,null,null,null,null,null,null,null,null,null,null,null,null,null,null,null,null,null,null,null,null,null,null,null,null,null,null,null,null,null,null,null,null,null,null,null,null,null,null,null,null,null,null,null,null,null,null,null,null,null,null,null,null,null,null,null,null,null,null,null,null,null,null,null,null,null,null,null,null,null,null,null,null,null,null,null,null,null,null,null,null,null,null,null,null,null,null,null,null,null,null,null,null,null,null,null,null,null,null,null,null,null,null,null,null,null,null,null,null,null,null,null,null,null,null,null,null,null,null,null,null,null,null,null,null,null,null,null,null,null,null,null,null,null,null,null,null,null,null,null,null,null,null,null,null,null,null,null,null,null,null,null,null,null,null,null,null,null,null,null,null,null,null,null,null,null,null,null,null,null,null,null,null,null,null,null,null,null,null,null,null,null,null,null,null,null,null,null,null,null,null,null,null,null,null,null,null,null,null,null,null,null,null,null,null,null,null,null,null,null,null,null,null,null,null,null,null,null,null,null,null,null,null,null,null,null,null,null,null,null,null,null,null,null,null,null,null,null,null,null,null,null,null,null,null,null,null,null,null,null,null,null,null,null,null,null,null,null,null,null,null,null,null,null,null,null,null,null,null,null,null,null,null,null,null,null,null,null,null,null,null,null,null,null,null,null,null,null,null,null,null,null,null,null,null,null,null,null,null,null,null,null,null,null,null,null,null,null,null,null,null,null,null,null,null,null,null,null,null,null,null,null,null,null,null,null,null,null,null,null,null,null,null,null,null,null,null,null,null,null,null,null,null,null,null,null,null,null,null,null,null,null,null,null,null,null,null,null,null,null,null,null,null,null,null,null,null,null,null,null,null,null,null,null,null,null,null,null,null,null,null,null,null,null,null,null,null,null,null,null,null,null,null,null,null,null,null,null,null,null,null,null,null,null,null,null,null,null,null,null,null,null,null,null,null,null,null,null,null,null,null,null,null,null,null,null,null,null,null,null,null,null,null,null,null,null,null,null,null,null,null,null,null,null,null,null,null,null,null,null,null,null,null,null,null,null,null,null,null,null,null,null,null,null,null,null,null,null,null,null,null,null,null,null,null,null,null,null,null,null,null,null,null,null,null,null,null,null,null,null,null,null,null,null,null,null,null,null,null,null,null,null,null,null,null,null,null,null,null,null,null,null,null,null,null,null,null,null,null,null,null,null,null,null,null,null,null,null,null,null,null,null,null,null,null,null,null,null,null,null,null,null,null,null,null,null,null,null,null,null,null,null,null,null,null,null,null,null,null,null,null,null,null,null,null,null,null,null,null,null,null,null,null,null,null,null,null,null,null,null,null,null,null,null,null,null,null,null,null,null,null,null,null,null,null,null,null,null,null,null,null,null,null,null,null,null,null,null,null,null,null,null,null,null,null,null,null,null,null,null,null,null,null,null,null,null,null,null,null,null,null,null,null,null,null,null,null,null,null,null,null,null,null,null,null,null,null,null,null,null,null,null,null,null,null,null,null,null,null,null,null,null,null,null,null,null,null,null,null,null,null,null,null,null,null,null,null,null,null,null,null,null,null,null,null,null,null,null,null,null,null,null,null,null,null,null,null,null,null,null,null,null,null,null,null,null,null,null,null,null,null,null,null,null,null,null,null,null,null,null,null,null,null,null,null,null,null,null,null,null,null,null,null,null,null,null,null,null,null,null,null,null,null,null,null,null,null,null,null,null,null,null,null,null,null,null,null,null,null,null,null,null,null,null,null,null,null,null,null,null,null,null,null,null,null,null,null,null,null,null,null,null,null,null,null,null,null,null,null,null,null,null,null,null,null,null,null,null,null,null,null,null,null,null,null,null,null,null,null,null,null,null,null,null,null,null,null,null,null,null,null,null,null,null,null,null,null,null,null,null,null,null,null,null,null,null,null,null,null,null,null,null,null,null,null,null,null,null,null,null,null,null,null,null,null,null,null,null,null,null,null,null,null,null,null,null,null,null,null,null,null,null,null,null,null,null,null,null,null,null,null,null,null,null,null,null,null,null,null,null,null,null,null,null,null,null,null,null,null,null,null,null,null,null,null,null,null,null,null,null,null,null,null,null,null,null,null,null,null,null,null,null,null,null,null,null,null,null,null,null,null,null,null,null,null,null,null,null,null,null,null,null,null,null,null,null,null,null,null,null,null,null,null,null,null,null,null,null,null,null,null,null,null,null,null,null,null,null,null,null,null,null,null,null,null,null,null,null,null,null,null,null,null,null,null,null,null,null,null,null,null,null,null,null,null,null,null,null,null,null,null,null,null,null,null,null,null,null,null,null,null,null,null,null,null,null,null,null,null,null,null,null,null,null,null,null,null,null,null,null,null,null,null,null,null,null,null,null,null,null,null,null,null,null,null,null,null,null,null,null,null,null,null,null,null,null,null,null,null,null,null,null,null,null,null,null,null,null,null,null,null,null,null,null,null,null,null,null,null,null,null,null,null,null,null,null,null,null,null,null,null,null,null,null,null,null,null,null,null,null,null,null,null,null,null,null,null,null,null,null,null,null,null,null,null,null,null,null,null,null,null,null,null,null,null,null,null,null,null,null,null,null,null,null,null,null,null,null,null,null,null,null,null,null,null,null,null,null,null,null,null,null,null,null,null,null,null,null,null,null,null,null,null,null,null,null,null,null,null,null,null,null,null,null,null,null,null,null,null,null,null,null,null,null,null,null,null,null,null,null,null,null,null,null,null,null,null,null,null,null,null,null,null,null,null,null,null,null,null,null,null,null,null,null,null,null,null,null,null,null,null,null,null,null,null,null,null,null,null,null,null,null,null,null,null,null,null,null,null,null,null,null,null,null,null,null,null,null,null,null,null,null,null,null,null,null,null,null,null,null,null,null,null,null,null,null,null,null,null,null,null,null,null,null,null,null,null,null,null,null,null,null,null,null,null,null,null,null,null,null,null,null,null,null,null,null,null,null,null,null,null,null,null,null,null,null,null,null,null,null,null,null,null,null,null,null,null,null,null,null,null,null,null,null,null,null,null,null,null,null,null,null,null,null,null,null,null,null,null,null,null,null,null,null,null,null,null,null,null,null,null,null,null,null,null,null,null,null,null,null,null,null,null,null,null,null,null,null,null,null,null,null,null,null,null,null,null,null,null,null,null,null,null,null,null,null,null,null,null,null,null,null,null,null,null,null,null,null,null,null,null,null,null,null,null,null,null,null,null,null,null,null,null,null,null,null,null,null,null,null,null,null,null,null,null,null,null,null,null,null,null,null,null,null,null,null,null,null,null,null,null,null,null,null,null,null,null,null,null,null,null,null,null,null,null,null,null,null,null,null,null,null,null,null,null,null,null,null,null,null,null,null,null,null,null,null,null,null,null,null,null,null,null,null,null,null,null,null,null,null,null,null,null,null,null,null,null,null,null,null,null,null,null,null,null,null,null,null,null,null,null,null,null,null,null,null,null,null,null,null,null,null,null,null,null,null,null,1]
[0,null,null,null,null,null,null,null,null,"m1=Auswahlkrit. Wählen",null,null,null,null,null,null,null,null,null,null,null,null,null,null,null,null,null,null,null,null,null,null,null,null,null,null,null,null,null,null,null,null,null,null,null,null,null,null,null,null,null,null,null,null,null,null,null,null,null,null,null,null,null,null,null,null,null,null,null,null,null,null,null,null,null,null,null,null,null,null,null,null,null,null,null,null,null,null,null,null,null,null,null,null,1,"Aktivitäten"]
[null,null,null,null,null,null,null,null,null,null,null,null,null,null,null,null,null,null,null,null,null,null,null,null,null,null,null,null,null,null,null,null,null,null,null,null,null,null,null,null,null,null,null,null,null,null,null,null,null,null,null,null,null,null,null,null,null,null,null,null,null,null,null,null,null,null,null,null,null,null,null,null,null,null,null,null,null,null,null,null,null,null,null,null,null,null,null,null,null,null,2,"JUNGBESTANDSPFLEGE",null,null,2,{"$f":"IF(CQ3=CM3,CN3,\" \")","v":"JUNGBESTANDSPFLEGE"}]
[null,"Einreichstelle:",null,null,"Eingangsvermerk: ",null,null,null,"FAI Antragsnummer:",null,null,null,null,null,null,null,null,null,null,null,null,null,null,null,null,null,null,null,null,null,null,null,null,null,null,null,null,null,null,"zuerst Bezirk auswählen dann Gemeinde, BFI",null,null,null,null,null,null,null,null,null,null,null,null,null,null,null,null,null,null,null,null,null,null,null,null,null,null,null,null,null,null,null,null,null,null,null,null,null,null,null,null,null,null,null,null,null,null,null,null,null,null,3,"DURCHFORSTUNG mit Seil",null,null,{"$f":"CM4","v":3},{"$f":"IF(CQ4=CM4,CN4,\" \")","v":"DURCHFORSTUNG mit Seil"}]
[null,null,null,null,null,null,null,null,null,null,null,null,null,null,null,null,null,null,null,null,null,null,null,null,null,null,null,null,null,null,null,null,null,null,null,null,null,null,null,null,null,null,null,{"$f":"B22","v":0},null,null,{"$f":"IF(AR5=AY6,AX6,IF(AR5=AY7,AX7,IF(AR5=AY8,AX8,IF(AR5=AY9,AX9,IF(AR5=AY10,AX10,IF(AR5=AY11,AX11,IF(AR5=AY12,AX12,IF(AR5=AY13,AX13,IF(AR5=AY14,AX14,IF(AR5=AY15,AX15,IF(AR5=#REF!,#REF!,IF(AR5=AY16,AX173,IF(AR5=AY18,AX18,\" \")))))))))))))","v":{"$error":"#REF!"}},null,null,1,"Bitte Aktivität wählen:","Einzelaktivität","Standard1","Einheit","Einzelaktivität","Standard1","Einheit","Einzelaktivität","Standard1","Einheit","Einzelaktivität","Standard1","Einheit","Einzelaktivität","Standard1","Einheit","Einzelaktivität","Standard1","Einheit","Einzelaktivität","Standard1","Einheit","Verpflichtungszeitraum","EV WW","EV SW",null,null,null,null,null,null,null,null,null,null,null,null,null,null,null,4,"DURCHFORSTUNG ohne Seil",null,null,{"$f":"CM5","v":4},{"$f":"IF(CQ5=CM5,CN5,\" \")","v":"DURCHFORSTUNG ohne Seil"}]
[null,null,null,null,null,null,null,null,null,null,null,null,null,null,null,null,null,null,null,null,null,null,null,null,null,null,null,null,null,null,null,null,null,null,null,null,null,null,null,null,null,null,null,{"$f":"B23","v":0},null,null,{"$f":"IF(AR6=AY6,AX6,IF(AR6=AY7,AX7,IF(AR6=AY8,AX8,IF(AR6=AY9,AX9,IF(AR6=AY10,AX10,IF(AR6=AY11,AX11,IF(AR6=AY12,AX12,IF(AR6=AY13,AX13,IF(AR6=AY14,AX14,IF(AR6=AY15,AX15,IF(AR6=#REF!,#REF!,IF(AR6=AY16,AX16,IF(AR6=AY18,AX174,IF(AR6=AY19,AX19,\" \"))))))))))))))","v":{"$error":"#REF!"}},null,null,2,"JUNGBESTANDSPFLEGE","S2, S3: Jungbestandsplege bis 10 m Höhe",750,"ha","sonstiger Wald: Jungbestandspflege bis 10 m Höhe",750,"ha","-","-","-","-","-","-","-","-","-","-","-","-","-","-","-","-","-","-",null,null,null,null,null,null,null,null,null,null,null,null,null,null,null,5,"VERJÜNGUNGSEINLEITUNG incl. BRINGUNG, RÜCKUNG",null,null,{"$f":"CM6","v":5},{"$f":"IF(CQ6=CM6,CN6,\" \")","v":"VERJÜNGUNGSEINLEITUNG incl. BRINGUNG, RÜCKUNG"}]
[null,"FORST PROJEKT - Spezifikation  VHA 8.5.1 (Waldbau)",null,null,null,null,"BFI / Gemeinde: ",null,null,null,null,null,null,null,null,null,null,null,null,null,null,null,null,null,null,null,null,null,null,null,null,null,null,null,null,null,null,null,null,null,null,null,null,{"$f":"B24","v":0},null,null,{"$f":"IF(AR7=AY6,AX6,IF(AR7=AY7,AX7,IF(AR7=AY8,AX8,IF(AR7=AY9,AX9,IF(AR7=AY10,AX10,IF(AR7=AY11,AX11,IF(AR7=AY12,AX12,IF(AR7=AY13,AX13,IF(AR7=AY14,AX14,IF(AR7=AY15,AX15,IF(AR7=#REF!,#REF!,IF(AR7=AY16,AX16,IF(AR7=AY18,AX18,IF(AR7=AY19,AX175,IF(AR7=AY20,AX20,\" \")))))))))))))))","v":{"$error":"#REF!"}},null,null,3,"DURCHFORSTUNG mit Seil","S2, S3, Dfstg. 10-20 m Höhe ",1440,"ha","S2, S3 Dfstg. 10-20 m Höhe ",36,"fm","sonst. Wald Dfstg. 10-20 m Höhe ",1440,"ha","sonstiger Wald: Dfstg. 10-20 m Höhe ",36,"fm","-","-","-","-","-","-","-","-","-","-","-","-",null,null,null,null,null,null,null,null,null,null,null,null,null,null,null,6,"Vorbereitung (Bodenbearbeitung, Mulchen, Düngung)",null,null,{"$f":"IF(A0_Detail!$AY$59=1,\" \",Förderabwicklung_Form!CM7)","v":6},{"$f":"IF(CQ7=CM7,CN7,\" \")","v":"Vorbereitung (Bodenbearbeitung, Mulchen, Düngung)"}]
[null,null,null,null,null,null,null,null,null,null,null,null,null,null,null,null,null,null,null,null,null,null,null,null,null,null,null,null,null,null,null,null,null,null,null,null,null,null,null,null,null,null,null,{"$f":"B25","v":0},null,null,{"$f":"IF(AR8=AY6,AX6,IF(AR8=AY7,AX7,IF(AR8=AY8,AX8,IF(AR8=AY9,AX9,IF(AR8=AY10,AX10,IF(AR8=AY11,AX11,IF(AR8=AY12,AX12,IF(AR8=AY13,AX13,IF(AR8=AY14,AX14,IF(AR8=AY15,AX15,IF(AR8=#REF!,#REF!,IF(AR8=AY16,AX16,IF(AR8=AY18,AX18,IF(AR8=AY19,AX19,IF(AR8=AY20,AX176,IF(AR8=AY21,AX21,\" \"))))))))))))))))","v":{"$error":"#REF!"}},null,null,4,"DURCHFORSTUNG ohne Seil","S2, S3, Dfstg. 10-20 m Höhe ",750,"ha","S2, S3 Dfstg. 10-20 m Höhe ",18.75,"fm","sonst. Wald Dfstg. 10-20 m Höhe ",750,"ha","sonstiger Wald: Dfstg. 10-20 m Höhe ",18.75,"fm","-","-","-","-","-","-","-","-","-","-","-","-",null,null,null,null,null,null,null,null,null,null,null,null,null,null,null,7,"Aufforstung/Bestandesumbau incl. Ergänzung von Naturverjüngung",null,null,{"$f":"IF(A0_Detail!$AY$59=1,\" \",Förderabwicklung_Form!CM8)","v":7},"Aufforstung/Bestandesumbau incl. Ergänzung von Naturverjüngung"]
[null,"örtl. Bezeichnung: ",null,null,null,null,null,null,"Zeitplan:",null,null,null,"-",null,null,null,null,null,null,null,null,null,null,null,null,null,null,null,null,null,null,null,null,null,null,null,null,null,null,"Um die  Eingabemeldungen in den jeweiligen Zellen, auszublenden: Bitte die Taste ESCAPE drücken!\nGelb unterlegt mit roter Schrift: AKTION AKTIV",null,null,null,null,null,null,null,null,null,5,"VERJÜNGUNGSEINLEITUNG incl. BRINGUNG, RÜCKUNG","S2, S3: Fm_Pauschalkosten mit Seil ",19.8,"fm","sonstiger Wald: Fm_Pauschalkosten mit Seil ",19.8,"fm","-","-","-","-","-","-","-","-","-","-","-","-","-","-","-","-","-","-",null,null,null,null,null,null,null,null,null,null,null,null,null,null,null,8,"SW Aufforstung /SW Bestandesumbau incl. Ergänzung von Naturverjüngung",null,null,{"$f":"IF(A0_Detail!$AY$59=1,\" \",Förderabwicklung_Form!CM9)","v":8},"SW Aufforstung /SW Bestandesumbau incl. Ergänzung von Naturverjüngung"]
[null,"Projekt _KG I :",null,null,null,"Grdst.",null,null,null,null,null,null,null,null,null,null,null,null,null,null,null,null,null,null,null,null,null,null,null,null,null,null,null,null,null,null,null,null,null,null,null,null,null,null,null,null,null,null,null,6,"Vorbereitung (Bodenbearbeitung, Mulchen, Düngung)","s2, S3: Bodenbearbeitung",700,"ha","S2, S3:  Mulchen",1300,"ha","S2, S3: Düngung","Kosten",null,"Sonst. Wald  Bodenbearbeitung",700,"ha","sonst. Wald Mulchen",1300,"ha","Sonst. Wald  Düngung:","Kosten",null,"-","-","-","-","-","-",null,null,null,null,null,null,null,null,null,null,null,null,null,null,null,9,"Unterbau",null,null,{"$f":"IF(A0_Detail!$AY$59=1,\" \",Förderabwicklung_Form!CM10)","v":9},"Unterbau"]
[null,"Beilagen:",null,"bei Rahmenanträgen:\nMitgliedsnachweis\nnachweis     ",null,null,null,null,null,null,null,null,null,null,null,"alle waldbaulichen Maßnahmen auswählbar und bei den Detailplanungen Standardtext 'Projektbausteine' und 'Kostendarstellung' eingeblendet, = \"STANDARDEINSTELLUNG\"","Standardtext 'Projektbausteine' aus- und 'Kostendarstellung' eingeblendet = \"VARIANTE\"","nur Verjüngungseinleitung und Waldpflege auswählbar und bei den Detailplanungen Standardtext 'Projektbausteine' ein- aber 'Kostendarstellung' ausgeblendet = \"VARIANTE\"",null,null,true,null,null,null,null,null,null,null,null,null,null,null,null,null,null,null,null,null,null,null,null,null,null,null,null,null,null,null,null,7,"Aufforstung/Bestandesumbau incl. Ergänzung von Naturverjüngung","Fichten Auff. incl. Erg. NV",1.1000000000000001,"Stück","Aufforstung sonst. Nadelholz (z.B. Lä)",1.65,"Stück","Aufforstung Laubholz + Tanne",2,"Stück","Aufforstung Sträucher",2.33,"Stück","Aufforstung Zirbe ",2.7,"Stück","-","-","-","-","-","-","-","-","-",null,null,null,null,null,null,null,null,null,null,null,null,null,null,null,10,"Kontrollzaun",null,null,{"$f":"IF(A0_Detail!$AY$59=1,\" \",Förderabwicklung_Form!CM11)","v":10},"Kontrollzaun"]
[null,null,null,null,null,null,null,null,null,null,null,null,null,null,null,"Text 'Projketbausteine' und 'Kostendarstellung' eingeblendet, = STANDARDEINSTELLUNG\";WENN(Q18=WAHR;\"Standard-","Text 'Projketbausteine' aus- und 'Kostendarstellung' eingeblendet = VARIANTE",null,null,null,false,null,null,null,null,null,null,null,null,null,null,null,null,null,null,null,null,null,null,null,null,null,null,null,null,null,null,null,null,8,"SW Aufforstung /SW Bestandesumbau incl. Ergänzung von Naturverjüngung","S2, S3: Fichten Auff. incl. Erg. NV",1.1000000000000001,"Stück","Aufforstung sonst. Nadelholz (z.B. Lä)",1.65,"Stück","Aufforstung Laubholz + Tanne",2,"Stück","S2, S3: Aufforstung Sträucher",2.33,"Stück","Aufforstung Zirbe ",2.7,"Stück","-","-","-","-","-","-","-","-","-",null,null,null,null,null,null,null,null,null,null,null,null,null,null,null,11,"Schutz der Verjüngung gegen Schneeschub",null,null,{"$f":"IF(A0_Detail!$AY$59=1,\" \",Förderabwicklung_Form!CM12)","v":11},"Schutz der Verjüngung gegen Schneeschub"]
[null,{"$f":"IF(OR(S13=4,R13=3),\"RAHMENANTRAG oder Arbeitsgemeinschaft mit mehreren Begünstigten:\",\"EINZELANTRAG\")","v":"EINZELANTRAG"},null,{"$f":"IF(OR(P13=1,S13=4),P11,IF(Q13=2,Q11,IF(R13=3,R11,\" \")))","v":"alle waldbaulichen Maßnahmen auswählbar und bei den Detailplanungen Standardtext 'Projektbausteine' und 'Kostendarstellung' eingeblendet, = \"STANDARDEINSTELLUNG\""},null,null,null,null,null,null,null,null,null,null,null,1," "," "," ",null,null,null,null,null,null,null,null,null,null,null,null,null,null,null,null,null,null,null,null,null,null,null,null,null,null,null,null,null,null,9,"Unterbau","Fichten Auff. incl. Erg. NV",1.1000000000000001,"Stück","Aufforstung sonst. Nadelholz (z.B. Lä)",1.65,"Stück","Aufforstung Laubholz + Tanne",2,"Stück","Aufforstung Sträucher",2.33,"Stück","Aufforstung Zirbe ",2.7,"Stück","-","-","-","-","-","-","-","-","-",null,null,null,null,null,null,null,null,null,null,null,null,null,null,null,12,"Bermen",null,null,{"$f":"IF(A0_Detail!$AY$59=1,\" \",Förderabwicklung_Form!CM13)","v":12},"Bermen"]
[null,"ANTRAGSTELLER: Name, Vorname",null,null,null,"Anschrift",null,null,null,null,null,"AMA Be-triebs Nr.:",null,null,null," Mitgliedsnachweis für Teilnahme am Fördervorhaben ist vorhanden!","Ist Mitgliedsnachweis für Teilnahme am Fördervorhaben vorhanden (BEILAGE bitte ja/nein klicken)"," Mitgliedsnachweis für Teilnahme am Fördervorhaben ist NICHT vorhanden!",null,null,null,null,null,null,null,null,null,null,null,null,null,null,null,null,null,null,null,null,null,null,null,null,null,null,null,null,null,null,null,10,"Kontrollzaun","S2, S3: Pauschalkosten",368,"Stk","sonstiger wald: Pauschalkosten",368,"Stk","-","-","-","-","-","-","-","-","-","-","-","-","-","-","-","-","-","-",null,null,null,null,null,null,null,null,null,null,null,null,null,null,null,13,"Einfache technische Werke",null,null,{"$f":"IF(A0_Detail!$AY$59=1,\" \",Förderabwicklung_Form!CM14)","v":13},"Einfache technische Werke"]
[null,"PLZ Wohngemeinde:",null,null,null,null,"Gemeinde nicht im BL:",null,null,null,null,null,null,null,null,true,false,false,null,null,null,null,null,null,null,null,null,null,null,null,null,null,null,null,null,null,null,null,null,null,null,null,null,null,null,null,null,null,null,11,"Schutz der Verjüngung gegen Schneeschub","S2, S3:  Schutzprojekt","Kosten","-","-","-","-","-","-","-","-","-","-","-","-","-","-","-","-","-","-","-","-","-","-",null,null,null,null,null,null,null,null,null,null,null,null,null,null,null,14,"Querfällung, Verankerung",null,null,{"$f":"IF(A0_Detail!$AY$59=1,\" \",Förderabwicklung_Form!CM15)","v":14},"Querfällung, Verankerung"]
[null,"Mitglied_ Name, Vorname:",null,null,null,null,null,null,"Geburtsdatum:",null,null,null,null,null,null,"<50",">=50",">=100",">=200",">=1000",null,null,null,null,null,null,null,null,null,null,null,null,null,null,null,null,null,null,null,null,null,null,null,null,null,null,null,null,null,12,"Bermen","S2, S3:  Bermenprojekt","Kosten","-","-","-","-","-","-","-","-","-","-","-","-","-","-","-","-","-","-","-","-","-","-"]
[null,{"$f":"IF(P18=TRUE,P14,IF(Q18=TRUE,R14,Q14))","v":"Ist Mitgliedsnachweis für Teilnahme am Fördervorhaben vorhanden (BEILAGE bitte ja/nein klicken)"},null,null,null,null,null,null,"AMA Betriebs Nr.:",null,null,null,null,null,null,true,null,true,null,null,null,null,null,null,null,null,null,null,null,null,null,null,null,null,null,null,null,null,null,null,null,null,null,null,null,null,null,null,null,13,"Einfache technische Werke","S2, S3:  Holzböcke  ","Kosten","-","S2, S3: Krainerwerke","Kosten","-","-","-","-","-","-","-","-","-","-","-","-","-","-","-","-","-","-","-"]
[null,"Gebietskörperschaft: Anteil %",null,null,"Gesamtbesitz_Waldfläche  >100 ha:",null,null,null,"Betriebsgöße ( ha):",null,null,null,null,null,null,false,false,false,false,null,null,null,null,null,null,null,null,null,null,null,null,null,null,null,null,null,null,null,null,null,{"$f":"IF(A0_Detail!AY58=1,TRUE,\" \")","v":" "},null,null,null,null,null,null,null,null,14,"Querfällung, Verankerung","S2, S3 Fällen und Baumverlegung ",146,"Baum","-","-","-","-","-","-","-","-","-","-","-","-","-","-","-","-","-","-","-","-","-"]
[null,null,null,null,null,null,null,null,null,null,null,null,null,null,null,false,0,null,null,null,null,null,null,null,null,null,null,null,null,null,null,null,null,null,null,null,null,null,null,null,{"$f":"IF(A0_Detail!AY59=1,TRUE,\" \")","v":" "}]
[null,null,null,null,null,null,null,null,null,null,null,null,null,null,null,null,0,null,null,null,null,null,null,null,null,null,null,null,null,null,null,null,null,null,null,null,null,null,null,null,{"$f":"IF(A0_Detail!AY60=1,TRUE,\" \")","v":true},null,null,null,null,null,null,null,null,1,"Projektbeschreibung: Textbausteine","-","-","-","-","-","-","-","-","-","-","-"]
[null,"Maßnahmenplanung:  Aktivitäten 1-8: ",null,null,null,null,null,null,"    Detailplanung A1-A8",null,null,null,"Kosten €",null,null,null,0,null,null,null,null,null,null,null,null,null,null,null,null,null,null,null,null,null,null,null,null,null,null,"Förderungsberechnung:",null,null,null,null,null,null,null,null,null,2,"JUNGBESTANDSPFLEGE","AUSGANGSLAGE:  der zu pflegende Bestand befindet sich in einer Seehöhe (m) / mit Hangneigung (%) / Hauptexposition von:","folgende Baumartenmmischung ist gegeben (Angabe in 1/10) ","Die Gefahr des Verlustes der biologioschen Vielfalt ist gegeben (ja/nein)","Eine Unterlassung der Aktivität würde zur Stabilitätsgefährdung führen und daher sind Pflegemaßnahmen zur Auflockerung des Dichtstandes notwendig: (ja / nein)","Die Baumarten stehen in starker Konkurrenz hinsichtlich Nährstoff- und Wasserversorgung und bedürfen daher einer dringlichen Standraumregulierung : (ja/nein)","-","ZIELSETZUNG:  Pflegemaßnahmen zur Stabilisierung  des heranwachsenden Waldbestandes bzw. der vorhandenen Verjüngung um die ökologischen, gesellschaftlichen und/oder schutzwirksamen Wirkungen des Waldes mittel- bis langfristig zu verbessern.","BEDINGUNGEN: Oberhöhe max.. (10 m ), Eingriff in das Kronendach, Begünstigung ökologisch wertvoller Mischbaumarten, Belassen der Grünbiomasse (Wipfel) am Durchforstungsort","-"]
[null,null,null,null,null,null,null,null,null,null,null,null,null,null,null,{"$f":"IF(B22=CR4,CQ4,IF(B22=CR5,CQ5,IF(B22=CR6,CQ6,IF(B22=CR7,CQ7,IF(B22=CR8,CQ8,IF(B22=CR9,CQ9,IF(B22=CR10,CQ10,IF(B22=CR11,CQ11,IF(B22=CR12,CQ12,IF(B22=CR13,CQ13,IF(B22=CR14,CQ14,\" \")))))))))))","v":" "},null,null,null,"Siedlung ","Infrastruktur ","Betriebs STO ","Einzelobjekt ","keine",null,null,null,null,null,null,null,null,null,null,null,null,null,null,null,null,null,null,null,null,null,null,null,null,null,3,"DURCHFORSTUNG mit Seil","AUSGANGSLAGE:  der zu pflegende Bestand befindet sich einer Seehöhe (m) / mit Hangneigung (%) / Hauptexposition von:","folgende Baumartenmmischung ist gegeben (Angabe in 1/10)","Eine Unterlassung der Aktivität würde zur Stabilitätsgefährdung führen und daher sind Durchforstungsmaßnahmen zur Auflockerung des Dichtstandes notwendig: (ja/nein)","Es sind Vorschäden vorhanden durch: (Schälung,Steinschlag,Rückung,Schneebruch,sonstige)","Die Baumarten stehen in starker Konkurrenz hinsichtlich Nährstoff- und Wasserversorgung und bedürfen daher einer Standraumregulierung (sehr dringend, innerhalb der nächsten 7 Jahre)","-","ZIELSETZUNG:  Pflegemaßnahmen zur Stabilisierung  des heranwachsenden Waldbestandes bzw. der vorhandenen Verjüngung um die ökologischen, gesellschaftlichen und/oder schutzwirksamen Wirkungen des Waldes mittel- bis langfristig zu verbessern.","BEDINGUNGEN:  Oberhöhe >10 m bis max.. 20 m), Eingriff in das Kronendach, Begünstigung ökologisch wertvoller Mischbaumarten, Belassen der Grünbiomasse (Wipfel, Grobastung) am Durchforstungsort","-"]
[null,null,null,null,null,null,null,null,null,null,null,null,null,null,null,{"$f":"IF(B23=CR4,CQ4,IF(B23=CR5,CQ5,IF(B23=CR6,CQ6,IF(B23=CR7,CQ7,IF(B23=CR8,CQ8,IF(B23=CR9,CQ9,IF(B23=CR10,CQ10,IF(B23=CR11,CQ11,IF(B23=CR12,CQ12,IF(B23=CR13,CQ13,IF(B23=CR14,CQ14,\" \")))))))))))","v":" "},null,1,{"$f":"IF(R24<>R27,\"\",\"Auswahlkriterien\")","v":"Auswahlkriterien"},null,null,null,null,null,null,null,null,null,null,null,null,null,null,null,null,null,null,null,null,null,null,null,null,null,null,null,null,null,null,4,"DURCHFORSTUNG ohne Seil","AUSGANGSLAGE:  der zu pflegende Bestand befindet sich einer Seehöhe (m) / mit Hangneigung (%) / Hauptexposition von:","folgende Baumartenmmischung ist gegeben (Angabe in 1/10)","Eine Unterlassung der Aktivität würde zur Stabilitätsgefährdung führen und daher sind Durchforstungsmaßnahmen zur Auflockerung des Dichtstandes notwendig: (ja/nein)","Es sind Vorschäden vorhanden durch: (Schälung,Steinschlag,Rückung,Schneebruch,sonstige)","Die Baumarten stehen in starker Konkurrenz hinsichtlich Nährstoff- und Wasserversorgung und bedürfen daher einer Standraumregulierung (sehr dringend, innerhalb der nächsten 7 Jahre)","-","ZIELSETZUNG:  Pflegemaßnahmen zur Stabilisierung  des heranwachsenden Waldbestandes bzw. der vorhandenen Verjüngung um die ökologischen, gesellschaftlichen und/oder schutzwirksamen Wirkungen des Waldes mittel- bis langfristig zu verbessern.","BEDINGUNGEN:  Oberhöhe >10 m bis max.. 20 m), Eingriff in das Kronendach, Begünstigung ökologisch wertvoller Mischbaumarten, Belassen der Grünbiomasse (Wipfel, Grobastung) am Durchforstungsort","-"]
[null,null,null,null,null,null,null,null,null,null,null,null,null,null,null,{"$f":"IF(B24=CR4,CQ4,IF(B24=CR5,CQ5,IF(B24=CR6,CQ6,IF(B24=CR7,CQ7,IF(B24=CR8,CQ8,IF(B24=CR9,CQ9,IF(B24=CR10,CQ10,IF(B24=CR11,CQ11,IF(B24=CR12,CQ12,IF(B24=CR13,CQ13,IF(B24=CR14,CQ14,\" \")))))))))))","v":" "},null,2,{"$f":"IF(R24<>R27,\" Auswahlkriterien\",IF(R24=R27,T24,\" \"))","v":"Waldbau 8.5.1 FG 1,2,4"},"Waldbau 8.5.1 FG 1,2,4",null,null,{"$f":"S24","v":"Waldbau 8.5.1 FG 1,2,4"},null,null,null,null,null,null,null,null,null,null,null,null,null,null,null,null,null,null,null,null,null,null,null,null,null,null,5,"VERJÜNGUNGSEINLEITUNG incl. BRINGUNG, RÜCKUNG","AUSGANGSLAGE:  der zu verjüngende Bestand befindet sich in einer Seehöhe (m) / mit Hangneigung (%) / Hauptexposition von:","die durchschnittliche Überschirmung ist (Angabe in 1/10):","Die überwiegende Bestandealtersklasse ist: (Baumh./Alth.)","Die aktuellen Bestandesverhältnisse sind hinsichtlich der Maßnahmenzielsetzung (Altersaufbau, Bestandesmischung): (günstig/ungünstig)","Es sind Verjüngungsansätze vorhanden: (ja/nein)","-","MASSNAHMENZIELSETZUNG:  Altholzabbau zur Förderung der zu erwartenden bzw. vorhandenen Verjüngung um die ökologischen, gesellschaftlichen und/oder schutzwirksamen Wirkungen des Waldes mittel- bis langfristig zu verbessern.","BEDINGUNG: Verjüngungsvefahren: Kahlfläche, Femelung  max. 0,3 ha / Einzelstammentnahme und Belassen von Grünbiomasse am Schlagort (Wipfelstücke, Grobentastung). Mit derselben Seilaufstellung darf keine Kahlfläche >0,3 ha verbunden sein. Das Aufkommen von Mischbaumarten ist zu erwarten","-","-","-","-"]
[null,null,null,null,null,null,null,null,null,null,null,null,null,null,null,{"$f":"IF(B25=CR4,CQ4,IF(B25=CR5,CQ5,IF(B25=CR6,CQ6,IF(B25=CR7,CQ7,IF(B25=CR8,CQ8,IF(B25=CR9,CQ9,IF(B25=CR10,CQ10,IF(B25=CR11,CQ11,IF(B25=CR12,CQ12,IF(B25=CR13,CQ13,IF(B25=CR14,CQ14,\" \")))))))))))","v":" "},null,3,{"$f":"IF(R25=R27,T25,\" \")","v":" "},"Waldbau 8.5.1 FG 3",null,null,null,null,null,null,null,null,null,null,null,null,null,null,null,null,null,null,null,null,null,null,null,null,null,null,null,null,null,6,"Vorbereitung (Bodenbearbeitung, Mulchen, Düngung)","AUSGANGSLAGE: Der Bestand für den die Bodenvorbereitungen erforderlich sind befindet sich in einer Seehöhe (m) / mit Hangneigung (%) / Hauptexposition von:","Angabe der Baumarten des Bestandes (Angabe in 1/10)","Die überwiegende Bestandealtersklasse ist: (Jug. / Dickung / Stgh. / Baumh. / Alth. /Überh.)","Die dzt. Vegetationdichte am Waldbodens ist: stark mäßig/ gering) ","Die Bearbeitung ist durch plätzeweise bis kleinflächige Durchmischung  des Waldbodens erforderlich (ja/nein)","-","ZIELSETZUNG: Durch die Bodendurchmischung wird verjüngungshemmende Vegetation beseitigt, damit wird die Verjüngung gefördert, sodass sich der Bestand mit möglichst autochthonem und bewährtem Genmaterial fortpflanzen kann. Waldbauliche Risiokominimierung!","BEDINGUNG: forstfachliches Gutachten der Behörde über die Notwendigkeit und Sinnhaftigkeit der Maßnahme; Förderung der ankommenden Naturverjüngung durch Ausdünnen und Erhaltung der Baumartenmischung","-"]
[null,null,null,null,null,null,null,null,null,null,null,null,null,null,null,{"$f":"IF(B26=CR4,CQ4,IF(B26=CR5,CQ5,IF(B26=CR6,CQ6,IF(B26=CR7,CQ7,IF(B26=CR8,CQ8,IF(B26=CR9,CQ9,IF(B26=CR10,CQ10,IF(B26=CR11,CQ11,IF(B26=CR12,CQ12,IF(B26=CR13,CQ13,IF(B26=CR14,CQ14,\" \")))))))))))","v":" "},null,null,"Auswahlkriterien:",null,null,null,null,null,null,null,null,null,null,null,null,null,null,null,null,null,null,null,null,null,null,null,null,null,null,null,null,null,null,7,"Aufforstung/Bestandesumbau incl. Ergänzung von Naturverjüngung","AUSGANGSLAGE:  der aufzuforstende Bestand befindet sich in einer Seehöhe (m) / mit Hangneigung (%) / Hauptexposition von:","folgende Baumartenmmischung ist geplant: (BA Angabe in Stück)","Einige ältere Bäume sind auf der Aufforstungsfläche vorhanden diese sind zum übwiegenden Teil : (Stgh. / Baumh. / Alth. /Überh.)","Die Beurteilung der Wald Wildsituation bedingt hinsichtlich des zu erwartenden Aufforstungserfolges Maßnahmen zum Schutz der Verjüngung ( ja/nein):","Zur Sicherung der Aufforstung ist aufgrund der vorhandenen Gelände- und Vegetationsverhältnisse eine wirksame Verpflockung der Pflanzen (erforderlich / nicht erforderlich)","Die potentielle nat. Waldgesellschaft ist:","Der Standort ist hinsichtlich Wuchsleistung , Nährstoffverhältnisse und Wasserhaushalt für die gewählte Baumartenkombination gut geeignet. Die Aufforstung erfolgt in einem geeigneten Pflanzverband, Kleinstandorte, Stockachseln werden besonders berücksichtigt. ","ZIELSETZUNG: Durch die geplante Aufforstung mit Mischbaumarten ist eine Verbesserung des Standortes, eine Begünstigung der Biodiversität und /oder der Widerstandskraft gegen den klimatischen Einfluss möglich. Das Forstschutzrisiko wird gesenkt und die Stabilität und Vitalität des Waldes werden erhöht.","BEDINGUNG: Standortsanpassung durch gezielte Baumartenwahl unter Orientierung an die natürliche Waldgesellschaft, Kultursicherung"]
[null,null,null,null,null,null,null,null,null,null,null,null,null,null,null,{"$f":"IF(B27=CR4,CQ4,IF(B27=CR5,CQ5,IF(B27=CR6,CQ6,IF(B27=CR7,CQ7,IF(B27=CR8,CQ8,IF(B27=CR9,CQ9,IF(B27=CR10,CQ10,IF(B27=CR11,CQ11,IF(B27=CR12,CQ12,IF(B27=CR13,CQ13,IF(B27=CR14,CQ14,\" \")))))))))))","v":" "},null,{"$f":"IF(OR(OR(OR(OR(P22=11,P23=11),P24=11,P25=11),P26=11,P27=11),P28=11,P29=11),R25,R24)","v":2},{"$f":"IF(OR(OR(OR(OR(OR(OR(OR(OR(P22=11),P23=11),P24=11),P25=11),P26=11),P27=11),P28=11),P29=11),T25,T24)","v":"Waldbau 8.5.1 FG 1,2,4"},null,null,null,null,null,null,null,null,null,null,null,null,null,null,null,null,null,null,null,null,null,null,null,null,null,null,null,null,null,null,8,"SW Aufforstung /SW Bestandesumbau incl. Ergänzung von Naturverjüngung","AUSGANGSLAGE:  der aufzuforstende Bestand befindet sich in einer Seehöhe (m) / mit Hangneigung (%) / Hauptexposition von:","folgende Baumartenmmischung ist geplant: (BA Angabe in Stück)","Einige ältere Bäume sind auf der Aufforstungsfläche vorhanden diese sind zum übwiegenden Teil : (Stgh. / Baumh. / Alth. /Überh.)","Die Beurteilung der Wald Wildsituation bedingt hinsichtlich des zu erwartenden Aufforstungserfolges Maßnahmen zum Schutz der Verjüngung ( ja/nein):","Zur Sicherung der Aufforstung ist aufgrund der vorhandenen Gelände- und Vegetationsverhältnisse eine wirksame Verpflockung der Pflanzen (erforderlich / nicht erforderlich)","Die potentielle nat. Waldgesellschaft ist:","Der Standort ist hinsichtlich Wuchsleistung , Nährstoffverhältnisse und Wasserhaushalt für die gewählte Baumartenkombination gut geeignet. Die Aufforstung erfolgt in einem geeigneten Pflanzverband, Kleinstandorte, Stockachseln werden besonders berücksichtigt.","ZIELSETZUNG: Durch die geplante Aufforstung mit Mischbaumarten ist eine Verbesserung des Standortes, eine Begünstigung der Biodiversität und /oder der Widerstandskraft gegen den klimatischen Einfluss möglich. Das Forstschutzrisiko wird gesenkt und die Stabilität und Vitalität des Waldes werden erhöht.","BEDINGUNG: Standortsanpassung durch gezielte Baumartenwahl unter Orientierung an die natürliche Waldgesellschaft, Kultursicherung"]
[null,null,null,null,null,null,null,null,null,null,null,null,null,null,null,{"$f":"IF(B28=CR4,CQ4,IF(B28=CR5,CQ5,IF(B28=CR6,CQ6,IF(B28=CR7,CQ7,IF(B28=CR8,CQ8,IF(B28=CR9,CQ9,IF(B28=CR10,CQ10,IF(B28=CR11,CQ11,IF(B28=CR12,CQ12,IF(B28=CR13,CQ13,IF(B28=CR14,CQ14,\" \")))))))))))","v":" "},null,null,null,null,null,null,null,null,null,null,null,null,null,null,null,null,null,null,null,null,null,null,null,null,null,null,null,null,null,null,null,null,null,9,"Unterbau","AUSGANGSLAGE:  der aufzuforstende Bestand befindet sich in einer Seehöhe (m) / mit Hangneigung (%) / Hauptexposition von:","folgende Baumartenmmischung ist geplant: (BA Angabe in Stück)","Einige ältere Bäume sind auf der Aufforstungsfläche vorhanden diese sind zum übwiegenden Teil : (Stgh. / Baumh. / Alth. /Überh.)","Die Beurteilung der Wald Wildsituation bedingt hinsichtlich des zu erwartenden Aufforstungserfolges Maßnahmen zum Schutz der Verjüngung ( ja/nein):","-","Die potentielle nat. Waldgesellschaft ist:","Der Standort ist hinsichtlich Wuchsleistung , Nährstoffverhältnisse und Wasserhaushalt für die gewählte Baumartenkombination gut geeignet. Die Aufforstung erfolgt in einem geeigneten Pflanzverband, Kleinstandorte, Stockachseln werden besonders berücksichtigt.","ZIELSETZUNG: Durch die geplante Aufforstung mit Mischbaumarten ist eine Verbesserung des Standortes, eine Begünstigung der Biodiversität und /oder der Widerstandskraft gegen den klimatischen Einfluss möglich. Das Forstschutzrisiko wird gesenkt und die Stabilität und Vitalität des Waldes werden erhöht.","BEDINGUNG: Standortsanpassung durch gezielte Baumartenwahl unter Orientierung an die natürliche Waldgesellschaft, Kultursicherung, Der Bestand muss hinsichtlich Struktur, Dichte und Baumarten für die Aktivität geeignet sein ebenso die zu setzenden Baumarten."]
[null,null,null,null,null,null,null,null,null,null,null,null,null,null,null,{"$f":"IF(B29=CR4,CQ4,IF(B29=CR5,CQ5,IF(B29=CR6,CQ6,IF(B29=CR7,CQ7,IF(B29=CR8,CQ8,IF(B29=CR9,CQ9,IF(B29=CR10,CQ10,IF(B29=CR11,CQ11,IF(B29=CR12,CQ12,IF(B29=CR13,CQ13,IF(B29=CR14,CQ14,\" \")))))))))))","v":" "},null,null,null,null,null,null,null,null,null,null,null,null,null,null,null,null,null,null,null,null,null,null,null,null,null,null,null,null,null,null,null,null,null,10,"Kontrollzaun","AUSGANGSLAGE: Zur Nachweisung des Verjüngungspotentiales und zu Demonstrationszwecken und/oder zur Beschreibung der Wald- Wildsituation ist die Errichtung von  Kontrollzäunen notwendig. Mittlere Seehöhe: (m)","-","Bei den Beständen, in denen die Kontrollzäune aufgestellt werden handelt es sich überwiegend um: (Jug.Baumh./Alth.)","Die Befahrbarkeit mit PKW zu Kontrollzwecken ist (günstig / ungünstig)","-","-","ZIELSETZUNGEN: Nachweis des Schalenwildeinflusses außerhalb des Zaunes und Aufzeigen des Verjüngungspotenzials ohne Wildeinfluss","BEDINGUNG: Zaun muss Schalenwild dicht und mindestens 2 m hoch sein. Die Zaunfläche beträgt mindestens 6 x 6 m.","-"]
[null,"Eine erfolgte Beratung ist noch KEINE Förderbewilligung!!",null,null,null,null,null,null,null,null,"SUMME:","Summe:",{"$f":"SUM(M22:N29)","v":0},{"$f":"SUM(M22:M29)","v":0},null,null,null,null,null,null,null,null,null,null,null,null,null,null,null,null,null,null,null,null,null,null,null,null,null,{"$f":"SUM(AN22:AN29)","v":0},null,null,null,null,null,null,null,null,null,11,"Schutz der Verjüngung gegen Schneeschub","AUSGANGSLAGE:  der zu sichernde Bestand befindet sich in einer Seehöhe (m) / mit Hangneigung (%) / Hauptexposition von:","Angabe der Baumarten des Bestandes (Angabe in 1/10)","Die Standortsgefährdung wird verursacht durch: (Steinschlag, Erosion, Schneeschub, sonstige)","Die Verjüngung ist standortsbedingt  gefährdet und muss mit technischen Maßnahmen geschützt werden. Am besten sind geeignet: z.B.: Bermen / Holzböcke / Krainerwerke. ","-","-","ZIELSETZUNG: Durch die Stützverbauung soll die Produktionskraft des Standortes erhalten und eine Stabilisierung des darauf stockenden Bestandes erreicht werden.","BEDINGUNGEN: es ist ein hohes Naturgefahrenpotential gegeben, die Verbesserung des Waldzustandes ist ohne die Aktivität nicht möglich. Verbauungen aus Holz sind mit gesundem Material zu erstellen und erforderlichenfalls  forstschutztechnisch zu behandeln","-"]
[null,null,null,null,null,null,null,null,null,null,null,null,null,null,null,null,null,null,null,null,null,null,null,null,null,null,null,null,null,null,null,null,null,null,null,null,null,null,null,null,null,null,null,null,null,null,null,null," ",12,"Bermen","AUSGANGSLAGE:  der zu sichernde Bestand befindet sich in einer Seehöhe (m) / mit Hangneigung (%) / Hauptexposition von:","Angabe der Baumarten des Bestandes (Angabe in 1/10)","Die Standortsgefährdung wird verursacht durch: (Steinschlag, Erosion, Schneeschub, sonstige)","Die Verjüngung ist standortsbedingt  gefährdet und muss mit technischen Maßnahmen geschützt werden. Am besten sind geeignet: z.B.: Bermen / Holzböcke / Krainerwerke. ","-","-","ZIELSETZUNG: Durch die Stützverbauung soll die Produktionskraft des Standortes erhalten und eine Stabilisierung des darauf stockenden Bestandes erreicht werden.","BEDINGUNGEN: es ist ein hohes Naturgefahrenpotential gegeben, die Verbesserung des Waldzustandes ist ohne die Aktivität nicht möglich. Verbauungen aus Holz sind mit gesundem Material zu erstellen und erforderlichenfalls  forstschutztechnisch zu behandeln","-"]
[null,"Ort, Datum",null,null,null,"Unterschrift:  Förderwerber, bei Rahmenantrag, Mitglied",null,null,null,null,null,null,null,null,null,null,null,null,null,null,null,null,null,null,null,null,null,null,null,null,null,null,null,null,null,null,null,null,null,"bitte Auswahlkriterien anklicken:",null,null,null,null,null,null,null,null,null,13,"Einfache technische Werke","AUSGANGSLAGE:  der zu sichernde Bestand befindet sich in einer Seehöhe (m) / mit Hangneigung (%) / Hauptexposition von:","Angabe der Baumarten des Bestandes (Angabe in 1/10)","Die Standortsgefährdung wird verursacht durch: (Steinschlag, Erosion, Schneeschub, sonstige)","Die Verjüngung ist standortsbedingt  gefährdet und muss mit technischen Maßnahmen geschützt werden. Am besten sind geeignet: z.B.: Bermen / Holzböcke / Krainerwerke. ","-","-","ZIELSETZUNG: Durch die Stützverbauung soll die Produktionskraft des Standortes erhalten und eine Stabilisierung des darauf stockenden Bestandes erreicht werden.","BEDINGUNGEN: es ist ein hohes Naturgefahrenpotential gegeben, die Verbesserung des Waldzustandes ist ohne die Aktivität nicht möglich. Verbauungen aus Holz sind mit gesundem Material zu erstellen und erforderlichenfalls  forstschutztechnisch zu behandeln","-"]
[null,null,null,null,null,null,null,null,null,null,null,null,null,null,null,null,null,null,null,null,null,null,null,null,null,null,null,null,null,null,null,null,null,null,null,null,null,null,null,null,null,null,null,null,null,null,null,null,null,14,"Querfällung, Verankerung","AUSGANGSLAGE:  der zu sichernde Bestand befindet sich in einer Seehöhe (m) / mit Hangneigung (%) / Hauptexposition von:","-","Bei dem zu sichernden Bestand handelt es sich vorwiegend um die Altersklasse: (Jug./ Baumh. / Alth.)","-","Eine Verankerung der querliegenden Bäume gegen Abrollen ist erforderlich (ja/nein)","Die geplanten Verbauungen bestehen aus: Anzahl Reihen '/ im vertikalen Abstand m  / 1 Reihe hat Anz. von  Anz. bis Querlagen ","ZIELSETZUNG: Durch die Stützverbauung soll die Produktionskraft des Standortes erhalten und eine Stabilisierung des darauf stockenden Bestandes erreicht werden.","BEDINGUNGEN: es ist ein hohes Naturgefahrenpotential gegeben, die Verbesserung des Waldzustandes ist ohne die Aktivität nicht möglich. Verbauungen aus Holz sind mit gesundem Material zu erstellen und  forstschutztechnisch zu behandeln. Mind. 20 cm Zopf und durchschnittlich 40 cm BHD","-"]
[null,"Prüfung Fördervoraussetzungen  (ja, nein, irrelevant)",null,null,null,null,null,null,null,null,null,null,null,null,1,"Beriebsgröße","ja",null,"Gültigkeitsfelder für Auswahlkrietrien (Punktebewertung)"]
[null,{"$f":"LOOKUP($I$1,$AX$63:$AX70,$AZ$63:$AZ$70)","v":"-"},null,null,null,null,{"$f":"LOOKUP($I$1,$AX$63:$AX$70,$BE$63:$BE$70)","v":"-"},null,null,null,"Flächenanteil < 50%: 3; Flächenanteil > 50%: 6",null,null,null,2,"<50","nein",null,{"$f":"LOOKUP($I$1,$AX$53:$AX$61,BA53:BA58)","v":"-"},{"$f":"LOOKUP($I$1,$AX$53:$AX$61,BB53:BB58)","v":"-"},{"$f":"LOOKUP($I$1,$AX$53:$AX$61,BC53:BC58)","v":"-"},null,null,null,null,{"$f":"IF(S35=0,\" \",RIGHT(S35,2))","v":"-"},"-","-"," "," ",null,null,null,null,null,null,null,null,null,null,null,null,null,null,null,null,null,null,null,1,"Aktivitäten","Kategorie","Fördersatz","Einheit","Kategorie","Fördersatz","Einheit","Kategorie","Fördersatz","Einheit","Kategorie","Fördersatz","Einheit","Kategorie","Fördersatz","Einheit","Kategorie","Fördersatz","Einheit","Kategorie","Fördersatz","Einheit","Kategorie","Fördersatz","Einheit"]
[null,{"$f":"LOOKUP($I$1,$AX$63:$AX$70,$BA$63:$BA$70)","v":"-"},null,null,null,null,{"$f":"LOOKUP($I$1,$AX$63:$AX$70,$BF$63:$BF$70)","v":"-"},null,null,null,"Flächenanteil < 50%: 3; Flächenanteil > 50%: 6",null,null,null,3,">=50","irrelevant",null,{"$f":"LOOKUP($I$1,$AX$53:$AX$61,BG53:BG62)","v":"-"},{"$f":"LOOKUP($I$1,$AX$53:$AX$61,BH53:BH62)","v":"-"},null,null,null,null,null,"-","-"," "," "," ",null,null,null,null,null,null,null,null,null,null,null,null,null,null,null,null,null,null,null,2,"JUNGBESTANDSPFLEGE","SW",0.8,"ha","soW",0.6,"ha","-","-","-","-","-","-","-","-","-","-","-","-","-","-","-","-","-","-"]
[null,{"$f":"LOOKUP($I$1,$AX$63:$AX$70,$BB$63:$BB$70)","v":"-"},null,null,null,null,{"$f":"LOOKUP($I$1,$AX$63:$AX$70,$BG$63:$BG$70)","v":"-"},null,null,null,"Flächenanteil < 50%: 3; Flächenanteil > 50%: 6",null,null,null,4,">=100",null,null,{"$f":"LOOKUP($I$1,$AX$53:$AX$61,BK53:BK62)","v":"-"},{"$f":"LOOKUP($I$1,$AX$53:$AX$61,BL53:BL62)","v":"-"},{"$f":"LOOKUP($I$1,$AX$53:$AX$61,BM53:BM62)","v":"-"},{"$f":"LOOKUP($I$1,$AX$53:$AX$61,BN53:BN62)","v":"-"},null,null,null,"-","-","-","-"," ",null,null,null,null,null,null,null,null,"Bei Waldbau: S3/W3 DF am Ort: 15 Punkte",null,null,null,null,null,null,null,null,null,null,3,"DURCHFORSTUNG mit Seil","SW",0.8,"ha","SW",0.8,"fm","soW",0.6,"ha","soW",0.6,"fm","-","-","-","-","-","-","-","-","-","-","-","-"]
[null,{"$f":"LOOKUP($I$1,$AX$63:$AX$70,$BC$63:$BC$70)","v":"-"},null,null,null,null,{"$f":"LOOKUP($I$1,$AX$63:$AX$70,$BH$63:$BH$70)","v":"-"},null,null,null,"Flächenanteil < 50%: 3; Flächenanteil > 50%: 6",null,null,null,5,">=200",null,null,{"$f":"LOOKUP($I$1,$AX$53:$AX$61,BQ53:BQ61)","v":"-"},{"$f":"LOOKUP($I$1,$AX$53:$AX$61,BR53:BR61)","v":"-"},{"$f":"LOOKUP($I$1,$AX$53:$AX$61,BS53:BS61)","v":"-"},{"$f":"LOOKUP($I$1,$AX$53:$AX$61,BT53:BT61)","v":"-"},null,null,null,"-","-","-","-"," ",null,null,null,null,null,null,null,null,null,null,null,null,null,null,null,null,null,null,null,4,"DURCHFORSTUNG ohne Seil","SW",0.8,"ha","SW",0.8,"fm","soW",0.6,"ha","soW",0.6,"fm","soW",0.6,"Stück","-","-","-","-","-","-","-","-","-"]
[null,{"$f":"LOOKUP($I$1,$AX$63:$AX74,$BD$63:$BD$70)","v":"-"},null,null,null,null,{"$f":"LOOKUP($I$1,$AX$63:$AX$70,$BI$63:$BI$71)","v":"-"},null,null,null,"Flächenanteil < 50%: 3; Flächenanteil > 50%: 6",null,null,null,6,">=1000",null,null,{"$f":"LOOKUP($I$1,$AX$53:$AX$61,BW53:BW61)","v":"-"},{"$f":"LOOKUP($I$1,$AX$53:$AX$61,BX53:BX61)","v":"-"},{"$f":"LOOKUP($I$1,$AX$53:$AX$61,BY53:BY61)","v":"-"},{"$f":"LOOKUP($I$1,$AX$53:$AX$61,BZ53:BZ61)","v":"-"},null,null,null,"-","-","-","-"," ",null,null,null,null,null,null,null,null,null,null,null,null,null,null,null,null,null,null,null,5,"VERJÜNGUNGSEINLEITUNG incl. BRINGUNG, RÜCKUNG","SW",0.8,"fm","soW",0.6,"fm","-","-","-","-","-","-","-","-","-","-","-","-","-","-","-","-","-","-"]
[null,null,null,null,null,null,null,null,null,null,null,null,null,null,null,null,null,null,{"$f":"LOOKUP($I$1,$AX$53:$AX$61,CC53:CC61)","v":"-"},{"$f":"LOOKUP($I$1,$AX$53:$AX$61,CD53:CD61)","v":"-"},{"$f":"LOOKUP($I$1,$AX$53:$AX$61,CE53:CE61)","v":"-"},null,{"$f":"LOOKUP($I$1,$AX$53:$AX$61,$CC$53:$CC$61)","v":"-"},{"$f":"LOOKUP($I$1,$AX$53:$AX$61,$CC$53:$CC$61)","v":"-"},{"$f":"LOOKUP($I$1,$AX$53:$AX$61,$CC$53:$CC$61)","v":"-"},"-","-","-"," ","-",null,null,null,null,null,null,null,null,null,null,null,null,null,null,null,null,null,null,null,6,"Vorbereitung (Bodenbearbeitung, Mulchen, Düngung)","SW",0.8,"ha","SW",0.8,"ha","SW",0.8,"ha","SoW",0.6,"ha","soW",0.6,"ha","soW",0.6,"ha","-","-","-","-","-","-"]
[null,"Objektschutz in % ",null,null,"Objektschutz Kategorie:",null,"WEP KZ (Überwiegende WEP KZ.)",null,null,null,null,null,null,null,null,null,null,null,null,null,null,null,null,null,null,null,null,null,null,null,null,null,null,null,null,null,null,null,null,null,null,null,null,null,null,null,null,null,null,7,"Aufforstung/Bestandesumbau incl. Ergänzung von Naturverjüngung","soW",0.6,"Stück","soW",0.6,"Stück","soW",0.6,"Stück","soW",0.6,"Stück","soW",0.6,"Stück","-","-","-","-","-","-","-","-","-"]
[null,"Auswahlkriterien",null,null,null,"Punkte","Bewertung",null,null,null,null,null,null,null,null,null,null,null,null,null,null,null,null,null,null,null,null,null,null,null,null,null,null,null,null,null,null,null,null,null,null,null,null,null,null,null,null,null,null,8,"SW Aufforstung /SW Bestandesumbau incl. Ergänzung von Naturverjüngung","SW",0.8,"Stück","SW",0.8,"Stück","SW",0.8,"Stück","SW",0.8,"Stück","SW",0.8,"Stück","SW",0.8,"Stück","-","-","-","-","-","-"]
[null,{"$f":"LOOKUP($I$1,$AX$53:$AX$61,$AZ$53:$AZ$58)","v":"-"},null,null,null,null,{"$f":"LOOKUP($I$1,$AX$53:$AX$61,$BE$53:$BE$58)","v":"Auswahlkriterium 1"},null,null,null,null,null,null,null,null,{"$f":"VALUE(F43)","v":0},null,null,null,null,null,null,null,null,null,null,null,null,null,null,null,null,null,null,null,null,null,null,null,null,null,null,null,null,null,null,null,null,null,9,"Unterbau","soW",0.6,"Stück","soW",0.6,"Stück","soW",0.6,"Stück","soW",0.6,"Stück","soW",0.6,"Stück","-","-","-","-","-","-","-","-","-"]
[null,{"$f":"LOOKUP($I$1,$AX$53:$AX$61,$BF$53:$BF$58)","v":"-"},null,null,null,null,{"$f":"LOOKUP($I$1,$AX$53:$AX$61,$BI$53:$BI$58)","v":"Auswahlkriterium 2"},null,null,null,null,null,null,null,null,0,null,null,null,null,null,null,null,null,null,null,null,null,null,null,null,null,null,null,null,null,null,null,null,null,null,null,null,null,null,null,null,null,null,10,"Kontrollzaun","SW",0.8,"Stk","soW",0.6,"Stk","-","-","-","-","-","-","-","-","-","-","-","-","-","-","-","-","-","-"]
[null,{"$f":"LOOKUP($I$1,$AX$53:$AX$61,$BJ$53:$BJ$58)","v":"-"},null,null,null,null,{"$f":"LOOKUP($I$1,$AX$53:$AX$61,$BO$53:$BO$61)","v":"Auswahlkriterium 3"},null,null,null,null,null,null,null,null,0,null,null,null,null,null,null,null,null,null,null,null,null,null,null,null,null,null,null,null,null,null,null,null,null,null,null,null,null,null,null,null,null,null,11,"Schutz der Verjüngung gegen Schneeschub","SW",0.8,"-","-","-","-","-","-","-","-","-","-","-","-","-","-","-","-","-","-","-","-","-","-"]
[null,{"$f":"LOOKUP($I$1,$AX$53:$AX$61,$BP$53:$BP$61)","v":"-"},null,null,null,null,{"$f":"LOOKUP($I$1,$AX$53:$AX$61,$BU$53:$BU$61)","v":"Auswahlkriterium 4"},null,null,null,null,null,null,null,null,0,null,null,null,null,null,null,null,null,null,null,null,null,null,null,null,null,null,null,null,null,null,null,null,null,null,null,null,null,null,null,null,null,null,12,"Bermen","SW",0.8,"-","-","-","-","-","-","-","-","-","-","-","-","-","-","-","-","-","-","-","-","-","-"]
[null,{"$f":"LOOKUP($I$1,$AX$53:$AX$61,$BV$53:$BV$61)","v":"-"},null,null,null,null,{"$f":"LOOKUP($I$1,$AX$53:$AX$61,$CA$53:$CA$61)","v":"Auswahlkriterium 5"},null,null,null,null,null,null,null,null,0,null,null,null,null,null,null,null,null,null,null,null,null,null,null,null,null,null,null,null,null,null,null,null,null,null,null,null,null,null,null,null,null,null,13,"Einfache technische Werke","SW",0.8,"Stk","SW",0.8,"fm","-","-","-","-","-","-","-","-","-","-","-","-","-","-","-","-","-","-"]
[null,{"$f":"LOOKUP($I$1,$AX$53:$AX$61,$CB$53:$CB$61)","v":"-"},null,null,null,null,{"$f":"LOOKUP($I$1,$AX$53:$AX$61,$CF$53:$CF$61)","v":"Auswahlkriterium 6"},null,null,null,null,null,null,null,null,0,null,null,null,null,null,null,null,null,null,null,null,null,null,null,null,null,null,null,null,null,null,null,null,null,null,null,null,null,null,null,null,null,null,14,"Querfällung, Verankerung","SW",0.8,"Stk",null,null,null,"-","-","-","-","-","-","-","-","-","-","-","-","-","-","-","-","-","-"]
[null,"Maximal mögl. Punkte:",null,{"$f":"IF(B22=0,\" \",(R52))","v":" "},"erreichte Punkte:",{"$f":"P49","v":0},"err. Pkt in  %  /  Mindestpunkte erreicht (ja/nein):",null,null,null,null,{"$f":"IF(F49=0,\" \",F49/D49)","v":" "},null,{"$f":"IF(L49=\" \",\" \",IF(L49>=0.6,\"JA\",IF(L49<0.6,\"Nein\",\" \")))","v":" "},null,{"$f":"VALUE(SUM(P43:P48))","v":0}]
[]
[null,"Anmerkung:",null,null,null,null,null,null,null,null,null,null,null,null,null,null,null,"MaximalPunkte"]
[null,null,null,null,null,null,null,null,null,null,null,null,null,null,null,null,null,{"$f":"LOOKUP(I1,AX53:AX61,CG53:CG61)","v":"-"}]
[null,null,null,null,null,null,null,null,null,null,null,null,null,null,null,null,null,null,null,null,null,null,null,null,null,null,null,null,null,null,null,null,null,null,null,null,null,null,null,null,null,null,null,null,null,null,null,null,null,1,"Auswahlkriterien:","-","-","-","-","-","Auswahlkriterium 1","-","-","-","Auswahlkriterium 2","-","-","-","-","-","Auswahlkriterium 3","-","-","-","-","-","Auswahlkriterium 4","-","-","-","-","-","Auswahlkriterium 5","-","-","-","-","Auswahlkriterium 6","-"]
[null,null,null,null,null,null,null,null,null,null,null,null,null,null,null,null,null,null,null,null,null,null,null,null,null,null,null,null,null,null,null,null,null,null,null,null,null,null,null,null,null,null,null,null,null,null,null,null,null,{"$f":"AX53+1","v":2},"Waldbau 8.5.1 FG 1,2,4","forstfachliche Beratung:","keine Beratung : 0","erfolgte Beratung: 3","-","-",{"$f":"BA54&\"; \"&BB54","v":"keine Beratung : 0; erfolgte Beratung: 3"},"öffentliches Interesse an Schutz/Wohlf.Fkt. WZ 3:","Flächenanteil < 50%: 3","Flächenanteil > 50%: 6",{"$f":"BG54&\"; \"&BH54","v":"Flächenanteil < 50%: 3; Flächenanteil > 50%: 6"},"Mittel- oder langfristige Erhaltung /Steigerung der Biodiversität oder Bestandesstabilisierung","nicht stabilisierend: 0","NH Reinbestand, nicht pot. nat. WG: 5","Mischung mit LH/NH oder stabilisierend: 10","reiner Laubholzstandort oder potentielle natürliche Waldgesellschaft: 15",{"$f":"BK54&\"; \"&BL54&\"; \"&BM54&\"; \"&BN54","v":"nicht stabilisierend: 0; NH Reinbestand, nicht pot. nat. WG: 5; Mischung mit LH/NH oder stabilisierend: 10; reiner Laubholzstandort oder potentielle natürliche Waldgesellschaft: 15"},"Dringlichkeit der Maßnahmenumsetzung:","gepl. Projektstart in 3 J.: 0","gepl. Projektstart in 1-2 J.: 5","gepl. Projektstart innerh. 1 J.: 10","-",{"$f":"BQ54&\"; \"&BR54&\"; \"&BS54","v":"gepl. Projektstart in 3 J.: 0; gepl. Projektstart in 1-2 J.: 5; gepl. Projektstart innerh. 1 J.: 10"},"Besitzstruktur / Gemeinschaftsentw.","betrieblich: 3","überbetrieblich: 6","-","-",{"$f":"BW54&\"; \"&BX54&\"; \"&BY54","v":"betrieblich: 3; überbetrieblich: 6; -"},"-","-","-","-",{"$f":"CB54","v":"-"},40]
[null,"Ort, Datum",null,null,null,"Unterschrift:  Bewilligende Stelle / befugtes Forstorgan",null,null,null,null,null,null,null,null,null,null,null,null,null,null,null,null,null,null,null,null,null,null,null,null,null,null,null,null,null,null,null,null,null,null,null,null,null,null,null,null,null,null,null,{"$f":"AX54+1","v":3},"Waldbau 8.5.1 FG 3","Schutzwirksamkeit der Maßnahme","Schutzwirksam für Standortschutzwald: 7","schutzwirksam für Objekte (in Bezirks Rahmenplänen): 14","-","-",{"$f":"BA55&\"; \"&BB55","v":"Schutzwirksam für Standortschutzwald: 7; schutzwirksam für Objekte (in Bezirks Rahmenplänen): 14"},"Schutzkategorie","Schutz vor Hochwasser, Mure oder Rutschung: 3","Schutz vor Steinschlag, Lawine, Erosion oder Waldbrand: 6",{"$f":"BG55&\"; \"&BH55","v":"Schutz vor Hochwasser, Mure oder Rutschung: 3; Schutz vor Steinschlag, Lawine, Erosion oder Waldbrand: 6"},"Projektumfang","Anrechenbare Kosten bis 5.000 €: 1","Anrechenbare Kosten > 5.000 -10.000 €: 2","Anrechenbare Kosten >10.000 -30.000 €: 3","Anrechenbare Kosten >30.000 €: 4",{"$f":"BK55&\"; \"&BL55&\"; \"&BM55&\"; \"&BN55","v":"Anrechenbare Kosten bis 5.000 €: 1; Anrechenbare Kosten > 5.000 -10.000 €: 2; Anrechenbare Kosten >10.000 -30.000 €: 3; Anrechenbare Kosten >30.000 €: 4"},"Dringlichkeit der Maßnahmenumsetzung:","gepl. Projektstart in 2-3 J.: 0","gepl. Projektstart in 1-2 J.: 5","gepl. Projektstart innerh. 1 J.: 10","-",{"$f":"BQ55&\"; \"&BR55&\"; \"&BS55","v":"gepl. Projektstart in 2-3 J.: 0; gepl. Projektstart in 1-2 J.: 5; gepl. Projektstart innerh. 1 J.: 10"},"Besitzstruktur / Gemeinschaftsentw.","betrieblich: 2","überbetrieblich: 4","-","-",{"$f":"BW55&\"; \"&BX55&\"; \"&BY55","v":"betrieblich: 2; überbetrieblich: 4; -"},"-","-","-","-","-",38]
[null,null,null,null,null,null,null,null,null,null,null,null,null,null,null,null,null,null,null,null,null,null,null,null,null,null,null,null,null,null,null,null,null,null,null,null,null,null,null,null,null,null,null,null,null,null,null,null,null,{"$f":"AX55+1","v":4}]
[null,null,null,null,null,null,null,null,null,null,null,null,null,null,null,null,null,null,null,null,null,null,null,null,null,null,null,null,null,null,null,null,null,null,null,null,null,null,null,null,null,null,null,null,null,null,null,null,null,{"$f":"AX56+1","v":5}]
[null,null,null,null,null,null,null,null,null,null,null,null,null,null,null,null,null,null,null,null,null,null,null,null,null,null,null,null,null,null,null,null,null,null,null,null,null,null,null,null,null,null,null,null,null,null,null,null,null,{"$f":"AX57+1","v":6}," "]
[]
[]
[]
[null,null,null,null,null,null,null,null,null,null,null,null,null,null,null,null,null,null,null,null,null,null,null,null,null,null,null,null,null,null,null,null,null,null,null,null,null,null,null,null,null,null,null,null,null,null,null,null,null,null,null,null,null,null,null,null,null,null,null,null,null,"-"]
[null,null,null,null,null,null,null,null,null,null,null,null,null,null,null,null,null,null,null,null,null,null,null,null,null,null,null,null,null,null,null,null,null,null,null,null,null,null,null,null,null,null,null,null,null,null,null,null,null,{"$f":"IF(AY64=0,\" \",$AX62+1)","v":1},"Fördervoraussetzungen:","-","-","-","-","-","-","-","-","-","-","-"]
[null,null,null,null,null,null,null,null,null,null,null,null,null,null,null,null,null,null,null,null,null,null,null,null,null,null,null,null,null,null,null,null,null,null,null,null,null,null,null,0,null,null,null,null,null,null,null,null,null,{"$f":"AX63+1","v":2},"Waldbau 8.5.1 FG 1,2, 4","Ist ein Verfahren nach § 16 Abs. 5 Forstgesetz 1975 (Flächenhafte Gefährdung des Bewuchses durch jagbare Tiere) anhängig?","Hat Betrieb ab 100 ha  Wald bezogenenen Plan ?","Wird Aktivität in GIS verortet, bzw.Lageplan /-skizze erstellt?","Orientierung an der natürlichen Waldgesellschaft: Werden bei der Aufforstung die erforderlichen Mischbaumarten-Anteile erreicht?“","Ist die Aufforstung mit den für den Standort geeigneten Forstpflanzenherkünften geplant?“","„Bei Pflege- und Endnutzungen: Wird die Grünbiomasse (Wipfel und Grobentastung) im Bestand verbleiben?“","Liegen Hinweise vor, dass mit dem Vorhaben bereits begonnen wurde?","Handelt es sich bei der Aktivität um eine vorgeschriebene Ausgleichsmaßnahme","-","-","-"]
[null,null,null,null,null,null,null,null,null,null,null,null,null,null,null,null,null,null,null,null,null,null,null,null,null,null,null,null,null,null,null,null,null,null,null,null,null,null,null,null,null,null,null,null,null,null,null,null,null,{"$f":"AX64+1","v":3},"Waldbau 8.5.1 FG 3","Ist ein Verfahren nach § 16 Abs. 5 Forstgesetz 1975 (Flächenhafte Gefährdung des Bewuchses durch jagbare Tiere) anhängig?","Hat Betrieb ab 100 ha  Wald bezogenenen Plan ?","Wird Aktivität in GIS verortet, bzw.Lageplan /-skizze erstellt?","Orientierung an der natürlichen Waldgesellschaft: Werden bei der Aufforstung die erforderlichen Mischbaumarten-Anteile erreicht?“","Ist die Aufforstung mit den für den Standort geeigneten Forstpflanzenherkünften geplant?“","„Bei Pflege- und Endnutzungen: Wird die Grünbiomasse (Wipfel und Grobentastung) im Bestand verbleiben?“","Liegen Hinweise vor, dass mit dem Vorhaben bereits begonnen wurde?","Handelt es sich bei der Aktivität um eine vorgeschriebene Ausgleichsmaßnahme","liegt ein Bezirksrahmenplan oder WEP vor oder handelt es sich um eine Wasserschutz-(schon)gebiet","-","-"]
[null,null,null,null,null,null,null,null,null,null,null,null,null,null,null,null,null,null,null,null,null,null,null,null,null,null,null,null,null,null,null,null,null,null,null,null,null,null,null,null,null,null,null,null,null,null,null,null,null,4,null,null,null,null,null,null,null,null,null,null,null,"-"]
[null,null,null,null,null,null,null,null,null,null,null,null,null,null,null,null,null,null,null,null,null,null,null,null,null,null,null,null,null,null,null,null,null,null,null,null,null,null,null,null,null,null,null,null,null,null,null,null,null,5,null,null,null,null,null,null,null,null,null,null,null,"-"]
[null,null,null,null,null,null,null,null,null,null,null,null,null,null,null,null,null,null,null,null,null,null,null,null,null,null,null,null,null,null,null,null,null,null,null,null,null,null,null,null,null,null,null,null,null,null,null,null,null,6,null,null,null,null,null,null,null,null,null,null,null,"-"]
[null,null,null,null,null,null,null,null,null,null,null,null,null,null,null,null,null,null,null,null,null,null,null,null,null,null,null,null,null,null,null,null,null,null,null,null,null,null,null,null,null,null,null,null,null,null,null,null,null,7,null,null,null,null,null,null,null,null,null,null,null,"-"]
[null,null,null,null,null,null,null,null,null,null,null,null,null,null,null,null,null,null,null,null,null,null,null,null,null,null,null,null,null,null,null,null,null,null,null,null,null,null,null,null,null,null,null,null,null,null,null,null,null,8,null,null,null,null,null,null,null,null,null,null,null,"-"]
[null,null,null,null,null,null,null,null,null,null,null,null,null,null,null,null,null,null,null,null,null,null,null,null,null,null,null,null,null,null,null,null,null,null,null,null,null,null,null,null,null,null,null,null,null,null,null,null,null,9,null,null,null,null,null,null,null,null,null,null,null,"-"]
[null,null,null,null,null,null,null,null,null,null,null,null,null,null,null,null,null,null,null,null,null,null,null,null,null,null,null,null,null,null,null,null,null,null,null,null,null,null,null,null,null,null,null,null,null,null,null,null,null,null,null,null,null,null,null,null,null,null,null,null,null,"-"]

{"sheet":"BFI_Gemeinden ","index":2,"n_rows":812,"n_cols":91,"rows_kept":812,"cut":false,"hidden":true,"merged":[]}
["Auswahlkrietrium!",1]
[]
[]
[]
[null,null,null,null,null,null,null,null,null,null,null,null,null,null,null,null,null,null,null,null,null,null,"AUSWAHLSPALTE für FORMULAR"]
[null,"AuswahlNr","BFI 1","BFI 2","BFI 3","BFI 4","BFI 5","BFI 6","BFI 7","BFI 8","BFI 9","BFI 10","BFI 11","BFI 12","BFI 13","BFI 14","BFI 15","BFI 16","BFI 17","BFI 18","BFI 19","BFI 20","BFI/Gemeinde"]
[null,1,{"$f":"IF(C102=0,\" \",IF($B$1=B102,C102,\" \"))","v":" "},{"$f":"IF(D102=0,\" \",IF($B$1=D102,E102,\" \"))","v":" "},{"$f":"IF(E102=0,\" \",IF($B$1=F102,G102,\" \"))","v":" "},{"$f":"IF(I102=0,\" \",IF($B$1=H102,I102,\" \"))","v":" "},{"$f":"IF(K102=0,\" \",IF($B$1=J102,K102,\" \"))","v":" "},{"$f":"IF(M102=0,\" \",IF($B$1=L102,M102,\" \"))","v":" "},{"$f":"IF(O102=0,\" \",IF($B$1=N102,O102,\" \"))","v":" "},{"$f":"IF(Q102=0,\" \",IF($B$1=P102,Q102,\" \"))","v":" "},{"$f":"IF(S102=0,\" \",IF($B$1=R102,S102,\" \"))","v":" "},{"$f":"IF(U102=0,\" \",IF($B$1=T102,U102,\" \"))","v":" "},{"$f":"IF(W102=0,\" \",IF($B$1=V102,W102,\" \"))","v":" "},{"$f":"IF(Y102=0,\" \",IF($B$1=X102,Y102,\" \"))","v":" "},{"$f":"IF(W102=0,\" \",IF($B$1=Z102,W102,\" \"))","v":" "},{"$f":"IF(Y102=0,\" \",IF($B$1=AB102,Y102,\" \"))","v":" "},{"$f":"IF(AE102=0,\" \",IF($B$1=AD102,AE102,\" \"))","v":" "}," "," "," "," "," ",{"$f":"C7&D7&E7&F7&G7&H7&I7&J7&K7&L7&M7&N7&O7&P7&Q7&R7&S7&T7&U7&V7","v":"                    "}]
[null,2," ",{"$f":"IF(D103=0,\" \",IF($B$1=D103,E103,\" \"))","v":" "},{"$f":"IF(E103=0,\" \",IF($B$1=F103,G103,\" \"))","v":" "},{"$f":"IF(I103=0,\" \",IF($B$1=H103,I103,\" \"))","v":" "},{"$f":"IF(K103=0,\" \",IF($B$1=J103,K103,\" \"))","v":" "},{"$f":"IF(M103=0,\" \",IF($B$1=L103,M103,\" \"))","v":" "},{"$f":"IF(O103=0,\" \",IF($B$1=N103,O103,\" \"))","v":" "},{"$f":"IF(Q103=0,\" \",IF($B$1=P103,Q103,\" \"))","v":" "},{"$f":"IF(S103=0,\" \",IF($B$1=R103,S103,\" \"))","v":" "},{"$f":"IF(U103=0,\" \",IF($B$1=T103,U103,\" \"))","v":" "},{"$f":"IF(W103=0,\" \",IF($B$1=V103,W103,\" \"))","v":" "},{"$f":"IF(Y103=0,\" \",IF($B$1=X103,Y103,\" \"))","v":" "},{"$f":"IF(W103=0,\" \",IF($B$1=Z103,W103,\" \"))","v":" "}," ",{"$f":"IF(AE103=0,\" \",IF($B$1=AD103,AE103,\" \"))","v":" "}," "," "," "," "," ",{"$f":"C8&D8&E8&F8&G8&H8&I8&J8&K8&L8&M8&N8&O8&P8&Q8&R8&S8&T8&U8&V8","v":"                    "}]
[null,3," "," "," ",{"$f":"IF(I103=0,\" \",IF($B$1=H104,I103,\" \"))","v":" "}," "," "," "," "," "," "," "," "," "," "," "," "," "," "," "," ","                    "]
[null,4," "," "," "," "," "," "," "," "," "," "," "," ",{"$f":"IF(W104=0,\" \",IF($B$1=Z105,W104,\" \"))","v":" "}," "," "," "," "," "," "," ","                    "]
[null,5," "," "," "," "," "," "," "," "," "," "," "," "," "," "," "," "," "," "," "," ","                    "]
[null,6," "," "," "," "," "," "," "," "," "," "," "," "," "," "," "," "," "," "," "," ","                    "]
[null,7," "," "," "," "," "," "," "," "," "," "," "," "," "," "," "," "," "," "," "," ","                    "]
[null,8," "," "," "," "," "," "," "," "," "," "," "," "," "," "," "," "," "," "," "," ","                    "]
[null,9," "," "," "," "," "," "," "," "," "," "," "," "," "," "," "," "," "," "," "," ","                    "]
[null,10," "," "," "," "," "," "," "," "," "," "," "," "," "," "," "," "," "," "," "," ","                    "]
[null,11," "," "," "," "," "," "," "," "," "," "," "," "," "," "," "," "," "," "," "," ","                    "]
[null,12," "," "," "," "," "," "," "," "," "," "," "," "," "," "," "," "," "," "," "," ","                    "]
[null,13," "," "," "," "," "," "," "," "," "," "," "," "," "," "," "," "," "," "," "," ","                    "]
[null,14," "," "," "," "," "," "," "," "," "," "," "," "," "," "," "," "," "," "," "," ","                    "]
[null,15," "," "," "," "," "," "," "," "," "," "," "," "," "," "," "," "," "," "," "," ","                    "]
[null,16," "," "," "," "," "," "," "," "," "," "," "," "," "," "," "," "," "," "," "," ","                    "]
[null,17," "," "," "," "," "," "," "," "," "," "," "," "," "," "," "," "," "," "," "," ","                    "]
[null,18," "," "," "," "," "," "," "," "," "," "," "," "," "," "," "," "," "," "," "," ","                    "]
[null,19," "," "," "," "," "," "," "," "," "," "," "," "," "," "," "," "," "," "," "," ","                    "]
[null,20," "," "," "," "," "," "," "," "," "," "," "," "," "," "," "," "," "," "," "," ","                    "]
[null,21," "," "," "," ",{"$f":"IF(K122=0,\" \",IF($B$1=J122,K122,\" \"))","v":" "},{"$f":"IF(M122=0,\" \",IF($B$1=L122,M122,\" \"))","v":" "},{"$f":"IF(O122=0,\" \",IF($B$1=N122,O122,\" \"))","v":" "},{"$f":"IF(Q122=0,\" \",IF($B$1=P122,Q122,\" \"))","v":" "},{"$f":"IF(S122=0,\" \",IF($B$1=R122,S122,\" \"))","v":" "}," "," "," "," "," ",{"$f":"IF(AE122=0,\" \",IF($B$1=AD122,AE122,\" \"))","v":" "}," "," "," "," "," ","                    "]
[null,22," "," "," "," "," "," "," "," ",{"$f":"IF(S123=0,\" \",IF($B$1=R123,S123,\" \"))","v":" "}," "," "," "," "," "," "," "," "," "," "," ","                    "]
[null,23," "," "," "," "," "," "," "," ",{"$f":"IF(S124=0,\" \",IF($B$1=R124,S124,\" \"))","v":" "}," "," "," "," "," "," "," "," "," "," "," ","                    "]
[null,24," "," "," "," "," "," "," "," ",{"$f":"IF(S125=0,\" \",IF($B$1=R125,S125,\" \"))","v":" "}," "," "," "," "," "," "," "," "," "," "," ","                    "]
[null,25," "," "," "," "," "," "," "," "," "," "," "," "," "," "," "," "," "," "," "," ","                    "]
[null,26," "," "," "," "," "," "," "," "," "," "," "," "," "," "," "," "," "," "," "," ","                    "]
[null,27,{"$f":"IF(C128=0,\" \",IF($B$1=B128,C128,\" \"))","v":" "}," "," "," "," "," "," "," "," "," "," "," "," "," "," "," "," "," "," "," ","                    "]
[null,28," "," "," "," "," "," "," "," "," "," "," "," "," "," "," "," "," "," "," "," ","                    "]
[null,29," "," "," "," "," "," "," "," "," "," "," "," "," "," "," "," "," "," "," "," ","                    "]
[null,30," "," "," "," "," "," "," "," "," "," "," "," ",{"$f":"IF(AA131=0,\" \",IF($B$1=Z131,AA131,\" \"))","v":" "}," "," "," "," "," "," "," ","                    "]
[null,31," "," "," "," "," "," "," "," "," "," "," "," "," "," "," "," "," "," "," "," ","                    "]
[null,32," "," "," "," "," "," "," "," "," "," "," "," "," "," "," "," "," "," "," "," ","                    "]
[null,33," ",{"$f":"IF(E134=0,\" \",IF($B$1=D134,E134,\" \"))","v":" "}," "," "," "," "," "," "," "," "," "," "," ",{"$f":"IF(Y134=0,\" \",IF($B$1=AB134,Y134,\" \"))","v":" "}," "," "," "," "," "," ","                    "]
[null,34," "," "," "," "," "," "," "," "," "," "," "," "," "," "," "," "," "," "," "," ","                    "]
[null,35," "," "," ",{"$f":"IF(I135=0,\" \",IF($B$1=H136,I135,\" \"))","v":" "}," "," "," "," "," "," "," "," "," "," "," "," "," "," "," "," ","                    "]
[null,36," "," "," "," "," "," "," "," "," "," "," "," "," "," "," "," "," "," "," "," ","                    "]
[null,37," "," "," "," "," "," "," "," "," "," "," "," "," "," "," "," "," "," "," "," ","                    "]
[null,38," "," "," "," "," "," "," "," "," "," "," "," "," "," "," "," "," "," "," "," ","                    "]
[null,39," "," "," "," "," "," "," "," "," "," "," "," "," "," "," "," "," "," "," "," ","                    "]
[null,40," "," "," "," "," "," "," "," "," "," "," "," "," "," "," "," "," "," "," "," ","                    "]
[null,41," "," "," "," "," "," "," "," "," "," "," "," "," "," "," "," "," "," "," "," ","                    "]
[null,42," "," ",{"$f":"IF(G143=0,\" \",IF($B$1=F143,G143,\" \"))","v":" "}," "," "," "," "," "," ",{"$f":"IF(U143=0,\" \",IF($B$1=T143,U143,\" \"))","v":" "}," "," "," "," "," "," "," "," "," "," ","                    "]
[null,43," "," "," "," "," "," "," "," "," "," "," "," "," "," "," "," "," "," "," "," ","                    "]
[null,44," "," "," "," "," "," "," "," "," "," "," "," "," "," "," "," "," "," "," "," ","                    "]
[null,45," "," "," "," "," "," "," "," "," "," "," "," "," "," "," "," "," "," "," "," ","                    "]
[null,46," "," "," "," "," "," "," "," "," "," "," "," "," "," "," "," "," "," "," "," ","                    "]
[null,47," "," "," "," "," "," "," "," "," "," "," "," "," "," "," "," "," "," "," "," ","                    "]
[null,48," "," "," "," "," "," "," "," "," "," "," "," "," "," "," "," "," "," "," "," ","                    "]
[null,49," "," "," "," "," "," "," "," "," "," "," "," "," "," "," "," "," "," "," "," ","                    "]
[null,50," "," "," "," "," "," "," "," "," "," "," "," "," "," "," "," "," "," "," "," ","                    "]
[null,51," "," "," "," "," "," "," "," "," "," "," "," "," "," "," "," "," "," "," "," ","                    "]
[null,52," "," "," "," "," "," "," "," "," "," "," "," "," "," "," "," "," "," "," "," ","                    "]
[null,53," "," "," "," "," "," "," "," "," "," "," "," "," "," "," "," "," "," "," "," ","                    "]
[null,54," "," "," "," "," "," "," "," "," "," "," "," "," "," "," "," "," "," "," "," ","                    "]
[null,55,{"$f":"IF(C156=0,\" \",IF($B$1=B156,C156,\" \"))","v":" "}," "," "," "," "," "," "," "," "," "," "," "," "," "," "," "," "," "," "," ","                    "]
[null,56," "," "," "," "," "," "," "," "," "," "," "," "," "," "," "," "," "," "," "," ","                    "]
[null,57," "," "," "," "," "," "," "," "," "," "," "," "," "," "," "," "," "," "," "," ","                    "]
[null,58," "," "," "," "," "," "," "," ",{"$f":"IF(S159=0,\" \",IF($B$1=R159,S159,\" \"))","v":" "}," "," "," "," "," "," "," "," "," "," "," ","                    "]
[null,59," "," "," "," "," "," "," "," "," "," ",{"$f":"IF(W160=0,\" \",IF($B$1=V160,W160,\" \"))","v":" "},{"$f":"IF(Y160=0,\" \",IF($B$1=X160,Y160,\" \"))","v":" "}," ",{"$f":"IF(AC160=0,\" \",IF($B$1=AB160,AC160,\" \"))","v":" "}," "," "," "," "," "," ","                    "]
[null,60," "," "," "," "," "," "," "," "," "," "," "," "," "," "," "," "," "," "," "," ","                    "]
[null,61," "," "," "," "," "," "," "," "," "," "," "," "," "," "," "," "," "," "," "," ","                    "]
[null,62," "," "," "," "," "," "," "," "," "," "," "," "," "," "," "," "," "," "," "," ","                    "]
[null,63," "," "," "," "," "," "," "," "," "," "," "," "," "," "," "," "," "," "," "," ","                    "]
[null,64," "," "," "," "," "," "," "," "," "," "," "," "," "," "," "," "," "," "," "," ","                    "]
[null,65," "," "," "," "," "," "," "," "," "," "," "," "," "," "," "," "," "," "," "," ","                    "]
[null,66,{"$f":"IF(C167=0,\" \",IF($B$1=B167,C167,\" \"))","v":" "},{"$f":"IF(E167=0,\" \",IF($B$1=D167,E167,\" \"))","v":" "},{"$f":"IF(G167=0,\" \",IF($B$1=F167,G167,\" \"))","v":" "},{"$f":"IF(I167=0,\" \",IF($B$1=H167,I167,\" \"))","v":" "},{"$f":"IF(K167=0,\" \",IF($B$1=J167,K167,\" \"))","v":" "},{"$f":"IF(M167=0,\" \",IF($B$1=L167,M167,\" \"))","v":" "},{"$f":"IF(O167=0,\" \",IF($B$1=N167,O167,\" \"))","v":" "},{"$f":"IF(Q167=0,\" \",IF($B$1=P167,Q167,\" \"))","v":" "},{"$f":"IF(S167=0,\" \",IF($B$1=R167,S167,\" \"))","v":" "},{"$f":"IF(U167=0,\" \",IF($B$1=T167,U167,\" \"))","v":" "},{"$f":"IF(W167=0,\" \",IF($B$1=V167,W167,\" \"))","v":" "},{"$f":"IF(Y167=0,\" \",IF($B$1=X167,Y167,\" \"))","v":" "},{"$f":"IF(AA167=0,\" \",IF($B$1=Z167,AA167,\" \"))","v":" "},{"$f":"IF(AC167=0,\" \",IF($B$1=AB167,AC167,\" \"))","v":" "},{"$f":"IF(AE167=0,\" \",IF($B$1=AD167,AE167,\" \"))","v":" "}," "," "," "," "," ",{"$f":"C72&D72&E72&F72&G72&H72&I72&J72&K72&L72&M72&N72&O72&P72&Q72&R72&S72&T72&U72&V72","v":"                    "}]
[null,67," "," "," "," "," "," "," "," "," "," "," "," "," "," "," "," "," "," "," "," ","                    "]
[null,68," "," "," "," "," "," "," "," "," "," "," "," "," "," "," "," "," "," "," "," ","                    "]
[null,69," "," "," "," "," "," "," "," "," "," "," "," "," "," "," "," "," "," "," "," ","                    "]
[]
[]
[]
[null,1,"Bezirksforstinspektionen von STEIERMARK",null,"Bitte Einreichstelle auswählen:",null," "]
[null,2,"BRUCK-MÜRZZUSCHLAG",null,"BH BRUCK-MÜRZZUSCHLAG/ BFI",null," "]
[null,3,"DEUTSCHLANDSBERG",null,"BH DEUTSCHLANDSBERG / BFI",null," "]
[null,4,"SÜDOSTSTEIERMARK",null,"BH SÜDOSTSTEIERMARK / BFI",null,null," "]
[null,5,"GRAZ / GU",null,"BH GU / BFI",null,null," "]
[null,6,"HARTBERG-FÜRSTENFELD",null,"BH HARTBERG-FÜRSTENFELD / BFI",null,null," "]
[null,7,"MURTAL",null,"BH MURTAL / BFI",null,null," "]
[null,8,"LEIBNITZ",null,"BH LEIBNITZ / BFI",null,null," "]
[null,9,"LEOBEN",null,"BH LEOBEN / BFI",null,null," "]
[null,10,"LIEZEN",null,"BH LIEZEN / BFI"]
[null,11,"MURAU",null,"BH MURAU / BFI"]
[null,12,"VOITSBERG",null,"BH VOITSBERG / BFI"]
[null,13,"WEIZ",null,"BH WEIZ / BFI"]
[null,14]
[null,15]
[null,16]
[null,17]
[null,18]
[null,19]
[null,20]
[]
["EINGABEBEREICH:",null,"BFI Gemeinden"]
[null,"BFI1_ Zu-ordnung","BFI1/Gemeinden","BFI2_ Zu-ordnung","BFI2/Gemeinden","BFI3_ Zu-ordnung","BFI3/Gemeinden","BFI4_ Zu-ordnung","BFI4/Gemeinden","BFI5_ Zu-ordnung","BFI5/Gemeinden","BFI6_ Zu-ordnung","BFI6/Gemeinden","BFI7_ Zu-ordnung","BFI7/Gemeinden","BFI8_ Zu-ordnung","BFI8/Gemeinden","BFI9_ Zu-ordnung","BFI9/Gemeinden","BFI10_ Zu-ordnung","BFI10/Gemeinden","BFI11_ Zu-ordnung","BFI11/Gemeinden","BFI12_ Zu-ordnung","BFI12/Gemeinden","BFI13_ Zu-ordnung","BFI13/Gemeinden","BFI14_ Zu-ordnung","BFI114/Gemeinden","BFI15_ Zu-ordnung","BFI15/Gemeinden","BFI16_ Zu-ordnung","BFI16/Gemeinden","BFI17_ Zu-ordnung","BFI17/Gemeinden","BFI18_ Zu-ordnung","BFI18/Gemeinden","BFI9_ Zu-ordnung","BFI19/Gemeinden","BFI20_ Zu-ordnung","BFI20/Gemeinden"]
[1,2,"BRUCK-MÜRZZUSCHLAG/ Aflenz",3,"DEUTSCHLANDSBERG/ Deutschlandsberg",4,"SÜDOSTSTEIERMARK / Bad Gleichenberg",5,"GRAZ-UMGEBUNG/ Deutschfeistritz",6,"HARTBERG-FÜRSTENFELD / Bad Blumau",7,"MURTAL/ Fohnsdorf",8,"LEIBNITZ/ Allerheiligen bei Wildon",9,"LEOBEN/ Eisenerz",10,"LIEZEN/ Admont",11,"MURAU/ Krakau",12,"VOITSBERG/ Bärnbach",13,"WEIZ/ Albersdorf-Prebuch",14,null,15,null,16,null,17,null,18,null,19,null,20,null,21]
[2,2,"BRUCK-MÜRZZUSCHLAG/ Breitenau am Hochlantsch",3,"DEUTSCHLANDSBERG/ Eibiswald",4,"SÜDOSTSTEIERMARK / Bad Radkersburg",5,"GRAZ-UMGEBUNG/ Dobl-Zwaring",6,"HARTBERG-FÜRSTENFELD / Bad Waltersdorf",7,"MURTAL/ Gaal",8,"LEIBNITZ/ Arnfels",9,"LEOBEN/ Kalwang",10,"LIEZEN/ Aich",11,"MURAU/ Mühlen",12,"VOITSBERG/ Edelschrott",13,"WEIZ/ Anger",14,null,15,null,16,null,17,null,18,null,19,null,20,null,21]
[3,2,"BRUCK-MÜRZZUSCHLAG/ Bruck an der Mur",3,"DEUTSCHLANDSBERG/ Frauental an der Laßnitz",4,"SÜDOSTSTEIERMARK / Deutsch Goritz",5,"GRAZ-UMGEBUNG/ Eggersdorf bei Graz",6,"HARTBERG-FÜRSTENFELD / Buch-St. Magdalena",7,"MURTAL/ Hohentauern",8,"LEIBNITZ/ Ehrenhausen an der Weinstraße",9,"LEOBEN/ Kammern im Liesingtal",10,"LIEZEN/ Aigen im Ennstal",11,"MURAU/ Murau",12,"VOITSBERG/ Geistthal-Södingberg",13,"WEIZ/ Birkfeld",14,null,15,null,16,null,17,null,18,null,19,null,20,null,21]
[4,2,"BRUCK-MÜRZZUSCHLAG/ Kapfenberg",3,"DEUTSCHLANDSBERG/ Groß Sankt Florian",4,"SÜDOSTSTEIERMARK / Edelsbach bei Feldbach",5,"GRAZ-UMGEBUNG/ Feldkirchen bei Graz",6,"HARTBERG-FÜRSTENFELD / Burgau",7,"MURTAL/ Judenburg",8,"LEIBNITZ/ Empersdorf",9,"LEOBEN/ Kraubath an der Mur",10,"LIEZEN/ Altaussee",11,"MURAU/ Neumarkt in der Steiermark",12,"VOITSBERG/ Hirschegg-Pack",13,"WEIZ/ Fischbach",14,null,15,null,16,null,17,null,18,null,19,null,20,null,21]
[5,2,"BRUCK-MÜRZZUSCHLAG/ Kindberg",3,"DEUTSCHLANDSBERG/ Lannach",4,"SÜDOSTSTEIERMARK / Eichkögl",5,"GRAZ-UMGEBUNG/ Fernitz-Mellach",6,"HARTBERG-FÜRSTENFELD / Dechantskirchen",7,"MURTAL/ Knittelfeld",8,"LEIBNITZ/ Gabersdorf",9,"LEOBEN/ Leoben",10,"LIEZEN/ Altenmarkt bei Sankt Gallen",11,"MURAU/ Niederwölz",12,"VOITSBERG/ Kainach bei Voitsberg",13,"WEIZ/ Fladnitz an der Teichalm",14,null,15,null,16,null,17,null,18,null,19,null,20,null,21]
[6,2,"BRUCK-MÜRZZUSCHLAG/ Krieglach",3,"DEUTSCHLANDSBERG/ Pölfing-Brunn",4,"SÜDOSTSTEIERMARK / Fehring",5,"GRAZ-UMGEBUNG/ Frohnleiten",6,"HARTBERG-FÜRSTENFELD / Ebersdorf",7,"MURTAL/ Kobenz",8,"LEIBNITZ/ Gamlitz",9,"LEOBEN/ Mautern in Steiermark",10,"LIEZEN/ Ardning",11,"MURAU/ Oberwölz",12,"VOITSBERG/ Köflach",13,"WEIZ/ Floing",14,null,15,null,16,null,17,null,18,null,19,null,20,null,21]
[7,2,"BRUCK-MÜRZZUSCHLAG/ Langenwang",3,"DEUTSCHLANDSBERG/ Preding",4,"SÜDOSTSTEIERMARK / Feldbach",5,"GRAZ-UMGEBUNG/ Gössendorf",6,"HARTBERG-FÜRSTENFELD / Feistritztal",7,"MURTAL/ Lobmingtal",8,"LEIBNITZ/ Gleinstätten",9,"LEOBEN/ Niklasdorf",10,"LIEZEN/ Bad Aussee",11,"MURAU/ Ranten",12,"VOITSBERG/ Krottendorf-Gaisfeld",13,"WEIZ/ Gasen",14,null,15,null,16,null,17,null,18,null,19,null,20,null,21]
[8,2,"BRUCK-MÜRZZUSCHLAG/ Mariazell",3,"DEUTSCHLANDSBERG/ Sankt Josef (Weststeiermark)",4,"SÜDOSTSTEIERMARK / Gnas",5,"GRAZ-UMGEBUNG/ Gratkorn",6,"HARTBERG-FÜRSTENFELD / Friedberg",7,"MURTAL/ Obdach",8,"LEIBNITZ/ Gralla",9,"LEOBEN/ Proleb",10,"LIEZEN/ Bad Mitterndorf",11,"MURAU/ Sankt Georgen am Kreischberg",12,"VOITSBERG/ Ligist",13,"WEIZ/ Gersdorf an der Feistritz",14,null,15,null,16,null,17,null,18,null,19,null,20,null,21]
[9,2,"BRUCK-MÜRZZUSCHLAG/ Mürzzuschlag",3,"DEUTSCHLANDSBERG/ Sankt Martin im Sulmtal",4,"SÜDOSTSTEIERMARK / Halbenrain",5,"GRAZ-UMGEBUNG/ Gratwein-Straßengel",6,"HARTBERG-FÜRSTENFELD / Fürstenfeld",7,"MURTAL/ Pöls-Oberkurzheim",8,"LEIBNITZ/ Großklein",9,"LEOBEN/ Radmer",10,"LIEZEN/ Gaishorn am See",11,"MURAU/ Sankt Lambrecht",12,"VOITSBERG/ Maria Lankowitz",13,"WEIZ/ Gleisdorf",14,null,15,null,16,null,17,null,18,null,19,null,20,null,21]
[10,2,"BRUCK-MÜRZZUSCHLAG/ Neuberg an der Mürz",3,"DEUTSCHLANDSBERG/ Sankt Peter im Sulmtal",4,"SÜDOSTSTEIERMARK / Jagerberg",5,"GRAZ-UMGEBUNG/ Hart bei Graz",6,"HARTBERG-FÜRSTENFELD / Grafendorf bei Hartberg",7,"MURTAL/ Pölstal",8,"LEIBNITZ/ Heiligenkreuz am Waasen",9,"LEOBEN/ Sankt Michael in Obersteiermark",10,"LIEZEN/ Gröbming",11,"MURAU/ Scheifling",12,"VOITSBERG/ Mooskirchen",13,"WEIZ/ Gutenberg-Stenzengreith",14,null,15,null,16,null,17,null,18,null,19,null,20,null,21]
[11,2,"BRUCK-MÜRZZUSCHLAG/ Pernegg an der Mur",3,"DEUTSCHLANDSBERG/ Sankt Stefan ob Stainz",4,"SÜDOSTSTEIERMARK / Kapfenstein",5,"GRAZ-UMGEBUNG/ Haselsdorf-Tobelbad",6,"HARTBERG-FÜRSTENFELD / Greinbach",7,"MURTAL/ Pusterwald",8,"LEIBNITZ/ Heimschuh",9,"LEOBEN/ Sankt Peter-Freienstein",10,"LIEZEN/ Grundlsee",11,"MURAU/ Schöder",12,"VOITSBERG/ Rosental an der Kainach",13,"WEIZ/ Hofstätten an der Raab",14,null,15,null,16,null,17,null,18,null,19,null,20,null,21]
[12,2,"BRUCK-MÜRZZUSCHLAG/ Sankt Barbara im Mürztal",3,"DEUTSCHLANDSBERG/ Schwanberg",4,"SÜDOSTSTEIERMARK / Kirchbach-Zerlach",5,"GRAZ-UMGEBUNG/ Hausmannstätten",6,"HARTBERG-FÜRSTENFELD / Großsteinbach",7,"MURTAL/ Sankt Georgen ob Judenburg",8,"LEIBNITZ/ Hengsberg",9,"LEOBEN/ Sankt Stefan ob Leoben",10,"LIEZEN/ Haus",11,"MURAU/ St. Peter am Kammersberg",12,"VOITSBERG/ Sankt Martin am Wöllmißberg",13,"WEIZ/ Ilztal",14,null,15,null,16,null,17,null,18,null,19,null,20,null,21]
[13,2,"BRUCK-MÜRZZUSCHLAG/ Sankt Lorenzen im Mürztal",3,"DEUTSCHLANDSBERG/ Stainz",4,"SÜDOSTSTEIERMARK / Kirchberg an der Raab",5,"GRAZ-UMGEBUNG/ Hitzendorf",6,"HARTBERG-FÜRSTENFELD / Großwilfersdorf",7,"MURTAL/ Sankt Marein-Feistritz",8,"LEIBNITZ/ Kitzeck im Sausal",9,"LEOBEN/ Traboch",10,"LIEZEN/ Irdning-Donnersbachtal",11,"MURAU/ Stadl-Predlitz",12,"VOITSBERG/ Söding-Sankt Johann",13,"WEIZ/ Ludersdorf-Wilfersdorf",14,null,15,null,16,null,17,null,18,null,19,null,20,null,21]
[14,2,"BRUCK-MÜRZZUSCHLAG/ Sankt Marein im Mürztal",3,"DEUTSCHLANDSBERG/ Wettmannstätten",4,"SÜDOSTSTEIERMARK / Klöch",5,"GRAZ-UMGEBUNG/ Kainbach bei Graz",6,"HARTBERG-FÜRSTENFELD / Hartberg",7,"MURTAL/ Sankt Margarethen bei Knittelfeld",8,"LEIBNITZ/ Lang",9,"LEOBEN/ Trofaiach",10,"LIEZEN/ Landl",11,"MURAU/ Teufenbach-Katsch",12,"VOITSBERG/ Stallhofen",13,"WEIZ/ Markt Hartmannsdorf",14,null,15,null,16,null,17,null,18,null,19,null,20,null,21]
[15,2,"BRUCK-MÜRZZUSCHLAG/ Spital am Semmering",3,"DEUTSCHLANDSBERG/ Wies",4,"SÜDOSTSTEIERMARK / Mettersdorf am Saßbach",5,"GRAZ-UMGEBUNG/ Kalsdorf bei Graz",6,"HARTBERG-FÜRSTENFELD / Hartberg Umgebung",7,"MURTAL/ Sankt Peter ob Judenburg",8,"LEIBNITZ/ Lebring-Sankt Margarethen",9,"LEOBEN/ Vordernberg",10,"LIEZEN/ Lassing",null,null,12,"VOITSBERG/ Voitsberg",13,"WEIZ/ Miesenbach bei Birkfeld",14,null,15,null,16,null,17,null,18,null,19,null,20,null,21]
[16,2,"BRUCK-MÜRZZUSCHLAG/ Stanz im Mürztal",null,null,4,"SÜDOSTSTEIERMARK / Mureck",5,"GRAZ-UMGEBUNG/ Kumberg",6,"HARTBERG-FÜRSTENFELD / Hartl",7,"MURTAL/ Seckau",8,"LEIBNITZ/ Leibnitz",9,"LEOBEN/ Wald am Schoberpaß",10,"LIEZEN/ Liezen",null,null,null,null,13,"WEIZ/ Mitterdorf an der Raab",14,null,15,null,16,null,17,null,18,null,19,null,20,null,21]
[17,2,"BRUCK-MÜRZZUSCHLAG/ Thörl",null,null,4,"SÜDOSTSTEIERMARK / Murfeld",5,"GRAZ-UMGEBUNG/ Laßnitzhöhe",6,"HARTBERG-FÜRSTENFELD / Ilz",7,"MURTAL/ Spielberg",8,"LEIBNITZ/ Leutschach an der Weinstraße",null,null,10,"LIEZEN/ Michaelerberg-Pruggern",null,null,null,null,13,"WEIZ/ Mortantsch",14,null,15,null,16,null,17,null,18,null,19,null,20,null,21]
[18,2,"BRUCK-MÜRZZUSCHLAG/ Tragöß-Sankt Katharein",null,null,4,"SÜDOSTSTEIERMARK / Paldau",5,"GRAZ-UMGEBUNG/ Lieboch",6,"HARTBERG-FÜRSTENFELD / Kaindorf",7,"MURTAL/ Unzmarkt-Frauenburg",8,"LEIBNITZ/ Oberhaag",null,null,10,"LIEZEN/ Mitterberg-Sankt Martin",null,null,null,null,13,"WEIZ/ Naas",14,null,15,null,16,null,17,null,18,null,19,null,20,null,21]
[19,2,"BRUCK-MÜRZZUSCHLAG/ Turnau",null,null,4,"SÜDOSTSTEIERMARK / Pirching am Traubenberg",5,"GRAZ-UMGEBUNG/ Nestelbach bei Graz",6,"HARTBERG-FÜRSTENFELD / Lafnitz",7,"MURTAL/ Weißkirchen in Steiermark",8,"LEIBNITZ/ Ragnitz",null,null,10,"LIEZEN/ Öblarn",null,null,null,null,13,"WEIZ/ Passail",14,null,15,null,16,null,17,null,18,null,19,null,20,null,21]
[20,null,null,null,null,4,"SÜDOSTSTEIERMARK / Riegersburg",5,"GRAZ-UMGEBUNG/ Peggau",6,"HARTBERG-FÜRSTENFELD / Loipersdorf bei Fürstenfeld",7,"MURTAL/ Zeltweg",8,"LEIBNITZ/ Sankt Andrä-Höch",null,null,10,"LIEZEN/ Ramsau am Dachstein",null,null,null,null,13,"WEIZ/ Pischelsdorf am Kulm",14,null,15,null,16,null,17,null,18,null,19,null,20,null,21]
[21,null,null,null,null,4,"SÜDOSTSTEIERMARK / Sankt Anna am Aigen",5,"GRAZ-UMGEBUNG/ Premstätten",6,"HARTBERG-FÜRSTENFELD / Neudau",null,null,8,"LEIBNITZ/ Sankt Georgen an der Stiefing",null,null,10,"LIEZEN/ Rottenmann",null,null,null,null,13,"WEIZ/ Puch bei Weiz",14,null,15,null,16,null,17,null,18,null,19,null,20,null,21]
[22,null,null,null,null,4,"SÜDOSTSTEIERMARK / Sankt Peter am Ottersbach",5,"GRAZ-UMGEBUNG/ Raaba-Grambach",6,"HARTBERG-FÜRSTENFELD / Ottendorf an der Rittschein",null,null,8,"LEIBNITZ/ Sankt Johann im Saggautal",null,null,10,"LIEZEN/ Sankt Gallen",null,null,null,null,13,"WEIZ/ Ratten",14,null,15,null,16,null,17,null,18,null,19,null,20,null,21]
[23,null,null,null,null,4,"SÜDOSTSTEIERMARK / Sankt Stefan im Rosental",5,"GRAZ-UMGEBUNG/ Sankt Bartholomä",6,"HARTBERG-FÜRSTENFELD / Pinggau",null,null,8,"LEIBNITZ/ Sankt Nikolai im Sausal",null,null,10,"LIEZEN/ Schladming"," ",null,null,null,13,"WEIZ/ Rettenegg",14,null,15,null,16,null,17,null,18,null,19,null,20,null,21]
[24,null,null,null,null,4,"SÜDOSTSTEIERMARK / Straden",5,"GRAZ-UMGEBUNG/ Sankt Marein bei Graz",6,"HARTBERG-FÜRSTENFELD / Pöllau",null,null,8,"LEIBNITZ/ Sankt Veit in der Südsteiermark",null,null,10,"LIEZEN/ Selzthal",null,null,null,null,13,"WEIZ/ Sankt Kathrein am Offenegg",14,null,15,null,16,null,17,null,18,null,19,null,20,null,21]
[25,null,null,null,null,4,"SÜDOSTSTEIERMARK / Tieschen",5,"GRAZ-UMGEBUNG/ Sankt Oswald bei Plankenwarth",6,"HARTBERG-FÜRSTENFELD / Pöllauberg",null,null,8,"LEIBNITZ/ Schwarzautal",null,null,10,"LIEZEN/ Sölk",null,null,null,null,13,"WEIZ/ Sankt Ruprecht an der Raab",14,null,15,null,16,null,17,null,18,null,19,null,20,null,21]
[26,null,null,null,null,4,"SÜDOSTSTEIERMARK / Unterlamm",5,"GRAZ-UMGEBUNG/ Sankt Radegund bei Graz",6,"HARTBERG-FÜRSTENFELD / Rohr bei Hartberg",null,null,8,"LEIBNITZ/ Straß in Steiermark",null,null,10,"LIEZEN/ Stainach-Pürgg",null,null,null,null,13,"WEIZ/ Sinabelkirchen",14,null,15,null,16,null,17,null,18,null,19,null,20,null,21]
[27,null,null,null,null,4,null,5,"GRAZ-UMGEBUNG/ Seiersberg-Pirka",6,"HARTBERG-FÜRSTENFELD / Rohrbach an der Lafnitz",null,null,8,"LEIBNITZ/ Tillmitsch",null,null,10,"LIEZEN/ Trieben",null,null,null,null,13,"WEIZ/ St. Kathrein am Hauenstein",14,null,15,null,16,null,17,null,18,null,19,null,20,null,21]
[28,null,null,null,null,null,null,5,"GRAZ-UMGEBUNG/ Semriach",6,"HARTBERG-FÜRSTENFELD / Sankt Jakob im Walde",null,null,8,"LEIBNITZ/ Wagna",null,null,10,"LIEZEN/ Wildalpen",null,null,null,null,13,"WEIZ/ St. Margarethen an der Raab",14,null,15,null,16,null,17,null,18,null,19,null,20,null,21]
[29,null,null,null,null,null,null,5,"GRAZ-UMGEBUNG/ Stattegg",6,"HARTBERG-FÜRSTENFELD / Sankt Johann in der Haide",null,null,8,"LEIBNITZ/ Wildon",null,null,10,"LIEZEN/ Wörschach",null,null," ",null,13,"WEIZ/ Strallegg",14,null,15,null,16,null,17,null,18,null,19,null,20,null,21]
[30,null,null,null,null,null,null,5,"GRAZ-UMGEBUNG/ Stiwoll",6,"HARTBERG-FÜRSTENFELD / Sankt Lorenzen am Wechsel",null,null,null,null,null,null,null,null,null,null,null,null,13,"WEIZ/ Thannhausen",null,null,15,null,16,null,17,null,18,null,19,null,20,null,21]
[31,null,null,null,null,null,null,5,"GRAZ-UMGEBUNG/ Thal",6,"HARTBERG-FÜRSTENFELD / Schäffern",null,null,null,null,null,null,null,null,null,null,null,null,13,"WEIZ/ Weiz",null,null,15,null,16,null,17,null,18,null,19,null,20,null,21]
[32,null,null,null,null,null,null,5,"GRAZ-UMGEBUNG/ Übelbach",6,"HARTBERG-FÜRSTENFELD / Söchau",null,null,null,null,null,null,null,null,null,null,null,null,null,null,null,null,15,null,16,null,17,null,18,null,19,null,20,null,21]
[33,null,null,null,null,null,null,5,"GRAZ-UMGEBUNG/ Vasoldsberg",6,"HARTBERG-FÜRSTENFELD / Stubenberg",null,null,null,null,null,null,null,null,null,null,null,null,null,null,null,null,15,null,16,null,17,null,18,null,19,null,20,null,21]
[34,null,null,null,null,null,null,5,"GRAZ-UMGEBUNG/ Weinitzen",6,"HARTBERG-FÜRSTENFELD / Vorau",null,null,null,null,null,null,null,null,null,null,null,null,null,null,null,null,15,null,16,null,17,null,18,null,19,null,20,null,21]
[35,null,null,null,null,null,null,5,"GRAZ-UMGEBUNG/ Werndorf",6,"HARTBERG-FÜRSTENFELD / Waldbach-Mönichwald",null,null,null,null,null,null,null,null,null,null,null,null,null,null,null,null,15,null,16,null,17,null,18,null,19,null,20,null,21]
[36,null,null,null,null,null,null,5,"GRAZ-UMGEBUNG/ Wundschuh",6,"HARTBERG-FÜRSTENFELD / Wenigzell",null,null,null,null,null,null,null,null,null,null,null,null,null,null,null,null,15,null,16,null,17,null,18,null,19,null,20,null,21]
[37,null,null,null,null,null,null,null,null,null,null,null,null,null,null,null,null,null,null,null,null,null,null,null,null,null,null,15,null,16,null,17,null,18,null,19,null,20,null,21]
[38,null,null,null,null,null,null,null,null,null,null,null,null,null,null,null,null,null,null,null,null,null,null,null,null,null,null,15,null,16,null,17,null,18,null,19,null,20,null,21]
[39,null,null,null,null,null,null,null,null,null,null,null,null,null,null,null,null,null,null,null,null,null,null,null,null,null,null,15,null,16,null,17,null,18,null,19,null,20,null,21]
[40,null,null,null,null,null,null,null,null,null,null,null,null,null,null,null,null,null,null,null,null,null,null,null,null,null,null,15,null,16,null,17,null,18,null,19,null,20,null,21]
[41,null,null,null,null,null,null,null,null,null,null,null,null,null,null,null,null,null,null,null,null,null,null,null,null,null,null,15,null,16,null,17,null,18,null,19,null,20,null,21]
[42,null,null,null,null,null,null,null,null,null,null,null,null,null,null,null,null,null,null,null,null,null,null,null,null,null,null,15,null,16,null,17,null,18,null,19,null,20,null,21]
[43,null,null,null,null,null,null,null,null,null,null,null,null,null,null,null,null,null,null,null,null,null,null,null,null,null,null,15,null,16,null,17,null,18,null,19,null,20,null,21]
[44,null,null,null,null,null,null,null,null,null,null,null,null,null,null,null,null,null,null,null,null,null,null,null,null,null,null,15,null,16,null,17,null,18,null,19,null,20,null,21]
[45,null,null,null,null,null,null,null,null,null,null,null,null,null,null,null,null,null,null,null,null,null,null,null,null,null,null,15,null,16,null,17,null,18,null,19,null,20,null,21]
[46,null,null,null,null,null,null,null,null,null,null,null,null,null,null,null,null,null,null,null,null,null,null,null,null,null,null,15,null,16,null,17,null,18,null,19,null,20,null,21]
[47,null,null,null,null,null,null,null,null,null,null,null,null,null,null,null,null,null,null,null,null,null,null,null,null,null,null,15,null,16,null,17,null,18,null,19,null,20,null,21]
[48,null,null,null,null,null,null,null,null,null,null,null,null,null,null,null,null,null,null,null,null,null,null,null,null,null,null,15,null,16,null,17,null,18,null,19,null,20,null,21]
[49,null,null,null,null,null,null,null,null,null,null,null,null,null,null,null,null,null,null,null,null,null,null,null,null,null,null,15,null,16,null,17,null,18,null,19,null,20,null,21]
[50,null,null,null,null,null,null,null,null,null,null,null,null,null,null,null,null,null,null,null,null,null,null,null,null,null,null,15,null,16,null,17,null,18,null,19,null,20,null,21]
[51,null,null,null,null,null,null,null,null,null,null,null,null,null,null,null,null,null,null,null,null,null,null,null,null,null,null,15,null,16,null,17,null,18,null,19,null,20,null,21]
[52,null,null,null,null,null,null,null,null,null,null,null,null,null,null,null,null,null,null,null,null,null,null,null,null,null,null,15,null,16,null,17,null,18,null,19,null,20,null,21]
[53,null,null,null,null,null,null,null,null,null,null,null,null,null,null,null,null,null,null,null,null,null,null,null,null,null,null,15,null,16,null,17,null,18,null,19,null,20,null,21]
[54,null,null,null,null,null,null,null,null,null,null,null,null,null,null,null,null,null,null,null,null,null,null,null,null,null,null,15,null,16,null,17,null,18,null,19,null,20,null,21]
[null,null,null,null,null,null,null,null,null,null,null,null,null,null,null,null,null,null,null,null,null,null,null,null,null,null,null,15,null,16,null,17,null,18,null,19,null,20,null,21]
[null,null,null,null,null,null,null,null,null,null,null,null,null,null,null,null,null,null,null,null,null,null,null,null,null,null,null,15,null,16,null,17,null,18,null,19,null,20,null,21]
[null,null,null,null,null,null,null,null,null,null,null,null,null,null,null,null,null,null,null,null,null,null,null,null,null,null,null,15,null,16,null,17,null,18,null,19,null,20,null,21]
[null,null,null,null,null,null,null,null,null,null,null,null,null,null,null,null,null,null,null,null,null,null,null,null,null,null,null,15,null,16,null,17,null,18,null,19,null,20,null,21]
[null,null,null,null,null,null,null,null,null,null,null,null,null,null,null,null,null,null,null,null,null,null,null,null,null,null,null,null,null,16,null,17,null,18,null,19,null,20,null,21]
[null,null,null,null,null,null,null,null,null,null,null,null,null,null,null,null,null,null,null,null,null,null,null,null,null,null,null,null,null,16,null,17,null,18,null,19,null,20,null,21]
[null,null,null,null,null,null,null,null,null,null,null,null,null,null,null,null,null,null,null,null,null,null,null,null,null,null,null,null,null,16,null,17,null,18,null,19,null,20,null,21]
[null,null,null,null,null,null,null,null,null,null,null,null,null,null,null,null,null,null,null,null,null,null,null,null,null,null,null,null,null,16,null,17,null,18,null,19,null,20,null,21]
[null,null,null,null,null,null,null,null,null,null,null,null,null,null,null,null,null,null,null,null,null,null,null,null,null,null,null,null,null,16,null,17,null,18,null,19,null,20,null,21]
[null,null,null,null,null,null,null,null,null,null,null,null,null,null,null,null,null,null,null,null,null,null,null,null,null,null,null,null,null,16,null,17,null,18,null,19,null,20,null,21]
[null,null,null,null,null,null,null," ",null,null,null,null,null,null,null,null,null,null,null,null,null,null,null,null,null,null,null,null,null,16,null,17,null,18,null,19,null,20,null,21]
[null,null,null,null,null,null,null,null,null,null,null,null,null,null,null,null,null,null,null,null,null,null,null,null,null,null,null,null,null,16,null,17,null,18,null,19,null,20,null,21]
[]
[null,null,"AUSWAHLSPALTE FORMULAR_GEMEINDE"]
["PLZ","Gemeinde","PLZ und  Gemeinden"]
[8911,"Admont","8911 Admont"]
[8623,"Aflenz Kurort","8623 Aflenz Kurort"]
[8966,"Aich-Assach","8966 Aich-Assach"]
[8943,"Aigen im Ennstal","8943 Aigen im Ennstal"]
[8412,"Allerheiligen bei Wildon","8412 Allerheiligen bei Wildon"]
[8643,"Allerheiligen im Mürztal","8643 Allerheiligen im Mürztal"]
[8671,"Alpl","8671 Alpl"]
[8992,"Altaussee","8992 Altaussee"]
[8934,"Altenmarkt bei St. Gallen","8934 Altenmarkt bei St. Gallen"]
[8184,"Anger","8184 Anger"]
[8904,"Ardning","8904 Ardning"]
[8454,"Arnfels","8454 Arnfels"]
[8624,"Au bei Aflenz Kurort","8624 Au bei Aflenz Kurort"]
[8990,"Bad Aussee","8990 Bad Aussee"]
[8283,"Bad Blumau","8283 Bad Blumau"]
[8524,"Bad Gams","8524 Bad Gams"]
[8344,"Bad Gleichenberg","8344 Bad Gleichenberg"]
[8983,"Bad Mitterndorf","8983 Bad Mitterndorf"]
[8490,"Bad Radkersburg","8490 Bad Radkersburg"]
[8271,"Bad Waltersdorf","8271 Bad Waltersdorf"]
[8572,"Bärnbach","8572 Bärnbach"]
[8190,"Birkfeld","8190 Birkfeld"]
[8731,"Bischoffeld","8731 Bischoffeld"]
[8614,"Breitenau am Hochlantsch","8614 Breitenau am Hochlantsch"]
[8313,"Breitenfeld an der Rittschein","8313 Breitenfeld an der Rittschein"]
[8251,"Bruck an der Lafnitz","8251 Bruck an der Lafnitz"]
[8600,"Bruck an der Mur","8600 Bruck an der Mur"]
[8274,"Buch bei Hartberg","8274 Buch bei Hartberg"]
[8291,"Burgau","8291 Burgau"]
[8241,"Dechantskirchen","8241 Dechantskirchen"]
[8483,"Deutsch Goritz","8483 Deutsch Goritz"]
[8121,"Deutschfeistritz","8121 Deutschfeistritz"]
[8530,"Deutschlandsberg","8530 Deutschlandsberg"]
[8143,"Dobl","8143 Dobl"]
[8953,"Donnersbach","8953 Donnersbach"]
[8663,"Dorf Veitsch","8663 Dorf Veitsch"]
[8273,"Ebersdorf bei Hartberg","8273 Ebersdorf bei Hartberg"]
[8332,"Edelsbach bei Feldbach","8332 Edelsbach bei Feldbach"]
[8583,"Edelschrott","8583 Edelschrott"]
[8063,"Eggersdorf bei Graz","8063 Eggersdorf bei Graz"]
[8461,"Ehrenhausen","8461 Ehrenhausen"]
[8552,"Eibiswald","8552 Eibiswald"]
[8790,"Eisenerz","8790 Eisenerz"]
[8622,"Etmißl","8622 Etmißl"]
[8350,"Fehring","8350 Fehring"]
[8330,"Feldbach","8330 Feldbach"]
[8073,"Feldkirchen bei Graz","8073 Feldkirchen bei Graz"]
[8072,"Fernitz bei Graz","8072 Fernitz bei Graz"]
[8654,"Fischbach","8654 Fischbach"]
[8163,"Fladnitz an der Teichalm","8163 Fladnitz an der Teichalm"]
[8183,"Floing","8183 Floing"]
[8753,"Fohnsdorf","8753 Fohnsdorf"]
[8523,"Frauental an der Laßnitz","8523 Frauental an der Laßnitz"]
[8694,"Frein an der Mürz","8694 Frein an der Mürz"]
[8441,"Fresing","8441 Fresing"]
[8240,"Friedberg","8240 Friedberg"]
[8130,"Frohnleiten","8130 Frohnleiten"]
[8841,"Frojach","8841 Frojach"]
[8280,"Fürstenfeld","8280 Fürstenfeld"]
[8424,"Gabersdorf","8424 Gabersdorf"]
[8783,"Gaishorn am See","8783 Gaishorn am See"]
[8462,"Gamlitz","8462 Gamlitz"]
[8922,"Gams bei Hieflau","8922 Gams bei Hieflau"]
[8616,"Gasen","8616 Gasen"]
[8153,"Geistthal","8153 Geistthal"]
[8443,"Gleinstätten","8443 Gleinstätten"]
[8200,"Gleisdorf","8200 Gleisdorf"]
[8342,"Gnas","8342 Gnas"]
[8635,"Gollrad","8635 Gollrad"]
[8482,"Gosdorf","8482 Gosdorf"]
[8077,"Gössendorf","8077 Gössendorf"]
[8593,"Graden bei Köflach","8593 Graden bei Köflach"]
[8232,"Grafendorf bei Hartberg","8232 Grafendorf bei Hartberg"]
[8431,"Gralla","8431 Gralla"]
[8101,"Gratkorn","8101 Gratkorn"]
[8112,"Gratwein","8112 Gratwein"]
[8010,"Graz","8010 Graz"]
[8020,"Graz","8020 Graz"]
[8036,"Graz","8036 Graz"]
[8045,"Graz-Andritz","8045 Graz-Andritz"]
[8051,"Graz-Gösting","8051 Graz-Gösting"]
[8043,"Graz-Kroisbach","8043 Graz-Kroisbach"]
[8041,"Graz-Liebenau","8041 Graz-Liebenau"]
[8044,"Graz-Mariatrost","8044 Graz-Mariatrost"]
[8053,"Graz-Neuhart","8053 Graz-Neuhart"]
[8055,"Graz-Puntigam","8055 Graz-Puntigam"]
[8047,"Graz-Ragnitz","8047 Graz-Ragnitz"]
[8042,"Graz-St. Peter","8042 Graz-St. Peter"]
[8046,"Graz-St. Veit","8046 Graz-St. Veit"]
[8054,"Graz-Straßgang","8054 Graz-Straßgang"]
[8052,"Graz-Wetzelsdorf","8052 Graz-Wetzelsdorf"]
[8962,"Gröbming","8962 Gröbming"]
[8522,"Groß St. Florian","8522 Groß St. Florian"]
[8452,"Großklein","8452 Großklein"]
[8734,"Großlobming","8734 Großlobming"]
[8211,"Großpesendorf","8211 Großpesendorf"]
[8265,"Großsteinbach","8265 Großsteinbach"]
[8664,"Großveitsch","8664 Großveitsch"]
[8263,"Großwilfersdorf","8263 Großwilfersdorf"]
[8993,"Grundlsee","8993 Grundlsee"]
[8632,"Gußwerk","8632 Gußwerk"]
[8264,"Hainersdorf","8264 Hainersdorf"]
[8492,"Halbenrain","8492 Halbenrain"]
[8075,"Hart bei Graz","8075 Hart bei Graz"]
[8230,"Hartberg","8230 Hartberg"]
[8361,"Hatzendorf","8361 Hatzendorf"]
[8967,"Haus","8967 Haus"]
[8071,"Hausmannstätten","8071 Hausmannstätten"]
[8172,"Heilbrunn","8172 Heilbrunn"]
[8081,"Heiligenkreuz am Waasen","8081 Heiligenkreuz am Waasen"]
[8451,"Heimschuh","8451 Heimschuh"]
[8411,"Hengsberg","8411 Hengsberg"]
[8920,"Hieflau","8920 Hieflau"]
[8221,"Hirnsdorf","8221 Hirnsdorf"]
[8584,"Hirschegg","8584 Hirschegg"]
[8151,"Hitzendorf","8151 Hitzendorf"]
[8785,"Hohentauern","8785 Hohentauern"]
[8262,"Ilz","8262 Ilz"]
[8952,"Irdning","8952 Irdning"]
[8091,"Jagerberg","8091 Jagerberg"]
[8912,"Johnsbach","8912 Johnsbach"]
[8750,"Judenburg","8750 Judenburg"]
[8111,"Judendorf-Straßengel","8111 Judendorf-Straßengel"]
[8573,"Kainach bei Voitsberg","8573 Kainach bei Voitsberg"]
[8224,"Kaindorf bei Hartberg","8224 Kaindorf bei Hartberg"]
[8984,"Kainisch","8984 Kainisch"]
[8401,"Kalsdorf bei Graz","8401 Kalsdorf bei Graz"]
[8775,"Kalwang","8775 Kalwang"]
[8773,"Kammern im Liesingtal","8773 Kammern im Liesingtal"]
[8691,"Kapellen","8691 Kapellen"]
[8605,"Kapfenberg","8605 Kapfenberg"]
[8353,"Kapfenstein","8353 Kapfenstein"]
[8842,"Katsch an der Mur","8842 Katsch an der Mur"]
[8650,"Kindberg","8650 Kindberg"]
[8652,"Kindberg-Aumühl","8652 Kindberg-Aumühl"]
[8082,"Kirchbach in Steiermark","8082 Kirchbach in Steiermark"]
[8324,"Kirchberg an der Raab","8324 Kirchberg an der Raab"]
[8442,"Kitzeck im Sausal","8442 Kitzeck im Sausal"]
[8493,"Klöch","8493 Klöch"]
[8720,"Knittelfeld","8720 Knittelfeld"]
[8723,"Kobenz","8723 Kobenz"]
[8580,"Köflach","8580 Köflach"]
[8191,"Koglhof","8191 Koglhof"]
[8854,"Krakaudorf","8854 Krakaudorf"]
[8714,"Kraubath an der Mur","8714 Kraubath an der Mur"]
[8670,"Krieglach","8670 Krieglach"]
[8564,"Krottendorf-Gaisfeld","8564 Krottendorf-Gaisfeld"]
[8062,"Kumberg","8062 Kumberg"]
[8233,"Lafnitz","8233 Lafnitz"]
[8921,"Lainbach","8921 Lainbach"]
[8931,"Landl","8931 Landl"]
[8665,"Langenwang","8665 Langenwang"]
[8502,"Lannach","8502 Lannach"]
[8903,"Lassing bei Selzthal","8903 Lassing bei Selzthal"]
[8301,"Laßnitzhöhe","8301 Laßnitzhöhe"]
[8403,"Lebring","8403 Lebring"]
[8430,"Leibnitz","8430 Leibnitz"]
[8700,"Leoben","8700 Leoben"]
[8463,"Leutschach","8463 Leutschach"]
[8501,"Lieboch","8501 Lieboch"]
[8940,"Liezen","8940 Liezen"]
[8563,"Ligist","8563 Ligist"]
[8334,"Lödersdorf","8334 Lödersdorf"]
[8282,"Loipersdorf bei Fürstenfeld","8282 Loipersdorf bei Fürstenfeld"]
[8974,"Mandling","8974 Mandling"]
[8591,"Maria Lankowitz","8591 Maria Lankowitz"]
[8812,"Mariahof","8812 Mariahof"]
[8630,"Mariazell","8630 Mariazell"]
[8311,"Markt Hartmannsdorf","8311 Markt Hartmannsdorf"]
[8774,"Mautern in Steiermark","8774 Mautern in Steiermark"]
[8092,"Mettersdorf am Saßbach","8092 Mettersdorf am Saßbach"]
[8662,"Mitterdorf im Mürztal","8662 Mitterdorf im Mürztal"]
[8131,"Mixnitz","8131 Mixnitz"]
[8763,"Möderbrugg","8763 Möderbrugg"]
[8252,"Mönichwald","8252 Mönichwald"]
[8562,"Mooskirchen","8562 Mooskirchen"]
[8822,"Mühlen","8822 Mühlen"]
[8850,"Murau","8850 Murau"]
[8480,"Mureck","8480 Mureck"]
[8644,"Mürzhofen","8644 Mürzhofen"]
[8693,"Mürzsteg","8693 Mürzsteg"]
[8680,"Mürzzuschlag","8680 Mürzzuschlag"]
[8682,"Mürzzuschlag-Hönigsberg","8682 Mürzzuschlag-Hönigsberg"]
[8302,"Nestelbach bei Graz","8302 Nestelbach bei Graz"]
[8692,"Neuberg an der Mürz","8692 Neuberg an der Mürz"]
[8292,"Neudau","8292 Neudau"]
[8820,"Neumarkt in Steiermark","8820 Neumarkt in Steiermark"]
[8831,"Niederwölz","8831 Niederwölz"]
[8712,"Niklasdorf","8712 Niklasdorf"]
[8742,"Obdach","8742 Obdach"]
[8455,"Oberhaag","8455 Oberhaag"]
[8832,"Oberwölz","8832 Oberwölz"]
[8762,"Oberzeiring","8762 Oberzeiring"]
[8960,"Öblarn","8960 Öblarn"]
[8312,"Ottendorf an der Rittschein","8312 Ottendorf an der Rittschein"]
[8341,"Paldau","8341 Paldau"]
[8923,"Palfau","8923 Palfau"]
[8162,"Passail","8162 Passail"]
[8120,"Peggau","8120 Peggau"]
[8132,"Pernegg an der Mur","8132 Pernegg an der Mur"]
[8973,"Pichl","8973 Pichl"]
[8243,"Pinggau","8243 Pinggau"]
[8212,"Pischelsdorf in der Steiermark","8212 Pischelsdorf in der Steiermark"]
[8544,"Pölfing-Brunn","8544 Pölfing-Brunn"]
[8225,"Pöllau bei Hartberg","8225 Pöllau bei Hartberg"]
[8761,"Pöls","8761 Pöls"]
[8504,"Preding","8504 Preding"]
[8863,"Predlitz","8863 Predlitz"]
[9451,"Preitenegg","9451 Preitenegg"]
[8965,"Pruggern","8965 Pruggern"]
[8182,"Puch bei Weiz","8182 Puch bei Weiz"]
[8764,"Pusterwald","8764 Pusterwald"]
[8074,"Raaba","8074 Raaba"]
[8795,"Radmer","8795 Radmer"]
[8972,"Ramsau am Dachstein","8972 Ramsau am Dachstein"]
[8853,"Ranten","8853 Ranten"]
[8673,"Ratten","8673 Ratten"]
[8103,"Rein","8103 Rein"]
[8674,"Rettenegg","8674 Rettenegg"]
[8333,"Riegersburg","8333 Riegersburg"]
[8234,"Rohrbach an der Lafnitz","8234 Rohrbach an der Lafnitz"]
[8971,"Rohrmoos-Untertal","8971 Rohrmoos-Untertal"]
[8582,"Rosental an der Kainach","8582 Rosental an der Kainach"]
[8786,"Rottenmann","8786 Rottenmann"]
[8592,"Salla","8592 Salla"]
[8244,"Schäffern","8244 Schäffern"]
[8811,"Scheifling","8811 Scheifling"]
[8970,"Schladming","8970 Schladming"]
[8844,"Schöder","8844 Schöder"]
[8541,"Schwanberg","8541 Schwanberg"]
[8272,"Sebersdorf","8272 Sebersdorf"]
[8732,"Seckau","8732 Seckau"]
[8636,"Seewiesen","8636 Seewiesen"]
[8900,"Selzthal","8900 Selzthal"]
[8102,"Semriach","8102 Semriach"]
[8261,"Sinabelkirchen","8261 Sinabelkirchen"]
[8554,"Soboth","8554 Soboth"]
[8362,"Söchau","8362 Söchau"]
[8561,"Söding","8561 Söding"]
[8724,"Spielberg","8724 Spielberg"]
[8471,"Spielfeld","8471 Spielfeld"]
[8684,"Spital am Semmering","8684 Spital am Semmering"]
[8444,"St. Andrä im Sausal","8444 St. Andrä im Sausal"]
[8354,"St. Anna am Aigen","8354 St. Anna am Aigen"]
[8933,"St. Gallen","8933 St. Gallen"]
[8413,"St. Georgen an der Stiefing","8413 St. Georgen an der Stiefing"]
[8756,"St. Georgen ob Judenburg","8756 St. Georgen ob Judenburg"]
[8861,"St. Georgen ob Murau","8861 St. Georgen ob Murau"]
[8255,"St. Jakob im Walde","8255 St. Jakob im Walde"]
[8765,"St. Johann am Tauern","8765 St. Johann am Tauern"]
[8222,"St. Johann bei Herberstein","8222 St. Johann bei Herberstein"]
[8453,"St. Johann im Saggautal","8453 St. Johann im Saggautal"]
[8295,"St. Johann in der Haide","8295 St. Johann in der Haide"]
[8565,"St. Johann ob Hohenburg","8565 St. Johann ob Hohenburg"]
[8503,"St. Josef Weststeiermark","8503 St. Josef Weststeiermark"]
[8611,"St. Katharein an der Laming","8611 St. Katharein an der Laming"]
[8672,"St. Kathrein am Hauenstein","8672 St. Kathrein am Hauenstein"]
[8171,"St. Kathrein am Offenegg","8171 St. Kathrein am Offenegg"]
[8813,"St. Lambrecht","8813 St. Lambrecht"]
[8242,"St. Lorenzen am Wechsel","8242 St. Lorenzen am Wechsel"]
[8715,"St. Lorenzen bei Knittelfeld","8715 St. Lorenzen bei Knittelfeld"]
[8642,"St. Lorenzen im Mürztal","8642 St. Lorenzen im Mürztal"]
[8323,"St. Marein bei Graz","8323 St. Marein bei Graz"]
[8733,"St. Marein bei Knittelfeld","8733 St. Marein bei Knittelfeld"]
[8641,"St. Marein im Mürztal","8641 St. Marein im Mürztal"]
[8321,"St. Margarethen an der Raab","8321 St. Margarethen an der Raab"]
[8954,"St. Martin am Grimming","8954 St. Martin am Grimming"]
[8543,"St. Martin im Sulmtal","8543 St. Martin im Sulmtal"]
[8770,"St. Michael in Obersteiermark","8770 St. Michael in Obersteiermark"]
[8505,"St. Nikolai im Sausal","8505 St. Nikolai im Sausal"]
[8422,"St. Nikolai ob Draßling","8422 St. Nikolai ob Draßling"]
[8113,"St. Oswald bei Plankenwarth","8113 St. Oswald bei Plankenwarth"]
[8553,"St. Oswald ob Eibiswald","8553 St. Oswald ob Eibiswald"]
[8843,"St. Peter am Kammersberg","8843 St. Peter am Kammersberg"]
[8093,"St. Peter am Ottersbach","8093 St. Peter am Ottersbach"]
[8542,"St. Peter im Sulmtal","8542 St. Peter im Sulmtal"]
[8755,"St. Peter ob Judenburg","8755 St. Peter ob Judenburg"]
[8792,"St. Peter-Freienstein","8792 St. Peter-Freienstein"]
[8061,"St. Radegund bei Graz","8061 St. Radegund bei Graz"]
[8181,"St. Ruprecht an der Raab","8181 St. Ruprecht an der Raab"]
[8083,"St. Stefan im Rosental","8083 St. Stefan im Rosental"]
[8713,"St. Stefan ob Leoben","8713 St. Stefan ob Leoben"]
[8511,"St. Stefan ob Stainz","8511 St. Stefan ob Stainz"]
[8423,"St. Veit am Vogau","8423 St. Veit am Vogau"]
[8862,"Stadl an der Mur","8862 Stadl an der Mur"]
[8950,"Stainach","8950 Stainach"]
[8510,"Stainz","8510 Stainz"]
[8152,"Stallhofen","8152 Stallhofen"]
[8653,"Stanz im Mürztal","8653 Stanz im Mürztal"]
[8961,"Stein an der Enns","8961 Stein an der Enns"]
[8685,"Steinhaus am Semmering","8685 Steinhaus am Semmering"]
[8852,"Stolzalpe","8852 Stolzalpe"]
[8345,"Straden","8345 Straden"]
[8192,"Strallegg","8192 Strallegg"]
[8472,"Straß in Steiermark","8472 Straß in Steiermark"]
[8223,"Stubenberg am See","8223 Stubenberg am See"]
[8114,"Stübing","8114 Stübing"]
[8322,"Studenzen","8322 Studenzen"]
[8982,"Tauplitz","8982 Tauplitz"]
[8833,"Teufenbach","8833 Teufenbach"]
[8754,"Thalheim","8754 Thalheim"]
[8621,"Thörl","8621 Thörl"]
[8355,"Tieschen","8355 Tieschen"]
[8772,"Timmersdorf","8772 Timmersdorf"]
[8144,"Tobelbad","8144 Tobelbad"]
[8612,"Tragöß-Oberort","8612 Tragöß-Oberort"]
[8951,"Trautenfels","8951 Trautenfels"]
[8343,"Trautmannsdorf in Oststeiermark","8343 Trautmannsdorf in Oststeiermark"]
[8782,"Treglwang","8782 Treglwang"]
[8784,"Trieben","8784 Trieben"]
[8793,"Trofaiach","8793 Trofaiach"]
[8625,"Turnau","8625 Turnau"]
[8864,"Turrach","8864 Turrach"]
[8124,"Übelbach","8124 Übelbach"]
[8352,"Unterlamm","8352 Unterlamm"]
[8141,"Unterpremstätten","8141 Unterpremstätten"]
[8484,"Unterpurkla","8484 Unterpurkla"]
[8294,"Unterrohr bei Hartberg","8294 Unterrohr bei Hartberg"]
[8800,"Unzmarkt","8800 Unzmarkt"]
[8076,"Vasoldsberg","8076 Vasoldsberg"]
[8570,"Voitsberg","8570 Voitsberg"]
[8250,"Vorau","8250 Vorau"]
[8794,"Vordernberg","8794 Vordernberg"]
[8435,"Wagna","8435 Wagna"]
[8781,"Wald am Schoberpaß","8781 Wald am Schoberpaß"]
[8253,"Waldbach","8253 Waldbach"]
[8122,"Waldstein","8122 Waldstein"]
[8661,"Wartberg im Mürztal","8661 Wartberg im Mürztal"]
[8634,"Wegscheid","8634 Wegscheid"]
[8481,"Weinburg am Saßbach","8481 Weinburg am Saßbach"]
[8932,"Weißenbach an der Enns","8932 Weißenbach an der Enns"]
[8741,"Weißkirchen in Steiermark","8741 Weißkirchen in Steiermark"]
[8473,"Weitersfeld an der Mur","8473 Weitersfeld an der Mur"]
[8160,"Weiz","8160 Weiz"]
[8913,"Weng im Gesäuse","8913 Weng im Gesäuse"]
[8254,"Wenigzell","8254 Wenigzell"]
[8402,"Werndorf","8402 Werndorf"]
[8521,"Wettmannstätten","8521 Wettmannstätten"]
[8551,"Wies","8551 Wies"]
[8924,"Wildalpen","8924 Wildalpen"]
[9323,"Wildbad Einöd","9323 Wildbad Einöd"]
[8410,"Wildon","8410 Wildon"]
[8421,"Wolfsberg im Schwarzautal","8421 Wolfsberg im Schwarzautal"]
[8942,"Wörschach","8942 Wörschach"]
[8293,"Wörth an der Lafnitz","8293 Wörth an der Lafnitz"]
[8142,"Wundschuh","8142 Wundschuh"]
[8740,"Zeltweg","8740 Zeltweg"]
["KG_Darstellung",null,null,null,null,null,null,null,null,null,null,null,null,null,null,"Auswahlspalte KG "]
[1,2,3,4,5,6,7,8,9,10,11,12,13,14,15,"KG NUMMER _KG"]
[null,"60001 Aflenz Kurort","61001 Aichegg","62001 Aigen","63001 Adriach","62201 Altenmarkt bei Fürstenfeld","65001 Aichdorf","66101 Aflenz","60301 Brunn","67401 Admont","65301 Adendorf","63301 Aichegg","68201 Affenthal",null,null,{"$f":"HLOOKUP($B$1,($A$519:$O$812),2,2)","v":0}]
[null,"60201 Allerheiligen","61002 Aigen","62101 Altenmarkt bei Riegersburg","63201 Affenberg","64001 Anger","65002 Allerheiligen","66401 Allerheiligen","60302 Dirnsdorf","67601 Aich","65501 Althofen","63302 Arnstein","68101 Albersdorf",null,null,{"$f":"HLOOKUP($B$1,($A$519:$O$812),3,2)","v":0}]
[null,"60202 Alpl","61003 Blumau","66301 Altneudörfl","63203 Attendorf","64302 Arzberg","65003 Allersdorf","66001 Altenbach","60303 Donawitz","67301 Aigen","65201 Baierdorf","63303 Bärnbach","68001 Amassegg",null,null,{"$f":"HLOOKUP($B$1,($A$519:$O$812),4,2)","v":0}]
[null,"60501 Altenberg","61004 Bösenbach","62301 Aschau","63205 Berndorf","62202 Aschbach","65101 Apfelberg","66102 Altenberg","60101 Eisenerz","67402 Aigen","65302 Baierdorf","63304 Edelschrott","68002 Anger",null,null,{"$f":"HLOOKUP($B$1,($A$519:$O$812),5,2)","v":0}]
[null,"60002 Arndorf","61005 Burgegg","62102 Auersbach","63206 Bierbaum","64002 Auerbach","65601 Bretstein","66103 Altenmarkt","60304 Eselberg","67001 Altaussee","65202 Bodendorf","63305 Eggartsberg","68202 Arndorf",null,null,{"$f":"HLOOKUP($B$1,($A$519:$O$812),6,2)","v":0}]
[null,"60401 Aschbach","61006 Deutschlandsberg","62302 Aug-Radisch","63207 Breitenhilm","64301 Äußeres Kaltenegg","65004 Dietersdorf","66002 Arnfels","60305 Foirach","67101 Altenmarkt","65303 Dürnstein","63306 Fluttendorf","68102 Arnwiesen",null,null,{"$f":"HLOOKUP($B$1,($A$519:$O$812),7,2)","v":0}]
[null,"60502 Auersbach","61008 Dörfla","62103 Axbach","63204 Brodersdorf","64003 Baumgarten","65102 Dürnberg","66402 Badendorf","60306 Gai","67302 Altirdning","65204 Egidi","63307 Gaisfeld","68203 Arzberg",null,null,{"$f":"HLOOKUP($B$1,($A$519:$O$812),8,2)","v":0}]
[null,"60003 Berndorf","61009 Freidorf an der Laßnitz","62104 Bad Gleichenberg","63002 Deutschfeistritz","62203 Bierbaum","65103 Einhörn","66403 Breitenfeld","60307 Gimplach","67403 Ardning","65203 Einach","63308 Gallmannsegg","68003 Aschau",null,null,{"$f":"HLOOKUP($B$1,($A$519:$O$812),9,2)","v":0}]
[null,"60203 Brandstattgraben","61010 Freidorf im Sulmtal","62003 Bairisch Kölldorf","63208 Dietersdorf","64101 Blaindorf","65005 Enzersdorf","66105 Brudersegg","60308 Göß","67501 Au","65205 Falkendorf","63309 Gasselberg","68004 Ausseregg",null,null,{"$f":"HLOOKUP($B$1,($A$519:$O$812),10,2)","v":0}]
[null,"60004 Bruck an der Mur","61011 Garanas","62303 Baumgarten","63209 Dobl","62204 Blumau","65006 Farrach","66104 Brünngraben","60309 Gößgraben-Freienstein","67002 Bad Aussee","65502 Feistritz","63310 Geistthal","68005 Baierdorf",null,null,{"$f":"HLOOKUP($B$1,($A$519:$O$812),11,2)","v":0}]
[null,"60005 Deuchendorf","61012 Gleinz","66201 Bierbaum","63210 Edelsbach","62250 Breitenbach","65104 Farrach","66003 Burgstall","60310 Gößgraben-Göß","67502 Bärndorf","65304 Feßnach","63370 Gießenberg","68204 Birchbaum",null,null,{"$f":"HLOOKUP($B$1,($A$519:$O$812),12,2)","v":0}]
[null,"60204 Dickenbach","61014 Greith","62106 Breitenfeld","63211 Edelsgrub","62205 Buchberg","65007 Feistritz","66004 Dornach","60311 Hafning","67102 Bergerviertel","65206 Freiberg","63311 Gößnitz","68006 Birkfeld",null,null,{"$f":"HLOOKUP($B$1,($A$519:$O$812),13,2)","v":0}]
[null,"60006 Diemlach","61015 Gressenberg","62002 Burgfeld","63213 Eggersdorf","64201 Buchberg","65105 Feistritz","66106 Eckberg","60312 Hessenberg","67503 Büschendorf","65207 Frojach","63312 Grabenwarth","68205 Büchel",null,null,{"$f":"HLOOKUP($B$1,($A$519:$O$812),14,2)","v":0}]
[null,"60007 Döllach","61016 Groß St. Florian","66302 Dedenitz","63212 Eisbach","62206 Burgau","65008 Feistritzgraben","66107 Ehrenhausen","60313 Hinterlainsach","67201 Diemlern","65305 Greuth","63314 Gradenberg","68206 Dietmannsdorf",null,null,{"$f":"HLOOKUP($B$1,($A$519:$O$812),15,2)","v":0}]
[null,"60008 Dörflach","61017 Grub","66202 Deutsch Goritz","63214 Fernitz","62207 Dambach","65009 Fisching","66005 Eichberg-Arnfels","60314 Jassing","67504 Dietmannsdorf","65503 Hinterburg","63315 Gradenberg-Piber","68207 Dörfl",null,null,{"$f":"HLOOKUP($B$1,($A$519:$O$812),16,2)","v":0}]
[null,"60206 Edelsdorf","61018 Grünau","66303 Deutsch Haseldorf","63215 Fölling","64004 Dechantskirchen","65106 Flatschach","66006 Eichberg-Trautenburg","60315 Judendorf","67303 Donnersbach","65306 Jakobsberg","63313 Graden-Piber","68208 Dürnthal",null,null,{"$f":"HLOOKUP($B$1,($A$519:$O$812),17,2)","v":0}]
[null,"60503 Eichhornthal","61019 Gussendorf","66203 Diepersdorf","63216 Forstviertel","64102 Dienersdorf","65010 Fohnsdorf","66108 Einöd","60316 Kaisersberg","67304 Donnersbachwald","65504 Kammersberg","63316 Großsöding","68103 Egelsdorf",null,null,{"$f":"HLOOKUP($B$1,($A$519:$O$812),18)","v":0}]
[null,"60009 Einöd","61020 Gutenacker","66204 Dietersdorf","63217 Freßnitz","62208 Dietersdorf","65011 Frauenburg","66404 Empersdorf","60317 Kalwang","67505 Edlach","65208 Katsch","63317 Großwöllmiß","68209 Elz",null,null,{"$f":"HLOOKUP($B$1,($A$519:$O$812),19)","v":0}]
[null,"60010 Erhardstraße","61021 Hasreith","66304 Dietzen","63003 Friesach","62209 Dörfl","65107 Fressenberg","66109 Ewitsch","60318 Kammern","67602 Ennsling","65209 Krakaudorf","63318 Hallersdorf","68104 Entschendorf",null,null,{"$f":"HLOOKUP($B$1,($A$519:$O$812),20,2)","v":0}]
[null,"60011 Etmißl","61022 Hinterleiten","62107 Dirnbach","63218 Friesach-St. Stefan","62210 Ebersdorf","65108 Gaal","66110 Fantsch","60319 Kletschach","67305 Erlsberg","65210 Krakauhintermühlen","63319 Hausdorf","68210 Etzersdorf",null,null,{"$f":"HLOOKUP($B$1,($A$519:$O$812),21,2)","v":0}]
[null,"60504 Feistritzberg","61023 Hohlbach","66305 Donnersdorf","63004 Frohnleiten","64103 Ebersdorf","65109 Glein","66405 Feiting","60320 Köllach","67103 Essling","65211 Krakauschatten","63320 Hirschegg-Piber","68007 Falkenstein",null,null,{"$f":"HLOOKUP($B$1,($A$519:$O$812),22,2)","v":0}]
[null,"60207 Fochnitz","61024 Hollenegg","66306 Dornau","63005 Gams","64104 Eggendorf","65110 Graden","66406 Felgitsch","60321 Kraubath","67506 Furth","65307 Kulm","63321 Hirschegg-Rein","68211 Farcha",null,null,{"$f":"HLOOKUP($B$1,($A$519:$O$812),23,2)","v":0}]
[null,"60013 Fölz","61025 Hörbing","66307 Drauchen","63006 Gamsgraben","64005 Ehrenschachen","65401 Granitzen","66111 Flamberg","60322 Kraubathgraben","67507 Gaishorn","65212 Laßnitz-Lambrecht","63322 Hochtregist","68008 Feistritz",null,null,{"$f":"HLOOKUP($B$1,($A$519:$O$812),24,2)","v":0}]
[null,"60012 Forstwald","61026 Kerschbaum","62108 Ebersdorf","63219 Gnaning","62211 Eichberg","65111 Greuth","66407 Fliessing","60323 Krumpen","67104 Gams","65213 Laßnitz-Murau","63323 Kainach","68009 Fischbach",null,null,{"$f":"HLOOKUP($B$1,($A$519:$O$812),25,2)","v":0}]
[null,"60014 Frauenberg","61027 Klosterwinkel","62109 Edelsbach","63220 Gössendorf","64303 Eichberg","65112 Großlobming","66007 Fötschach","60104 Krumpental","67306 Gatschen","65308 Lind","63324 Kalchberg","68212 Fladnitz an der Teichalpe",null,null,{"$f":"HLOOKUP($B$1,($A$519:$O$812),26,2)","v":0}]
[null,"60505 Frein an der Mürz","61028 Korbin","62304 Edelstauden","63222 Grambach","64006 Elsenau","65012 Hetzendorf","66112 Fresing","60324 Laintal","67603 Gössenberg","65214 Lutzmannsdorf","63325 Kemetberg","68105 Flöcking",null,null,{"$f":"HLOOKUP($B$1,($A$519:$O$812),27,2)","v":0}]
[null,"60208 Freßnitz","61029 Kraubath","66205 Edla","63276 Gratkorn-St. Veit ob Graz","64105 Erdwegen","65602 Hohentauern","66113 Gabersdorf","60325 Leims","67202 Gröbming","65505 Mitterdorf","63326 Kirchberg","68213 Floing",null,null,{"$f":"HLOOKUP($B$1,($A$519:$O$812),28,2)","v":0}]
[null,"60209 Freßnitzgraben","61030 Kresbach","66237 Eichfeld","63223 Gratwein","64304 Filzmoos","65113 Ingering I","66114 Gamlitz","60326 Leitendorf","67203 Großsölk","65309 Mühlen","63327 Kleinalpe","68106 Frösauberg",null,null,{"$f":"HLOOKUP($B$1,($A$519:$O$812),29,2)","v":0}]
[null,"60506 Fröschnitz","61031 Krottendorf","66206 Entschendorf","63007 Großstübing","64106 Flattendorf","65114 Ingering II","66115 Gauitsch","60327 Leoben","67003 Grundlsee","65215 Murau","63328 Kleinsöding","68107 Frösaugraben",null,null,{"$f":"HLOOKUP($B$1,($A$519:$O$812),30,2)","v":0}]
[null,"60015 Gabraun","61032 Kruckenberg","62110 Erbersdorf","63224 Großsulz","64202 Freienberg","65013 Judenburg","66116 Gersdorf","60328 Lichtensteinerberg","67604 Haus","65310 Neumarkt","63329 Kleinwöllmiß","68108 Fünfing bei Gleisdorf",null,null,{"$f":"HLOOKUP($B$1,($A$519:$O$812),31,2)","v":0},null,null,null,null,null,null,null,null,null,null,null,null,null,null,null,{"$f":"xxx","v":0},null,null,{"$f":"Ergebnis","v":{"$error":"#REF!"}}]
[null,"60507 Ganz","61033 Lassenberg","62004 Fehring","63225 Gschnaidt","64007 Friedberg","65402 Kienberg","66008 Glanz","60329 Liesing","60102 Hieflau","65506 Niederwölz","63332 Köflach","68214 Fünfing bei St. Ruprecht",null,null,{"$f":"HLOOKUP($B$1,($A$519:$O$812),32,2)","v":0}]
[null,"60016 Göriach","61034 Laßnitz","62111 Feldbach","63008 Gschwendt","62212 Fürstenfeld","65115 Kleinlobming","66009 Gleinstätten","60330 Liesingau","67307 Irdning","65311 Noreia","63330 Kohlschwarz","68109 Gamling",null,null,{"$f":"HLOOKUP($B$1,($A$519:$O$812),33,2)","v":0}]
[null,"60017 Göritz","61035 Lebing","62112 Fischa","63226 Gschwendt","64107 Geiseldorf","65116 Knittelfeld","66010 Goldes","60331 Liesingthal","60103 Jassingau","65507 Oberwölz","63333 Köppling","68215 Garrach",null,null,{"$f":"HLOOKUP($B$1,($A$519:$O$812),34,2)","v":0}]
[null,"60018 Graschnitz","61036 Leibenfeld","62113 Fladnitz im Raabtal","63228 Hart bei Eggersdorf","62213 Gillersdorf","65117 Kobenz","66117 Göttling","60332 Lobming","67404 Johnsbach","65312 Perchau","63331 Kowald","68010 Gasen",null,null,{"$f":"HLOOKUP($B$1,($A$519:$O$812),35,2)","v":0}]
[null,"60019 Grassnitz","61037 Mainsdorf","66207 Fluttendorf","63227 Hart bei St. Peter","64023 Götzendorf","65014 Kothgraben","66118 Graßnitzberg","60333 Madstein","67308 Ketten","65508 Peterdorf","63334 Kreuzberg","68110 Gersdorf",null,null,{"$f":"HLOOKUP($B$1,($A$519:$O$812),36,2)","v":0}]
[null,"60210 Großveitsch","61038 Michlgleinz","62305 Frannach","63229 Haselbach","64109 Grafendorf","65015 Kumpitz","66119 Greith","60334 Magdwiesen","67309 Klachau","65509 Pöllau","63335 Krottendorf","68111 Gleisdorf",null,null,{"$f":"HLOOKUP($B$1,($A$519:$O$812),37,2)","v":0}]
[null,"60020 Hafendorf","61039 Mitterspiel","62005 Frutten","63230 Haselsdorf","64108 Gräflerviertl","65118 Laing","66011 Großklein","60335 Mautern","67605 Klaus","65216 Predlitz","63336 Lankowitz","68112 Gnieß",null,null,{"$f":"HLOOKUP($B$1,($A$519:$O$812),38,2)","v":0}]
[null,"60402 Halltal","61040 Moos","62006 Gießelsdorf","63231 Hausmannstätten","64110 Grazervorstadt","65403 Lavantegg","66012 Großwalz","60336 Melling","67204 Kleinsölk","65313 Puchfeld","63337 Ligist","68113 Goggitsch",null,null,{"$f":"HLOOKUP($B$1,($A$519:$O$812),39,2)","v":0}]
[null,"60211 Herzogberg","61041 Mönichgleinz","62114 Gleichenberg Dorf","63232 Hautzendorf","62214 Großhartmannsdorf","65119 Lind","66120 Grötsch","60337 Mötschendorf","67105 Krippau","65510 Raiming","63338 Lobming","68216 Göttelsberg",null,null,{"$f":"HLOOKUP($B$1,($A$519:$O$812),40,2)","v":0}]
[null,"60021 Hinterberg","61042 Nassau","62306 Glojach","63233 Hitzendorf","62215 Großsteinbach","65017 Maria Buch","66121 Grottenhofen","60338 Mühltal","67405 Krumau","65217 Ranten","63339 Lobmingberg","68114 Großpesendorf",null,null,{"$f":"HLOOKUP($B$1,($A$519:$O$812),41,2)","v":0}]
[null,"60212 Hollersbach","61043 Neuberg","62115 Gnas","63221 Höf","62216 Großwilfersdorf","65120 Maßweg","66122 Grubthal","60105 Münichthal","67004 Krungl","65218 Rinegg","63340 Modriach","68217 Grub",null,null,{"$f":"HLOOKUP($B$1,($A$519:$O$812),42,2)","v":0}]
[null,"60508 Hönigsberg","61044 Oberfresen","62116 Gniebing","63009 Hofamt","64111 Habersdorf","65121 Mitterbach","66013 Gündorf","60339 Niederdorf","67106 Landl","65511 Salchau","63341 Moosing","68011 Grubbauer",null,null,{"$f":"HLOOKUP($B$1,($A$519:$O$812),43,2)","v":0}]
[null,"60022 Hüttengraben","61045 Oberlaufenegg","66308 Goritz bei Radkersburg","63236 Hofstätten","64008 Haideggendorf","65122 Mitterlobming","66408 Hainsdorf","60340 Niklasdorf","67310 Lantschern","65320 Scheifling","63342 Mooskirchen","68012 Gschaid bei Birkfeld",null,null,{"$f":"HLOOKUP($B$1,($A$519:$O$812),44,2)","v":0}]
[null,"60213 Jaßnitztal","61046 Osterwitz","66208 Gosdorf","63234 Hönigthal","62217 Hainersdorf","65603 Möderbrugg","66014 Hardegg","60341 Niklasdorfgraben","67508 Lassing Schattseite","65222 Schöder","63343 Muggauberg","68218 Gschaid bei Weiz",null,null,{"$f":"HLOOKUP($B$1,($A$519:$O$812),45,2)","v":0}]
[null,"60023 Jauring","61047 Otternitz","62117 Gossendorf","63235 Hörgas","62218 Hainfeld","65016 Möschitzgraben","66409 Hart","60342 Pfaffendorf","67509 Lassing Sonnseite","65223 Schöderberg","63344 Neudorf bei Mooskirchen","68115 Gschmaier",null,null,{"$f":"HLOOKUP($B$1,($A$519:$O$812),46,2)","v":0}]
[null,"60024 Kaltbach","61048 Petzelsdorf","62118 Grabersdorf","63237 Jaritzberg","64112 Hart","65018 Mühldorf","66123 Hasendorf","60343 Pisching","67606 Leiten","65513 Schönberg","63345 Neudorf bei St. Johann","68219 Hafning",null,null,{"$f":"HLOOKUP($B$1,($A$519:$O$812),47,2)","v":0}]
[null,"60509 Kapellen","61049 Preding","62307 Grasdorf","63238 Judendorf-Straßengel","64113 Hartberg","65123 Neuhofen","66015 Haslach","60344 Prentgraben","67205 Lengdorf","65512 Schöttl","63346 Oberwald","68220 Harl",null,null,{"$f":"HLOOKUP($B$1,($A$519:$O$812),48,2)","v":0}]
[null,"60025 Kapfenberg","61050 Reitererberg","66309 Größing","63239 Kainbach","62219 Hartl","65404 Obdach","66410 Haslach","60345 Prettach","67406 Liezen","65224 Seebach","63347 Oswaldgraben","68116 Hart",null,null,{"$f":"HLOOKUP($B$1,($A$519:$O$812),49,2)","v":0}]
[null,"60214 Kindberg","61051 Rettenbach-Hollenegg","62119 Grub I","63240 Kalsdorf","64114 Hartl","65405 Obdachegg","66411 Heiligenkreuz am Waasen","60346 Proleb","67005 Lupitsch","65314 St. Blasen","63348 Pack","68117 Hartensdorf",null,null,{"$f":"HLOOKUP($B$1,($A$519:$O$812),50,2)","v":0}]
[null,"60215 Kindbergdörfl","61052 Rettenbach-Kloster","62120 Grub II","63241 Kasten","62220 Herrnberg","65604 Oberkurzheim","66124 Heimschuh","60106 Radmer an der Hasel","67206 Michaelerberg","65315 St. Georgen","63349 Piber","68118 Hartmannsdorf",null,null,{"$f":"HLOOKUP($B$1,($A$519:$O$812),51,2)","v":0}]
[null,"60216 Kindthal","61053 Rostock","66310 Gruisla","63242 Kehr und Plesch","64203 Hinteregg","65019 Oberweg","66412 Hengsberg","60107 Radmer an der Stube","67207 Mitterberg","65219 St. Georgen ob Murau","63350 Piberegg","68221 Haselbach",null,null,{"$f":"HLOOKUP($B$1,($A$519:$O$812),52,2)","v":0}]
[null,"60217 Kindthalgraben","61054 St. Peter im Sulmtal","62007 Gutendorf","63243 Kirchenviertel","68119 Hirnsdorf","65605 Oberzeiring","66125 Höch","60347 Rannach","67006 Mitterndorf","65316 St. Lambrecht","63351 Pichling bei Köflach","68013 Haslau",null,null,{"$f":"HLOOKUP($B$1,($A$519:$O$812),53,2)","v":0}]
[null,"60026 Kirchdorf","61055 Schamberg","62121 Haag","63010 Kleinstübing","62221 Hochenegg","65020 Ossach","66126 Hütt","60348 Reitingau","67311 Neuhaus","65220 St. Lorenzen","63352 Pichling bei Mooskirchen","68222 Haufenreith",null,null,{"$f":"HLOOKUP($B$1,($A$519:$O$812),54,2)","v":0}]
[null,"60218 Kleinveitsch","61056 Schönaich","62008 Habegg","63011 Kleinthal","64115 Hofing","65124 Pausendorf","66127 Jöss","60349 Rötz","67312 Niederöblarn","65317 St. Lorenzen","63353 Puchbach","68223 Höfling",null,null,{"$f":"HLOOKUP($B$1,($A$519:$O$812),55,2)","v":0}]
[null,"60510 Krampen","61057 Schwanberg","66209 Hainsdorf","63012 Königgraben","64204 Hofkirchen","65125 Pichl","66413 Kainach","60353 Schardorf","67407 Oberhall","65318 St. Marein","63354 Raßberg","68120 Hofstätten",null,null,{"$f":"HLOOKUP($B$1,($A$519:$O$812),56,2)","v":0}]
[null,"60219 Krieglach","61058 Sulb","66311 Halbenrain","63244 Krumegg","64009 Hohenau","65021 Pichlhofen","66128 Kaindorf an der Sulm","60354 Schattenberg","67607 Oberhaus","65514 St. Peter","63355 Rosenthal","68224 Hohenau",null,null,{"$f":"HLOOKUP($B$1,($A$519:$O$812),57,2)","v":0}]
[null,"60220 Krieglach-Schwöbing","61059 Sulz","62308 Hamet","63245 Kumberg","64116 Hohenbrugg","65022 Pöls","66129 Kittenberg","60355 Schladnitzgraben","67107 Oberreith","65221 St. Ruprecht","63356 Salla","68225 Hohenkogl",null,null,{"$f":"HLOOKUP($B$1,($A$519:$O$812),58,2)","v":0}]
[null,"60027 Krottendorf","61060 Sulzhof","66210 Hart","63246 Laa","64117 Hopfau","65126 Prank","66016 Kitzelsdorf","60356 Sonnberg","67007 Obertressen","65319 St. Veit","63359 Scherzberg","68015 Inneres Kaltenegg",null,null,{"$f":"HLOOKUP($B$1,($A$519:$O$812),59,2)","v":0}]
[null,"60511 Lambach","61061 Tanzelsdorf","62009 Haselbach","63013 Laas","62222 Ilz","65127 Preg","66130 Kogelberg","60350 St. Michael in Obersteiermark","67208 Öblarn","65225 Stadl","63360 Södingberg","68121 Kalch",null,null,{"$f":"HLOOKUP($B$1,($A$519:$O$812),60,2)","v":0}]
[null,"60512 Langenwang","61062 Tobis","66248 Haselbach","63297 Lamberg","64118 Kaibing","65406 Prethal","66414 Komberg","60351 St. Peter-Freienstein","67510 Oppenberg","65226 Stolzalpe","63361 Sonnleiten","68122 Kaltenbrunn",null,null,{"$f":"HLOOKUP($B$1,($A$519:$O$812),61,2)","v":0}]
[null,"60513 Langenwang-Schwöbing","61063 Trag","62010 Hatzendorf","63247 Langegg","64119 Kaindorf","65128 Puchschachen","66017 Kranach","60352 St. Stefan","67108 Palfau","65321 Teufenbach","63357 St. Johann ob Hohenburg","68226 Kathrein I. Viertel",null,null,{"$f":"HLOOKUP($B$1,($A$519:$O$812),62,2)","v":0}]
[null,"60028 Lantsch","61064 Trahütten","62122 Hirsdorf","63250 Laßnitzhöhe","62223 Kalsdorf","65606 Pusterwald","66131 Kranachberg","60357 Timmersdorf","67008 Pichl","65227 Tratten","63358 St. Martin","68227 Kathrein II. Viertel",null,null,{"$f":"HLOOKUP($B$1,($A$519:$O$812),63,2)","v":0}]
[null,"60514 Lechen","61065 Unterbergla","62011 Hochstraden","63014 Laufnitzdorf","64305 Kandlbauer","65129 Rachau I","66018 Krast","60358 Tollinggraben","67608 Pichl","65228 Triebendorf","63363 Stallhofen","68014 Kirchenviertel",null,null,{"$f":"HLOOKUP($B$1,($A$519:$O$812),64,2)","v":0}]
[null,"60029 Lonschitz","61066 Unterlaufenegg","66313 Hof","63015 Laufnitzgraben","64306 Karnerviertl","65130 Rachau II","66415 Kühberg","60359 Traboch","67609 Preunegg","65515 Winklern","63364 Steinberg","68228 Kleinsemmering",null,null,{"$f":"HLOOKUP($B$1,($A$519:$O$812),65,2)","v":0}]
[null,"60221 Lutschaun","61067 Vochera an der Laßnitz","62012 Höflach","63248 Lebern","64307 Kirchenviertl","65131 Raßnitz","66132 Labitschberg","60360 Traidersberg","67209 Pruggern","65322 Zeutschach","63365 Stögersdorf","68229 Klettendorf",null,null,{"$f":"HLOOKUP($B$1,($A$519:$O$812),66,2)","v":0}]
[null,"60222 Malleisten","61068 Warnblick","62123 Hofstätten","63249 Lichtenegg","62224 Kleegraben","65023 Rattenberg","66133 Labuttendorf","60361 Treffning","67313 Pürgg",null,"63366 Thallein","68230 Kramersdorf",null,null,{"$f":"HLOOKUP($B$1,($A$519:$O$812),67,2)","v":0}]
[null,"60403 Mariazell","61069 Weniggleinz","66211 Hofstätten","63251 Lieboch","64308 Kleinschlag","65024 Reifling","66134 Lamperstätten","60362 Trofaiach","67408 Pyhrn",null,"63367 Tregist","68123 Kroisbach",null,null,{"$f":"HLOOKUP($B$1,($A$519:$O$812),68,2)","v":0}]
[null,"60223 Massing","61070 Wettmannstätten","62013 Hohenbrugg","63252 Mantscha","62225 Kleinsteinbach","65025 Reisstraße","66135 Landscha","60108 Trofeng","67610 Ramsau",null,"63368 Unterwald","68231 Krottendorf",null,null,{"$f":"HLOOKUP($B$1,($A$519:$O$812),69,2)","v":0}]
[null,"60515 Mitterberg","61071 Wieden","66315 Hummersdorf","63016 Markterviertel","64010 Knolln","65026 Rothenthurm","66136 Lang","60363 Vorderlainsach","67314 Raumberg",null,"63362 Voitsberg Stadt","68232 Kühwiesen",null,null,{"$f":"HLOOKUP($B$1,($A$519:$O$812),70,2)","v":0}]
[null,"60224 Mitterdorf","61072 Wildbach","66314 Hürth","63017 Mauritzen","62226 Kohlgraben","65132 Sachendorf","66137 Langaberg","60364 Vordernberg","67109 Reiflingviertel",null,"63369 Voitsberg Vorstadt","68124 Kulming",null,null,{"$f":"HLOOKUP($B$1,($A$519:$O$812),71,2)","v":0}]
[null,"60030 Mixnitz","61073 Wildbachdorf","62309 Jagerberg","63253 Mayersdorf","64120 Kopfing","65029 Scheiben","66019 Langegg","60365 Waasen","67009 Reitern",null,null,"68125 Labuch",null,null,{"$f":"HLOOKUP($B$1,($A$519:$O$812),72,2)","v":0}]
[null,"60225 Mürzhofen","61074 Wohlsdorf","62310 Jahrbach","63254 Mellach","64011 Köppel","65030 Schoberegg","66417 Lappach","60366 Wald","67409 Reithtal",null,null,"68016 Landau",null,null,{"$f":"HLOOKUP($B$1,($A$519:$O$812),73,2)","v":0}]
[null,"60516 Mürzsteg","61075 Zehndorf","62014 Jamm","63255 Messendorf","64205 Köppelreith","65136 Schönberg","66418 Lebring",null,"67611 Rohrmoos",null,null,"68233 Landscha",null,null,{"$f":"HLOOKUP($B$1,($A$519:$O$812),74,2)","v":0}]
[null,"60517 Mürzzuschlag","61076 Zeierling","62015 Johnsdorf","63256 Michlbach","62227 Kroisbach","65407 Schwarzenbach","66138 Leibnitz",null,"67511 Rottenmann",null,null,"68234 Leska",null,null,{"$f":"HLOOKUP($B$1,($A$519:$O$812),75,2)","v":0}]
[null,"60518 Neuberg","61077 Bergla","66316 Jörgen","63257 Mitterlaßnitz","64012 Kroisbach","65137 Seckau","66139 Leitring",null,"67612 Schladming",null,null,"68235 Lohngraben",null,null,{"$f":"HLOOKUP($B$1,($A$519:$O$812),76,2)","v":0}]
[null,"60226 Niederaigen","61078 Oberhart","62124 Kaag","63258 Muttendorf","64122 Lafnitz","65031 Sillweg","66020 Leutschach",null,"67512 Schwarzenbach",null,null,"68126 Ludersdorf",null,null,{"$f":"HLOOKUP($B$1,($A$519:$O$812),77,2)","v":0}]
[null,"60031 Oberaich","61079 Wieselsdorf","62016 Kapfenstein","63259 Nestelbach","64121 Längenbach","65138 Spielberg","66021 Lieschen",null,"67513 Selzthal",null,null,"68017 Mitterbach",null,null,{"$f":"HLOOKUP($B$1,($A$519:$O$812),78,2)","v":0}]
[null,"60032 Oberdorf-Landskron","61101 Aibl","62125 Karbach","63018 Neuhof","64309 Lebing","65027 St. Georgen","66140 Lind",null,"67514 Singsdorf",null,null,"68236 Mitterdorf",null,null,{"$f":"HLOOKUP($B$1,($A$519:$O$812),79,2)","v":0}]
[null,"60033 Oberdorf-Niederdorf","61102 Aichberg","66317 Kellerdorf","63261 Niederschöckl","64123 Leitersdorf","65608 St. Johann Schattseite","66141 Lipsch",null,"67212 Sonnberg",null,null,"68237 Mortantsch",null,null,{"$f":"HLOOKUP($B$1,($A$519:$O$812),80,2)","v":0}]
[null,"60035 Oberort","61103 Altenmarkt","62311 Kirchbach in Steiermark","63262 Oberpremstätten","62228 Leithen","65607 St. Johann Sonnseite","62315 Maggau",null,"67110 St. Gallen",null,null,"68238 Naas",null,null,{"$f":"HLOOKUP($B$1,($A$519:$O$812),81,2)","v":0}]
[null,"60034 Obertal","61104 Aug","62126 Kirchberg an der Raab","63019 Peggau","64124 Lemberg","65133 St. Lorenzen","66022 Maltschach",null,"67515 St. Lorenzen",null,null,"68128 Nagl",null,null,{"$f":"HLOOKUP($B$1,($A$519:$O$812),82,2)","v":0}]
[null,"60036 Oisching","61105 Bachholz","62017 Klapping","62317 Petersdorf II","62229 Lindegg","65134 St. Marein","66023 Mantrach",null,"67210 St. Martin",null,null,"68018 Naintsch",null,null,{"$f":"HLOOKUP($B$1,($A$519:$O$812),83,2)","v":0}]
[null,"60038 Palbersdorf","61107 Bischofegg","66318 Klöch","63296 Petzendorf","64125 Löffelbach","65135 St. Margarethen","66435 Marchtring",null,"67211 St. Nikolai",null,null,"68129 Neudorf",null,null,{"$f":"HLOOKUP($B$1,($A$519:$O$812),84,2)","v":0}]
[null,"60037 Parschlug","61108 Brunn","66340 Klöchberg","63020 Pfannberg","62230 Loimeth","65609 St. Oswald","66024 Mattelsberg",null,"67315 Stainach",null,null,"68240 Neudorf bei Semriach",null,null,{"$f":"HLOOKUP($B$1,($A$519:$O$812),85,2)","v":0}]
[null,"60039 Pernegg","61109 Buchegg","62127 Kohlberg","63263 Pirka-Eggenberg","62231 Loipersdorf","65028 St. Peter","66419 Matzelsdorf",null,"67010 Straßen",null,null,"68239 Neudorf bei St. Ruprecht",null,null,{"$f":"HLOOKUP($B$1,($A$519:$O$812),86,2)","v":0}]
[null,"60040 Picheldorf","61110 Buchenberg-Burgstall","62167 Kohlberg II","63264 Pirka-Söding","62232 Maierhofen","65032 Thalheim","66143 Maxlon",null,"67316 Tauplitz",null,null,"68130 Nitscha",null,null,{"$f":"HLOOKUP($B$1,($A$519:$O$812),87,2)","v":0}]
[null,"60041 Pischk","61111 St. Oswald ob Eibiswald","62018 Kölldorf","63265 Plankenwarth","64126 Mitterdombach","65033 Tiefenbach","66025 Mayerhof",null,"67516 Treglwang",null,null,"68131 Nitschaberg",null,null,{"$f":"HLOOKUP($B$1,($A$519:$O$812),88,2)","v":0}]
[null,"60042 Pischkberg","61112 Eibiswald","62128 Kornberg","63298 Pöls","62233 Mutzenfeld","65610 Unterzeiring","66144 Mitteregg",null,"67517 Trieben",null,null,"68241 Nöstl",null,null,{"$f":"HLOOKUP($B$1,($A$519:$O$812),89,2)","v":0}]
[null,"60045 Pogusch","61113 Etzendorf","62129 Krennach","63260 Präbach","62234 Nestelbach","65034 Unzmarkt","62316 Mitterlabill",null,"67410 Unterhall",null,null,"68242 Oberdorf bei Stadl",null,null,{"$f":"HLOOKUP($B$1,($A$519:$O$812),90,2)","v":0}]
[null,"60227 Possegg","61114 Feisternitz","66212 Krobathen","63266 Premstätten bei Vasoldsberg","62235 Nestelberg","65035 Waltersdorf","66145 Mollitsch",null,"67613 Untertal",null,null,"68243 Oberdorf bei Thannhausen",null,null,{"$f":"HLOOKUP($B$1,($A$519:$O$812),91,2)","v":0}]
[null,"60043 Pötschach","61115 Gaißeregg","66213 Kronnersdorf","63021 Prenning","64127 Neudau","65139 Wasserleith","66146 Muggenau",null,"67317 Vorberg",null,null,"68019 Oberfeistritz",null,null,{"$f":"HLOOKUP($B$1,($A$519:$O$812),92,2)","v":0}]
[null,"60044 Pötschen","61116 Gasselsdorf","62312 Krottendorf","63267 Purgstall","62236 Neudorf","65036 Weißkirchen","66026 Nestelbach",null,"67614 Weißenbach",null,null,"68244 Oberfladnitz",null,null,{"$f":"HLOOKUP($B$1,($A$519:$O$812),93,2)","v":0}]
[null,"60519 Pretul","61117 Hadernigg","62130 Krusdorf","63268 Raaba","64128 Neusiedl","65140 Weyern","66027 Nestelberg bei Großklein",null,"67111 Weißenbach an der Enns",null,null,"68245 Obergreith",null,null,{"$f":"HLOOKUP($B$1,($A$519:$O$812),94,2)","v":0}]
[null,"60046 Rammersdorf","61118 Haselbach","66319 Laafeld","63269 Rabnitz","64129 Neustift","65037 Wöll","66147 Nestelberg bei Heimschuh",null,"67411 Weißenbach bei Liezen",null,null,"68132 Obergroßau",null,null,{"$f":"HLOOKUP($B$1,($A$519:$O$812),95,2)","v":0}]
[null,"60047 Rastal","61119 Hörmsdorf","66320 Laasen","63022 Rechberg","64162 Nörning","65038 Zeltweg","66148 Neudorf an der Mur",null,"67412 Weng",null,null,"68133 Oberrettenbach",null,null,{"$f":"HLOOKUP($B$1,($A$519:$O$812),96,2)","v":0}]
[null,"60048 Roßgraben","61120 Jagernigg","66214 Landorf","63271 Rinnegg","64130 Oberbuch",null,"66149 Neudorf im Sausal",null,"67112 Wildalpen",null,null,"68134 Oed",null,null,{"$f":"HLOOKUP($B$1,($A$519:$O$812),97,2)","v":0}]
[null,"60049 Rumpelmühle","61121 Kleinradl","62131 Leitersdorf","63272 Rohrbach","64131 Oberlimbach",null,"66150 Neurath",null,"67113 Wolfsbachau",null,null,"68020 Offenegg",null,null,{"$f":"HLOOKUP($B$1,($A$519:$O$812),98,2)","v":0}]
[null,"60055 Schattenberg","61122 Kogl","66321 Leitersdorf I","63024 Röthelstein","64132 Oberlungitz",null,"66151 Neutersdorf",null,"67318 Wörschach",null,null,"68021 Pacher",null,null,{"$f":"HLOOKUP($B$1,($A$519:$O$812),99,2)","v":0}]
[null,"60228 Scheibsgraben","61123 Kopreinigg","66322 Leitersdorf II","63023 Rothleiten","64206 Oberneuberg",null,"66152 Obegg",null,"67319 Zlem",null,null,"68246 Passail",null,null,{"$f":"HLOOKUP($B$1,($A$519:$O$812),100,2)","v":0}]
[null,"60056 Schlaggraben","61124 Kornriegl","62132 Lembach bei Riegersburg","63278 Schadendorfberg","64133 Oberrohr",null,"66041 Oberfahrenbach",null,null,null,null,"68247 Peesen",null,null,{"$f":"HLOOKUP($B$1,($A$519:$O$812),101,2)","v":0}]
[null,"60520 Schöneben-Ganz","61125 Krumbach","66215 Lichendorf","63279 Schafthal","64134 Obersafen",null,"66154 Obergralla",null,null,null,null,"68248 Perndorf",null,null,{"$f":"HLOOKUP($B$1,($A$519:$O$812),102,2)","v":0}]
[null,"60521 Schöneben-Spital","61126 Laaken","62313 Lichtenegg","63280 Schöckl","64207 Obersaifen",null,"66028 Obergreith",null,null,null,null,"68249 Pichl",null,null,{"$f":"HLOOKUP($B$1,($A$519:$O$812),103,2)","v":0}]
[null,"60057 Schörgendorf","61127 Limberg","62133 Lödersdorf","63025 Schönegg","64208 Obertiefenbach",null,"66029 Oberhaag",null,null,null,null,"68136 Pircha",null,null,{"$f":"HLOOKUP($B$1,($A$519:$O$812),104,2)","v":0}]
[null,"60058 Seewiesen","61128 Mitterlimberg","62314 Lugitsch","63026 Schrems","62237 Obgrün",null,"66155 Oberjahring",null,null,null,null,"68137 Pirching",null,null,{"$f":"HLOOKUP($B$1,($A$519:$O$812),105,2)","v":0}]
[null,"60522 Semmering","61129 Mitterstraßen","62019 Magland","63281 Seiersberg","62251 Ottendorf",null,"66156 Oberlupitscheni",null,null,null,null,"68022 Piregg",null,null,{"$f":"HLOOKUP($B$1,($A$519:$O$812),106,2)","v":0}]
[null,"60229 Sölsnitz","61131 Oberlatein","62020 Mahrensdorf","63027 Semriach","64135 Penzendorf",null,"66157 Obervogau",null,null,null,null,"68138 Pischelsdorf",null,null,{"$f":"HLOOKUP($B$1,($A$519:$O$812),107,2)","v":0}]
[null,"60231 Sommer","61132 Pitschgau","62134 Maierdorf","63273 St. Bartholomä","64013 Pinggau",null,"66158 Ottenberg",null,null,null,null,"68250 Plenzengreith",null,null,{"$f":"HLOOKUP($B$1,($A$519:$O$812),108,2)","v":0}]
[null,"60059 Sonnberg","61133 Pitschgauegg","66216 Marktl","63274 St. Marein am Pickelbach","64310 Pittermannviertl",null,"66224 Perbersdorf bei St. Veit",null,null,null,null,"68140 Pöllau bei Gleisdorf",null,null,{"$f":"HLOOKUP($B$1,($A$519:$O$812),109,2)","v":0}]
[null,"60061 Sonnleiten","61134 Pölfing","62135 Merkendorf","63275 St. Oswald bei Plankenwarth","64209 Pöllau",null,"66159 Petzles",null,null,null,null,"68251 Ponigl",null,null,{"$f":"HLOOKUP($B$1,($A$519:$O$812),110,2)","v":0}]
[null,"60060 Sonnleiten-Pernegg","61135 Pongratzen","66217 Mettersdorf","63270 St. Radegund","64210 Prätis",null,"66225 Pichla",null,null,null,null,"68139 Postelgraben",null,null,{"$f":"HLOOKUP($B$1,($A$519:$O$812),111,2)","v":0}]
[null,"60523 Spital am Semmering","61136 Pörbach","62136 Mitterfladnitz","63282 Stattegg","64311 Puchegg",null,"66031 Pistorf",null,null,null,null,"68141 Prebensdorf",null,null,{"$f":"HLOOKUP($B$1,($A$519:$O$812),112,2)","v":0}]
[null,"60050 St. Ilgen","61137 Rothwein","62138 Muggendorf","63277 Stattegg-St. Veit ob Graz","64211 Rabenwald",null,"66030 Pößnitz",null,null,null,null,"68142 Prebuch",null,null,{"$f":"HLOOKUP($B$1,($A$519:$O$812),113,2)","v":0}]
[null,"60051 St. Katharein an der Laming","61138 St. Bartlmä","62137 Mühldorf","63283 Steinberg","62238 Radersdorf",null,"66032 Prarath",null,null,null,null,"68252 Preding",null,null,{"$f":"HLOOKUP($B$1,($A$519:$O$812),114,2)","v":0}]
[null,"60052 St. Lorenzen im Mürztal","61139 St. Lorenzen","66218 Mureck","63284 Stiwoll","62239 Reigersberg",null,"66033 Praratheregg",null,null,null,null,"68143 Preßguts",null,null,{"$f":"HLOOKUP($B$1,($A$519:$O$812),115,2)","v":0}]
[null,"60053 St. Marein im Mürztal","61140 Soboth","66219 Nägelsdorf","63028 Stübinggraben","64312 Reinberg",null,"66034 Radiga",null,null,null,null,"68253 Puch",null,null,{"$f":"HLOOKUP($B$1,($A$519:$O$812),116,2)","v":0}]
[null,"60054 St. Martin","61141 Stammeregg","66323 Neusetz","63285 Thal","64313 Riegersbach",null,"66421 Ragnitz",null,null,null,null,"68254 Raas",null,null,{"$f":"HLOOKUP($B$1,($A$519:$O$812),117,2)","v":0}]
[null,"60404 St. Sebastian","61142 Staritsch","62139 Neustift bei Breitenfeld","63286 Thalerhof","62240 Riegersdorf",null,"66160 Ratsch",null,null,null,null,"68023 Rabendorf",null,null,{"$f":"HLOOKUP($B$1,($A$519:$O$812),118,2)","v":0}]
[null,"60230 Stanz","61143 Sterglegg","62021 Neustift bei Kapfenstein","63287 Thondorf","64314 Rieglerviertl",null,"66161 Reith",null,null,null,null,"68255 Reggerstätten",null,null,{"$f":"HLOOKUP($B$1,($A$519:$O$812),119,2)","v":0}]
[null,"60062 Stegg","61144 Tombach","62140 Oberdorf","63032 Übelbach Land","64136 Ring",null,"66035 Remschnigg",null,null,null,null,"68144 Reichendorf",null,null,{"$f":"HLOOKUP($B$1,($A$519:$O$812),120,2)","v":0}]
[null,"60063 Streitgarn","61145 Unterfresen","62141 Obergnas","63033 Übelbach Markt","62241 Rittschein",null,"66162 Rettenbach",null,null,null,null,"68163 Reith",null,null,{"$f":"HLOOKUP($B$1,($A$519:$O$812),121,2)","v":0}]
[null,"60064 Stübming","61146 Vordersdorf","66324 Oberkarla","63288 Unterpremstätten","64137 Rohrbach an der Lafnitz",null,"66163 Rettenberg",null,null,null,null,"68024 Rettenegg",null,null,{"$f":"HLOOKUP($B$1,($A$519:$O$812),122,2)","v":0}]
[null,"60065 Thal","61147 Wernersdorf","62022 Oberlamm","63289 Wagersbach","64138 Rohrbach bei Waltersdorf",null,"66164 Retznei",null,null,null,null,"68145 Rohrbach",null,null,{"$f":"HLOOKUP($B$1,($A$519:$O$812),123,2)","v":0}]
[null,"60066 Thörl","61148 Wiel St. Anna","66325 Oberpurkla","63290 Wagnitz","64163 Rohrbach-Schlag",null,"66036 Saggau",null,null,null,null,"68146 Romatschachen",null,null,{"$f":"HLOOKUP($B$1,($A$519:$O$812),124,2)","v":0}]
[null,"60067 Traföß","61149 Wiel St. Oswald","66220 Oberrakitsch","63034 Waldstein","62242 Ruppersdorf",null,"66038 Sausal bei Pistorf",null,null,null,null,"68025 Rossegg",null,null,{"$f":"HLOOKUP($B$1,($A$519:$O$812),125,2)","v":0}]
[null,"60524 Traibach","61150 Wies","66221 Oberschwarza","63035 Wannersdorf","64139 Safenau",null,"66169 Sausal-Kerschegg",null,null,null,null,"68026 Sallegg",null,null,{"$f":"HLOOKUP($B$1,($A$519:$O$812),126,2)","v":0}]
[null,"60068 Turnau","61151 Wuggitz","66222 Oberspitz","63291 Weinitzen","64315 Schachen",null,"66170 Schirka",null,null,null,null,"68147 Schachen",null,null,{"$f":"HLOOKUP($B$1,($A$519:$O$812),127,2)","v":0}]
[null,"60069 Tutschach","61152 Dietmannsdorf","62142 Oberstorcha","63292 Werndorf","64015 Schäffern",null,"66039 Schloßberg",null,null,null,null,"68257 Schrems",null,null,{"$f":"HLOOKUP($B$1,($A$519:$O$812),128,2)","v":0}]
[null,"60070 Übelstein","61153 Graschach","62023 Oedgraben","63036 Windhof","64016 Schaueregg",null,"66425 Schönberg",null,null,null,null,"68148 Sinabelkirchen",null,null,{"$f":"HLOOKUP($B$1,($A$519:$O$812),129,2)","v":0}]
[null,"60071 Untertal","61201 Bergegg","62143 Oedt","63293 Wundschuh","64141 Schildbach",null,"66171 Schönegg",null,null,null,null,"68028 Sonnleitberg",null,null,{"$f":"HLOOKUP($B$1,($A$519:$O$812),130,2)","v":0}]
[null,"60205 Veitsch Dorf","61202 Blumegg","62144 Paldau","63299 Wuschan","64017 Schlag",null,"66426 Schrötten",null,null,null,null,"68027 St. Kathrein am Hauenstein",null,null,{"$f":"HLOOKUP($B$1,($A$519:$O$812),131,2)","v":0}]
[null,"60232 Wartberg","61203 Breitenbach","66326 Patzen","63294 Zettling","64316 Schmiedviertl",null,"62321 Schwarzau",null,null,null,null,"68127 St. Margarethen an der Raab",null,null,{"$f":"HLOOKUP($B$1,($A$519:$O$812),132,2)","v":0}]
[null,"60405 Weichselboden","61204 Ettendorf","66223 Perbersdorf bei St. Peter","63295 Zwaring","64317 Schnöllerviertl",null,"66172 Seggauberg",null,null,null,null,"68256 St. Ruprecht an der Raab",null,null,{"$f":"HLOOKUP($B$1,($A$519:$O$812),133,2)","v":0}]
[null,"60072 Wienervorstadt","61205 Feldbaum","62145 Perlsdorf",null,"64142 Schölbing",null,"66173 Sernau",null,null,null,null,"68258 Steinberg",null,null,{"$f":"HLOOKUP($B$1,($A$519:$O$812),134,2)","v":0}]
[null,"60073 Winkl","61206 Furth","62024 Pertlstein",null,"64213 Schönau",null,"66234 Siebing",null,null,null,null,"68259 Stenzengreith",null,null,{"$f":"HLOOKUP($B$1,($A$519:$O$812),135,2)","v":0}]
[null,"60074 Zlatten","61207 Gams","62025 Petersdorf I",null,"64318 Schrimpf",null,"66174 Spielfeld",null,null,null,null,"68260 Stockheim",null,null,{"$f":"HLOOKUP($B$1,($A$519:$O$812),136,2)","v":0}]
[null,null,"61208 Gamsgebirg","62026 Petzelsdorf",null,"64018 Schweighof",null,"66165 St. Andrä im Sausal",null,null,null,null,"68029 Strallegg",null,null,{"$f":"HLOOKUP($B$1,($A$519:$O$812),137,2)","v":0}]
[null,null,"61209 Gersdorf","66327 Pfarrsdorf",null,"64143 Sebersdorf",null,"66422 St. Georgen an der Stiefing",null,null,null,null,"68149 Sulz",null,null,{"$f":"HLOOKUP($B$1,($A$519:$O$812),138,2)","v":0}]
[null,null,"61210 Grafendorf","62027 Pichla",null,"64144 Seibersdorf",null,"66037 St. Johann im Saggautal",null,null,null,null,"68150 Takern I",null,null,{"$f":"HLOOKUP($B$1,($A$519:$O$812),139,2)","v":0}]
[null,null,"61211 Graggerer","66328 Pichla bei Radkersburg",null,"64319 Sichart",null,"66423 St. Margareten",null,null,null,null,"68151 Takern II",null,null,{"$f":"HLOOKUP($B$1,($A$519:$O$812),140,2)","v":0}]
[null,null,"61212 Graschuh","62318 Pirching",null,"64145 Siebenbrunn",null,"66167 St. Nikolai im Sausal",null,null,null,null,"68261 Tober",null,null,{"$f":"HLOOKUP($B$1,($A$519:$O$812),141,2)","v":0}]
[null,null,"61213 Greim","62028 Plesch",null,"64214 Siegersdorf",null,"66166 St. Nikolai ob Draßling",null,null,null,null,"68262 Trennstein",null,null,{"$f":"HLOOKUP($B$1,($A$519:$O$812),142,2)","v":0}]
[null,null,"61214 Greisdorf","66329 Pölten",null,"64019 Sinnersdorf",null,"66424 St. Ulrich am Waasen",null,null,null,null,"63029 Tulwitzdorf",null,null,{"$f":"HLOOKUP($B$1,($A$519:$O$812),143,2)","v":0}]
[null,null,"61215 Gruberg","62146 Poppendorf",null,"62243 Söchau",null,"66168 St. Veit am Vogau",null,null,null,null,"63030 Tulwitzviertel",null,null,{"$f":"HLOOKUP($B$1,($A$519:$O$812),144,2)","v":0}]
[null,null,"61216 Gundersdorf","66330 Pridahof",null,"64320 Sommersgut",null,"66175 Stangersdorf",null,null,null,null,"63031 Türnau",null,null,{"$f":"HLOOKUP($B$1,($A$519:$O$812),145,2)","v":0}]
[null,null,"61217 Herbersdorf","62147 Raabau",null,"64020 Sparberegg",null,"66176 Steinbach",null,null,null,null,"68152 Ungerdorf",null,null,{"$f":"HLOOKUP($B$1,($A$519:$O$812),146,2)","v":0}]
[null,null,"61218 Hohenfeld","62148 Radersdorf",null,"62244 Speltenbach",null,"66177 Steingrub",null,null,null,null,"68263 Unterfeistritz",null,null,{"$f":"HLOOKUP($B$1,($A$519:$O$812),147,2)","v":0}]
[null,null,"61219 Kothvogl","66331 Radkersburg",null,"64212 St. Johann bei Herberstein",null,"66178 Steinriegel",null,null,null,null,"68264 Unterfladnitz",null,null,{"$f":"HLOOKUP($B$1,($A$519:$O$812),148,2)","v":0}]
[null,null,"61220 Lannach","66332 Radochen",null,"64140 St. Johann in der Haide",null,"66427 Stocking",null,null,null,null,"68265 Untergreith",null,null,{"$f":"HLOOKUP($B$1,($A$519:$O$812),149,2)","v":0}]
[null,null,"61221 Lasselsdorf","62149 Raning",null,"64014 St. Lorenzen am Wechsel",null,"66179 Straß",null,null,null,null,"68153 Untergroßau",null,null,{"$f":"HLOOKUP($B$1,($A$519:$O$812),150,2)","v":0}]
[null,null,"61222 Lemsitz","66226 Rannersdorf",null,"62245 Stadtbergen",null,"66428 Sukdull",null,null,null,null,"68154 Unterlaßnitz",null,null,{"$f":"HLOOKUP($B$1,($A$519:$O$812),151,2)","v":0}]
[null,null,"61223 Lichtenhof","66227 Ratschendorf",null,"64146 Stambach",null,"66180 Sulz",null,null,null,null,"68155 Unterrettenbach",null,null,{"$f":"HLOOKUP($B$1,($A$519:$O$812),152,2)","v":0}]
[null,null,"61224 Mettersdorf","62319 Rettenbach",null,"64147 Staudach",null,"66181 Sulztal",null,null,null,null,"68156 Urscha",null,null,{"$f":"HLOOKUP($B$1,($A$519:$O$812),153,2)","v":0}]
[null,null,"61225 Mitteregg","62151 Riegersburg",null,"62246 Stein",null,"66182 Tillmitsch",null,null,null,null,"68030 Viertelfeistritz",null,null,{"$f":"HLOOKUP($B$1,($A$519:$O$812),154,2)","v":0}]
[null,null,"61226 Müllegg","62029 Risola",null,"64321 Steinhöf",null,"66183 Unterfahrenbach",null,null,null,null,"68031 Völlegg",null,null,{"$f":"HLOOKUP($B$1,($A$519:$O$812),155,2)","v":0}]
[null,null,"61227 Neudorf","62152 Rohr",null,"64215 Stubenberg",null,"66184 Untergralla",null,null,null,null,"68032 Waisenegg",null,null,{"$f":"HLOOKUP($B$1,($A$519:$O$812),156,2)","v":0}]
[null,null,"61228 Neurath","66228 Rohrbach",null,"64021 Tanzegg",null,"66040 Untergreith",null,null,null,null,"68033 Weiglhof",null,null,{"$f":"HLOOKUP($B$1,($A$519:$O$812),157,2)","v":0}]
[null,null,"61229 Niedergams","62153 Saaz",null,"62247 Tautendorf",null,"66429 Unterhaus",null,null,null,null,"68266 Weiz",null,null,{"$f":"HLOOKUP($B$1,($A$519:$O$812),158,2)","v":0}]
[null,null,"61230 Oisnitz","66229 Salsach",null,"62248 Übersbach",null,"66185 Unterjahring",null,null,null,null,"68157 Wetzawinkel",null,null,{"$f":"HLOOKUP($B$1,($A$519:$O$812),159,2)","v":0}]
[null,null,"61231 Pichling","62030 Schiefer",null,"64148 Ungarvorstadt",null,"62325 Unterlabill",null,null,null,null,"68158 Wilfersdorf",null,null,{"$f":"HLOOKUP($B$1,($A$519:$O$812),160,2)","v":0}]
[null,null,"61232 Pirkhof","66231 Schrötten",null,"64149 Unterbuch",null,"66186 Unterlupitscheni",null,null,null,null,"68159 Wolfsgruben bei Gleisdorf",null,null,{"$f":"HLOOKUP($B$1,($A$519:$O$812),161,2)","v":0}]
[null,null,"61233 Rassach","66232 Schwabau",null,"64150 Unterdombach",null,"66187 Untervogau",null,null,null,null,"68267 Wolfsgruben bei St. Ruprecht",null,null,{"$f":"HLOOKUP($B$1,($A$519:$O$812),162,2)","v":0}]
[null,null,"61234 Rossegg","62155 Schweinz",null,"64151 Unterlimbach",null,"66188 Wagna",null,null,null,null,"68268 Wollsdorf",null,null,{"$f":"HLOOKUP($B$1,($A$519:$O$812),163,2)","v":0}]
[null,null,"61235 Sallegg","66233 Seibersdorf bei St. Veit",null,"64152 Unterlungitz",null,"66189 Waldschach",null,null,null,null,"68160 Wollsdorferegg",null,null,{"$f":"HLOOKUP($B$1,($A$519:$O$812),164,2)","v":0}]
[null,null,"61236 St. Josef (Weststeiermark)","66333 Sicheldorf",null,"64216 Unterneuberg",null,"66241 Weinburg",null,null,null,null,"68161 Wünschendorf",null,null,{"$f":"HLOOKUP($B$1,($A$519:$O$812),165,2)","v":0}]
[null,null,"61237 St. Stefan","66334 Sögersdorf",null,"64153 Unterrohr",null,"66430 Weitendorf",null,null,null,null,"68162 Zöbing",null,null,{"$f":"HLOOKUP($B$1,($A$519:$O$812),166,2)","v":0}]
[null,null,"61238 Sierling","62154 St. Kind",null,"64217 Untertiefenbach",null,"66190 Wielitsch",null,null,null,null,null,null,null,{"$f":"HLOOKUP($B$1,($A$519:$O$812),167,2)","v":0}]
[null,null,"61239 Stainz","66230 St. Peter am Ottersbach",null,"64218 Vockenberg",null,"66431 Wildon",null,null,null,null,null,null,null,{"$f":"HLOOKUP($B$1,($A$519:$O$812),168,2)","v":0}]
[null,null,"61240 Stallhof","62320 St. Stefan im Rosental",null,"64322 Vorau",null,"66432 Wolfsberg",null,null,null,null,null,null,null,{"$f":"HLOOKUP($B$1,($A$519:$O$812),169,2)","v":0}]
[null,null,"61241 Teipl","62156 Stainz bei Straden",null,"64323 Vornholz",null,"66434 Wutschdorf",null,null,null,null,null,null,null,{"$f":"HLOOKUP($B$1,($A$519:$O$812),170,2)","v":0}]
[null,null,"61242 Teufenbach","62031 Stang",null,"64154 Wagenbach",null,"66028 Obergreith",null,null,null,null,null,null,null,{"$f":"HLOOKUP($B$1,($A$519:$O$812),171,2)","v":0}]
[null,null,"61243 Tobisegg","66235 Straden",null,"64155 Wagendorf",null,"66029 Oberhaag",null,null,null,null,null,null,null,{"$f":"HLOOKUP($B$1,($A$519:$O$812),172,2)","v":0}]
[null,null,"61244 Trog","62157 Studenzen",null,"64156 Wagerberg",null,"66155 Oberjahring",null,null,null,null,null,null,null,{"$f":"HLOOKUP($B$1,($A$519:$O$812),173,2)","v":0}]
[null,null,"61245 Vochera am Weinberg","62158 Sulzbach",null,"62252 Walkersdorf",null,"66324 Oberkarla",null,null,null,null,null,null,null,{"$f":"HLOOKUP($B$1,($A$519:$O$812),174,2)","v":0}]
[null,null,"61246 Wald","62032 Tiefenbach",null,"64157 Waltersdorf",null,"66156 Oberlupitscheni",null,null,null,null,null,null,null,{"$f":"HLOOKUP($B$1,($A$519:$O$812),175,2)","v":0}]
[null,null,"61247 Wetzelsdorf","62159 Tiefernitz",null,"64158 Weinberg",null,"66325 Oberpurkla",null,null,null,null,null,null,null,{"$f":"HLOOKUP($B$1,($A$519:$O$812),176,2)","v":0}]
[null,null,"61249 Zirknitz","66335 Tieschen",null,"64159 Wenireith",null,"66220 Oberrakitsch",null,null,null,null,null,null,null,{"$f":"HLOOKUP($B$1,($A$519:$O$812),177,2)","v":0}]
[null,null,"61250 Steinreib","62160 Trautmannsdorf",null,"64022 Wiesenhöf",null,"66221 Oberschwarza",null,null,null,null,null,null,null,{"$f":"HLOOKUP($B$1,($A$519:$O$812),178,2)","v":0}]
[null,null,null,"62322 Trössengraben",null,"64219 Winkl",null,"66222 Oberspitz",null,null,null,null,null,null,null,{"$f":"HLOOKUP($B$1,($A$519:$O$812),179,2)","v":0}]
[null,null,null,"66236 Trössing",null,"64220 Winzendorf",null,"66157 Obervogau",null,null,null,null,null,null,null,{"$f":"HLOOKUP($B$1,($A$519:$O$812),180,2)","v":0}]
[null,null,null,"62323 Ungerdorf",null,"64161 Wolfgrub",null,"66158 Ottenberg",null,null,null,null,null,null,null,{"$f":"HLOOKUP($B$1,($A$519:$O$812),181,2)","v":0}]
[null,null,null,"62324 Unterauersbach",null,"64160 Wörth",null,"61047 Otternitz",null,null,null,null,null,null,null,{"$f":"HLOOKUP($B$1,($A$519:$O$812),182,2)","v":0}]
[null,null,null,"66336 Unterkarla",null,"64221 Zeil-Pöllau",null,"66326 Patzen",null,null,null,null,null,null,null,{"$f":"HLOOKUP($B$1,($A$519:$O$812),183,2)","v":0}]
[null,null,null,"62033 Unterlamm",null,"64222 Zeil-Stubenberg",null,"66223 Perbersdorf bei St. Peter",null,null,null,null,null,null,null,{"$f":"HLOOKUP($B$1,($A$519:$O$812),184,2)","v":0}]
[null,null,null,"66337 Unterpurkla",null,"62249 Ziegenberg",null,"66224 Perbersdorf bei St. Veit",null,null,null,null,null,null,null,{"$f":"HLOOKUP($B$1,($A$519:$O$812),185,2)","v":0}]
[null,null,null,"66238 Unterschwarza",null,null,null,"66159 Petzles",null,null,null,null,null,null,null,{"$f":"HLOOKUP($B$1,($A$519:$O$812),186,2)","v":0}]
[null,null,null,"66239 Unterspitz",null,null,null,"66327 Pfarrsdorf",null,null,null,null,null,null,null,{"$f":"HLOOKUP($B$1,($A$519:$O$812),187,2)","v":0}]
[null,null,null,"62166 Unterstorcha",null,null,null,"66225 Pichla",null,null,null,null,null,null,null,{"$f":"HLOOKUP($B$1,($A$519:$O$812),188,2)","v":0}]
[null,null,null,"62326 Unterzirknitz",null,null,null,"66328 Pichla bei Radkersburg",null,null,null,null,null,null,null,{"$f":"HLOOKUP($B$1,($A$519:$O$812),189,2)","v":0}]
[null,null,null,"66240 Waasen",null,null,null,"62318 Pirching",null,null,null,null,null,null,null,{"$f":"HLOOKUP($B$1,($A$519:$O$812),190,2)","v":0}]
[null,null,null,"62161 Waldsberg",null,null,null,"66031 Pistorf",null,null,null,null,null,null,null,{"$f":"HLOOKUP($B$1,($A$519:$O$812),191,2)","v":0}]
[null,null,null,"62034 Waltra",null,null,null,"66329 Pölten",null,null,null,null,null,null,null,{"$f":"HLOOKUP($B$1,($A$519:$O$812),192,2)","v":0}]
[null,null,null,"62035 Weinberg",null,null,null,"61135 Pongratzen",null,null,null,null,null,null,null,{"$f":"HLOOKUP($B$1,($A$519:$O$812),193,2)","v":0}]
[null,null,null,"62163 Weißenbach",null,null,null,"66030 Pößnitz",null,null,null,null,null,null,null,{"$f":"HLOOKUP($B$1,($A$519:$O$812),194,2)","v":0}]
[null,null,null,"66242 Weitersfeld",null,null,null,"66032 Prarath",null,null,null,null,null,null,null,{"$f":"HLOOKUP($B$1,($A$519:$O$812),195,2)","v":0}]
[null,null,null,"66247 Weixelbaum",null,null,null,"66033 Praratheregg",null,null,null,null,null,null,null,{"$f":"HLOOKUP($B$1,($A$519:$O$812),196,2)","v":0}]
[null,null,null,"62327 Wetzelsdorf",null,null,null,"61049 Preding",null,null,null,null,null,null,null,{"$f":"HLOOKUP($B$1,($A$519:$O$812),197,2)","v":0}]
[null,null,null,"66243 Wieden",null,null,null,"63266 Premstätten bei Vasoldsberg",null,null,null,null,null,null,null,{"$f":"HLOOKUP($B$1,($A$519:$O$812),198,2)","v":0}]
[null,null,null,"66244 Wiersdorf",null,null,null,"66330 Pridahof",null,null,null,null,null,null,null,{"$f":"HLOOKUP($B$1,($A$519:$O$812),199,2)","v":0}]
[null,null,null,"62164 Wilhelmsdorf",null,null,null,"66034 Radiga",null,null,null,null,null,null,null,{"$f":"HLOOKUP($B$1,($A$519:$O$812),200,2)","v":0}]
[null,null,null,"66245 Wittmannsdorf",null,null,null,"66331 Radkersburg",null,null,null,null,null,null,null,{"$f":"HLOOKUP($B$1,($A$519:$O$812),201,2)","v":0}]
[null,null,null,"62165 Wörth",null,null,null,"66332 Radochen",null,null,null,null,null,null,null,{"$f":"HLOOKUP($B$1,($A$519:$O$812),202,2)","v":0}]
[null,null,null,"66246 Zehensdorf",null,null,null,"66421 Ragnitz",null,null,null,null,null,null,null,{"$f":"HLOOKUP($B$1,($A$519:$O$812),203,2)","v":0}]
[null,null,null,"66339 Zelting",null,null,null,"66226 Rannersdorf",null,null,null,null,null,null,null,{"$f":"HLOOKUP($B$1,($A$519:$O$812),204,2)","v":0}]
[null,null,null,"62328 Zerlach",null,null,null,"66160 Ratsch",null,null,null,null,null,null,null,{"$f":"HLOOKUP($B$1,($A$519:$O$812),205,2)","v":0}]
[null,null,null,"62329 Ziprein",null,null,null,"66227 Ratschendorf",null,null,null,null,null,null,null,{"$f":"HLOOKUP($B$1,($A$519:$O$812),206,2)","v":0}]
[null,null,null,null,null,null,null,"66161 Reith",null,null,null,null,null,null,null,{"$f":"HLOOKUP($B$1,($A$519:$O$812),207,2)","v":0}]
[null,null,null,null,null,null,null,"66035 Remschnigg",null,null,null,null,null,null,null,{"$f":"HLOOKUP($B$1,($A$519:$O$812),208,2)","v":0}]
[null,null,null,null,null,null,null,"62319 Rettenbach",null,null,null,null,null,null,null,{"$f":"HLOOKUP($B$1,($A$519:$O$812),209,2)","v":0}]
[null,null,null,null,null,null,null,"66162 Rettenbach",null,null,null,null,null,null,null,{"$f":"HLOOKUP($B$1,($A$519:$O$812),210,2)","v":0}]
[null,null,null,null,null,null,null,"66163 Rettenberg",null,null,null,null,null,null,null,{"$f":"HLOOKUP($B$1,($A$519:$O$812),211,2)","v":0}]
[null,null,null,null,null,null,null,"66164 Retznei",null,null,null,null,null,null,null,{"$f":"HLOOKUP($B$1,($A$519:$O$812),212,2)","v":0}]
[null,null,null,null,null,null,null,"66228 Rohrbach",null,null,null,null,null,null,null,{"$f":"HLOOKUP($B$1,($A$519:$O$812),213,2)","v":0}]
[null,null,null,null,null,null,null,"66036 Saggau",null,null,null,null,null,null,null,{"$f":"HLOOKUP($B$1,($A$519:$O$812),214,2)","v":0}]
[null,null,null,null,null,null,null,"66229 Salsach",null,null,null,null,null,null,null,{"$f":"HLOOKUP($B$1,($A$519:$O$812),215,2)","v":0}]
[null,null,null,null,null,null,null,"66038 Sausal bei Pistorf",null,null,null,null,null,null,null,{"$f":"HLOOKUP($B$1,($A$519:$O$812),216,2)","v":0}]
[null,null,null,null,null,null,null,"66169 Sausal-Kerschegg",null,null,null,null,null,null,null,{"$f":"HLOOKUP($B$1,($A$519:$O$812),217,2)","v":0}]
[null,null,null,null,null,null,null,"66170 Schirka",null,null,null,null,null,null,null,{"$f":"HLOOKUP($B$1,($A$519:$O$812),218,2)","v":0}]
[null,null,null,null,null,null,null,"66039 Schloßberg",null,null,null,null,null,null,null,{"$f":"HLOOKUP($B$1,($A$519:$O$812),219,2)","v":0}]
[null,null,null,null,null,null,null,"66425 Schönberg",null,null,null,null,null,null,null,{"$f":"HLOOKUP($B$1,($A$519:$O$812),220,2)","v":0}]
[null,null,null,null,null,null,null,"66171 Schönegg",null,null,null,null,null,null,null,{"$f":"HLOOKUP($B$1,($A$519:$O$812),221,2)","v":0}]
[null,null,null,null,null,null,null,"66231 Schrötten",null,null,null,null,null,null,null,{"$f":"HLOOKUP($B$1,($A$519:$O$812),222,2)","v":0}]
[null,null,null,null,null,null,null,"66426 Schrötten",null,null,null,null,null,null,null,{"$f":"HLOOKUP($B$1,($A$519:$O$812),223,2)","v":0}]
[null,null,null,null,null,null,null,"66232 Schwabau",null,null,null,null,null,null,null,{"$f":"HLOOKUP($B$1,($A$519:$O$812),224,2)","v":0}]
[null,null,null,null,null,null,null,"66172 Seggauberg",null,null,null,null,null,null,null,{"$f":"HLOOKUP($B$1,($A$519:$O$812),225,2)","v":0}]
[null,null,null,null,null,null,null,"66233 Seibersdorf bei St. Veit",null,null,null,null,null,null,null,{"$f":"HLOOKUP($B$1,($A$519:$O$812),226,2)","v":0}]
[null,null,null,null,null,null,null,"66173 Sernau",null,null,null,null,null,null,null,{"$f":"HLOOKUP($B$1,($A$519:$O$812),227,2)","v":0}]
[null,null,null,null,null,null,null,"66333 Sicheldorf",null,null,null,null,null,null,null,{"$f":"HLOOKUP($B$1,($A$519:$O$812),228,2)","v":0}]
[null,null,null,null,null,null,null,"66234 Siebing",null,null,null,null,null,null,null,{"$f":"HLOOKUP($B$1,($A$519:$O$812),229,2)","v":0}]
[null,null,null,null,null,null,null,"66334 Sögersdorf",null,null,null,null,null,null,null,{"$f":"HLOOKUP($B$1,($A$519:$O$812),230,2)","v":0}]
[null,null,null,null,null,null,null,"66174 Spielfeld",null,null,null,null,null,null,null,{"$f":"HLOOKUP($B$1,($A$519:$O$812),231,2)","v":0}]
[null,null,null,null,null,null,null,"66165 St. Andrä im Sausal",null,null,null,null,null,null,null,{"$f":"HLOOKUP($B$1,($A$519:$O$812),232,2)","v":0}]
[null,null,null,null,null,null,null,"66422 St. Georgen an der Stiefing",null,null,null,null,null,null,null,{"$f":"HLOOKUP($B$1,($A$519:$O$812),233,2)","v":0}]
[null,null,null,null,null,null,null,"66037 St. Johann im Saggautal",null,null,null,null,null,null,null,{"$f":"HLOOKUP($B$1,($A$519:$O$812),234,2)","v":0}]
[null,null,null,null,null,null,null,"66423 St. Margareten",null,null,null,null,null,null,null,{"$f":"HLOOKUP($B$1,($A$519:$O$812),235,2)","v":0}]
[null,null,null,null,null,null,null,"66167 St. Nikolai im Sausal",null,null,null,null,null,null,null,{"$f":"HLOOKUP($B$1,($A$519:$O$812),236,2)","v":0}]
[null,null,null,null,null,null,null,"66166 St. Nikolai ob Draßling",null,null,null,null,null,null,null,{"$f":"HLOOKUP($B$1,($A$519:$O$812),237,2)","v":0}]
[null,null,null,null,null,null,null,"66230 St. Peter am Ottersbach",null,null,null,null,null,null,null,{"$f":"HLOOKUP($B$1,($A$519:$O$812),238,2)","v":0}]
[null,null,null,null,null,null,null,"66424 St. Ulrich am Waasen",null,null,null,null,null,null,null,{"$f":"HLOOKUP($B$1,($A$519:$O$812),239,2)","v":0}]
[null,null,null,null,null,null,null,"66168 St. Veit am Vogau",null,null,null,null,null,null,null,{"$f":"HLOOKUP($B$1,($A$519:$O$812),240,2)","v":0}]
[null,null,null,null,null,null,null,"66175 Stangersdorf",null,null,null,null,null,null,null,{"$f":"HLOOKUP($B$1,($A$519:$O$812),241,2)","v":0}]
[null,null,null,null,null,null,null,"66176 Steinbach",null,null,null,null,null,null,null,{"$f":"HLOOKUP($B$1,($A$519:$O$812),242,2)","v":0}]
[null,null,null,null,null,null,null,"66177 Steingrub",null,null,null,null,null,null,null,{"$f":"HLOOKUP($B$1,($A$519:$O$812),243,2)","v":0}]
[null,null,null,null,null,null,null,"66178 Steinriegel",null,null,null,null,null,null,null,{"$f":"HLOOKUP($B$1,($A$519:$O$812),244,2)","v":0}]
[null,null,null,null,null,null,null,"66427 Stocking",null,null,null,null,null,null,null,{"$f":"HLOOKUP($B$1,($A$519:$O$812),245,2)","v":0}]
[null,null,null,null,null,null,null,"66235 Straden",null,null,null,null,null,null,null,{"$f":"HLOOKUP($B$1,($A$519:$O$812),246,2)","v":0}]
[null,null,null,null,null,null,null,"66179 Straß",null,null,null,null,null,null,null,{"$f":"HLOOKUP($B$1,($A$519:$O$812),247,2)","v":0}]
[null,null,null,null,null,null,null,"66428 Sukdull",null,null,null,null,null,null,null,{"$f":"HLOOKUP($B$1,($A$519:$O$812),248,2)","v":0}]
[null,null,null,null,null,null,null,"66180 Sulz",null,null,null,null,null,null,null,{"$f":"HLOOKUP($B$1,($A$519:$O$812),249,2)","v":0}]
[null,null,null,null,null,null,null,"62158 Sulzbach",null,null,null,null,null,null,null,{"$f":"HLOOKUP($B$1,($A$519:$O$812),250,2)","v":0}]
[null,null,null,null,null,null,null,"61060 Sulzhof",null,null,null,null,null,null,null,{"$f":"HLOOKUP($B$1,($A$519:$O$812),251,2)","v":0}]
[null,null,null,null,null,null,null,"66181 Sulztal",null,null,null,null,null,null,null,{"$f":"HLOOKUP($B$1,($A$519:$O$812),252,2)","v":0}]
[null,null,null,null,null,null,null,"66335 Tieschen",null,null,null,null,null,null,null,{"$f":"HLOOKUP($B$1,($A$519:$O$812),253,2)","v":0}]
[null,null,null,null,null,null,null,"66182 Tillmitsch",null,null,null,null,null,null,null,{"$f":"HLOOKUP($B$1,($A$519:$O$812),254,2)","v":0}]
[null,null,null,null,null,null,null,"61062 Tobis",null,null,null,null,null,null,null,{"$f":"HLOOKUP($B$1,($A$519:$O$812),255,2)","v":0}]
[null,null,null,null,null,null,null,"61144 Tombach",null,null,null,null,null,null,null,{"$f":"HLOOKUP($B$1,($A$519:$O$812),256,2)","v":0}]
[null,null,null,null,null,null,null,"66236 Trössing"," ",null,null,null,null,null,null,{"$f":"HLOOKUP($B$1,($A$519:$O$812),257,2)","v":0},null,null,null,null,null,null,null,null,null,null,null,null,null,null,null,null,null," "," "," "," "," "," "," "," "," "," "," "," "," "," "," "," "," "," "," "," "," "," "," "," "," "," "," "," "," "," "," "," "," "," "," "," "," "," "," "," "," "," "," "," "," "," "," "," "," "," "," "," "," "," "," "," "," "," "]
[null,null,null,null,null,null,null,"62323 Ungerdorf",null,null,null,null,null,null,null,{"$f":"HLOOKUP($B$1,($A$519:$O$812),258,2)","v":0}]
[null,null,null,null,null,null,null,"66183 Unterfahrenbach",null,null,null,null,null,null,null,{"$f":"HLOOKUP($B$1,($A$519:$O$812),259,2)","v":0}]
[null,null,null,null,null,null,null,"66184 Untergralla",null,null,null,null,null,null,null,{"$f":"HLOOKUP($B$1,($A$519:$O$812),260,2)","v":0}]
[null,null,null,null,null,null,null,"66040 Untergreith",null,null,null,null,null,null,null,{"$f":"HLOOKUP($B$1,($A$519:$O$812),261,2)","v":0}]
[null,null,null,null,null,null,null,"66429 Unterhaus",null,null,null,null,null,null,null,{"$f":"HLOOKUP($B$1,($A$519:$O$812),262,2)","v":0}]
[null,null,null,null,null,null,null,"66185 Unterjahring",null,null,null,null,null,null,null,{"$f":"HLOOKUP($B$1,($A$519:$O$812),263,2)","v":0}]
[null,null,null,null,null,null,null,"66336 Unterkarla",null,null,null,null,null,null,null,{"$f":"HLOOKUP($B$1,($A$519:$O$812),264,2)","v":0}]
[null,null,null,null,null,null,null,"62325 Unterlabill",null,null,null,null,null,null,null,{"$f":"HLOOKUP($B$1,($A$519:$O$812),265,2)","v":0}]
[null,null,null,null,null,null,null,"66186 Unterlupitscheni",null,null,null,null,null,null,null,{"$f":"HLOOKUP($B$1,($A$519:$O$812),266,2)","v":0}]
[null,null,null,null,null,null,null,"66337 Unterpurkla",null,null,null,null,null,null,null,{"$f":"HLOOKUP($B$1,($A$519:$O$812),267,2)","v":0}]
[null,null,null,null,null,null,null,"66238 Unterschwarza",null,null,null,null,null,null,null,{"$f":"HLOOKUP($B$1,($A$519:$O$812),268,2)","v":0}]
[null,null,null,null,null,null,null,"66239 Unterspitz",null,null,null,null,null,null,null,{"$f":"HLOOKUP($B$1,($A$519:$O$812),269,2)","v":0}]
[null,null,null,null,null,null,null,"66187 Untervogau",null,null,null,null,null,null,null,{"$f":"HLOOKUP($B$1,($A$519:$O$812),270,2)","v":0}]
[null,null,null,null,null,null,null,"62326 Unterzirknitz",null,null,null,null,null,null,null,{"$f":"HLOOKUP($B$1,($A$519:$O$812),271,2)","v":0}]
[null,null,null,null,null,null,null,"66240 Waasen",null,null,null,null,null,null,null,{"$f":"HLOOKUP($B$1,($A$519:$O$812),272,2)","v":0}]
[null,null,null,null,null,null,null,"66188 Wagna",null,null,null,null,null,null,null,{"$f":"HLOOKUP($B$1,($A$519:$O$812),273,2)","v":0}]
[null,null,null,null,null,null,null,"66189 Waldschach",null,null,null,null,null,null,null,{"$f":"HLOOKUP($B$1,($A$519:$O$812),274,2)","v":0}]
[null,null,null,null,null,null,null,"66241 Weinburg",null,null,null,null,null,null,null,{"$f":"HLOOKUP($B$1,($A$519:$O$812),275,2)","v":0}]
[null,null,null,null,null,null,null,"66430 Weitendorf",null,null,null,null,null,null,null,{"$f":"HLOOKUP($B$1,($A$519:$O$812),276,2)","v":0}]
[null,null,null,null,null,null,null,"66242 Weitersfeld",null,null,null,null,null,null,null,{"$f":"HLOOKUP($B$1,($A$519:$O$812),277,2)","v":0}]
[null,null,null,null,null,null,null,"66247 Weixelbaum",null,null,null,null,null,null,null,{"$f":"HLOOKUP($B$1,($A$519:$O$812),278,2)","v":0}]
[null,null,null,null,null,null,null,"61069 Weniggleinz",null,null,null,null,null,null,null,{"$f":"HLOOKUP($B$1,($A$519:$O$812),279,2)","v":0}]
[null,null,null,null,null,null,null,"63292 Werndorf",null,null,null,null,null,null,null,{"$f":"HLOOKUP($B$1,($A$519:$O$812),280,2)","v":0}]
[null,null,null,null,null,null,null,"61070 Wettmannstätten",null,null,null,null,null,null,null,{"$f":"HLOOKUP($B$1,($A$519:$O$812),281,2)","v":0}]
[null,null,null,null,null,null,null,"66243 Wieden",null,null,null,null,null,null,null,{"$f":"HLOOKUP($B$1,($A$519:$O$812),282,2)","v":0}]
[null,null,null,null,null,null,null,"66190 Wielitsch",null,null,null,null,null,null,null,{"$f":"HLOOKUP($B$1,($A$519:$O$812),283,2)","v":0}]
[null,null,null,null,null,null,null,"66244 Wiersdorf",null,null,null,null,null,null,null,{"$f":"HLOOKUP($B$1,($A$519:$O$812),284,2)","v":0}]
[null,null,null,null,null,null,null,"66431 Wildon",null,null,null,null,null,null,null,{"$f":"HLOOKUP($B$1,($A$519:$O$812),285,2)","v":0}]
[null,null,null,null,null,null,null,"66245 Wittmannsdorf",null,null,null,null,null,null,null,{"$f":"HLOOKUP($B$1,($A$519:$O$812),286,2)","v":0}]
[null,null,null,null,null,null,null,"66432 Wolfsberg",null,null,null,null,null,null,null,{"$f":"HLOOKUP($B$1,($A$519:$O$812),287,2)","v":0}]
[null,null,null,null,null,null,null,"61151 Wuggitz",null,null,null,null,null,null,null,{"$f":"HLOOKUP($B$1,($A$519:$O$812),288,2)","v":0}]
[null,null,null,null,null,null,null,"63293 Wundschuh",null,null,null,null,null,null,null,{"$f":"HLOOKUP($B$1,($A$519:$O$812),289,2)","v":0}]
[null,null,null,null,null,null,null,"66434 Wutschdorf",null,null,null,null,null,null,null,{"$f":"HLOOKUP($B$1,($A$519:$O$812),290,2)","v":0}]
[null,null,null,null,null,null,null,"66246 Zehensdorf",null,null,null,null,null,null,null,{"$f":"HLOOKUP($B$1,($A$519:$O$812),291,2)","v":0}]
[null,null,null,null,null,null,null,"61075 Zehndorf",null,null,null,null,null,null,null,{"$f":"HLOOKUP($B$1,($A$519:$O$812),292,2)","v":0}]
[null,null,null,null,null,null,null,"66339 Zelting",null,null,null,null,null,null,null,{"$f":"HLOOKUP($B$1,($A$519:$O$812),293,2)","v":0}]
[null,null,null,null,null,null,null,"63295 Zwaring",null,null,null,null,null,null,null,{"$f":"HLOOKUP($B$1,($A$519:$O$812),294,2)","v":0}]

{"sheet":"Tabelle2","index":3,"n_rows":532,"n_cols":15,"rows_kept":532,"cut":false,"hidden":true,"merged":[]}
["60001 Aflenz Kurort","61001 Aichegg","62001 Aigen","60030 Mixnitz","62019 Magland","60321 Kraubath","61041 Mönichgleinz","60012 Forstwald","60050 St. Ilgen","60014 Frauenberg","65011 Frauenburg","65210 Krakauhintermühlen","61027 Klosterwinkel","60028 Lantsch","LIEZEN / Admont"]
["60002 Arndorf","61002 Aigen","62002 Burgfeld","60031 Oberaich","62022 Oberlamm","60322 Kraubathgraben","61047 Otternitz","60031 Oberaich","60055 Schattenberg","60049 Rumpelmühle","65016 Möschitzgraben","65223 Schöderberg","61202 Blumegg","60030 Mixnitz","LIEZEN / Aigen im Ennstal"]
["60003 Berndorf","61003 Blumau","62003 Bairisch Kölldorf","60067 Traföß","62023 Oedgraben","60328 Lichtensteinerberg","61049 Preding","60033 Oberdorf-Niederdorf","60102 Hieflau","60052 St. Lorenzen im Mürztal","65020 Ossach","65509 Pöllau","61203 Breitenbach","60060 Sonnleiten-Pernegg","LIEZEN / Altenmarkt bei Sankt Gallen"]
["60004 Bruck an der Mur","61004 Bösenbach","62004 Fehring","60074 Zlatten","62032 Tiefenbach","60329 Liesing","61060 Sulzhof","60034 Obertal","60103 Jassingau","60056 Schlaggraben","65027 St. Georgen","65512 Schöttl","61214 Greisdorf","60202 Alpl","LIEZEN / Ardning"]
["60005 Deuchendorf","61005 Burgegg","62005 Frutten","60310 Gößgraben-Göß","62033 Unterlamm","60330 Liesingau","61062 Tobis","60040 Picheldorf","60105 Münichthal","60060 Sonnleiten-Pernegg","65034 Unzmarkt","65515 Winklern","61216 Gundersdorf","60207 Fochnitz","LIEZEN / Eisenerz"]
["60006 Diemlach","61006 Deutschlandsberg","62006 Gießelsdorf","60313 Hinterlainsach","62106 Breitenfeld","60332 Lobming","61069 Weniggleinz","60047 Rastal","60106 Radmer an der Hasel","60061 Sonnleiten","65037 Wöll","65606 Pusterwald","61232 Pirkhof","60220 Krieglach-Schwöbing","LIEZEN / Gaishorn am See"]
["60007 Döllach","61008 Dörfla","62007 Gutendorf","60332 Lobming","62129 Krennach","60339 Niederdorf","61070 Wettmannstätten","60055 Schattenberg","60107 Radmer an der Stube","60064 Stübming","65201 Baierdorf","67001 Altaussee","61241 Teipl","60227 Possegg","LIEZEN / Hohentauern"]
["60008 Dörflach","61009 Freidorf an der Laßnitz","62008 Habegg","60355 Schladnitzgraben","62139 Neustift bei Breitenfeld","60347 Rannach","61075 Zehndorf","60063 Streitgarn","60329 Liesing","60201 Allerheiligen","65202 Bodendorf","67002 Bad Aussee","61244 Trog","60502 Auersbach","LIEZEN / Irdning-Donnersbachtal"]
["60009 Einöd","61010 Freidorf im Sulmtal","62009 Haselbach","61062 Tobis","62154 St. Kind","63018 Neuhof","61107 Bischofegg","60071 Untertal","60366 Wald","60202 Alpl","65203 Einach","67003 Grundlsee","61249 Zirknitz","60506 Fröschnitz","LIEZEN / Landl"]
["60010 Erhardstraße","61011 Garanas","62010 Hatzendorf","63034 Waldstein","62155 Schweinz","63308 Gallmannsegg","61116 Gasselsdorf","60101 Eisenerz","60405 Weichselboden","60203 Brandstattgraben","65204 Egidi","67004 Krungl","63018 Neuhof","60519 Pretul","LIEZEN / Lassing"]
["60011 Etmißl","61012 Gleinz","62011 Hochstraden","63035 Wannersdorf","62201 Altenmarkt bei Fürstenfeld","63311 Gößnitz","61123 Kopreinigg","60102 Hieflau","65601 Bretstein","60204 Dickenbach","65205 Falkendorf","67005 Lupitsch","63205 Berndorf","60523 Spital am Semmering","LIEZEN / Liezen"]
["60012 Forstwald","61014 Greith","62012 Höflach","63036 Windhof","62202 Aschbach","63320 Hirschegg-Piber","61135 Pongratzen","60103 Jassingau","65602 Hohentauern","60205 Veitsch Dorf","65206 Freiberg","67006 Mitterndorf","63225 Gschnaidt","60524 Traibach","LIEZEN / Mariazell"]
["60013 Fölz","61015 Gressenberg","62013 Hohenbrugg","63101 Innere Stadt","62203 Bierbaum","63321 Hirschegg-Rein","61144 Tombach","60104 Krumpental","65606 Pusterwald","60206 Edelsdorf","65207 Frojach","67007 Obertressen","63233 Hitzendorf","63036 Windhof","LIEZEN / Pölstal"]
["60014 Frauenberg","61016 Groß St. Florian","62014 Jamm","63102 St. Leonhard","62204 Blumau","63347 Oswaldgraben","61151 Wuggitz","60105 Münichthal","65607 St. Johann Sonnseite","60207 Fochnitz","65208 Katsch","67008 Pichl","63249 Lichtenegg","68250 Plenzengreith","LIEZEN / Pusterwald"]
["60015 Gabraun","61017 Grub","62015 Johnsdorf","63103 Geidorf","62205 Buchberg","63356 Salla","61153 Graschach","60106 Radmer an der Hasel","65608 St. Johann Schattseite","60208 Freßnitz","65209 Krakaudorf","67009 Reitern","63251 Lieboch","68251 Ponigl","LIEZEN / Radmer"]
["60016 Göriach","61018 Grünau","62016 Kapfenstein","63104 Lend","62206 Burgau","63359 Scherzberg","62001 Aigen","60107 Radmer an der Stube","67101 Altenmarkt","60209 Freßnitzgraben","65210 Krakauhintermühlen","67010 Straßen","63256 Michlbach","68252 Preding","LIEZEN / Rottenmann"]
["60017 Göritz","61019 Gussendorf","62017 Klapping","63105 Gries","62207 Dambach","65001 Aichdorf","62005 Frutten","60108 Trofeng","67102 Bergerviertel","60210 Großveitsch","65211 Krakauschatten","67201 Diemlern","63273 St. Bartholomä","68253 Puch","LIEZEN / Sankt Gallen"]
["60018 Graschnitz","61020 Gutenacker","62018 Kölldorf","63106 Jakomini","62208 Dietersdorf","65002 Allerheiligen","62017 Klapping","60301 Brunn","67103 Essling","60211 Herzogberg","65212 Laßnitz-Lambrecht","67202 Gröbming","63278 Schadendorfberg","68254 Raas","LIEZEN / Selzthal"]
["60019 Grassnitz","61021 Hasreith","62019 Magland","63107 Algersdorf","62209 Dörfl","65003 Allersdorf","62118 Grabersdorf","60302 Dirnsdorf","67104 Gams","60212 Hollersbach","65213 Laßnitz-Murau","67203 Großsölk","63284 Stiwoll","68255 Reggerstätten","LIEZEN / Thörl"]
["60020 Hafendorf","61022 Hinterleiten","62020 Mahrensdorf","63108 Andritz","62210 Ebersdorf","65004 Dietersdorf","62130 Krusdorf","60303 Donawitz","67105 Krippau","60213 Jaßnitztal","65214 Lutzmannsdorf","67204 Kleinsölk","63301 Aichegg","68256 St. Ruprecht an der Raab","LIEZEN / Tragöß-Sankt Katharein"]
["60021 Hinterberg","61023 Hohlbach","62021 Neustift bei Kapfenstein","63109 Baierdorf","62211 Eichberg","65005 Enzersdorf","62138 Muggendorf","60304 Eselberg","67106 Landl","60214 Kindberg","65215 Murau","67205 Lengdorf","63302 Arnstein","68257 Schrems","LIEZEN / Trieben"]
["60022 Hüttengraben","61024 Hollenegg","62022 Oberlamm","63110 Engelsdorf","62212 Fürstenfeld","65006 Farrach","62158 Sulzbach","60305 Foirach","67107 Oberreith","60215 Kindbergdörfl","65216 Predlitz","67206 Michaelerberg","63303 Bärnbach","68258 Steinberg","LIEZEN / Wald am Schoberpaß"]
["60023 Jauring","61025 Hörbing","62023 Oedgraben","63111 Graz Stadt-Fölling","62213 Gillersdorf","65007 Feistritz","62302 Aug-Radisch","60306 Gai","67108 Palfau","60216 Kindthal","65217 Ranten","67207 Mitterberg","63304 Edelschrott","68259 Stenzengreith","LIEZEN / Wildalpen"]
["60024 Kaltbach","61026 Kerschbaum","62024 Pertlstein","63112 Gösting","62214 Großhartmannsdorf","65008 Feistritzgraben","62305 Frannach","60307 Gimplach","67109 Reiflingviertel","60217 Kindthalgraben","65218 Rinegg","67208 Öblarn","63305 Eggartsberg","68260 Stockheim","LIEZEN / Wörschach"]
["60025 Kapfenberg","61027 Klosterwinkel","62025 Petersdorf I","63113 Liebenau","62215 Großsteinbach","65009 Fisching","62306 Glojach","60308 Göß","67110 St. Gallen","60218 Kleinveitsch","65219 St. Georgen ob Murau","67209 Pruggern","63306 Fluttendorf","68261 Tober","LIEZEN / Aich"]
["60026 Kirchdorf","61028 Korbin","62026 Petzelsdorf","63114 Graz Stadt-Messendorf","62216 Großwilfersdorf","65010 Fohnsdorf","62307 Grasdorf","60309 Gößgraben-Freienstein","67111 Weißenbach an der Enns","60219 Krieglach","65220 St. Lorenzen","67210 St. Martin","63307 Gaisfeld","68262 Trennstein","LIEZEN / Aigen im Ennstal"]
["60027 Krottendorf","61029 Kraubath","62027 Pichla","63115 Murfeld","62217 Hainersdorf","65011 Frauenburg","62309 Jagerberg","60310 Gößgraben-Göß","67112 Wildalpen","60220 Krieglach-Schwöbing","65221 St. Ruprecht","67211 St. Nikolai","63308 Gallmannsegg","68263 Unterfeistritz","LIEZEN / Altaussee"]
["60028 Lantsch","61030 Kresbach","62028 Plesch","63116 Neudorf","62218 Hainfeld","65012 Hetzendorf","62314 Lugitsch","60311 Hafning","67113 Wolfsbachau","60221 Lutschaun","65222 Schöder","67212 Sonnberg","63309 Gasselberg","68264 Unterfladnitz","LIEZEN / Bad Aussee"]
["60029 Lonschitz","61031 Krottendorf","62029 Risola","63117 Ragnitz","62219 Hartl","65013 Judenburg","62315 Maggau","60312 Hessenberg","67304 Donnersbachwald","60222 Malleisten","65223 Schöderberg","67301 Aigen","63310 Geistthal","68265 Untergreith","LIEZEN / Bad Mitterndorf"]
["60030 Mixnitz","61032 Kruckenberg","62030 Schiefer","63118 Rudersdorf","62220 Herrnberg","65014 Kothgraben","62316 Mitterlabill","60313 Hinterlainsach","67305 Erlsberg","60223 Massing","65224 Seebach","67302 Altirdning","63311 Gößnitz","68266 Weiz","LIEZEN / Gröbming"]
["60031 Oberaich","61033 Lassenberg","62031 Stang","63119 St. Peter","62221 Hochenegg","65015 Kumpitz","62318 Pirching","60314 Jassing","67306 Gatschen","60224 Mitterdorf","65225 Stadl","67303 Donnersbach","63312 Grabenwarth","62102 Auersbach","LIEZEN / Grundlsee"]
["60032 Oberdorf-Landskron","61034 Laßnitz","62032 Tiefenbach","63120 Graz Stadt-St. Veit ob Graz","62222 Ilz","65016 Möschitzgraben","62319 Rettenbach","60315 Judendorf","67308 Ketten","60225 Mürzhofen","65226 Stolzalpe","67304 Donnersbachwald","63313 Graden-Piber","62109 Edelsbach","LIEZEN / Haus"]
["60033 Oberdorf-Niederdorf","61035 Lebing","62033 Unterlamm","63121 Stifting","62223 Kalsdorf","65017 Maria Buch","62323 Ungerdorf","60316 Kaisersberg","67317 Vorberg","60226 Niederaigen","65227 Tratten","67305 Erlsberg","63314 Gradenberg","62110 Erbersdorf","LIEZEN / Irdning-Donnersbachtal"]
["60034 Obertal","61036 Leibenfeld","62034 Waltra","68250 Plenzengreith","62224 Kleegraben","65018 Mühldorf","62325 Unterlabill","60317 Kalwang","67318 Wörschach","60227 Possegg","65228 Triebendorf","67306 Gatschen","63315 Gradenberg-Piber","62124 Kaag","LIEZEN / Krakau"]
["60035 Oberort","61037 Mainsdorf","62035 Weinberg","68257 Schrems","62225 Kleinsteinbach","65019 Oberweg","62326 Unterzirknitz","60318 Kammern","67401 Admont","60228 Scheibsgraben","65301 Adendorf","67307 Irdning","63316 Großsöding","62129 Krennach","LIEZEN / Lassing"]
["60036 Oisching","61038 Michlgleinz","62101 Altenmarkt bei Riegersburg","68259 Stenzengreith","62226 Kohlgraben","65020 Ossach","63207 Breitenhilm","60319 Kletschach","67402 Aigen","60229 Sölsnitz","65302 Baierdorf","67308 Ketten","63317 Großwöllmiß","62136 Mitterfladnitz","LIEZEN / Liezen"]
["60037 Parschlug","61039 Mitterspiel","62102 Auersbach","68260 Stockheim","62227 Kroisbach","65021 Pichlhofen","63211 Edelsgrub","60320 Köllach","67403 Ardning","60230 Stanz","65303 Dürnstein","67309 Klachau","63318 Hallersdorf","62157 Studenzen","LIEZEN / Michaelerberg-Pruggern"]
["60038 Palbersdorf","61040 Moos","62103 Axbach","61203 Breitenbach","62228 Leithen","65022 Pöls","63219 Gnaning","60321 Kraubath","67404 Johnsbach","60231 Sommer","65304 Feßnach","67310 Lantschern","63319 Hausdorf","62207 Dambach","LIEZEN / Mitterberg-Sankt Martin"]
["60039 Pernegg","61041 Mönichgleinz","62104 Bad Gleichenberg","61220 Lannach","62229 Lindegg","65023 Rattenberg","63231 Hausmannstätten","60322 Kraubathgraben","67405 Krumau","60232 Wartberg","65305 Greuth","67311 Neuhaus","63320 Hirschegg-Piber","62209 Dörfl","LIEZEN / Oberwölz"]
["60040 Picheldorf","61042 Nassau","62106 Breitenfeld","61230 Oisnitz","62230 Loimeth","65024 Reifling","63244 Krumegg","60323 Krumpen","67406 Liezen","60401 Aschbach","65306 Jakobsberg","67312 Niederöblarn","63321 Hirschegg-Rein","62211 Eichberg","LIEZEN / Öblarn"]
["60041 Pischk","61043 Neuberg","62107 Dirnbach","61243 Tobisegg","62231 Loipersdorf","65025 Reisstraße","63254 Mellach","60324 Laintal","67407 Oberhall","60402 Halltal","65307 Kulm","67313 Pürgg","63322 Hochtregist","62215 Großsteinbach","LIEZEN / Pusterwald"]
["60042 Pischkberg","61044 Oberfresen","62108 Ebersdorf","62148 Radersdorf","62232 Maierhofen","65026 Rothenthurm","63266 Premstätten bei Vasoldsberg","60325 Leims","67408 Pyhrn","60501 Altenberg","65308 Lind","67314 Raumberg","63323 Kainach","62221 Hochenegg","LIEZEN / Ramsau am Dachstein"]
["60043 Pötschach","61045 Oberlaufenegg","62109 Edelsbach","62157 Studenzen","62233 Mutzenfeld","65027 St. Georgen","63292 Werndorf","60326 Leitendorf","67409 Reithtal","60502 Auersbach","65309 Mühlen","67315 Stainach","63324 Kalchberg","62227 Kroisbach","LIEZEN / Rottenmann"]
["60044 Pötschen","61046 Osterwitz","62110 Erbersdorf","62317 Petersdorf II","62234 Nestelbach","65028 St. Peter","63293 Wundschuh","60327 Leoben","67410 Unterhall","60503 Eichhornthal","65310 Neumarkt","67316 Tauplitz","63325 Kemetberg","62228 Leithen","LIEZEN / Schladming"]
["60045 Pogusch","61047 Otternitz","62111 Feldbach","62319 Rettenbach","62235 Nestelberg","65029 Scheiben","63295 Zwaring","60328 Lichtensteinerberg","67411 Weißenbach bei Liezen","60504 Feistritzberg","65311 Noreia","67317 Vorberg","63326 Kirchberg","62234 Nestelbach","LIEZEN / Schöder"]
["60046 Rammersdorf","61048 Petzelsdorf","62112 Fischa","63001 Adriach","62236 Neudorf","65030 Schoberegg","63297 Lamberg","60329 Liesing","67412 Weng","60505 Frein an der Mürz","65312 Perchau","67318 Wörschach","63327 Kleinalpe","62235 Nestelberg","LIEZEN / Sölk"]
["60047 Rastal","61049 Preding","62113 Fladnitz im Raabtal","63002 Deutschfeistritz","62237 Obgrün","65031 Sillweg","66001 Altenbach","60330 Liesingau","67501 Au","60506 Fröschnitz","65313 Puchfeld","67319 Zlem","63328 Kleinsöding","62249 Ziegenberg","LIEZEN / St. Peter am Kammersberg"]
["60048 Roßgraben","61050 Reitererberg","62114 Gleichenberg Dorf","63003 Friesach","62238 Radersdorf","65032 Thalheim","66002 Arnfels","60331 Liesingthal","67502 Bärndorf","60507 Ganz","65314 St. Blasen","67411 Weißenbach bei Liezen","63329 Kleinwöllmiß","62251 Ottendorf","LIEZEN / Stainach-Pürgg"]
["60049 Rumpelmühle","61051 Rettenbach-Hollenegg","62115 Gnas","63004 Frohnleiten","62239 Reigersberg","65033 Tiefenbach","66003 Burgstall","60332 Lobming","67503 Büschendorf","60508 Hönigsberg","65315 St. Georgen","67508 Lassing Schattseite","63330 Kohlschwarz","63022 Rechberg","LIEZEN / Wörschach"]
["60050 St. Ilgen","61052 Rettenbach-Kloster","62116 Gniebing","63005 Gams","62240 Riegersdorf","65034 Unzmarkt","66004 Dornach","60333 Madstein","67504 Dietmannsdorf","60509 Kapellen","65316 St. Lambrecht","67509 Lassing Sonnseite","63331 Kowald","63025 Schönegg"]
["60051 St. Katharein an der Laming","61053 Rostock","62117 Gossendorf","63006 Gamsgraben","62241 Rittschein","65035 Waltersdorf","66005 Eichberg-Arnfels","60334 Magdwiesen","67505 Edlach","60510 Krampen","65317 St. Lorenzen","67510 Oppenberg","63332 Köflach","63029 Tulwitzdorf"]
["60052 St. Lorenzen im Mürztal","61054 St. Peter im Sulmtal","62118 Grabersdorf","63007 Großstübing","62242 Ruppersdorf","65036 Weißkirchen","66006 Eichberg-Trautenburg","60335 Mautern","67506 Furth","60511 Lambach","65318 St. Marein","67601 Aich","63333 Köppling","63031 Türnau"]
["60053 St. Marein im Mürztal","61055 Schamberg","62119 Grub I","63008 Gschwendt","62243 Söchau","65037 Wöll","66007 Fötschach","60336 Melling","67507 Gaishorn","60512 Langenwang","65319 St. Veit","67602 Ennsling","63334 Kreuzberg","63201 Affenberg"]
["60054 St. Martin","61056 Schönaich","62120 Grub II","63009 Hofamt","62244 Speltenbach","65038 Zeltweg","66008 Glanz","60337 Mötschendorf","67508 Lassing Schattseite","60513 Langenwang-Schwöbing","65320 Scheifling","67603 Gössenberg","63335 Krottendorf","63204 Brodersdorf"]
["60055 Schattenberg","61057 Schwanberg","62121 Haag","63010 Kleinstübing","62245 Stadtbergen","65101 Apfelberg","66009 Gleinstätten","60338 Mühltal","67509 Lassing Sonnseite","60514 Lechen","65321 Teufenbach","67604 Haus","63336 Lankowitz","63213 Eggersdorf"]
["60056 Schlaggraben","61058 Sulb","62122 Hirsdorf","63011 Kleinthal","62246 Stein","65102 Dürnberg","66010 Goldes","60339 Niederdorf","67510 Oppenberg","60515 Mitterberg","65322 Zeutschach","67605 Klaus","63337 Ligist","63226 Gschwendt"]
["60057 Schörgendorf","61059 Sulz","62123 Hofstätten","63012 Königgraben","62247 Tautendorf","65103 Einhörn","66011 Großklein","60340 Niklasdorf","67511 Rottenmann","60516 Mürzsteg","65401 Granitzen","67606 Leiten","63338 Lobming","63229 Haselbach"]
["60058 Seewiesen","61060 Sulzhof","62124 Kaag","63013 Laas","62248 Übersbach","65104 Farrach","66012 Großwalz","60341 Niklasdorfgraben","67512 Schwarzenbach","60517 Mürzzuschlag","65403 Lavantegg","67607 Oberhaus","63339 Lobmingberg","63236 Hofstätten"]
["60059 Sonnberg","61061 Tanzelsdorf","62125 Karbach","63014 Laufnitzdorf","62249 Ziegenberg","65105 Feistritz","66013 Gündorf","60342 Pfaffendorf","67513 Selzthal","60518 Neuberg","65501 Althofen","67608 Pichl","63340 Modriach","63245 Kumberg"]
["60060 Sonnleiten-Pernegg","61062 Tobis","62126 Kirchberg an der Raab","63015 Laufnitzgraben","62250 Breitenbach","65106 Flatschach","66014 Hardegg","60343 Pisching","67514 Singsdorf","60519 Pretul","65502 Feistritz","67609 Preunegg","63341 Moosing","63247 Langegg"]
["60061 Sonnleiten","61063 Trag","62167 Kohlberg II","63016 Markterviertel","62251 Ottendorf","65107 Fressenberg","66015 Haslach","60344 Prentgraben","67515 St. Lorenzen","60520 Schöneben-Ganz","65503 Hinterburg","67610 Ramsau","63342 Mooskirchen","63257 Mitterlaßnitz"]
["60062 Stegg","61064 Trahütten","62128 Kornberg","63017 Mauritzen","62252 Walkersdorf","65108 Gaal","66016 Kitzelsdorf","60345 Prettach","67516 Treglwang","60521 Schöneben-Spital","65504 Kammersberg","67611 Rohrmoos","63343 Muggauberg","63259 Nestelbach"]
["60063 Streitgarn","61065 Unterbergla","62129 Krennach","63018 Neuhof","64001 Anger","65109 Glein","66017 Kranach","60346 Proleb","67517 Trieben","60522 Semmering","65505 Mitterdorf","67612 Schladming","63344 Neudorf bei Mooskirchen","63260 Präbach"]
["60064 Stübming","61066 Unterlaufenegg","62130 Krusdorf","63019 Peggau","64002 Auerbach","65110 Graden","66018 Krast","60347 Rannach",null,"60523 Spital am Semmering","65506 Niederwölz","67613 Untertal","63345 Neudorf bei St. Johann","63270 St. Radegund"]
["60065 Thal","61067 Vochera an der Laßnitz","62131 Leitersdorf","63020 Pfannberg","64003 Baumgarten","65111 Greuth","66019 Langegg","60348 Reitingau",null,"60524 Traibach","65507 Oberwölz","67614 Weißenbach","63346 Oberwald","63274 St. Marein am Pickelbach"]
["60066 Thörl","61068 Warnblick","62132 Lembach bei Riegersburg","63021 Prenning","64004 Dechantskirchen","65112 Großlobming","66020 Leutschach","60349 Rötz",null,"68009 Fischbach","65508 Peterdorf",null,"63347 Oswaldgraben","63280 Schöckl"]
["60067 Traföß","61069 Weniggleinz","62133 Lödersdorf","63022 Rechberg","64005 Ehrenschachen","65113 Ingering I","66021 Lieschen","60350 St. Michael in Obersteiermark",null,"68011 Grubbauer","65509 Pöllau",null,"63348 Pack","64101 Blaindorf"]
["60068 Turnau","61070 Wettmannstätten","62134 Maierdorf","63023 Rothleiten","64006 Elsenau","65114 Ingering II","66022 Maltschach","60351 St. Peter-Freienstein",null,"68014 Kirchenviertel","65510 Raiming",null,"63349 Piber","64115 Hofing"]
["60069 Tutschach","61071 Wieden","62135 Merkendorf","63024 Röthelstein","64007 Friedberg","65115 Kleinlobming","66023 Mantrach","60352 St. Stefan",null,"68016 Landau","65511 Salchau",null,"63350 Piberegg","64118 Kaibing"]
["60070 Übelstein","61072 Wildbach","62136 Mitterfladnitz","63025 Schönegg","64008 Haideggendorf","65116 Knittelfeld","66024 Mattelsberg","60353 Schardorf",null,"68024 Rettenegg","65512 Schöttl",null,"63351 Pichling bei Köflach","64202 Freienberg"]
["60071 Untertal","61073 Wildbachdorf","62137 Mühldorf","63026 Schrems","64009 Hohenau","65117 Kobenz","66025 Mayerhof","60354 Schattenberg",null,"68027 St. Kathrein am Hauenstein","65513 Schönberg",null,"63352 Pichling bei Mooskirchen","64205 Köppelreith"]
["60072 Wienervorstadt","61074 Wohlsdorf","62138 Muggendorf","63027 Semriach","64010 Knolln","65118 Laing","66026 Nestelbach","60355 Schladnitzgraben",null,"68028 Sonnleitberg","65514 St. Peter",null,"63353 Puchbach","64210 Prätis"]
["60073 Winkl","61075 Zehndorf","62139 Neustift bei Breitenfeld","63028 Stübinggraben","64011 Köppel","65119 Lind","66027 Nestelberg bei Großklein","60356 Sonnberg",null,"68031 Völlegg","65515 Winklern",null,"63354 Raßberg","64211 Rabenwald"]
["60074 Zlatten","61076 Zeierling","62140 Oberdorf","63029 Tulwitzdorf","64012 Kroisbach","65120 Maßweg","66028 Obergreith","60357 Timmersdorf",null,null,"65605 Oberzeiring",null,"63355 Rosenthal","64212 St. Johann bei Herberstein"]
["60105 Münichthal","61077 Bergla","62141 Obergnas","63030 Tulwitzviertel","64013 Pinggau","65121 Mitterbach","66029 Oberhaag","60358 Tollinggraben",null,null,"65606 Pusterwald",null,"63356 Salla","64214 Siegersdorf"]
["60108 Trofeng","61078 Oberhart","62166 Unterstorcha","63031 Türnau","64014 St. Lorenzen am Wechsel","65122 Mitterlobming","66030 Pößnitz","60359 Traboch",null,null,"67204 Kleinsölk",null,"63357 St. Johann ob Hohenburg","64215 Stubenberg"]
["60204 Dickenbach","61079 Wieselsdorf","62143 Oedt","63032 Übelbach Land","64015 Schäffern","65123 Neuhofen","66031 Pistorf","60360 Traidersberg",null,null,"67211 St. Nikolai",null,"63358 St. Martin","64219 Winkl"]
["60206 Edelsdorf","61101 Aibl","62144 Paldau","63033 Übelbach Markt","64016 Schaueregg","65124 Pausendorf","66032 Prarath","60361 Treffning",null,null,"67304 Donnersbachwald",null,"63359 Scherzberg","64301 Äußeres Kaltenegg"]
["60210 Großveitsch","61102 Aichberg","62145 Perlsdorf","63122 Straßgang","64163 Rohrbach-Schlag","65125 Pichl","66033 Praratheregg","60362 Trofaiach",null,null,null,null,"63360 Södingberg","64304 Filzmoos"]
["60211 Herzogberg","61103 Altenmarkt","62146 Poppendorf","63123 Graz Stadt-Thondorf","64018 Schweighof","65126 Prank","66034 Radiga","60363 Vorderlainsach",null,null,null,null,"63361 Sonnleiten","64305 Kandlbauer"]
["60213 Jaßnitztal","61104 Aug","62147 Raabau","63124 Waltendorf","64019 Sinnersdorf","65127 Preg","66035 Remschnigg","60364 Vordernberg",null,null,null,null,"63362 Voitsberg Stadt","64306 Karnerviertl"]
["60217 Kindthalgraben","61105 Bachholz","62148 Radersdorf","63125 Webling","64020 Sparberegg","65128 Puchschachen","66036 Saggau","60365 Waasen",null,null,null,null,"63363 Stallhofen","64310 Pittermannviertl"]
["60218 Kleinveitsch","61107 Bischofegg","62149 Raning","63126 Graz Stadt-Weinitzen","64021 Tanzegg","65129 Rachau I","66037 St. Johann im Saggautal","60366 Wald",null,null,null,null,"63364 Steinberg","64314 Rieglerviertl"]
["60225 Mürzhofen","61108 Brunn","62151 Riegersburg","63127 Wenisbuch","64022 Wiesenhöf","65130 Rachau II","66038 Sausal bei Pistorf","63005 Gams",null,null,null,null,"63365 Stögersdorf","64316 Schmiedviertl"]
["60227 Possegg","61109 Buchegg","62152 Rohr","63128 Wetzelsdorf","64023 Götzendorf","65131 Raßnitz","66039 Schloßberg","63006 Gamsgraben",null,null,null,null,"63366 Thallein","64318 Schrimpf"]
["60228 Scheibsgraben","61110 Buchenberg-Burgstall","62153 Saaz","63201 Affenberg","64101 Blaindorf","65132 Sachendorf","66040 Untergreith","63011 Kleinthal",null,null,null,null,"63367 Tregist","64319 Sichart"]
["60229 Sölsnitz","61111 St. Oswald ob Eibiswald","62154 St. Kind","63203 Attendorf","64102 Dienersdorf","65133 St. Lorenzen","66041 Oberfahrenbach","63018 Neuhof",null,null,null,null,"63368 Unterwald","64321 Steinhöf"]
["60305 Foirach","61112 Eibiswald","62155 Schweinz","63204 Brodersdorf","64103 Ebersdorf","65134 St. Marein","66101 Aflenz","65105 Feistritz",null,null,null,null,"63369 Voitsberg Vorstadt","68001 Amassegg"]
["60310 Gößgraben-Göß","61113 Etzendorf","62156 Stainz bei Straden","63205 Berndorf","64104 Eggendorf","65135 St. Margarethen","66102 Altenberg","65109 Glein",null,null,null,null,"63370 Gießenberg","68002 Anger"]
["60319 Kletschach","61114 Feisternitz","62157 Studenzen","63206 Bierbaum","64105 Erdwegen","65136 Schönberg","66103 Altenmarkt","65111 Greuth",null,null,null,null,"65014 Kothgraben","68003 Aschau"]
["60320 Köllach","61115 Gaißeregg","62158 Sulzbach","63207 Breitenhilm","64106 Flattendorf","65137 Seckau","66104 Brünngraben","65114 Ingering II",null,null,null,null,"65025 Reisstraße","68004 Ausseregg"]
["60324 Laintal","61116 Gasselsdorf","62159 Tiefernitz","63208 Dietersdorf","64107 Geiseldorf","65138 Spielberg","66105 Brudersegg","65127 Preg",null,null,null,null,"65109 Glein","68005 Baierdorf"]
["60340 Niklasdorf","61117 Hadernigg","62160 Trautmannsdorf","63209 Dobl","64108 Gräflerviertl","65139 Wasserleith","66106 Eckberg","65128 Puchschachen",null,null,null,null,"65115 Kleinlobming","68006 Birkfeld"]
["60341 Niklasdorfgraben","61118 Haselbach","62161 Waldsberg","63210 Edelsbach","64109 Grafendorf","65140 Weyern","66107 Ehrenhausen","65139 Wasserleith",null,null,null,null,"65129 Rachau I","68007 Falkenstein"]
["60349 Rötz","61119 Hörmsdorf","62163 Weißenbach","63211 Edelsgrub","64110 Grazervorstadt","65304 Feßnach","66108 Einöd","65602 Hohentauern",null,null,null,null,"65130 Rachau II","68008 Feistritz"]
["60361 Treffning","61120 Jagernigg","62164 Wilhelmsdorf","63212 Eisbach","64111 Habersdorf","65307 Kulm","66109 Ewitsch","67106 Landl",null,null,null,null,"65406 Prethal","68009 Fischbach"]
["60364 Vordernberg","61121 Kleinradl","62165 Wörth","63213 Eggersdorf","64112 Hart","65308 Lind","66110 Fantsch","67112 Wildalpen",null,null,null,null,null,"68010 Gasen"]
["60401 Aschbach","61122 Kogl","62202 Aschbach","63214 Fernitz","64113 Hartberg","65311 Noreia","66111 Flamberg","67404 Johnsbach",null,null,null,null,null,"68011 Grubbauer"]
["60402 Halltal","61123 Kopreinigg","62210 Ebersdorf","63215 Fölling","64114 Hartl","65315 St. Georgen","66112 Fresing","67506 Furth",null,null,null,null,null,"68012 Gschaid bei Birkfeld"]
["60403 Mariazell","61124 Kornriegl","62220 Herrnberg","63216 Forstviertel","64115 Hofing","65320 Scheifling","66113 Gabersdorf","67516 Treglwang",null,null,null,null,null,"68013 Haslau"]
["60404 St. Sebastian","61125 Krumbach","62224 Kleegraben","63217 Freßnitz","64116 Hohenbrugg","65401 Granitzen","66114 Gamlitz",null,null,null,null,null,null,"68014 Kirchenviertel"]
["60405 Weichselboden","61126 Laaken","62231 Loipersdorf","63218 Friesach-St. Stefan","64117 Hopfau","65402 Kienberg","66115 Gauitsch",null,null,null,null,null,null,"68015 Inneres Kaltenegg"]
["60505 Frein an der Mürz","61127 Limberg","62239 Reigersberg","63219 Gnaning","64118 Kaibing","65403 Lavantegg","66116 Gersdorf",null,null,null,null,null,null,"68016 Landau"]
["60516 Mürzsteg","61128 Mitterlimberg","62241 Rittschein","63220 Gössendorf","64119 Kaindorf","65404 Obdach","66117 Göttling",null,null,null,null,null,null,"68017 Mitterbach"]
["63008 Gschwendt","61129 Mitterstraßen","62242 Ruppersdorf","63221 Höf","64120 Kopfing","65405 Obdachegg","66118 Graßnitzberg",null,null,null,null,null,null,"68018 Naintsch"]
["63014 Laufnitzdorf","61131 Oberlatein","62246 Stein","63222 Grambach","64121 Längenbach","65406 Prethal","66119 Greith",null,null,null,null,null,null,"68019 Oberfeistritz"]
["63015 Laufnitzgraben","61132 Pitschgau","62247 Tautendorf","63223 Gratwein","64122 Lafnitz","65407 Schwarzenbach","66120 Grötsch",null,null,null,null,null,null,"68020 Offenegg"]
["63024 Röthelstein","61133 Pitschgauegg","62251 Ottendorf","63224 Großsulz","64123 Leitersdorf","65511 Salchau","66121 Grottenhofen",null,null,null,null,null,null,"68021 Pacher"]
["63031 Türnau","61134 Pölfing","62252 Walkersdorf","63225 Gschnaidt","64124 Lemberg","65512 Schöttl","66122 Grubthal",null,null,null,null,null,null,"68022 Piregg"]
["67112 Wildalpen","61135 Pongratzen","62301 Aschau","63226 Gschwendt","64125 Löffelbach","65513 Schönberg","66123 Hasendorf",null,null,null,null,null,null,"68023 Rabendorf"]
["68017 Mitterbach","61136 Pörbach","62302 Aug-Radisch","63227 Hart bei St. Peter","64126 Mitterdombach","65601 Bretstein","66124 Heimschuh",null,null,null,null,null,null,"68024 Rettenegg"]
["68028 Sonnleitberg","61137 Rothwein","62303 Baumgarten","63228 Hart bei Eggersdorf","64127 Neudau","65602 Hohentauern","66125 Höch",null,null,null,null,null,null,"68025 Rossegg"]
["68212 Fladnitz an der Teichalpe","61138 St. Bartlmä","62304 Edelstauden","63229 Haselbach","64128 Neusiedl","65603 Möderbrugg","66126 Hütt",null,null,null,null,null,null,"68026 Sallegg"]
["68227 Kathrein II. Viertel","61139 St. Lorenzen","62305 Frannach","63230 Haselsdorf","64129 Neustift","65604 Oberkurzheim","66127 Jöss",null,null,null,null,null,null,"68027 St. Kathrein am Hauenstein"]
[null,"61140 Soboth","62306 Glojach","63231 Hausmannstätten","64130 Oberbuch","65605 Oberzeiring","66128 Kaindorf an der Sulm",null,null,null,null,null,null,"68028 Sonnleitberg"]
[null,"61141 Stammeregg","62307 Grasdorf","63232 Hautzendorf","64131 Oberlimbach","65606 Pusterwald","66129 Kittenberg",null,null,null,null,null,null,"68029 Strallegg"]
[null,"61142 Staritsch","62308 Hamet","63233 Hitzendorf","64132 Oberlungitz","65607 St. Johann Sonnseite","66130 Kogelberg",null,null,null,null,null,null,"68030 Viertelfeistritz"]
[null,"61143 Sterglegg","62309 Jagerberg","63234 Hönigthal","64133 Oberrohr","65608 St. Johann Schattseite","66131 Kranachberg",null,null,null,null,null,null,"68031 Völlegg"]
[null,"61144 Tombach","62310 Jahrbach","63235 Hörgas","64134 Obersafen","65609 St. Oswald","66132 Labitschberg",null,null,null,null,null,null,"68032 Waisenegg"]
[null,"61145 Unterfresen","62311 Kirchbach in Steiermark","63236 Hofstätten","64135 Penzendorf","65610 Unterzeiring","66133 Labuttendorf",null,null,null,null,null,null,"68033 Weiglhof"]
[null,"61146 Vordersdorf","62312 Krottendorf","63237 Jaritzberg","64136 Ring","67304 Donnersbachwald","66134 Lamperstätten",null,null,null,null,null,null,"68101 Albersdorf"]
[null,"61147 Wernersdorf","62313 Lichtenegg","63238 Judendorf-Straßengel","64137 Rohrbach an der Lafnitz","67501 Au","66135 Landscha",null,null,null,null,null,null,"68102 Arnwiesen"]
[null,"61148 Wiel St. Anna","62314 Lugitsch","63239 Kainbach","64138 Rohrbach bei Waltersdorf","67510 Oppenberg","66136 Lang",null,null,null,null,null,null,"68103 Egelsdorf"]
[null,"61149 Wiel St. Oswald","62315 Maggau","63240 Kalsdorf","64139 Safenau","67511 Rottenmann","66137 Langaberg",null,null,null,null,null,null,"68104 Entschendorf"]
[null,"61150 Wies","62316 Mitterlabill","63241 Kasten","64140 St. Johann in der Haide","67512 Schwarzenbach","66138 Leibnitz",null,null,null,null,null,null,"68105 Flöcking"]
[null,"61151 Wuggitz","62317 Petersdorf II","63242 Kehr und Plesch","64141 Schildbach","67515 St. Lorenzen","66139 Leitring",null,null,null,null,null,null,"68106 Frösauberg"]
[null,"61152 Dietmannsdorf","62318 Pirching","63243 Kirchenviertel","64142 Schölbing","67516 Treglwang","66140 Lind",null,null,null,null,null,null,"68107 Frösaugraben"]
[null,"61153 Graschach","62319 Rettenbach","63244 Krumegg","64143 Sebersdorf","67517 Trieben","66141 Lipsch",null,null,null,null,null,null,"68108 Fünfing bei Gleisdorf"]
[null,"61201 Bergegg","62320 St. Stefan im Rosental","63245 Kumberg","64144 Seibersdorf",null,"66143 Maxlon",null,null,null,null,null,null,"68109 Gamling"]
[null,"61202 Blumegg","62321 Schwarzau","63246 Laa","64145 Siebenbrunn",null,"66144 Mitteregg",null,null,null,null,null,null,"68110 Gersdorf"]
[null,"61203 Breitenbach","62322 Trössengraben","63247 Langegg","64146 Stambach",null,"66145 Mollitsch",null,null,null,null,null,null,"68111 Gleisdorf"]
[null,"61204 Ettendorf","62323 Ungerdorf","63248 Lebern","64147 Staudach",null,"66146 Muggenau",null,null,null,null,null,null,"68112 Gnieß"]
[null,"61205 Feldbaum","62324 Unterauersbach","63249 Lichtenegg","64148 Ungarvorstadt",null,"66147 Nestelberg bei Heimschuh",null,null,null,null,null,null,"68113 Goggitsch"]
[null,"61206 Furth","62325 Unterlabill","63250 Laßnitzhöhe","64149 Unterbuch",null,"66148 Neudorf an der Mur",null,null,null,null,null,null,"68114 Großpesendorf"]
[null,"61207 Gams","62326 Unterzirknitz","63251 Lieboch","64150 Unterdombach",null,"66149 Neudorf im Sausal",null,null,null,null,null,null,"68115 Gschmaier"]
[null,"61208 Gamsgebirg","62327 Wetzelsdorf","63252 Mantscha","64151 Unterlimbach",null,"66150 Neurath",null,null,null,null,null,null,"68116 Hart"]
[null,"61209 Gersdorf","62328 Zerlach","63253 Mayersdorf","64152 Unterlungitz",null,"66151 Neutersdorf",null,null,null,null,null,null,"68117 Hartensdorf"]
[null,"61210 Grafendorf","62329 Ziprein","63254 Mellach","64153 Unterrohr",null,"66152 Obegg",null,null,null,null,null,null,"68118 Hartmannsdorf"]
[null,"61211 Graggerer","63244 Krumegg","63255 Messendorf","64154 Wagenbach",null,"66154 Obergralla",null,null,null,null,null,null,"68119 Hirnsdorf"]
[null,"61212 Graschuh","63274 St. Marein am Pickelbach","63256 Michlbach","64155 Wagendorf",null,"66155 Oberjahring",null,null,null,null,null,null,"68120 Hofstätten"]
[null,"61213 Greim","66201 Bierbaum","63257 Mitterlaßnitz","64156 Wagerberg",null,"66156 Oberlupitscheni",null,null,null,null,null,null,"68121 Kalch"]
[null,"61214 Greisdorf","66216 Marktl","63258 Muttendorf","64157 Waltersdorf",null,"66157 Obervogau",null,null,null,null,null,null,"68122 Kaltenbrunn"]
[null,"61215 Gruberg","66232 Schwabau","63259 Nestelbach","64158 Weinberg",null,"66158 Ottenberg",null,null,null,null,null,null,"68123 Kroisbach"]
[null,"61216 Gundersdorf","66235 Straden","63260 Präbach","64159 Wenireith",null,"66159 Petzles",null,null,null,null,null,null,"68124 Kulming"]
[null,"61217 Herbersdorf","66236 Trössing","63261 Niederschöckl","64160 Wörth",null,"66160 Ratsch",null,null,null,null,null,null,"68125 Labuch"]
[null,"61218 Hohenfeld","66240 Waasen","63262 Oberpremstätten","64161 Wolfgrub",null,"66161 Reith",null,null,null,null,null,null,"68126 Ludersdorf"]
[null,"61219 Kothvogl","66244 Wiersdorf","63263 Pirka-Eggenberg","64162 Nörning",null,"66162 Rettenbach",null,null,null,null,null,null,"68127 St. Margarethen an der Raab"]
[null,"61220 Lannach","66246 Zehensdorf","63264 Pirka-Söding","64201 Buchberg",null,"66163 Rettenberg",null,null,null,null,null,null,"68128 Nagl"]
[null,"61221 Lasselsdorf","66303 Deutsch Haseldorf","63265 Plankenwarth","64202 Freienberg",null,"66164 Retznei",null,null,null,null,null,null,"68129 Neudorf"]
[null,"61222 Lemsitz","66309 Größing","63266 Premstätten bei Vasoldsberg","64203 Hinteregg",null,"66165 St. Andrä im Sausal",null,null,null,null,null,null,"68130 Nitscha"]
[null,"61223 Lichtenhof","66313 Hof","63267 Purgstall","64204 Hofkirchen",null,"66166 St. Nikolai ob Draßling",null,null,null,null,null,null,"68131 Nitschaberg"]
[null,"61224 Mettersdorf","66323 Neusetz","63268 Raaba","64205 Köppelreith",null,"66167 St. Nikolai im Sausal",null,null,null,null,null,null,"68132 Obergroßau"]
[null,"61225 Mitteregg","66328 Pichla bei Radkersburg","63269 Rabnitz","64206 Oberneuberg",null,"66168 St. Veit am Vogau",null,null,null,null,null,null,"68133 Oberrettenbach"]
[null,"61226 Müllegg","66403 Breitenfeld","63270 St. Radegund","64207 Obersaifen",null,"66169 Sausal-Kerschegg",null,null,null,null,null,null,"68134 Oed"]
[null,"61227 Neudorf","66404 Empersdorf","63271 Rinnegg","64208 Obertiefenbach",null,"66170 Schirka",null,null,null,null,null,null,"68136 Pircha"]
[null,"61228 Neurath","66405 Feiting","63272 Rohrbach","64209 Pöllau",null,"66171 Schönegg",null,null,null,null,null,null,"68137 Pirching"]
[null,"61229 Niedergams","66406 Felgitsch","63273 St. Bartholomä","64210 Prätis",null,"66172 Seggauberg",null,null,null,null,null,null,"68138 Pischelsdorf"]
[null,"61230 Oisnitz","66411 Heiligenkreuz am Waasen","63274 St. Marein am Pickelbach","64211 Rabenwald",null,"66173 Sernau",null,null,null,null,null,null,"68139 Postelgraben"]
[null,"61231 Pichling","66417 Lappach","63275 St. Oswald bei Plankenwarth","64212 St. Johann bei Herberstein",null,"66174 Spielfeld",null,null,null,null,null,null,"68140 Pöllau bei Gleisdorf"]
[null,"61232 Pirkhof","66422 St. Georgen an der Stiefing","63276 Gratkorn-St. Veit ob Graz","64213 Schönau",null,"66175 Stangersdorf",null,null,null,null,null,null,"68141 Prebensdorf"]
[null,"61233 Rassach","66432 Wolfsberg","63277 Stattegg-St. Veit ob Graz","64214 Siegersdorf",null,"66176 Steinbach",null,null,null,null,null,null,"68142 Prebuch"]
[null,"61234 Rossegg","68140 Pöllau bei Gleisdorf","63278 Schadendorfberg","64215 Stubenberg",null,"66177 Steingrub",null,null,null,null,null,null,"68143 Preßguts"]
[null,"61235 Sallegg","68151 Takern II","63279 Schafthal","64216 Unterneuberg",null,"66178 Steinriegel",null,null,null,null,null,null,"68144 Reichendorf"]
[null,"61236 St. Josef (Weststeiermark)","68162 Zöbing","63280 Schöckl","64217 Untertiefenbach",null,"66179 Straß",null,null,null,null,null,null,"68145 Rohrbach"]
[null,"61237 St. Stefan","68163 Reith","63281 Seiersberg","64218 Vockenberg",null,"66180 Sulz",null,null,null,null,null,null,"68146 Romatschachen"]
[null,"61238 Sierling","62142 Oberstorcha","63282 Stattegg","64219 Winkl",null,"66181 Sulztal",null,null,null,null,null,null,"68147 Schachen"]
[null,"61239 Stainz","62127 Kohlberg","63283 Steinberg","64220 Winzendorf",null,"66182 Tillmitsch",null,null,null,null,null,null,"68148 Sinabelkirchen"]
[null,"61240 Stallhof",null,"63284 Stiwoll","64221 Zeil-Pöllau",null,"66183 Unterfahrenbach",null,null,null,null,null,null,"68149 Sulz"]
[null,"61241 Teipl",null,"63285 Thal","64222 Zeil-Stubenberg",null,"66184 Untergralla",null,null,null,null,null,null,"68150 Takern I"]
[null,"61242 Teufenbach",null,"63286 Thalerhof","64301 Äußeres Kaltenegg",null,"66185 Unterjahring",null,null,null,null,null,null,"68151 Takern II"]
[null,"61243 Tobisegg",null,"63287 Thondorf","64302 Arzberg",null,"66186 Unterlupitscheni",null,null,null,null,null,null,"68152 Ungerdorf"]
[null,"61244 Trog",null,"63288 Unterpremstätten","64303 Eichberg",null,"66187 Untervogau",null,null,null,null,null,null,"68153 Untergroßau"]
[null,"61245 Vochera am Weinberg",null,"63289 Wagersbach","64304 Filzmoos",null,"66188 Wagna",null,null,null,null,null,null,"68154 Unterlaßnitz"]
[null,"61246 Wald",null,"63290 Wagnitz","64305 Kandlbauer",null,"66189 Waldschach",null,null,null,null,null,null,"68155 Unterrettenbach"]
[null,"61247 Wetzelsdorf",null,"63291 Weinitzen","64306 Karnerviertl",null,"66190 Wielitsch",null,null,null,null,null,null,"68156 Urscha"]
[null,"61249 Zirknitz",null,"63292 Werndorf","64307 Kirchenviertl",null,"66201 Bierbaum",null,null,null,null,null,null,"68157 Wetzawinkel"]
[null,"61250 Steinreib",null,"63293 Wundschuh","64308 Kleinschlag",null,"66202 Deutsch Goritz",null,null,null,null,null,null,"68158 Wilfersdorf"]
[null,"63209 Dobl",null,"63294 Zettling","64309 Lebing",null,"66203 Diepersdorf",null,null,null,null,null,null,"68159 Wolfsgruben bei Gleisdorf"]
[null,"63251 Lieboch",null,"63295 Zwaring","64310 Pittermannviertl",null,"66204 Dietersdorf",null,null,null,null,null,null,"68160 Wollsdorferegg"]
[null,"63258 Muttendorf",null,"63296 Petzendorf","64311 Puchegg",null,"66205 Edla",null,null,null,null,null,null,"68161 Wünschendorf"]
[null,"63296 Petzendorf",null,"63297 Lamberg","64312 Reinberg",null,"66206 Entschendorf",null,null,null,null,null,null,"68162 Zöbing"]
[null,"63298 Pöls",null,"63298 Pöls","64313 Riegersbach",null,"66207 Fluttendorf",null,null,null,null,null,null,"68163 Reith"]
[null,"63299 Wuschan",null,"63299 Wuschan","64314 Rieglerviertl",null,"66208 Gosdorf",null,null,null,null,null,null,"68201 Affenthal"]
[null,"63304 Edelschrott",null,"63305 Eggartsberg","64315 Schachen",null,"66209 Hainsdorf",null,null,null,null,null,null,"68202 Arndorf"]
[null,"63306 Fluttendorf",null,"63308 Gallmannsegg","64316 Schmiedviertl",null,"66210 Hart",null,null,null,null,null,null,"68203 Arzberg"]
[null,"63340 Modriach",null,"63310 Geistthal","64317 Schnöllerviertl",null,"66211 Hofstätten",null,null,null,null,null,null,"68204 Birchbaum"]
[null,"63346 Oberwald",null,"63316 Großsöding","64318 Schrimpf",null,"66212 Krobathen",null,null,null,null,null,null,"68205 Büchel"]
[null,"63348 Pack",null,"63324 Kalchberg","64319 Sichart",null,"66213 Kronnersdorf",null,null,null,null,null,null,"68206 Dietmannsdorf"]
[null,"63364 Steinberg",null,"63327 Kleinalpe","64320 Sommersgut",null,"66214 Landorf",null,null,null,null,null,null,"68207 Dörfl"]
[null,"63365 Stögersdorf",null,"63328 Kleinsöding","64321 Steinhöf",null,"66215 Lichendorf",null,null,null,null,null,null,"68208 Dürnthal"]
[null,"63370 Gießenberg",null,"63344 Neudorf bei Mooskirchen","64322 Vorau",null,"66216 Marktl",null,null,null,null,null,null,"68209 Elz"]
[null,"66004 Dornach",null,"63345 Neudorf bei St. Johann","64323 Vornholz",null,"66217 Mettersdorf",null,null,null,null,null,null,"68210 Etzersdorf"]
[null,"66009 Gleinstätten",null,"63352 Pichling bei Mooskirchen","68005 Baierdorf",null,"66218 Mureck",null,null,null,null,null,null,"68211 Farcha"]
[null,"66021 Lieschen",null,"63354 Raßberg","68011 Grubbauer",null,"66219 Nägelsdorf",null,null,null,null,null,null,"68212 Fladnitz an der Teichalpe"]
[null,"66028 Obergreith",null,"63360 Södingberg","68012 Gschaid bei Birkfeld",null,"66220 Oberrakitsch",null,null,null,null,null,null,"68213 Floing"]
[null,"66029 Oberhaag",null,"63370 Gießenberg","68014 Kirchenviertel",null,"66221 Oberschwarza",null,null,null,null,null,null,"68214 Fünfing bei St. Ruprecht"]
[null,"66032 Prarath",null,"65109 Glein","68015 Inneres Kaltenegg",null,"66222 Oberspitz",null,null,null,null,null,null,"68215 Garrach"]
[null,"66033 Praratheregg",null,"66404 Empersdorf","68016 Landau",null,"66223 Perbersdorf bei St. Peter",null,null,null,null,null,null,"68216 Göttelsberg"]
[null,"66110 Fantsch",null,"66407 Fliessing","68021 Pacher",null,"66224 Perbersdorf bei St. Veit",null,null,null,null,null,null,"68217 Grub"]
[null,"66134 Lamperstätten",null,"66413 Kainach","68023 Rabendorf",null,"66225 Pichla",null,null,null,null,null,null,"68218 Gschaid bei Weiz"]
[null,"66149 Neudorf im Sausal",null,"66424 St. Ulrich am Waasen","68029 Strallegg",null,"66226 Rannersdorf",null,null,null,null,null,null,"68219 Hafning"]
[null,"66165 St. Andrä im Sausal",null,"66428 Sukdull","68033 Weiglhof",null,"66227 Ratschendorf",null,null,null,null,null,null,"68220 Harl"]
[null,"66189 Waldschach",null,"66430 Weitendorf","68107 Frösaugraben",null,"66228 Rohrbach",null,null,null,null,null,null,"68221 Haselbach"]
[null,"66407 Fliessing",null,"66434 Wutschdorf","68110 Gersdorf",null,"66229 Salsach",null,null,null,null,null,null,"68222 Haufenreith"]
[null,"66426 Schrötten",null,"68104 Entschendorf","68112 Gnieß",null,"66230 St. Peter am Ottersbach",null,null,null,null,null,null,"68223 Höfling"]
[null,null,null,"68113 Goggitsch","68115 Gschmaier",null,"66231 Schrötten",null,null,null,null,null,null,"68224 Hohenau"]
[null,null,null,"68136 Pircha","68117 Hartensdorf",null,"66232 Schwabau",null,null,null,null,null,null,"68225 Hohenkogl"]
[null,null,null,"68154 Unterlaßnitz","68118 Hartmannsdorf",null,"66233 Seibersdorf bei St. Veit",null,null,null,null,null,null,"68226 Kathrein I. Viertel"]
[null,null,null,"68158 Wilfersdorf","68119 Hirnsdorf",null,"66234 Siebing",null,null,null,null,null,null,"68227 Kathrein II. Viertel"]
[null,null,null,"68162 Zöbing","68124 Kulming",null,"66235 Straden",null,null,null,null,null,null,"68228 Kleinsemmering"]
[null,null,null,"68203 Arzberg","68128 Nagl",null,"66236 Trössing",null,null,null,null,null,null,"68229 Klettendorf"]
[null,null,null,"68207 Dörfl","68134 Oed",null,"66237 Eichfeld",null,null,null,null,null,null,"68230 Kramersdorf"]
[null,null,null,"68212 Fladnitz an der Teichalpe","68145 Rohrbach",null,"66238 Unterschwarza",null,null,null,null,null,null,"68231 Krottendorf"]
[null,null,null,"68225 Hohenkogl","68146 Romatschachen",null,"66239 Unterspitz",null,null,null,null,null,null,"68232 Kühwiesen"]
[null,null,null,"68228 Kleinsemmering","68155 Unterrettenbach",null,"66240 Waasen",null,null,null,null,null,null,"68233 Landscha"]
[null,null,null,"68236 Mitterdorf","68163 Reith",null,"66241 Weinburg",null,null,null,null,null,null,"68234 Leska"]
[null,null,null,"68240 Neudorf bei Semriach","68213 Floing",null,"66242 Weitersfeld",null,null,null,null,null,null,"68235 Lohngraben"]
[null,null,null,"68246 Passail","68223 Höfling",null,"66243 Wieden",null,null,null,null,null,null,"68236 Mitterdorf"]
[null,null,null,"68267 Wolfsgruben bei St. Ruprecht","64017 Schlag",null,"66244 Wiersdorf",null,null,null,null,null,null,"68237 Mortantsch"]
[null,null,null,null,null,null,"66245 Wittmannsdorf",null,null,null,null,null,null,"68238 Naas"]
[null,null,null,null,null,null,"66246 Zehensdorf",null,null,null,null,null,null,"68239 Neudorf bei St. Ruprecht"]
[null,null,null,null,null,null,"66247 Weixelbaum",null,null,null,null,null,null,"68240 Neudorf bei Semriach"]
[null,null,null,null,null,null,"66248 Haselbach",null,null,null,null,null,null,"68241 Nöstl"]
[null,null,null,null,null,null,"66301 Altneudörfl",null,null,null,null,null,null,"68242 Oberdorf bei Stadl"]
[null,null,null,null,null,null,"66302 Dedenitz",null,null,null,null,null,null,"68243 Oberdorf bei Thannhausen"]
[null,null,null,null,null,null,"66303 Deutsch Haseldorf",null,null,null,null,null,null,"68244 Oberfladnitz"]
[null,null,null,null,null,null,"66304 Dietzen",null,null,null,null,null,null,"68245 Obergreith"]
[null,null,null,null,null,null,"66305 Donnersdorf",null,null,null,null,null,null,"68246 Passail"]
[null,null,null,null,null,null,"66306 Dornau",null,null,null,null,null,null,"68247 Peesen"]
[null,null,null,null,null,null,"66307 Drauchen",null,null,null,null,null,null,"68248 Perndorf"]
[null,null,null,null,null,null,"66308 Goritz bei Radkersburg",null,null,null,null,null,null,"68249 Pichl"]
[null,null,null,null,null,null,"66309 Größing",null,null,null,null,null,null,"68267 Wolfsgruben bei St. Ruprecht"]
[null,null,null,null,null,null,"66310 Gruisla",null,null,null,null,null,null,"68268 Wollsdorf"]
[null,null,null,null,null,null,"66311 Halbenrain"]
[null,null,null,null,null,null,"66313 Hof"]
[null,null,null,null,null,null,"66314 Hürth"]
[null,null,null,null,null,null,"66315 Hummersdorf"]
[null,null,null,null,null,null,"66316 Jörgen"]
[null,null,null,null,null,null,"66317 Kellerdorf"]
[null,null,null,null,null,null,"66318 Klöch"]
[null,null,null,null,null,null,"66319 Laafeld"]
[null,null,null,null,null,null,"66320 Laasen"]
[null,null,null,null,null,null,"66321 Leitersdorf I"]
[null,null,null,null,null,null,"66322 Leitersdorf II"]
[null,null,null,null,null,null,"66323 Neusetz"]
[null,null,null,null,null,null,"66324 Oberkarla"]
[null,null,null,null,null,null,"66325 Oberpurkla"]
[null,null,null,null,null,null,"66326 Patzen"]
[null,null,null,null,null,null,"66327 Pfarrsdorf"]
[null,null,null,null,null,null,"66328 Pichla bei Radkersburg"]
[null,null,null,null,null,null,"66329 Pölten"]
[null,null,null,null,null,null,"66330 Pridahof"]
[null,null,null,null,null,null,"66331 Radkersburg"]
[null,null,null,null,null,null,"66332 Radochen"]
[null,null,null,null,null,null,"66333 Sicheldorf"]
[null,null,null,null,null,null,"66334 Sögersdorf"," "]
[null,null,null,null,null,null,"66335 Tieschen"]
[null,null,null,null,null,null,"66336 Unterkarla"]
[null,null,null,null,null,null,"66337 Unterpurkla"]
[null,null,null,null,null,null,"66339 Zelting"]
[null,null,null,null,null,null,"66340 Klöchberg"]
[null,null,null,null,null,null,"66401 Allerheiligen"]
[null,null,null,null,null,null,"66402 Badendorf"]
[null,null,null,null,null,null,"66403 Breitenfeld"]
[null,null,null,null,null,null,"66404 Empersdorf"]
[null,null,null,null,null,null,"66405 Feiting"]
[null,null,null,null,null,null,"66406 Felgitsch"]
[null,null,null,null,null,null,"66407 Fliessing"]
[null,null,null,null,null,null,"66408 Hainsdorf"]
[null,null,null,null,null,null,"66409 Hart"]
[null,null,null,null,null,null,"66410 Haslach"]
[null,null,null,null,null,null,"66411 Heiligenkreuz am Waasen"]
[null,null,null,null,null,null,"66412 Hengsberg"]
[null,null,null,null,null,null,"66413 Kainach"]
[null,null,null,null,null,null,"66414 Komberg"]
[null,null,null,null,null,null,"66415 Kühberg"]
[null,null,null,null,null,null,"66417 Lappach"]
[null,null,null,null,null,null,"66418 Lebring"]
[null,null,null,null,null,null,"66419 Matzelsdorf"]
[null,null,null,null,null,null,"66421 Ragnitz"]
[null,null,null,null,null,null,"66422 St. Georgen an der Stiefing"]
[null,null,null,null,null,null,"66423 St. Margareten"]
[null,null,null,null,null,null,"66424 St. Ulrich am Waasen"]
[null,null,null,null,null,null,"66425 Schönberg"]
[null,null,null,null,null,null,"66426 Schrötten"]
[null,null,null,null,null,null,"66427 Stocking"]
[null,null,null,null,null,null,"66428 Sukdull"]
[null,null,null,null,null,null,"66429 Unterhaus"]
[null,null,null,null,null,null,"66430 Weitendorf"]
[null,null,null,null,null,null,"66431 Wildon"]
[null,null,null,null,null,null,"66432 Wolfsberg"]
[null,null,null,null,null,null,"66434 Wutschdorf"]
[null,null,null,null,null,null,"66435 Marchtring"]
[]
[]
[]
[]
[]
[]
["62001","Aigen",{"$f":"A300&\" \"&B300","v":"62001 Aigen"},null,null,"SÜDOSTSTEIERMARK /","Bad Gleichenberg",{"$f":"F300&\" \"&G300","v":"SÜDOSTSTEIERMARK / Bad Gleichenberg"}]
["62101","Altenmarkt bei Riegersburg","62101 Altenmarkt bei Riegersburg",null,null,"SÜDOSTSTEIERMARK /","Bad Radkersburg",{"$f":"F301&\" \"&G301","v":"SÜDOSTSTEIERMARK / Bad Radkersburg"}]
["66301","Altneudörfl","66301 Altneudörfl",null,null,"SÜDOSTSTEIERMARK /","Deutsch Goritz","SÜDOSTSTEIERMARK / Deutsch Goritz"]
["62301","Aschau","62301 Aschau",null,null,"SÜDOSTSTEIERMARK /","Edelsbach bei Feldbach","SÜDOSTSTEIERMARK / Edelsbach bei Feldbach"]
["62102","Auersbach","62102 Auersbach",null,null,"SÜDOSTSTEIERMARK /","Eichkögl","SÜDOSTSTEIERMARK / Eichkögl"]
["62302","Aug-Radisch","62302 Aug-Radisch",null,null,"SÜDOSTSTEIERMARK /","Fehring","SÜDOSTSTEIERMARK / Fehring"]
["62103","Axbach","62103 Axbach",null,null,"SÜDOSTSTEIERMARK /","Feldbach","SÜDOSTSTEIERMARK / Feldbach"]
["62104","Bad Gleichenberg","62104 Bad Gleichenberg",null,null,"SÜDOSTSTEIERMARK /","Gnas","SÜDOSTSTEIERMARK / Gnas"]
["62003","Bairisch Kölldorf","62003 Bairisch Kölldorf",null,null,"SÜDOSTSTEIERMARK /","Halbenrain","SÜDOSTSTEIERMARK / Halbenrain"]
["62303","Baumgarten","62303 Baumgarten",null,null,"SÜDOSTSTEIERMARK /","Jagerberg","SÜDOSTSTEIERMARK / Jagerberg"]
["66201","Bierbaum","66201 Bierbaum",null,null,"SÜDOSTSTEIERMARK /","Kapfenstein","SÜDOSTSTEIERMARK / Kapfenstein"]
["62106","Breitenfeld","62106 Breitenfeld",null,null,"SÜDOSTSTEIERMARK /","Kirchbach-Zerlach","SÜDOSTSTEIERMARK / Kirchbach-Zerlach"]
["62002","Burgfeld","62002 Burgfeld",null,null,"SÜDOSTSTEIERMARK /","Kirchberg an der Raab","SÜDOSTSTEIERMARK / Kirchberg an der Raab"]
["66302","Dedenitz","66302 Dedenitz",null,null,"SÜDOSTSTEIERMARK /","Klöch","SÜDOSTSTEIERMARK / Klöch"]
["66202","Deutsch Goritz","66202 Deutsch Goritz",null,null,"SÜDOSTSTEIERMARK /","Mettersdorf am Saßbach","SÜDOSTSTEIERMARK / Mettersdorf am Saßbach"]
["66303","Deutsch Haseldorf","66303 Deutsch Haseldorf",null,null,"SÜDOSTSTEIERMARK /","Mureck","SÜDOSTSTEIERMARK / Mureck"]
["66203","Diepersdorf","66203 Diepersdorf",null,null,"SÜDOSTSTEIERMARK /","Murfeld","SÜDOSTSTEIERMARK / Murfeld"]
["66204","Dietersdorf","66204 Dietersdorf",null,null,"SÜDOSTSTEIERMARK /","Paldau","SÜDOSTSTEIERMARK / Paldau"]
["66304","Dietzen","66304 Dietzen",null,null,"SÜDOSTSTEIERMARK /","Pirching am Traubenberg","SÜDOSTSTEIERMARK / Pirching am Traubenberg"]
["62107","Dirnbach","62107 Dirnbach",null,null,"SÜDOSTSTEIERMARK /","Riegersburg","SÜDOSTSTEIERMARK / Riegersburg"]
["66305","Donnersdorf","66305 Donnersdorf",null,null,"SÜDOSTSTEIERMARK /","Sankt Anna am Aigen","SÜDOSTSTEIERMARK / Sankt Anna am Aigen"]
["66306","Dornau","66306 Dornau",null,null,"SÜDOSTSTEIERMARK /","Sankt Peter am Ottersbach","SÜDOSTSTEIERMARK / Sankt Peter am Ottersbach"]
["66307","Drauchen","66307 Drauchen",null,null,"SÜDOSTSTEIERMARK /","Sankt Stefan im Rosental","SÜDOSTSTEIERMARK / Sankt Stefan im Rosental"]
["62108","Ebersdorf","62108 Ebersdorf",null,null,"SÜDOSTSTEIERMARK /","Straden","SÜDOSTSTEIERMARK / Straden"]
["62109","Edelsbach","62109 Edelsbach",null,null,"SÜDOSTSTEIERMARK /","Tieschen","SÜDOSTSTEIERMARK / Tieschen"]
["62304","Edelstauden","62304 Edelstauden",null,null,"SÜDOSTSTEIERMARK /","Unterlamm","SÜDOSTSTEIERMARK / Unterlamm"]
["66205","Edla","66205 Edla",null,null,"HARTBERG-FÜRSTENFELD /",null,"HARTBERG-FÜRSTENFELD / "]
["66237","Eichfeld","66237 Eichfeld",null,null,"HARTBERG-FÜRSTENFELD /",null,"HARTBERG-FÜRSTENFELD / "]
["66206","Entschendorf","66206 Entschendorf",null,null,"HARTBERG-FÜRSTENFELD /",null,"HARTBERG-FÜRSTENFELD / "]
["62110","Erbersdorf","62110 Erbersdorf",null,null,"HARTBERG-FÜRSTENFELD /",null,"HARTBERG-FÜRSTENFELD / "]
["62004","Fehring","62004 Fehring",null,null,"HARTBERG-FÜRSTENFELD /",null,"HARTBERG-FÜRSTENFELD / "]
["62111","Feldbach","62111 Feldbach",null,null,"HARTBERG-FÜRSTENFELD /",null,"HARTBERG-FÜRSTENFELD / "]
["62112","Fischa","62112 Fischa",null,null,"HARTBERG-FÜRSTENFELD /",null,"HARTBERG-FÜRSTENFELD / "]
["62113","Fladnitz im Raabtal","62113 Fladnitz im Raabtal",null,null,"HARTBERG-FÜRSTENFELD /",null,"HARTBERG-FÜRSTENFELD / "]
["66207","Fluttendorf","66207 Fluttendorf",null,null,"HARTBERG-FÜRSTENFELD /",null,"HARTBERG-FÜRSTENFELD / "]
["62305","Frannach","62305 Frannach",null,null,"HARTBERG-FÜRSTENFELD /",null,"HARTBERG-FÜRSTENFELD / "]
["62005","Frutten","62005 Frutten"]
["62006","Gießelsdorf","62006 Gießelsdorf"]
["62114","Gleichenberg Dorf","62114 Gleichenberg Dorf"]
["62306","Glojach","62306 Glojach"]
["62115","Gnas","62115 Gnas"]
["62116","Gniebing","62116 Gniebing"]
["66308","Goritz bei Radkersburg","66308 Goritz bei Radkersburg"]
["66208","Gosdorf","66208 Gosdorf"]
["62117","Gossendorf","62117 Gossendorf"]
["62118","Grabersdorf","62118 Grabersdorf"]
["62307","Grasdorf","62307 Grasdorf"]
["66309","Größing","66309 Größing"]
["62119","Grub I","62119 Grub I"]
["62120","Grub II","62120 Grub II"]
["66310","Gruisla","66310 Gruisla"]
["62007","Gutendorf","62007 Gutendorf"]
["62121","Haag","62121 Haag"]
["62008","Habegg","62008 Habegg"]
["66209","Hainsdorf","66209 Hainsdorf"]
["66311","Halbenrain","66311 Halbenrain"]
["62308","Hamet","62308 Hamet"]
["66210","Hart","66210 Hart"]
["62009","Haselbach","62009 Haselbach"]
["66248","Haselbach","66248 Haselbach"]
["62010","Hatzendorf","62010 Hatzendorf"]
["62122","Hirsdorf","62122 Hirsdorf"]
["62011","Hochstraden","62011 Hochstraden"]
["66313","Hof","66313 Hof"]
["62012","Höflach",{"$f":"A364&\" \"&B364","v":"62012 Höflach"}]
["62123","Hofstätten","62123 Hofstätten"]
["66211","Hofstätten","66211 Hofstätten"]
["62013","Hohenbrugg","62013 Hohenbrugg"]
["66315","Hummersdorf","66315 Hummersdorf"]
["66314","Hürth","66314 Hürth"]
["62309","Jagerberg","62309 Jagerberg"]
["62310","Jahrbach","62310 Jahrbach"]
["62014","Jamm","62014 Jamm"]
["62015","Johnsdorf","62015 Johnsdorf"]
["66316","Jörgen","66316 Jörgen"]
["62124","Kaag","62124 Kaag"]
["62016","Kapfenstein","62016 Kapfenstein"]
["62125","Karbach","62125 Karbach"]
["66317","Kellerdorf","66317 Kellerdorf"]
["62311","Kirchbach in Steiermark","62311 Kirchbach in Steiermark"]
["62126","Kirchberg an der Raab","62126 Kirchberg an der Raab"]
["62017","Klapping","62017 Klapping"]
["66318","Klöch","66318 Klöch"]
["66340","Klöchberg","66340 Klöchberg"]
["62127","Kohlberg","62127 Kohlberg"]
["62167","Kohlberg II","62167 Kohlberg II"]
["62018","Kölldorf","62018 Kölldorf"]
["62128","Kornberg","62128 Kornberg"]
["62129","Krennach","62129 Krennach"]
["66212","Krobathen","66212 Krobathen"]
["66213","Kronnersdorf","66213 Kronnersdorf"]
["62312","Krottendorf","62312 Krottendorf"]
["62130","Krusdorf","62130 Krusdorf"]
["66319","Laafeld","66319 Laafeld"]
["66320","Laasen","66320 Laasen"]
["66214","Landorf","66214 Landorf"]
["62131","Leitersdorf","62131 Leitersdorf"]
["66321","Leitersdorf I","66321 Leitersdorf I"]
["66322","Leitersdorf II","66322 Leitersdorf II"]
["62132","Lembach bei Riegersburg","62132 Lembach bei Riegersburg"]
["66215","Lichendorf","66215 Lichendorf"]
["62313","Lichtenegg","62313 Lichtenegg"]
["62133","Lödersdorf","62133 Lödersdorf"]
["62314","Lugitsch","62314 Lugitsch"]
["62019","Magland","62019 Magland"]
["62020","Mahrensdorf","62020 Mahrensdorf"]
["62134","Maierdorf","62134 Maierdorf"]
["66216","Marktl","66216 Marktl"]
["62135","Merkendorf","62135 Merkendorf"]
["66217","Mettersdorf","66217 Mettersdorf"]
["62136","Mitterfladnitz","62136 Mitterfladnitz"]
["62138","Muggendorf","62138 Muggendorf"]
["62137","Mühldorf","62137 Mühldorf"]
["66218","Mureck","66218 Mureck"]
["66219","Nägelsdorf","66219 Nägelsdorf"]
["66323","Neusetz","66323 Neusetz"]
["62139","Neustift bei Breitenfeld","62139 Neustift bei Breitenfeld"]
["62021","Neustift bei Kapfenstein","62021 Neustift bei Kapfenstein"]
["62140","Oberdorf","62140 Oberdorf"]
["62141","Obergnas","62141 Obergnas"]
["66324","Oberkarla","66324 Oberkarla"]
["62022","Oberlamm","62022 Oberlamm"]
["66325","Oberpurkla","66325 Oberpurkla"]
["66220","Oberrakitsch","66220 Oberrakitsch"]
["66221","Oberschwarza","66221 Oberschwarza"]
["66222","Oberspitz","66222 Oberspitz"]
["62142","Oberstorcha","62142 Oberstorcha"]
["62023","Oedgraben","62023 Oedgraben"]
["62143","Oedt",{"$f":"A428&\" \"&B428","v":"62143 Oedt"}]
["62144","Paldau","62144 Paldau"]
["66326","Patzen","66326 Patzen"]
["66223","Perbersdorf bei St. Peter","66223 Perbersdorf bei St. Peter"]
["62145","Perlsdorf","62145 Perlsdorf"]
["62024","Pertlstein","62024 Pertlstein"]
["62025","Petersdorf I","62025 Petersdorf I"]
["62026","Petzelsdorf","62026 Petzelsdorf"]
["66327","Pfarrsdorf","66327 Pfarrsdorf"]
["62027","Pichla","62027 Pichla"]
["66328","Pichla bei Radkersburg","66328 Pichla bei Radkersburg"]
["62318","Pirching","62318 Pirching"]
["62028","Plesch","62028 Plesch"]
["66329","Pölten","66329 Pölten"]
["62146","Poppendorf","62146 Poppendorf"]
["66330","Pridahof","66330 Pridahof"]
["62147","Raabau","62147 Raabau"]
["62148","Radersdorf","62148 Radersdorf"]
["66331","Radkersburg","66331 Radkersburg"]
["66332","Radochen","66332 Radochen"]
["62149","Raning","62149 Raning"]
["66226","Rannersdorf","66226 Rannersdorf"]
["66227","Ratschendorf","66227 Ratschendorf"]
["62319","Rettenbach","62319 Rettenbach"]
["62151","Riegersburg","62151 Riegersburg"]
["62029","Risola","62029 Risola"]
["62152","Rohr","62152 Rohr"]
["66228","Rohrbach","66228 Rohrbach"]
["62153","Saaz","62153 Saaz"]
["66229","Salsach","66229 Salsach"]
["62030","Schiefer","62030 Schiefer"]
["66231","Schrötten","66231 Schrötten"]
["66232","Schwabau","66232 Schwabau"]
["62155","Schweinz","62155 Schweinz"]
["66233","Seibersdorf bei St. Veit","66233 Seibersdorf bei St. Veit"]
["66333","Sicheldorf","66333 Sicheldorf"]
["66334","Sögersdorf","66334 Sögersdorf"]
["62154","St. Kind","62154 St. Kind"]
["66230","St. Peter am Ottersbach","66230 St. Peter am Ottersbach"]
["62320","St. Stefan im Rosental","62320 St. Stefan im Rosental"]
["62156","Stainz bei Straden","62156 Stainz bei Straden"]
["62031","Stang","62031 Stang"]
["66235","Straden","66235 Straden"]
["62157","Studenzen","62157 Studenzen"]
["62158","Sulzbach","62158 Sulzbach"]
["62032","Tiefenbach","62032 Tiefenbach"]
["62159","Tiefernitz","62159 Tiefernitz"]
["66335","Tieschen","66335 Tieschen"]
["62160","Trautmannsdorf","62160 Trautmannsdorf"]
["62322","Trössengraben","62322 Trössengraben"]
["66236","Trössing","66236 Trössing"]
["62323","Ungerdorf","62323 Ungerdorf"]
["62324","Unterauersbach","62324 Unterauersbach"]
["66336","Unterkarla","66336 Unterkarla"]
["62033","Unterlamm","62033 Unterlamm"]
["66337","Unterpurkla","66337 Unterpurkla"]
["66238","Unterschwarza","66238 Unterschwarza"]
["66239","Unterspitz","66239 Unterspitz"]
["62166","Unterstorcha","62166 Unterstorcha"]
["62326","Unterzirknitz","62326 Unterzirknitz"]
["66240","Waasen","66240 Waasen"]
["62161","Waldsberg","62161 Waldsberg"]
["62034","Waltra","62034 Waltra"]
["62035","Weinberg","62035 Weinberg"]
["62163","Weißenbach",{"$f":"A492&\" \"&B492","v":"62163 Weißenbach"}]
["66242","Weitersfeld","66242 Weitersfeld"]
["66247","Weixelbaum","66247 Weixelbaum"]
["62327","Wetzelsdorf","62327 Wetzelsdorf"]
["66243","Wieden","66243 Wieden"]
["66244","Wiersdorf","66244 Wiersdorf"]
["62164","Wilhelmsdorf","62164 Wilhelmsdorf"]
["66245","Wittmannsdorf","66245 Wittmannsdorf"]
["62165","Wörth","62165 Wörth"]
["66246","Zehensdorf","66246 Zehensdorf"]
["66339","Zelting","66339 Zelting"]
["62328","Zerlach","62328 Zerlach"]
["62329","Ziprein","62329 Ziprein"]
[{"$f":"LEFT(O206,20)","v":""},{"$f":"MID(O206,21,50)","v":""},{"$f":"A505&\" \"&B505","v":" "}]
["",""," "]
["",""," "]
["",""," "]
["",""," "]
["",""," "]
["",""," "]
["",""," "]
["",""," "]
["",""," "]
["",""," "]
["",""," "]
["",""," "]
["",""," "]
["",""," "]
["",""," "]
["",""," "]
["",""," "]
["",""," "]
["",""," "]
["",""," "]
["",""," "]
["",""," "]
["",""," "]
["",""," "]
["",""," "]
["",""," "]
["",""," "]

{"sheet":"Tabelle4","index":4,"n_rows":0,"n_cols":0,"rows_kept":0,"cut":false,"hidden":true,"merged":[]}